Workbook

Sheet NSSCalc (hidden)
A1: source: nsscalc2223_2023-7-25.xlsm | B1: Actual (Prior Year) | H1: Actual School Committee | Z1: Actual City/Town | AR1: Actual Total | BH1: Budgeted (Current Year) | BI1: Budgeted School Committee | CB1: Budgeted City/Town | CT1: Budgeted Total
C2: From EOYLog | E2: 2022 actual | F2: 2023 budget | G2: 2022 budget | H2: (DayPct x SCAdmin) + 1435 | I2: Total instructional services for reg, sped, voc and undistributed | J2: 3100 and 3200 totals | K2: 3400 total less supplies and materials | L2: 3510 + 3520 + 3600 | M2: (4000 series) x daypct | N2: (5100 + 5150) x daypct | O2: (5200 + 5260) x daypct | P2: 5250 x daypct for districts that can count this | Q2: (5300 + 5350) x daypct | R2: 5400 x daypct | S2: 9100 through 9400 All payments to other districts, reg, sped and voc LESS charter facilities aid for regional districts. | T2: SUM of 1 - 12 | V2: Allowable carryforward + SC budgeted revenues from PY Sch 19 (tuition, earnings on investments, rental of school facs and other gf rev) | W2: Only on municipal side | X2: 14a+14b | Y2: 13-14c | Z2: PY Sch 19*daypctbudget | AA2: PY Sch 19, "Educational Media" | AB2: PY Sch 19 | AC2: Only on school committee side | AD2: 3510 + 3520 + 3600 | AE2: PY Sch 19*daypct, maintenance + extraordinary maintenance | AF2: (5100 + 5150) x daypct | AG2: (5200 + 5260) x daypct | AH2: 5251 x daypct for districts that can count this | AI2: PY Sch 19*daypct | AJ2: 5400 x daypct | AK2: 9100 through 9400 formunicipal districts less their fac aid. | AL2: SUM of 1 - 12 | AN2: I don't think anything goes in here… | AO2: Only for municipal districts | AP2: 14a+14b | AQ2: 13 - 14c | AR2: 15. Sch Comm + 15. Muni | AS2: From that year's C70 (ESE fills in) | AT2: From ESE calculation of PY NSS compliance | AU2: 16 + 17 less waiver | AV2: 18 - 15 | AW2: 19 / 16 | AX2: 19 or 5% of 16 or 0 if 17 > 0 | AY2: 19 - 21 | BA2: Rev code 60 (PY Unexpended Encumbrances) | BB2: Prepop from NSS1920 | BC2: Prepop from NSS1920 | BD2: Actual 15 - Reqd 15 | BE2: Amt over/under less Carryforward | BF2: If "New Amt Over/Under" is <0, this is the smaller of that abs(number) or "Carryforward" | BG2: From PY Sch 19 x daypctbudget20 (col. G) | BI2: 1000 x daypctbudget | BJ2: 2000 not including other programs | BK2: 3100 and 3200 | BL2: 3400 | BM2: 3500 and 3600 | BN2: Maint and Extra Maint x daypctbudget | BO2: 5100 and 5150 x daypctbudget | BP2: 5200 and 5260 x daypctbudget | BQ2: 5250 for eligible districts x daypct budget | BR2: 5300 x daypctbudget | BS2: 5400 x daypctbudget | BT2: 9000s less other programs (For Regionals - less projected charter facilities aid, using most current charter and choice tuition) | BU2: 23 through 34 | BW2: Rev code 03, 04, 05, 08, 09, 10 x daypct | BX2: No data in here, only on muni side | CB2: 1000 x daypctbudget | CC2: 2000 not including other programs | CD2: 3100 and 3200 | CE2: Nothing reported here | CF2: 3500 and 3600 | CG2: Maint and Extra Maint x daypctbudget | CH2: 5100 and 5150 x daypctbudget | CI2: 5200 and 5260 x daypctbudget | CJ2: 5250 for eligible districts x daypct budget | CK2: 5300 x daypctbudget | CL2: 5400 x daypctbudget | CM2: 9000s less other programs (For Municipal - less projected charter facilities aid, using most current charter and choice tuition) | CN2: 23 through 34 | CP2: Nothing reported here for municipal | CQ2: if LEA <400, include proj charter reimbursement | CT2: 37. Sch Comm + 37. Muni | CW2: 38 + 39 less waiver | CZ2: Estimate | DA2: Estimate
A3: org4code | B3: OPStatus | C3: EOYIn | D3: Date Rcvd | E3: daypctactual22 | F3: daypctbudget23 | G3: daypctbudget22 | H3: 1. Administration (1000) | I3: 2. Instruction (2000) | J3: 3. Attendance-Health (3100, 3200) | K3: 4. Food Services (3400) | L3: 5. Athletics/Student Activities/ Security (3500,3600) | M3: 6. Maintenance (4000) | N3: 7. Employee Benefits (5100) | O3: 8. Insurance (5200) | P3: 9. Retired Employee Insurance (5250) | Q3: 10. Rentals (5300) | R3: 11. Short Term Interest RAN's (5400) | S3: 12. Tuition (9000) | T3: 13. Total School Spending (1 through 12) | U3: 14. School Revenues | V3: 14a) FY22 School Revenues | W3: 14b) FY22 Charter Reimbursement | X3: 14c) Subtotal, School Revenues (14a+14b) | Y3: 15. Net School Spending (13 - 14c) | Z3: 1. Administration (1000) | AA3: 2. Instruction (2000) | AB3: 3. Attendance-Health (3100, 3200) | AC3: 4. Food Services (3400) | AD3: 5. Athletics/Student Activities/ Security (3500,3600) | AE3: 6. Maintenance (4000) | AF3: 7. Employee Benefits (5100) | AG3: 8. Insurance (5200) | AH3: 9. Retired Employee Insurance (5250) | AI3: 10. Rentals (5300) | AJ3: 11. Short Term Interest RAN's (5400) | AK3: 12. Tuition (9000) | AL3: 13. Total School Spending (1 through 12) | AM3: 14. School Revenues | AN3: 14a) FY22 School Revenues | AO3: 14b) FY22 Charter Reimbursement | AP3: 14c) Subtotal, School Revenues (14a+14b) | AQ3: 15. Net School Spending (13 - 14c) | AR3: 15. Net School Spending (13 - 14c) | AS3: 16. FY22 Required Net School Spending | AT3: 17. FY21 Carry-Over Into FY21 | AU3: 18. Total FY22 Requirement (16 + 17) | AV3: 19. Unexpended Net School Spending (18 - 15) | AW3: 20. Percent Unexpended (19 / 16) | AX3: 21. FY22 Carry-Over (19 or 5% of 16 or 0 if 17 > 0) | AY3: 22. Penalty (19 - 21) | BA3: Carryforward | BB3: Total Required NSS FY21 | BC3: Actual NSS FY21 | BD3: Amt Over/Under | BE3: New Amount Over/Under | BF3: Allowable Carryforward | BG3: SC Revenues Budgeted for FY22 | BI3: 23. Administration (1000) | BJ3: 24. Instruction (2000) | BK3: 25. Attendance-Health (3100, 3200) | BL3: 26. Food Services (3400) | BM3: 27. Athletics/Student Activities/ Security (3500,3600) | BN3: 28. Maintenance (4000) | BO3: 29. Employee Benefits (5100) | BP3: 30. Insurance (5200) | BQ3: 31. Retired Employee Insurance (5250) | BR3: 32. Rentals (5300) | BS3: 33. Short Term Interest RAN's (5400) | BT3: 34. Tuition (9000) | BU3: 35. Total School Spending (23 through 34) | BV3: 36. Revenues | BW3: 36a) FY23 Budgeted School Revenues | BX3: 36b) Projected FY23 Charter Reimbursement (Local Districts) | BY3: 36c) Subtotal, Net School Spending Revenues (36a+36b) | BZ3: 37. Net School Spending (35 - 36) | CB3: 23. Administration (1000) | CC3: 24. Instruction (2000) | CD3: 25. Attendance-Health (3100, 3200) | CE3: 26. Food Services (3400) | CF3: 27. Athletics/Student Activities/ Security (3500,3600) | CG3: 28. Maintenance (4000) | CH3: 29. Employee Benefits (5100) | CI3: 30. Insurance (5200) | CJ3: 31. Retired Employee Insurance (5250) | CK3: 32. Rentals (5300) | CL3: 33. Short Term Interest RAN's (5400) | CM3: 34. Tuition (9000) | CN3: 35. Total School Spending (23 through 34) | CO3: 36. Revenues | CP3: 36a) FY23 Budgeted School Revenues | CQ3: 36b) Projected FY23 Charter Reimbursement (Local Districts) | CR3: 36c) Subtotal, Net School Spending Revenues (36a+36b) | CS3: 37. Net School Spending (35 - 36) | CT3: 37. Net School Spending (35 - 36) | CU3: 38. FY23 Required Net School Spending | CV3: 39. Carry-Over from FY22 (21) | CW3: 40. Total FY23 Requirement (38 + 39) | CX3: 41. Deficiency (40 - 37) | CY3: Percent Unexpended | CZ3: Carryover | DA3: Penalty
A4: 0001 | B4: 1 | C4: 1 | D4: 2022-11-30 | E4: 1 | F4: 1 | G4: 1 | H4: 614647.44 | I4: 19310731.37 | J4: 338112.29 | K4: 0 | L4: 437489.96 | M4: 1955312.09 | N4: 60679.26 | O4: 0 | P4: 0 | Q4: 0 | R4: 0 | S4: 2087714.07 | T4: 24804686.48 | V4: 0 | X4: 0 | Y4: 24804686.48 | Z4: 147610.84 | AA4: 53633 | AB4: 0 | AD4: 0 | AE4: 69305 | AF4: 698271 | AG4: 4260803 | AH4: 1032378 | AI4: 0 | AJ4: 0 | AK4: 872632 | AL4: 7134632.84 | AO4: 176472 | AP4: 176472 | AQ4: 6958160.84 | AR4: 31762847.32 | AS4: 26629510 | AT4: 0 | AU4: 26629510 | AV4: 0 | AW4: 0 | AX4: 0 | AY4: 0 | BA4: 0 | BB4: 25332547 | BC4: 30753869.42 | BD4: 5421322.42 | BE4: 5421322.42 | BF4: 0 | BG4: 0 | BI4: 1082287.7 | BJ4: 18124856 | BK4: 373095 | BL4: 0 | BM4: 248168 | BN4: 2109556 | BO4: 40000 | BP4: 0 | BQ4: 0 | BR4: 0 | BS4: 0 | BT4: 3884157 | BU4: 25862119.7 | BW4: 0 | BY4: 0 | BZ4: 25862119.7 | CB4: 109468 | CC4: 56710 | CD4: 0 | CF4: 0 | CG4: 60615 | CH4: 754159 | CI4: 4321415 | CJ4: 1083853 | CK4: 0 | CL4: 0 | CM4: 1048913 | CN4: 7435133 | CQ4: 285875.92 | CR4: 285875.92 | CS4: 7149257.08 | CT4: 33011376.78 | CU4: 29563171 | CV4: 0 | CW4: 29563171 | CX4: 0 | CY4: 0 | CZ4: 0 | DA4: 0
A5: 0002 | B5: 0 | C5: 1 | D5: 2022-09-21 | H5: 0 | I5: 0 | J5: 0 | K5: 0 | L5: 0 | M5: 0 | N5: 0 | O5: 0 | P5: 0 | Q5: 0 | R5: 0 | S5: 0 | T5: 0 | V5: 0 | X5: 0 | Y5: 0 | Z5: 0 | AA5: 0 | AB5: 0 | AD5: 0 | AE5: 0 | AF5: 0 | AG5: 0 | AH5: 0 | AI5: 0 | AJ5: 0 | AK5: 0 | AL5: 0 | AO5: 0 | AP5: 0 | AQ5: 0 | AR5: 0 | AS5: 0 | AT5: 0 | AU5: 0 | AV5: 0 | AW5: 0 | AX5: 0 | AY5: 0 | BA5: 0 | BB5: 0 | BC5: 0 | BD5: 0 | BE5: 0 | BF5: 0 | BG5: 0 | BI5: 0 | BJ5: 0 | BK5: 0 | BL5: 0 | BM5: 0 | BN5: 0 | BO5: 0 | BP5: 0 | BQ5: 0 | BR5: 0 | BS5: 0 | BT5: 0 | BU5: 0 | BW5: 0 | BY5: 0 | BZ5: 0 | CB5: 0 | CC5: 0 | CD5: 0 | CF5: 0 | CG5: 0 | CH5: 0 | CI5: 0 | CJ5: 0 | CK5: 0 | CL5: 0 | CM5: 0 | CN5: 0 | CQ5: 0 | CR5: 0 | CS5: 0 | CT5: 0 | CU5: 0 | CV5: 0 | CW5: 0 | CX5: 0 | CY5: 0 | CZ5: 0 | DA5: 0
A6: 0003 | B6: 1 | C6: 1 | D6: 2022-10-31 | E6: 1 | F6: 1 | G6: 1 | H6: 542635 | I6: 8638137 | J6: 165949 | K6: 0 | L6: 29273 | M6: 1316043 | N6: 0 | O6: 0 | P6: 0 | Q6: 0 | R6: 0 | S6: 3502453 | T6: 14194490 | V6: 0 | X6: 0 | Y6: 14194490 | Z6: 98149 | AA6: 0 | AB6: 0 | AD6: 0 | AE6: 0 | AF6: 429017 | AG6: 925974 | AH6: 180484 | AI6: 0 | AJ6: 0 | AK6: 177170 | AL6: 1810794 | AO6: 3325.795442 | AP6: 3325.795442 | AQ6: 1807468.205 | AR6: 16001958.2 | AS6: 14279819 | AT6: 0 | AU6: 14279819 | AV6: 0 | AW6: 0 | AX6: 0 | AY6: 0 | BA6: 77126 | BB6: 14251002 | BC6: 15749783.52 | BD6: 1498781.518 | BE6: 1421655.518 | BF6: 0 | BG6: 0 | BI6: 785926 | BJ6: 8988813 | BK6: 221596 | BL6: 750 | BM6: 58159 | BN6: 945216 | BO6: 0 | BP6: 0 | BQ6: 0 | BR6: 0 | BS6: 0 | BT6: 3528033 | BU6: 14528493 | BW6: 0 | BY6: 0 | BZ6: 14528493 | CB6: 89116 | CC6: 0 | CD6: 0 | CF6: 0 | CG6: 0 | CH6: 457209 | CI6: 1011264 | CJ6: 206519 | CK6: 0 | CL6: 0 | CM6: 223818 | CN6: 1987926 | CQ6: 21.84085759 | CR6: 21.84085759 | CS6: 1987904.159 | CT6: 16516397.16 | CU6: 14824675 | CV6: 0 | CW6: 14824675 | CX6: 0 | CY6: 0 | CZ6: 0 | DA6: 0
A7: 0004 | B7: 0 | C7: 1 | D7: 2022-09-27 | H7: 0 | I7: 0 | J7: 0 | K7: 0 | L7: 0 | M7: 0 | N7: 0 | O7: 0 | P7: 0 | Q7: 0 | R7: 0 | S7: 0 | T7: 0 | V7: 0 | X7: 0 | Y7: 0 | Z7: 0 | AA7: 0 | AB7: 0 | AD7: 0 | AE7: 0 | AF7: 0 | AG7: 0 | AH7: 0 | AI7: 0 | AJ7: 0 | AK7: 0 | AL7: 0 | AO7: 0 | AP7: 0 | AQ7: 0 | AR7: 0 | AS7: 0 | AT7: 0 | AU7: 0 | AV7: 0 | AW7: 0 | AX7: 0 | AY7: 0 | BA7: 0 | BB7: 0 | BC7: 0 | BD7: 0 | BE7: 0 | BF7: 0 | BG7: 0 | BI7: 0 | BJ7: 0 | BK7: 0 | BL7: 0 | BM7: 0 | BN7: 0 | BO7: 0 | BP7: 0 | BQ7: 0 | BR7: 0 | BS7: 0 | BT7: 0 | BU7: 0 | BW7: 0 | BY7: 0 | BZ7: 0 | CB7: 0 | CC7: 0 | CD7: 0 | CF7: 0 | CG7: 0 | CH7: 0 | CI7: 0 | CJ7: 0 | CK7: 0 | CL7: 0 | CM7: 0 | CN7: 0 | CQ7: 0 | CR7: 0 | CS7: 0 | CT7: 0 | CU7: 0 | CV7: 0 | CW7: 0 | CX7: 0 | CY7: 0 | CZ7: 0 | DA7: 0
A8: 0005 | B8: 1 | C8: 1 | D8: 2022-09-30 | E8: 1 | F8: 1 | G8: 1 | H8: 995411 | I8: 38162771 | J8: 22039 | K8: 0 | L8: 746377 | M8: 780133 | N8: 115670 | O8: 0 | P8: 0 | Q8: 9291 | R8: 0 | S8: 4055718 | T8: 44887410 | V8: 49050 | X8: 49050 | Y8: 44838360 | Z8: 537911 | AA8: 0 | AB8: 790777 | AD8: 2010162 | AE8: 4620532 | AF8: 4502266 | AG8: 6583404 | AH8: 1593568 | AI8: 0 | AJ8: 0 | AK8: 1668072.06 | AL8: 22306692.06 | AO8: 331313.548 | AP8: 331313.548 | AQ8: 21975378.51 | AR8: 66813738.51 | AS8: 43370784 | AT8: 0 | AU8: 43370784 | AV8: 0 | AW8: 0 | AX8: 0 | AY8: 0 | BA8: 8193 | BB8: 42733874 | BC8: 63319111.5 | BD8: 20585237.5 | BE8: 20577044.5 | BF8: 0 | BG8: 49050 | BI8: 959756 | BJ8: 41816501 | BK8: 0 | BL8: 0 | BM8: 0 | BN8: 0 | BO8: 0 | BP8: 0 | BQ8: 0 | BR8: 0 | BS8: 0 | BT8: 3645295 | BU8: 46421552 | BW8: 49046 | BY8: 49046 | BZ8: 46372506 | CB8: 537911 | CC8: 0 | CD8: 935568 | CF8: 0 | CG8: 4802165 | CH8: 4783925 | CI8: 6957948 | CJ8: 1780039 | CK8: 0 | CL8: 0 | CM8: 1797180 | CN8: 21594736 | CQ8: 277711.5436 | CR8: 277711.5436 | CS8: 21317024.46 | CT8: 67689530.46 | CU8: 46476255 | CV8: 0 | CW8: 46476255 | CX8: 0 | CY8: 0 | CZ8: 0 | DA8: 0
A9: 0006 | B9: 0 | C9: 1 | D9: 2022-09-21 | H9: 0 | I9: 0 | J9: 0 | K9: 0 | L9: 0 | M9: 0 | N9: 0 | O9: 0 | P9: 0 | Q9: 0 | R9: 0 | S9: 0 | T9: 0 | V9: 0 | X9: 0 | Y9: 0 | Z9: 0 | AA9: 0 | AB9: 0 | AD9: 0 | AE9: 0 | AF9: 0 | AG9: 0 | AH9: 0 | AI9: 0 | AJ9: 0 | AK9: 0 | AL9: 0 | AO9: 0 | AP9: 0 | AQ9: 0 | AR9: 0 | AS9: 0 | AT9: 0 | AU9: 0 | AV9: 0 | AW9: 0 | AX9: 0 | AY9: 0 | BA9: 0 | BB9: 0 | BC9: 0 | BD9: 0 | BE9: 0 | BF9: 0 | BG9: 0 | BI9: 0 | BJ9: 0 | BK9: 0 | BL9: 0 | BM9: 0 | BN9: 0 | BO9: 0 | BP9: 0 | BQ9: 0 | BR9: 0 | BS9: 0 | BT9: 0 | BU9: 0 | BW9: 0 | BY9: 0 | BZ9: 0 | CB9: 0 | CC9: 0 | CD9: 0 | CF9: 0 | CG9: 0 | CH9: 0 | CI9: 0 | CJ9: 0 | CK9: 0 | CL9: 0 | CM9: 0 | CN9: 0 | CQ9: 0 | CR9: 0 | CS9: 0 | CT9: 0 | CU9: 0 | CV9: 0 | CW9: 0 | CX9: 0 | CY9: 0 | CZ9: 0 | DA9: 0
A10: 0007 | B10: 1 | C10: 1 | D10: 2022-09-30 | E10: 1 | F10: 1 | G10: 1 | H10: 887082.12 | I10: 20394673.01 | J10: 362122.5 | K10: 53372.03 | L10: 323457.03 | M10: 2698121.16 | N10: 1246320.18 | O10: 4358619.09 | P10: 317212.44 | Q10: 99250 | R10: 0 | S10: 1958668.57 | T10: 32698898.13 | V10: 390039 | X10: 390039 | Y10: 32308859.13 | Z10: 236430.48 | AA10: 0 | AB10: 0 | AD10: 0 | AE10: 250000 | AF10: 0 | AG10: 0 | AH10: 1497301 | AI10: 0 | AJ10: 0 | AK10: 1669062 | AL10: 3652793.48 | AO10: 462978.9947 | AP10: 462978.9947 | AQ10: 3189814.485 | AR10: 35498673.62 | AS10: 25761653 | AT10: 0 | AU10: 25761653 | AV10: 0 | AW10: 0 | AX10: 0 | AY10: 0 | BA10: 0 | BB10: 25309651 | BC10: 34972919.53 | BD10: 9663268.532 | BE10: 9663268.532 | BF10: 0 | BG10: 390039 | BI10: 1007272 | BJ10: 20657398 | BK10: 375663 | BL10: 51635 | BM10: 488912 | BN10: 2644849 | BO10: 1302087 | BP10: 4682851 | BQ10: 457784 | BR10: 102000 | BS10: 0 | BT10: 1973635 | BU10: 33744086 | BW10: 0 | BY10: 0 | BZ10: 33744086 | CB10: 251902.24 | CC10: 0 | CD10: 0 | CF10: 0 | CG10: 37500 | CH10: 0 | CI10: 0 | CJ10: 1478714 | CK10: 0 | CL10: 0 | CM10: 1849998 | CN10: 3618114.24 | CQ10: 489519.4186 | CR10: 489519.4186 | CS10: 3128594.821 | CT10: 36872680.82 | CU10: 26799945 | CV10: 0 | CW10: 26799945 | CX10: 0 | CY10: 0 | CZ10: 0 | DA10: 0
A11: 0008 | B11: 1 | C11: 1 | D11: 2022-12-14 | E11: 1 | F11: 1 | G11: 1 | H11: 792150 | I11: 16178402 | J11: 401236 | K11: 0 | L11: 93566 | M11: 1774598 | N11: 76989 | O11: 2958927 | P11: 1480986 | Q11: 0 | R11: 0 | S11: 179355 | T11: 23936209 | V11: 0 | X11: 0 | Y11: 23936209 | Z11: 136342 | AA11: 0 | AB11: 0 | AD11: 0 | AE11: 0 | AF11: 1311856 | AG11: 0 | AH11: 0 | AI11: 0 | AJ11: 0 | AK11: 1957225.5 | AL11: 3405423.5 | AO11: 77797 | AP11: 77797 | AQ11: 3327626.5 | AR11: 27263835.5 | AS11: 16043246 | AT11: 0 | AU11: 16043246 | AV11: 0 | AW11: 0 | AX11: 0 | AY11: 0 | BA11: 0 | BB11: 15767841 | BC11: 26064112.5 | BD11: 10296271.5 | BE11: 10296271.5 | BF11: 0 | BG11: 0 | BI11: 856595 | BJ11: 16448600 | BK11: 506497 | BL11: 0 | BM11: 0 | BN11: 1713066 | BO11: 25000 | BP11: 3356437 | BQ11: 1468144 | BR11: 0 | BS11: 0 | BT11: 119709 | BU11: 24494048 | BW11: 0 | BY11: 0 | BZ11: 24494048 | CB11: 148344 | CC11: 0 | CD11: 0 | CF11: 0 | CG11: 0 | CH11: 1436778 | CI11: 0 | CJ11: 0 | CK11: 0 | CL11: 0 | CM11: 1959974 | CN11: 3545096 | CQ11: 46678.2 | CR11: 46678.2 | CS11: 3498417.8 | CT11: 27992465.8 | CU11: 16679304 | CV11: 0 | CW11: 16679304 | CX11: 0 | CY11: 0 | CZ11: 0 | DA11: 0
A12: 0009 | B12: 1 | C12: 1 | D12: 2022-10-28 | E12: 1 | F12: 1 | G12: 1 | H12: 3269942 | I12: 71675331 | J12: 1334986 | K12: 36153 | L12: 1295304 | M12: 4153072 | N12: 281540 | O12: 1093493 | P12: 0 | Q12: 0 | R12: 0 | S12: 3392547 | T12: 86532368 | V12: 0 | X12: 0 | Y12: 86532368 | Z12: 219905 | AA12: 0 | AB12: 0 | AD12: 4000 | AE12: 7389345 | AF12: 2952223 | AG12: 10455503 | AH12: 1329400 | AI12: 0 | AJ12: 0 | AK12: 511513 | AL12: 22861889 | AO12: 109316.3557 | AP12: 109316.3557 | AQ12: 22752572.64 | AR12: 109284940.6 | AS12: 65247254 | AT12: 0 | AU12: 65247254 | AV12: 0 | AW12: 0 | AX12: 0 | AY12: 0 | BA12: 0 | BB12: 64664174 | BC12: 107032822.2 | BD12: 42368648.22 | BE12: 42368648.22 | BF12: 0 | BG12: 0 | BI12: 3478872 | BJ12: 74861257 | BK12: 1380728 | BL12: 0 | BM12: 1299686 | BN12: 4122474 | BO12: 151000 | BP12: 1133989 | BQ12: 0 | BR12: 0 | BS12: 0 | BT12: 2632002 | BU12: 89060008 | BW12: 0 | BY12: 0 | BZ12: 89060008 | CB12: 226274 | CC12: 0 | CD12: 0 | CF12: 4000 | CG12: 8941705 | CH12: 1789697 | CI12: 14112513 | CJ12: 1659091.2 | CK12: 0 | CL12: 0 | CM12: 439176 | CN12: 27172456.2 | CQ12: 63319.51108 | CR12: 63319.51108 | CS12: 27109136.69 | CT12: 116169144.7 | CU12: 67737065 | CV12: 0 | CW12: 67737065 | CX12: 0 | CY12: 0 | CZ12: 0 | DA12: 0
A13: 0010 | B13: 1 | C13: 1 | D13: 2022-12-08 | E13: 1 | F13: 1 | G13: 1 | H13: 2997811.52 | I13: 60538068.23 | J13: 2042945.82 | K13: 184725.17 | L13: 936235.26 | M13: 7532910.19 | N13: 75754.62 | O13: 0 | P13: 0 | Q13: 0 | R13: 0 | S13: 3539327.38 | T13: 77847778.19 | V13: 0 | X13: 0 | Y13: 77847778.19 | Z13: 559353.92 | AA13: 166982.16 | AB13: 0 | AD13: 100229.26 | AE13: 514062 | AF13: 4965513.12 | AG13: 9667474.62 | AH13: 2862922 | AI13: 0 | AJ13: 0 | AK13: 456341 | AL13: 19292878.08 | AO13: 161017.8719 | AP13: 161017.8719 | AQ13: 19131860.21 | AR13: 96979638.4 | AS13: 65961393 | AT13: 0 | AU13: 65961393 | AV13: 0 | AW13: 0 | AX13: 0 | AY13: 0 | BA13: 364804.34 | BB13: 64909477 | BC13: 92758912.83 | BD13: 27849435.83 | BE13: 27484631.49 | BF13: 0 | BG13: 0 | BI13: 2876725 | BJ13: 65295150 | BK13: 2104933 | BL13: 33811 | BM13: 1464418 | BN13: 7135901 | BO13: 0 | BP13: 0 | BQ13: 0 | BR13: 0 | BS13: 0 | BT13: 3628072 | BU13: 82539010 | BW13: 0 | BY13: 0 | BZ13: 82539010 | CB13: 613312.93 | CC13: 178108.22 | CD13: 0 | CF13: 102233.85 | CG13: 582060 | CH13: 4688290.29 | CI13: 9686867.62 | CJ13: 2862922 | CK13: 0 | CL13: 0 | CM13: 526114 | CN13: 19239908.91 | CQ13: 149762.5549 | CR13: 149762.5549 | CS13: 19090146.36 | CT13: 101629156.4 | CU13: 69496900 | CV13: 0 | CW13: 69496900 | CX13: 0 | CY13: 0 | CZ13: 0 | DA13: 0
A14: 0011 | B14: 0 | C14: 1 | D14: 2022-11-30 | H14: 0 | I14: 0 | J14: 0 | K14: 0 | L14: 0 | M14: 0 | N14: 0 | O14: 0 | P14: 0 | Q14: 0 | R14: 0 | S14: 0 | T14: 0 | V14: 0 | X14: 0 | Y14: 0 | Z14: 0 | AA14: 0 | AB14: 0 | AD14: 0 | AE14: 0 | AF14: 0 | AG14: 0 | AH14: 0 | AI14: 0 | AJ14: 0 | AK14: 0 | AL14: 0 | AO14: 0 | AP14: 0 | AQ14: 0 | AR14: 0 | AS14: 0 | AT14: 0 | AU14: 0 | AV14: 0 | AW14: 0 | AX14: 0 | AY14: 0 | BA14: 0 | BB14: 0 | BC14: 0 | BD14: 0 | BE14: 0 | BF14: 0 | BG14: 0 | BI14: 0 | BJ14: 0 | BK14: 0 | BL14: 0 | BM14: 0 | BN14: 0 | BO14: 0 | BP14: 0 | BQ14: 0 | BR14: 0 | BS14: 0 | BT14: 0 | BU14: 0 | BW14: 0 | BY14: 0 | BZ14: 0 | CB14: 0 | CC14: 0 | CD14: 0 | CF14: 0 | CG14: 0 | CH14: 0 | CI14: 0 | CJ14: 0 | CK14: 0 | CL14: 0 | CM14: 0 | CN14: 0 | CQ14: 0 | CR14: 0 | CS14: 0 | CT14: 0 | CU14: 0 | CV14: 0 | CW14: 0 | CX14: 0 | CY14: 0 | CZ14: 0 | DA14: 0
A15: 0012 | B15: 0 | C15: 1 | D15: 2022-11-29 | H15: 0 | I15: 0 | J15: 0 | K15: 0 | L15: 0 | M15: 0 | N15: 0 | O15: 0 | P15: 0 | Q15: 0 | R15: 0 | S15: 0 | T15: 0 | V15: 0 | X15: 0 | Y15: 0 | Z15: 0 | AA15: 0 | AB15: 0 | AD15: 0 | AE15: 0 | AF15: 0 | AG15: 0 | AH15: 0 | AI15: 0 | AJ15: 0 | AK15: 0 | AL15: 0 | AO15: 0 | AP15: 0 | AQ15: 0 | AR15: 0 | AS15: 0 | AT15: 0 | AU15: 0 | AV15: 0 | AW15: 0 | AX15: 0 | AY15: 0 | BA15: 0 | BB15: 0 | BC15: 0 | BD15: 0 | BE15: 0 | BF15: 0 | BG15: 0 | BI15: 0 | BJ15: 0 | BK15: 0 | BL15: 0 | BM15: 0 | BN15: 0 | BO15: 0 | BP15: 0 | BQ15: 0 | BR15: 0 | BS15: 0 | BT15: 0 | BU15: 0 | BW15: 0 | BY15: 0 | BZ15: 0 | CB15: 0 | CC15: 0 | CD15: 0 | CF15: 0 | CG15: 0 | CH15: 0 | CI15: 0 | CJ15: 0 | CK15: 0 | CL15: 0 | CM15: 0 | CN15: 0 | CQ15: 0 | CR15: 0 | CS15: 0 | CT15: 0 | CU15: 0 | CV15: 0 | CW15: 0 | CX15: 0 | CY15: 0 | CZ15: 0 | DA15: 0
A16: 0013 | B16: 0 | C16: 1 | D16: 2022-12-02 | H16: 0 | I16: 0 | J16: 0 | K16: 0 | L16: 0 | M16: 0 | N16: 0 | O16: 0 | P16: 0 | Q16: 0 | R16: 0 | S16: 0 | T16: 0 | V16: 0 | X16: 0 | Y16: 0 | Z16: 0 | AA16: 0 | AB16: 0 | AD16: 0 | AE16: 0 | AF16: 0 | AG16: 0 | AH16: 0 | AI16: 0 | AJ16: 0 | AK16: 171824.45 | AL16: 171824.45 | AO16: 0 | AP16: 0 | AQ16: 171824.45 | AR16: 171824.45 | AS16: 204707 | AT16: 9507.7 | AU16: 214214.7 | AV16: -42390.25 | AW16: -0.2070776769 | AX16: 10235.35 | AY16: 0 | BA16: 0 | BB16: 198567.35 | BC16: 160392.2 | BD16: -38175.15 | BE16: -38175.15 | BF16: 0 | BG16: 0 | BI16: 0 | BJ16: 0 | BK16: 0 | BL16: 0 | BM16: 0 | BN16: 0 | BO16: 0 | BP16: 0 | BQ16: 0 | BR16: 0 | BS16: 0 | BT16: 0 | BU16: 0 | BW16: 0 | BY16: 0 | BZ16: 0 | CB16: 0 | CC16: 0 | CD16: 0 | CF16: 0 | CG16: 0 | CH16: 0 | CI16: 0 | CJ16: 0 | CK16: 0 | CL16: 0 | CM16: 350000 | CN16: 350000 | CQ16: 0 | CR16: 0 | CS16: 350000 | CT16: 350000 | CU16: 204468 | CV16: 10235.35 | CW16: 214703.35 | CX16: 0 | CY16: 0 | CZ16: 0 | DA16: 0
A17: 0014 | B17: 1 | C17: 1 | D17: 2022-09-30 | E17: 1 | F17: 1 | G17: 1 | H17: 1708425 | I17: 25962125.26 | J17: 639008.75 | K17: 4026.24 | L17: 549006.05 | M17: 2656080.68 | N17: 0 | O17: 0 | P17: 0 | Q17: 0 | R17: 0 | S17: 1875931.55 | T17: 33394603.53 | V17: 0 | X17: 0 | Y17: 33394603.53 | Z17: 0 | AA17: 0 | AB17: 0 | AD17: 0 | AE17: 78819 | AF17: 1797077 | AG17: 3650804 | AH17: 800806 | AI17: 0 | AJ17: 0 | AK17: 150459 | AL17: 6477965 | AO17: 0 | AP17: 0 | AQ17: 6477965 | AR17: 39872568.53 | AS17: 30857120 | AT17: 0 | AU17: 30857120 | AV17: 0 | AW17: 0 | AX17: 0 | AY17: 0 | BA17: 34553.94 | BB17: 30232499 | BC17: 39127298.93 | BD17: 8894799.93 | BE17: 8860245.99 | BF17: 0 | BG17: 0 | BI17: 1716007 | BJ17: 27432978.4 | BK17: 663626 | BL17: 7000 | BM17: 495998 | BN17: 2689567 | BO17: 40000 | BP17: 300 | BQ17: 0 | BR17: 0 | BS17: 0 | BT17: 2734784 | BU17: 35780260.4 | BW17: 0 | BY17: 0 | BZ17: 35780260.4 | CB17: 0 | CC17: 0 | CD17: 0 | CF17: 0 | CG17: 85856 | CH17: 1928387 | CI17: 4178702 | CJ17: 880886 | CK17: 0 | CL17: 0 | CM17: 144454 | CN17: 7218285 | CQ17: 0 | CR17: 0 | CS17: 7218285 | CT17: 42998545.4 | CU17: 33942251 | CV17: 0 | CW17: 33942251 | CX17: 0 | CY17: 0 | CZ17: 0 | DA17: 0
A18: 0015 | B18: 0 | C18: 1 | D18: 2023-02-14 | H18: 0 | I18: 0 | J18: 0 | K18: 0 | L18: 0 | M18: 0 | N18: 0 | O18: 0 | P18: 0 | Q18: 0 | R18: 0 | S18: 0 | T18: 0 | V18: 0 | X18: 0 | Y18: 0 | Z18: 0 | AA18: 0 | AB18: 0 | AD18: 0 | AE18: 0 | AF18: 0 | AG18: 0 | AH18: 0 | AI18: 0 | AJ18: 0 | AK18: 0 | AL18: 0 | AO18: 0 | AP18: 0 | AQ18: 0 | AR18: 0 | AS18: 0 | AT18: 796.808 | AU18: 796.808 | AV18: -796.808 | AW18: 0 | AX18: 796.808 | AY18: 0 | BA18: 0 | BB18: 796.808 | BC18: 0 | BD18: -796.808 | BE18: -796.808 | BF18: 0 | BG18: 0 | BI18: 0 | BJ18: 0 | BK18: 0 | BL18: 0 | BM18: 0 | BN18: 0 | BO18: 0 | BP18: 0 | BQ18: 0 | BR18: 0 | BS18: 0 | BT18: 0 | BU18: 0 | BW18: 0 | BY18: 0 | BZ18: 0 | CB18: 0 | CC18: 0 | CD18: 0 | CF18: 0 | CG18: 0 | CH18: 0 | CI18: 0 | CJ18: 0 | CK18: 0 | CL18: 0 | CM18: 0 | CN18: 0 | CQ18: 0 | CR18: 0 | CS18: 0 | CT18: 0 | CU18: 0 | CV18: 796.808 | CW18: 796.808 | CX18: -796.808 | DA18: 0
A19: 0016 | B19: 1 | C19: 1 | D19: 2022-10-25 | E19: 1 | F19: 1 | G19: 1 | H19: 2100968.47 | I19: 49331830.93 | J19: 1211684.38 | K19: 0 | L19: 724212.13 | M19: 8030703.8 | N19: 1905118.65 | O19: 12594514.41 | P19: 0 | Q19: 0 | R19: 0 | S19: 2789654 | T19: 78688686.77 | V19: 30000 | X19: 30000 | Y19: 78658686.77 | Z19: 801222.24 | AA19: 0 | AB19: 1000 | AD19: 68987.86 | AE19: 0 | AF19: 0 | AG19: 0 | AH19: 0 | AI19: 0 | AJ19: 0 | AK19: 4432615.35 | AL19: 5303825.45 | AO19: 185053.8 | AP19: 185053.8 | AQ19: 5118771.65 | AR19: 83777458.42 | AS19: 80741146 | AT19: 0 | AU19: 80741146 | AV19: 0 | AW19: 0 | AX19: 0 | AY19: 0 | BA19: 123769.65 | BB19: 79207276 | BC19: 81822942.73 | BD19: 2615666.73 | BE19: 2491897.08 | BF19: 0 | BG19: 30000 | BI19: 3095200 | BJ19: 53486300 | BK19: 1251700 | BL19: 0 | BM19: 766700 | BN19: 8255950 | BO19: 1908703 | BP19: 13525942 | BQ19: 0 | BR19: 0 | BS19: 0 | BT19: 3391000 | BU19: 85681495 | BW19: 50000 | BY19: 50000 | BZ19: 85631495 | CB19: 881163.36 | CC19: 0 | CD19: 1000 | CF19: 120000 | CG19: 0 | CH19: 0 | CI19: 0 | CJ19: 664270.2 | CK19: 0 | CL19: 0 | CM19: 4083836 | CN19: 5750269.56 | CQ19: 118434.432 | CR19: 118434.432 | CS19: 5631835.128 | CT19: 91263330.13 | CU19: 89310930 | CV19: 0 | CW19: 89310930 | CX19: 0 | CY19: 0 | CZ19: 0 | DA19: 0
A20: 0017 | B20: 1 | C20: 1 | D20: 2022-12-01 | E20: 1 | F20: 1 | G20: 1 | H20: 713092.4 | I20: 22060521.77 | J20: 668028.48 | K20: 0 | L20: 533265.56 | M20: 2463370.28 | N20: 85876.06 | O20: 0 | P20: 0 | Q20: 0 | R20: 0 | S20: 405092 | T20: 26929246.55 | V20: 0 | X20: 0 | Y20: 26929246.55 | Z20: 200324.86 | AA20: 0 | AB20: 0 | AD20: 0 | AE20: 267653.82 | AF20: 1572687.11 | AG20: 4246270.75 | AH20: 2207347.88 | AI20: 0 | AJ20: 0 | AK20: 347255 | AL20: 8841539.42 | AO20: 0 | AP20: 0 | AQ20: 8841539.42 | AR20: 35770785.97 | AS20: 27852870 | AT20: 0 | AU20: 27852870 | AV20: 0 | AW20: 0 | AX20: 0 | AY20: 0 | BA20: 0 | BB20: 27521290 | BC20: 34604265.94 | BD20: 7082975.94 | BE20: 7082975.94 | BF20: 0 | BG20: 0 | BI20: 1007384 | BJ20: 22863151.53 | BK20: 696647 | BL20: 0 | BM20: 673641 | BN20: 2075607 | BO20: 26508 | BP20: 0 | BQ20: 0 | BR20: 0 | BS20: 0 | BT20: 473484 | BU20: 27816422.53 | BW20: 0 | BY20: 0 | BZ20: 27816422.53 | CB20: 210575.12 | CC20: 0 | CD20: 0 | CF20: 0 | CG20: 281179.3 | CH20: 1733680.4 | CI20: 4756259.29 | CJ20: 2518052.43 | CK20: 0 | CL20: 0 | CM20: 258781 | CN20: 9758527.54 | CQ20: 0 | CR20: 0 | CS20: 9758527.54 | CT20: 37574950.07 | CU20: 30252650 | CV20: 0 | CW20: 30252650 | CX20: 0 | CY20: 0 | CZ20: 0 | DA20: 0
A21: 0018 | B21: 1 | C21: 1 | D21: 2022-09-30 | E21: 1 | F21: 1 | G21: 1 | H21: 442069.48 | I21: 6929234 | J21: 155556 | K21: 47330 | L21: 137146 | M21: 1014316 | N21: 0 | O21: 0 | P21: 0 | Q21: 0 | R21: 0 | S21: 311128 | T21: 9036779.48 | V21: 0 | X21: 0 | Y21: 9036779.48 | Z21: 117104 | AA21: 0 | AB21: 0 | AD21: 0 | AE21: 178834 | AF21: 619120 | AG21: 1142355 | AH21: 380785 | AI21: 0 | AJ21: 0 | AK21: 409667 | AL21: 2847865 | AO21: 53165.09868 | AP21: 53165.09868 | AQ21: 2794699.901 | AR21: 11831479.38 | AS21: 7155527 | AT21: 0 | AU21: 7155527 | AV21: 0 | AW21: 0 | AX21: 0 | AY21: 0 | BA21: 113516 | BB21: 7047738 | BC21: 11569326.73 | BD21: 4521588.733 | BE21: 4408072.733 | BF21: 0 | BG21: 0 | BI21: 462966 | BJ21: 7224869 | BK21: 162839 | BL21: 60000 | BM21: 148401 | BN21: 977477 | BO21: 0 | BP21: 0 | BQ21: 0 | BR21: 0 | BS21: 0 | BT21: 433315 | BU21: 9469867 | BW21: 0 | BY21: 0 | BZ21: 9469867 | CB21: 121032 | CC21: 0 | CD21: 0 | CF21: 0 | CG21: 183305 | CH21: 571723 | CI21: 1474054 | CJ21: 358018 | CK21: 0 | CL21: 0 | CM21: 574465 | CN21: 3282597 | CQ21: 156370.0582 | CR21: 156370.0582 | CS21: 3126226.942 | CT21: 12596093.94 | CU21: 8289242 | CV21: 0 | CW21: 8289242 | CX21: 0 | CY21: 0 | CZ21: 0 | DA21: 0
A22: 0019 | B22: 0 | C22: 1 | D22: 2022-11-04 | H22: 0 | I22: 0 | J22: 0 | K22: 0 | L22: 0 | M22: 0 | N22: 0 | O22: 0 | P22: 0 | Q22: 0 | R22: 0 | S22: 0 | T22: 0 | V22: 0 | X22: 0 | Y22: 0 | Z22: 0 | AA22: 0 | AB22: 0 | AD22: 0 | AE22: 0 | AF22: 0 | AG22: 0 | AH22: 0 | AI22: 0 | AJ22: 0 | AK22: 0 | AL22: 0 | AO22: 0 | AP22: 0 | AQ22: 0 | AR22: 0 | AS22: 0 | AT22: 0 | AU22: 0 | AV22: 0 | AW22: 0 | AX22: 0 | AY22: 0 | BA22: 0 | BB22: 0 | BC22: 0 | BD22: 0 | BE22: 0 | BF22: 0 | BG22: 0 | BI22: 0 | BJ22: 0 | BK22: 0 | BL22: 0 | BM22: 0 | BN22: 0 | BO22: 0 | BP22: 0 | BQ22: 0 | BR22: 0 | BS22: 0 | BT22: 0 | BU22: 0 | BW22: 0 | BY22: 0 | BZ22: 0 | CB22: 0 | CC22: 0 | CD22: 0 | CF22: 0 | CG22: 0 | CH22: 0 | CI22: 0 | CJ22: 0 | CK22: 0 | CL22: 0 | CM22: 0 | CN22: 0 | CQ22: 0 | CR22: 0 | CS22: 0 | CT22: 0 | CU22: 0 | CV22: 0 | CW22: 0 | CX22: 0 | CY22: 0 | CZ22: 0 | DA22: 0
A23: 0020 | B23: 1 | C23: 1 | D23: 2022-11-17 | E23: 1 | F23: 1 | G23: 1 | H23: 1539008.86 | I23: 54805755.2 | J23: 1289902.74 | K23: 3242.65 | L23: 1122211.39 | M23: 7249563.69 | N23: 194884.1 | O23: 1385 | P23: 0 | Q23: 0 | R23: 0 | S23: 2345385.95 | T23: 68551339.58 | V23: 0 | X23: 0 | Y23: 68551339.58 | Z23: 1650723.09 | AA23: 0 | AB23: 0 | AD23: 0 | AE23: 0 | AF23: 2531142.198 | AG23: 7489643.73 | AH23: 1726702.67 | AI23: 0 | AJ23: 0 | AK23: 6263542.02 | AL23: 19661753.71 | AO23: 1086308.485 | AP23: 1086308.485 | AQ23: 18575445.22 | AR23: 87126784.8 | AS23: 66987030 | AT23: 0 | AU23: 66987030 | AV23: 0 | AW23: 0 | AX23: 0 | AY23: 0 | BA23: 490357.45 | BB23: 65773443 | BC23: 83602691.43 | BD23: 17829248.43 | BE23: 17338890.98 | BF23: 0 | BG23: 0 | BI23: 1724963 | BJ23: 59425189 | BK23: 1396047 | BL23: 3000 | BM23: 993396 | BN23: 6923737 | BO23: 65000 | BP23: 0 | BQ23: 0 | BR23: 0 | BS23: 0 | BT23: 3950350 | BU23: 74481682 | BW23: 0 | BY23: 0 | BZ23: 74481682 | CB23: 1737043.15 | CC23: 0 | CD23: 0 | CF23: 0 | CG23: 0 | CH23: 2636793.638 | CI23: 7627642.11 | CJ23: 2099911.404 | CK23: 0 | CL23: 0 | CM23: 6590423 | CN23: 20691813.3 | CQ23: 955150.2748 | CR23: 955150.2748 | CS23: 19736663.03 | CT23: 94218345.03 | CU23: 75594780 | CV23: 0 | CW23: 75594780 | CX23: 0 | CY23: 0 | CZ23: 0 | DA23: 0
A24: 0021 | B24: 0 | C24: 1 | D24: 2022-11-09 | H24: 0 | I24: 0 | J24: 0 | K24: 0 | L24: 0 | M24: 0 | N24: 0 | O24: 0 | P24: 0 | Q24: 0 | R24: 0 | S24: 0 | T24: 0 | V24: 0 | X24: 0 | Y24: 0 | Z24: 0 | AA24: 0 | AB24: 0 | AD24: 0 | AE24: 0 | AF24: 0 | AG24: 0 | AH24: 0 | AI24: 0 | AJ24: 0 | AK24: 0 | AL24: 0 | AO24: 0 | AP24: 0 | AQ24: 0 | AR24: 0 | AS24: 0 | AT24: 0 | AU24: 0 | AV24: 0 | AW24: 0 | AX24: 0 | AY24: 0 | BA24: 0 | BB24: 0 | BC24: 0 | BD24: 0 | BE24: 0 | BF24: 0 | BG24: 0 | BI24: 0 | BJ24: 0 | BK24: 0 | BL24: 0 | BM24: 0 | BN24: 0 | BO24: 0 | BP24: 0 | BQ24: 0 | BR24: 0 | BS24: 0 | BT24: 0 | BU24: 0 | BW24: 0 | BY24: 0 | BZ24: 0 | CB24: 0 | CC24: 0 | CD24: 0 | CF24: 0 | CG24: 0 | CH24: 0 | CI24: 0 | CJ24: 0 | CK24: 0 | CL24: 0 | CM24: 0 | CN24: 0 | CQ24: 0 | CR24: 0 | CS24: 0 | CT24: 0 | CU24: 0 | CV24: 0 | CW24: 0 | CX24: 0 | CY24: 0 | CZ24: 0 | DA24: 0
A25: 0022 | B25: 0 | C25: 1 | D25: 2022-12-01 | H25: 0 | I25: 0 | J25: 0 | K25: 0 | L25: 0 | M25: 0 | N25: 0 | O25: 0 | P25: 0 | Q25: 0 | R25: 0 | S25: 0 | T25: 0 | V25: 0 | X25: 0 | Y25: 0 | Z25: 0 | AA25: 0 | AB25: 0 | AD25: 0 | AE25: 0 | AF25: 0 | AG25: 0 | AH25: 0 | AI25: 0 | AJ25: 0 | AK25: 205469 | AL25: 205469 | AO25: 0 | AP25: 0 | AQ25: 205469 | AR25: 205469 | AS25: 240781 | AT25: 11622.1 | AU25: 252403.1 | AV25: -46934.1 | AW25: -0.1949244334 | AX25: 12039.05 | AY25: 0 | BA25: 0 | BB25: 241696.6 | BC25: 201776.18 | BD25: -39920.42 | BE25: -39920.42 | BF25: 0 | BG25: 0 | BI25: 0 | BJ25: 0 | BK25: 0 | BL25: 0 | BM25: 0 | BN25: 0 | BO25: 0 | BP25: 0 | BQ25: 0 | BR25: 0 | BS25: 0 | BT25: 0 | BU25: 0 | BW25: 0 | BY25: 0 | BZ25: 0 | CB25: 0 | CC25: 0 | CD25: 0 | CF25: 0 | CG25: 0 | CH25: 0 | CI25: 0 | CJ25: 0 | CK25: 0 | CL25: 0 | CM25: 190000 | CN25: 190000 | CQ25: 0 | CR25: 0 | CS25: 190000 | CT25: 190000 | CU25: 230778 | CV25: 12039.05 | CW25: 242817.05 | CX25: -52817.05 | CY25: -0.2288651865 | CZ25: 11538.9 | DA25: 0
A26: 0023 | B26: 1 | C26: 1 | D26: 2022-12-21 | E26: 1 | F26: 1 | G26: 1 | H26: 1135459.695 | I26: 33694606.44 | J26: 541680.93 | K26: 0 | L26: 1067672.32 | M26: 2794884.83 | N26: 311293.54 | O26: 0 | P26: 0 | Q26: 0 | R26: 0 | S26: 3273281 | T26: 42818878.76 | V26: 0 | X26: 0 | Y26: 42818878.76 | Z26: 676689 | AA26: 0 | AB26: 0 | AD26: 0 | AE26: 0 | AF26: 1938271 | AG26: 4636102 | AH26: 1102495 | AI26: 0 | AJ26: 0 | AK26: 70842 | AL26: 8424399 | AO26: 13136.8 | AP26: 13136.8 | AQ26: 8411262.2 | AR26: 51230140.96 | AS26: 31026443 | AT26: 0 | AU26: 31026443 | AV26: 0 | AW26: 0 | AX26: 0 | AY26: 0 | BA26: 0 | BB26: 30692659 | BC26: 50148668.56 | BD26: 19456009.56 | BE26: 19456009.56 | BF26: 0 | BG26: 0 | BI26: 1262851 | BJ26: 34443711 | BK26: 493824 | BL26: 0 | BM26: 1138050 | BN26: 2543541 | BO26: 284827 | BP26: 0 | BQ26: 0 | BR26: 0 | BS26: 0 | BT26: 2988407 | BU26: 43155211 | BW26: 0 | BY26: 0 | BZ26: 43155211 | CB26: 671866 | CC26: 0 | CD26: 0 | CF26: 0 | CG26: 0 | CH26: 2063513 | CI26: 5094982 | CJ26: 1102495 | CK26: 0 | CL26: 0 | CM26: 45220 | CN26: 8978076 | CQ26: 8158.752 | CR26: 8158.752 | CS26: 8969917.248 | CT26: 52125128.25 | CU26: 32246556 | CV26: 0 | CW26: 32246556 | CX26: 0 | CY26: 0 | CZ26: 0 | DA26: 0
A27: 0024 | B27: 1 | C27: 1 | D27: 2022-10-28 | E27: 1 | F27: 1 | G27: 1 | H27: 884561.43 | I27: 19705661.11 | J27: 526932 | K27: 0 | L27: 218557 | M27: 2484404 | N27: 14736 | O27: 3672599 | P27: 234327 | Q27: 0 | R27: 0 | S27: 379288 | T27: 28121065.54 | V27: 0 | X27: 0 | Y27: 28121065.54 | Z27: 215961 | AA27: 4726 | AB27: 0 | AD27: 0 | AE27: 7856 | AF27: 1279236 | AG27: 165433 | AH27: 22860 | AI27: 0 | AJ27: 0 | AK27: 1458492.33 | AL27: 3154564.33 | AO27: 29300.19534 | AP27: 29300.19534 | AQ27: 3125264.135 | AR27: 31246329.67 | AS27: 26807294 | AT27: 0 | AU27: 26807294 | AV27: 0 | AW27: 0 | AX27: 0 | AY27: 0 | BA27: 0 | BB27: 26302271 | BC27: 31698257.03 | BD27: 5395986.033 | BE27: 5395986.033 | BF27: 0 | BG27: 0 | BI27: 1165804 | BJ27: 19594886 | BK27: 610126 | BL27: 0 | BM27: 161149 | BN27: 2259148 | BO27: 16275 | BP27: 4124284 | BQ27: 0 | BR27: 0 | BS27: 0 | BT27: 559936 | BU27: 28491608 | BW27: 0 | BY27: 0 | BZ27: 28491608 | CB27: 183538 | CC27: 4314 | CD27: 0 | CF27: 0 | CG27: 19522 | CH27: 1364640 | CI27: 1755993 | CJ27: 0 | CK27: 0 | CL27: 0 | CM27: 1395140 | CN27: 4723147 | CQ27: 10011.56322 | CR27: 10011.56322 | CS27: 4713135.437 | CT27: 33204743.44 | CU27: 27179888 | CV27: 0 | CW27: 27179888 | CX27: 0 | CY27: 0 | CZ27: 0 | DA27: 0
A28: 0025 | B28: 1 | C28: 1 | D28: 2022-12-05 | E28: 1 | F28: 1 | G28: 1 | H28: 1178599.77 | I28: 20596646.13 | J28: 354541.96 | K28: 4872.97 | L28: 665275.71 | M28: 3280524.32 | N28: 67826.6 | O28: 0 | P28: 0 | Q28: 0 | R28: 0 | S28: 1778006.46 | T28: 27926293.92 | V28: 0 | X28: 0 | Y28: 27926293.92 | Z28: 421106 | AA28: 0 | AB28: 0 | AD28: 0 | AE28: 0 | AF28: 1056566 | AG28: 5630374 | AH28: 445824.5 | AI28: 0 | AJ28: 0 | AK28: 3363670.45 | AL28: 10917540.95 | AO28: 836345.6617 | AP28: 836345.6617 | AQ28: 10081195.29 | AR28: 38007489.21 | AS28: 26105176 | AT28: 0 | AU28: 26105176 | AV28: 0 | AW28: 0 | AX28: 0 | AY28: 0 | BA28: 110218.55 | BB28: 25414511 | BC28: 36392291.31 | BD28: 10977780.31 | BE28: 10867561.76 | BF28: 0 | BG28: 0 | BI28: 1066090 | BJ28: 21242040 | BK28: 482396 | BL28: 5000 | BM28: 626436 | BN28: 2954987 | BO28: 65200 | BP28: 0 | BQ28: 0 | BR28: 0 | BS28: 0 | BT28: 2118339 | BU28: 28560488 | BW28: 0 | BY28: 0 | BZ28: 28560488 | CB28: 491194 | CC28: 0 | CD28: 0 | CF28: 0 | CG28: 0 | CH28: 1132993 | CI28: 5784574 | CJ28: 545689.2 | CK28: 0 | CL28: 0 | CM28: 3678180 | CN28: 11632630.2 | CQ28: 825136.9426 | CR28: 825136.9426 | CS28: 10807493.26 | CT28: 39367981.26 | CU28: 27269890 | CV28: 0 | CW28: 27269890 | CX28: 0 | CY28: 0 | CZ28: 0 | DA28: 0
A29: 0026 | B29: 1 | C29: 1 | D29: 2022-10-07 | E29: 1 | F29: 1 | G29: 1 | H29: 2618004 | I29: 41745396 | J29: 862142 | K29: 0 | L29: 604259 | M29: 2434195 | N29: 721820 | O29: 6565520 | P29: 885860 | Q29: 0 | R29: 0 | S29: 6029602 | T29: 62466798 | V29: 0 | X29: 0 | Y29: 62466798 | Z29: 514211 | AA29: 0 | AB29: 2000 | AD29: 165286 | AE29: 4725582 | AF29: 2676513 | AG29: 148884 | AH29: 4625 | AI29: 0 | AJ29: 0 | AK29: 1146587 | AL29: 9383688 | AO29: 35085.64353 | AP29: 35085.64353 | AQ29: 9348602.356 | AR29: 71815400.36 | AS29: 50716777 | AT29: 0 | AU29: 50716777 | AV29: 0 | AW29: 0 | AX29: 0 | AY29: 0 | BA29: 257064.75 | BB29: 50418108 | BC29: 65539763.85 | BD29: 15121655.85 | BE29: 14864591.1 | BF29: 0 | BG29: 0 | BI29: 1767386 | BJ29: 44181036 | BK29: 865078 | BL29: 0 | BM29: 758264 | BN29: 2580086 | BO29: 732681 | BP29: 7113465 | BQ29: 1189385.4 | BR29: 0 | BS29: 0 | BT29: 4731082 | BU29: 63918463.4 | BW29: 0 | BY29: 0 | BZ29: 63918463.4 | CB29: 488232 | CC29: 0 | CD29: 2000 | CF29: 167577 | CG29: 5115235 | CH29: 2785993 | CI29: 176909 | CJ29: 5550 | CK29: 0 | CL29: 0 | CM29: 1154253 | CN29: 9895749 | CQ29: 59235.9877 | CR29: 59235.9877 | CS29: 9836513.012 | CT29: 73754976.41 | CU29: 53845537 | CV29: 0 | CW29: 53845537 | CX29: 0 | CY29: 0 | CZ29: 0 | DA29: 0
A30: 0027 | B30: 1 | C30: 1 | D30: 2022-10-20 | E30: 1 | F30: 1 | G30: 1 | H30: 413586 | I30: 6604196 | J30: 169019 | K30: 6022 | L30: 8125 | M30: 839079 | N30: 3925 | O30: 0 | P30: 0 | Q30: 0 | R30: 0 | S30: 91431 | T30: 8135383 | V30: 90000 | X30: 90000 | Y30: 8045383 | Z30: 85666 | AA30: 0 | AB30: 0 | AD30: 0 | AE30: 5000 | AF30: 381966 | AG30: 998180 | AH30: 174160 | AI30: 0 | AJ30: 0 | AK30: 69260 | AL30: 1714232 | AO30: 14652.6 | AP30: 14652.6 | AQ30: 1699579.4 | AR30: 9744962.4 | AS30: 8274710 | AT30: 0 | AU30: 8274710 | AV30: 0 | AW30: 0 | AX30: 0 | AY30: 0 | BA30: 0 | BB30: 8174024 | BC30: 9444959 | BD30: 1270935 | BE30: 1270935 | BF30: 0 | BG30: 90000 | BI30: 391303 | BJ30: 6880623 | BK30: 175190 | BL30: 0 | BM30: 8000 | BN30: 792556 | BO30: 7500 | BP30: 0 | BQ30: 0 | BR30: 0 | BS30: 0 | BT30: 153300 | BU30: 8408472 | BW30: 0 | BY30: 0 | BZ30: 8408472 | CB30: 74973 | CC30: 0 | CD30: 0 | CF30: 0 | CG30: 5000 | CH30: 381966 | CI30: 998180 | CJ30: 174160 | CK30: 0 | CL30: 0 | CM30: 58291 | CN30: 1692570 | CQ30: 9377.664 | CR30: 9377.664 | CS30: 1683192.336 | CT30: 10091664.34 | CU30: 8640735 | CV30: 0 | CW30: 8640735 | CX30: 0 | CY30: 0 | CZ30: 0 | DA30: 0
A31: 0028 | B31: 0 | C31: 1 | D31: 2022-11-18 | H31: 0 | I31: 0 | J31: 0 | K31: 0 | L31: 0 | M31: 0 | N31: 0 | O31: 0 | P31: 0 | Q31: 0 | R31: 0 | S31: 0 | T31: 0 | V31: 0 | X31: 0 | Y31: 0 | Z31: 0 | AA31: 0 | AB31: 0 | AD31: 0 | AE31: 0 | AF31: 0 | AG31: 0 | AH31: 0 | AI31: 0 | AJ31: 0 | AK31: 0 | AL31: 0 | AO31: 0 | AP31: 0 | AQ31: 0 | AR31: 0 | AS31: 0 | AT31: 0 | AU31: 0 | AV31: 0 | AW31: 0 | AX31: 0 | AY31: 0 | BA31: 0 | BB31: 0 | BC31: 0 | BD31: 0 | BE31: 0 | BF31: 0 | BG31: 0 | BI31: 0 | BJ31: 0 | BK31: 0 | BL31: 0 | BM31: 0 | BN31: 0 | BO31: 0 | BP31: 0 | BQ31: 0 | BR31: 0 | BS31: 0 | BT31: 0 | BU31: 0 | BW31: 0 | BY31: 0 | BZ31: 0 | CB31: 0 | CC31: 0 | CD31: 0 | CF31: 0 | CG31: 0 | CH31: 0 | CI31: 0 | CJ31: 0 | CK31: 0 | CL31: 0 | CM31: 0 | CN31: 0 | CQ31: 0 | CR31: 0 | CS31: 0 | CT31: 0 | CU31: 0 | CV31: 0 | CW31: 0 | CX31: 0 | CY31: 0 | CZ31: 0 | DA31: 0
A32: 0029 | B32: 0 | C32: 1 | D32: 2022-12-02 | H32: 0 | I32: 0 | J32: 0 | K32: 0 | L32: 0 | M32: 0 | N32: 0 | O32: 0 | P32: 0 | Q32: 0 | R32: 0 | S32: 0 | T32: 0 | V32: 0 | X32: 0 | Y32: 0 | Z32: 0 | AA32: 0 | AB32: 0 | AD32: 0 | AE32: 0 | AF32: 0 | AG32: 0 | AH32: 0 | AI32: 0 | AJ32: 0 | AK32: 434266 | AL32: 434266 | AO32: 0 | AP32: 0 | AQ32: 434266 | AR32: 434266 | AS32: 0 | AT32: 0 | AU32: 0 | AV32: 0 | AW32: 0 | AX32: 0 | AY32: 0 | BA32: 0 | BB32: 0 | BC32: 0 | BD32: 0 | BE32: 0 | BF32: 0 | BG32: 0 | BI32: 0 | BJ32: 0 | BK32: 0 | BL32: 0 | BM32: 0 | BN32: 0 | BO32: 0 | BP32: 0 | BQ32: 0 | BR32: 0 | BS32: 0 | BT32: 0 | BU32: 0 | BW32: 0 | BY32: 0 | BZ32: 0 | CB32: 0 | CC32: 0 | CD32: 0 | CF32: 0 | CG32: 0 | CH32: 0 | CI32: 0 | CJ32: 0 | CK32: 0 | CL32: 0 | CM32: 325872.23 | CN32: 325872.23 | CQ32: 0 | CR32: 0 | CS32: 325872.23 | CT32: 325872.23 | CU32: 0 | CV32: 0 | CW32: 0 | CX32: 0 | CY32: 0 | CZ32: 0 | DA32: 0
A33: 0030 | B33: 1 | C33: 1 | D33: 2022-10-03 | E33: 1 | F33: 1 | G33: 1 | H33: 1909791.24 | I33: 40368185.73 | J33: 928517.18 | K33: 0 | L33: 795002.17 | M33: 4453455.77 | N33: 809774.38 | O33: 7963642.86 | P33: 0 | Q33: 126199.53 | R33: 0 | S33: 4640528.82 | T33: 61995097.68 | V33: 0 | X33: 0 | Y33: 61995097.68 | Z33: 601257 | AA33: 0 | AB33: 0 | AD33: 0 | AE33: 138817 | AF33: 2386919 | AG33: 427902 | AH33: 2608357 | AI33: 0 | AJ33: 0 | AK33: 853456 | AL33: 7016708 | AO33: 47404 | AP33: 47404 | AQ33: 6969304 | AR33: 68964401.68 | AS33: 53925726 | AT33: 0 | AU33: 53925726 | AV33: 0 | AW33: 0 | AX33: 0 | AY33: 0 | BA33: 0 | BB33: 51874523 | BC33: 66613099.89 | BD33: 14738576.89 | BE33: 14738576.89 | BF33: 0 | BG33: 0 | BI33: 2393146 | BJ33: 43318220 | BK33: 960213 | BL33: 0 | BM33: 655274 | BN33: 4274220 | BO33: 983730 | BP33: 8577575 | BQ33: 0 | BR33: 201127 | BS33: 0 | BT33: 4522419 | BU33: 65885924 | BW33: 0 | BY33: 0 | BZ33: 65885924 | CB33: 713337 | CC33: 0 | CD33: 0 | CF33: 0 | CG33: 147999 | CH33: 2524787 | CI33: 391703 | CJ33: 2714586 | CK33: 0 | CL33: 0 | CM33: 858326 | CN33: 7350738 | CQ33: 155703.4 | CR33: 155703.4 | CS33: 7195034.6 | CT33: 73080958.6 | CU33: 58610573 | CV33: 0 | CW33: 58610573 | CX33: 0 | CY33: 0 | CZ33: 0 | DA33: 0
A34: 0031 | B34: 1 | C34: 1 | D34: 2022-10-31 | E34: 1 | F34: 1 | G34: 1 | H34: 1673904 | I34: 54252447 | J34: 1027993 | K34: 0 | L34: 970844 | M34: 5250981 | N34: 21665 | O34: 4200 | P34: 0 | Q34: 0 | R34: 0 | S34: 2313217 | T34: 65515251 | V34: 0 | X34: 0 | Y34: 65515251 | Z34: 0 | AA34: 0 | AB34: 0 | AD34: 0 | AE34: 0 | AF34: 3726558 | AG34: 9421638 | AH34: 3051134 | AI34: 0 | AJ34: 0 | AK34: 1799333 | AL34: 17998663 | AO34: 0 | AP34: 0 | AQ34: 17998663 | AR34: 83513914 | AS34: 62592586 | AT34: 0 | AU34: 62592586 | AV34: 0 | AW34: 0 | AX34: 0 | AY34: 0 | BA34: 0 | BB34: 60765990 | BC34: 81108444 | BD34: 20342454 | BE34: 20342454 | BF34: 0 | BG34: 0 | BI34: 1815540 | BJ34: 55007071 | BK34: 1019848 | BL34: 0 | BM34: 830113 | BN34: 5006251 | BO34: 158548 | BP34: 0 | BQ34: 0 | BR34: 0 | BS34: 0 | BT34: 3877101 | BU34: 67714472 | BW34: 0 | BY34: 0 | BZ34: 67714472 | CB34: 0 | CC34: 0 | CD34: 0 | CF34: 0 | CG34: 0 | CH34: 3973617 | CI34: 9386046 | CJ34: 3160159 | CK34: 0 | CL34: 0 | CM34: 1904360 | CN34: 18424182 | CQ34: 188977 | CR34: 188977 | CS34: 18235205 | CT34: 85949677 | CU34: 65975163 | CV34: 0 | CW34: 65975163 | CX34: 0 | CY34: 0 | CZ34: 0 | DA34: 0
A35: 0032 | B35: 0 | C35: 1 | D35: 2022-10-11 | H35: 0 | I35: 0 | J35: 0 | K35: 0 | L35: 0 | M35: 0 | N35: 0 | O35: 0 | P35: 0 | Q35: 0 | R35: 0 | S35: 0 | T35: 0 | V35: 0 | X35: 0 | Y35: 0 | Z35: 0 | AA35: 0 | AB35: 0 | AD35: 0 | AE35: 0 | AF35: 0 | AG35: 0 | AH35: 0 | AI35: 0 | AJ35: 0 | AK35: 581458.15 | AL35: 581458.15 | AO35: 0 | AP35: 0 | AQ35: 581458.15 | AR35: 581458.15 | AS35: 452778 | AT35: 0 | AU35: 452778 | AV35: 0 | AW35: 0 | AX35: 0 | AY35: 0 | BA35: 0 | BB35: 408811 | BC35: 663093 | BD35: 254282 | BE35: 254282 | BF35: 0 | BG35: 0 | BI35: 0 | BJ35: 0 | BK35: 0 | BL35: 0 | BM35: 0 | BN35: 0 | BO35: 0 | BP35: 0 | BQ35: 0 | BR35: 0 | BS35: 0 | BT35: 0 | BU35: 0 | BW35: 0 | BY35: 0 | BZ35: 0 | CB35: 0 | CC35: 0 | CD35: 0 | CF35: 0 | CG35: 0 | CH35: 0 | CI35: 0 | CJ35: 0 | CK35: 0 | CL35: 0 | CM35: 0 | CN35: 0 | CQ35: 0 | CR35: 0 | CS35: 0 | CT35: 0 | CU35: 448021 | CV35: 0 | CW35: 448021 | CX35: -448021 | CY35: -1 | CZ35: 22401.05 | DA35: 0
A36: 0033 | B36: 0 | C36: 1 | D36: 2022-11-29 | H36: 0 | I36: 0 | J36: 0 | K36: 0 | L36: 0 | M36: 0 | N36: 0 | O36: 0 | P36: 0 | Q36: 0 | R36: 0 | S36: 0 | T36: 0 | V36: 0 | X36: 0 | Y36: 0 | Z36: 0 | AA36: 0 | AB36: 0 | AD36: 0 | AE36: 0 | AF36: 0 | AG36: 0 | AH36: 0 | AI36: 0 | AJ36: 0 | AK36: 177664.65 | AL36: 177664.65 | AO36: 0 | AP36: 0 | AQ36: 177664.65 | AR36: 177664.65 | AS36: 167315 | AT36: 0 | AU36: 167315 | AV36: 0 | AW36: 0 | AX36: 0 | AY36: 0 | BA36: 0 | BB36: 135040.9 | BC36: 171383.2 | BD36: 36342.3 | BE36: 36342.3 | BF36: 0 | BG36: 0 | BI36: 0 | BJ36: 0 | BK36: 0 | BL36: 0 | BM36: 0 | BN36: 0 | BO36: 0 | BP36: 0 | BQ36: 0 | BR36: 0 | BS36: 0 | BT36: 0 | BU36: 0 | BW36: 0 | BY36: 0 | BZ36: 0 | CB36: 0 | CC36: 0 | CD36: 0 | CF36: 0 | CG36: 0 | CH36: 0 | CI36: 0 | CJ36: 0 | CK36: 0 | CL36: 0 | CM36: 188000 | CN36: 188000 | CQ36: 0 | CR36: 0 | CS36: 188000 | CT36: 188000 | CU36: 173461 | CV36: 0 | CW36: 173461 | CX36: 0 | CY36: 0 | CZ36: 0 | DA36: 0
A37: 0034 | B37: 0 | C37: 1 | D37: 2022-09-20 | H37: 0 | I37: 0 | J37: 0 | K37: 0 | L37: 0 | M37: 0 | N37: 0 | O37: 0 | P37: 0 | Q37: 0 | R37: 0 | S37: 0 | T37: 0 | V37: 0 | X37: 0 | Y37: 0 | Z37: 0 | AA37: 0 | AB37: 0 | AD37: 0 | AE37: 0 | AF37: 0 | AG37: 0 | AH37: 0 | AI37: 0 | AJ37: 0 | AK37: 0 | AL37: 0 | AO37: 0 | AP37: 0 | AQ37: 0 | AR37: 0 | AS37: 16968 | AT37: 853.65 | AU37: 17821.65 | AV37: -17821.65 | AW37: -1.050309406 | AX37: 848.4 | AY37: 0 | BA37: 0 | BB37: 17905.95 | BC37: 0 | BD37: -17905.95 | BE37: -17905.95 | BF37: 0 | BG37: 0 | BI37: 0 | BJ37: 0 | BK37: 0 | BL37: 0 | BM37: 0 | BN37: 0 | BO37: 0 | BP37: 0 | BQ37: 0 | BR37: 0 | BS37: 0 | BT37: 0 | BU37: 0 | BW37: 0 | BY37: 0 | BZ37: 0 | CB37: 0 | CC37: 0 | CD37: 0 | CF37: 0 | CG37: 0 | CH37: 0 | CI37: 0 | CJ37: 0 | CK37: 0 | CL37: 0 | CM37: 0 | CN37: 0 | CQ37: 0 | CR37: 0 | CS37: 0 | CT37: 0 | CU37: 0 | CV37: 848.4 | CW37: 848.4 | CX37: -848.4 | DA37: 0
A38: 0035 | B38: 1 | C38: 1 | D38: 2022-11-30 | E38: 0.9994456894 | F38: 0.9993662668 | G38: 0.9990273535 | H38: 40748702.52 | I38: 758094570.1 | J38: 22408193.29 | K38: 3030844.18 | L38: 9470402.18 | M38: 88497740.74 | N38: 12149224.07 | O38: 142350838.6 | P38: 0 | Q38: 950840.8265 | R38: 0 | S38: 73641553.03 | T38: 1151342910 | V38: 0 | X38: 0 | Y38: 1151342910 | Z38: 6762630.347 | AA38: 389835.95 | AB38: 1757961.84 | AD38: 0 | AE38: 0 | AF38: 0 | AG38: 0 | AH38: 18189376.22 | AI38: 0 | AJ38: 0 | AK38: 222165559 | AL38: 249265363.4 | AO38: 24852770.87 | AP38: 24852770.87 | AQ38: 224412592.5 | AR38: 1375755502 | AS38: 1012233521 | AT38: 0 | AU38: 1012233521 | AV38: 0 | AW38: 0 | AX38: 0 | AY38: 0 | BA38: 0 | BB38: 984632549 | BC38: 1342785719 | BD38: 358153170.3 | BE38: 358153170.3 | BF38: 0 | BG38: 0 | BI38: 37966512.1 | BJ38: 785027926 | BK38: 48604816 | BL38: 3451517 | BM38: 11530919 | BN38: 92667020.59 | BO38: 12804022.52 | BP38: 159161005.4 | BQ38: 0 | BR38: 2945470.174 | BS38: 0 | BT38: 57011430 | BU38: 1211170639 | BW38: 1906168.762 | BY38: 1906168.762 | BZ38: 1209264470 | CB38: 7037780.097 | CC38: 770521 | CD38: 1874785 | CF38: 0 | CG38: 0 | CH38: 0 | CI38: 0 | CJ38: 24351680.94 | CK38: 0 | CL38: 0 | CM38: 242256526 | CN38: 276291293 | CQ38: 33106777.85 | CR38: 33106777.85 | CS38: 243184515.2 | CT38: 1452448985 | CU38: 1054449081 | CV38: 0 | CW38: 1054449081 | CX38: 0 | CY38: 0 | CZ38: 0 | DA38: 0
A39: 0036 | B39: 1 | C39: 1 | D39: 2022-09-30 | E39: 1 | F39: 1 | G39: 1 | H39: 770593.735 | I39: 18379842.88 | J39: 368718.16 | K39: 0 | L39: 469009.39 | M39: 1718244.77 | N39: 69135.6 | O39: 0 | P39: 0 | Q39: 0 | R39: 0 | S39: 518626.95 | T39: 22294171.48 | V39: 58000 | X39: 58000 | Y39: 22236171.48 | Z39: 0 | AA39: 0 | AB39: 0 | AD39: 0 | AE39: 44700 | AF39: 802037.88 | AG39: 5188814.34 | AH39: 578034.5 | AI39: 0 | AJ39: 0 | AK39: 3077561 | AL39: 9691147.72 | AO39: 130438.8 | AP39: 130438.8 | AQ39: 9560708.92 | AR39: 31796880.4 | AS39: 22554090 | AT39: 0 | AU39: 22554090 | AV39: 0 | AW39: 0 | AX39: 0 | AY39: 0 | BA39: 0 | BB39: 23913015 | BC39: 30813906.09 | BD39: 6900891.09 | BE39: 6900891.09 | BF39: 0 | BG39: 58000 | BI39: 732620 | BJ39: 19168197 | BK39: 377895 | BL39: 0 | BM39: 433701 | BN39: 1700701 | BO39: 30000 | BP39: 0 | BQ39: 0 | BR39: 0 | BS39: 0 | BT39: 340474 | BU39: 22783588 | BW39: 60000 | BY39: 60000 | BZ39: 22723588 | CB39: 0 | CC39: 0 | CD39: 0 | CF39: 0 | CG39: 46332.6 | CH39: 839016 | CI39: 5494091.18 | CJ39: 685578 | CK39: 0 | CL39: 0 | CM39: 2914005 | CN39: 9979022.78 | CQ39: 83480.832 | CR39: 83480.832 | CS39: 9895541.948 | CT39: 32619129.95 | CU39: 23199623 | CV39: 0 | CW39: 23199623 | CX39: 0 | CY39: 0 | CZ39: 0 | DA39: 0
A40: 0037 | B40: 0 | C40: 1 | D40: 2022-09-23 | H40: 0 | I40: 0 | J40: 0 | K40: 0 | L40: 0 | M40: 0 | N40: 0 | O40: 0 | P40: 0 | Q40: 0 | R40: 0 | S40: 0 | T40: 0 | V40: 0 | X40: 0 | Y40: 0 | Z40: 0 | AA40: 0 | AB40: 0 | AD40: 0 | AE40: 0 | AF40: 0 | AG40: 0 | AH40: 0 | AI40: 0 | AJ40: 0 | AK40: 187251 | AL40: 187251 | AO40: 0 | AP40: 0 | AQ40: 187251 | AR40: 187251 | AS40: 145509 | AT40: 7168.65 | AU40: 152677.65 | AV40: 0 | AW40: 0 | AX40: 0 | AY40: 0 | BA40: 0 | BB40: 143373 | BC40: 0 | BD40: -143373 | BE40: -143373 | BF40: 0 | BG40: 0 | BI40: 0 | BJ40: 0 | BK40: 0 | BL40: 0 | BM40: 0 | BN40: 0 | BO40: 0 | BP40: 0 | BQ40: 0 | BR40: 0 | BS40: 0 | BT40: 0 | BU40: 0 | BW40: 0 | BY40: 0 | BZ40: 0 | CB40: 0 | CC40: 0 | CD40: 0 | CF40: 0 | CG40: 0 | CH40: 0 | CI40: 0 | CJ40: 0 | CK40: 0 | CL40: 0 | CM40: 0 | CN40: 0 | CQ40: 0 | CR40: 0 | CS40: 0 | CT40: 0 | CU40: 171345 | CV40: 0 | CW40: 171345 | CX40: -171345 | CY40: -1 | CZ40: 8567.25 | DA40: 0
A41: 0038 | B41: 1 | C41: 1 | D41: 2022-09-22 | E41: 1 | F41: 1 | G41: 1 | H41: 578791 | I41: 8427229 | J41: 164109 | K41: 44212 | L41: 0 | M41: 1519856 | N41: 32956 | O41: 1176982 | P41: 365041 | Q41: 0 | R41: 0 | S41: 681377 | T41: 12990553 | V41: 0 | X41: 0 | Y41: 12990553 | Z41: 87917 | AA41: 0 | AB41: 5000 | AD41: 133772 | AE41: 145898 | AF41: 512655 | AG41: 52771 | AH41: 128178 | AI41: 0 | AJ41: 0 | AK41: 27648 | AL41: 1093839 | AO41: 1613.4 | AP41: 1613.4 | AQ41: 1092225.6 | AR41: 14082778.6 | AS41: 7607183 | AT41: 0 | AU41: 7607183 | AV41: 0 | AW41: 0 | AX41: 0 | AY41: 0 | BA41: 29038 | BB41: 7868951 | BC41: 13311035 | BD41: 5442084 | BE41: 5413046 | BF41: 0 | BG41: 0 | BI41: 676201 | BJ41: 8787021 | BK41: 189189 | BL41: 47761 | BM41: 4000 | BN41: 1030751 | BO41: 20000 | BP41: 1358427 | BQ41: 398279 | BR41: 48648 | BS41: 0 | BT41: 360877 | BU41: 12921154 | BW41: 0 | BY41: 0 | BZ41: 12921154 | CB41: 104406 | CC41: 0 | CD41: 5000 | CF41: 141669 | CG41: 141615 | CH41: 517974 | CI41: 62644 | CJ41: 133305 | CK41: 0 | CL41: 0 | CM41: 30174 | CN41: 1136787 | CQ41: 1032.576 | CR41: 1032.576 | CS41: 1135754.424 | CT41: 14056908.42 | CU41: 8111895 | CV41: 0 | CW41: 8111895 | CX41: 0 | CY41: 0 | CZ41: 0 | DA41: 0
A42: 0039 | B42: 0 | C42: 1 | D42: 2022-09-23 | H42: 0 | I42: 0 | J42: 0 | K42: 0 | L42: 0 | M42: 0 | N42: 0 | O42: 0 | P42: 0 | Q42: 0 | R42: 0 | S42: 0 | T42: 0 | V42: 0 | X42: 0 | Y42: 0 | Z42: 0 | AA42: 0 | AB42: 0 | AD42: 0 | AE42: 0 | AF42: 0 | AG42: 0 | AH42: 0 | AI42: 0 | AJ42: 0 | AK42: 0 | AL42: 0 | AO42: 0 | AP42: 0 | AQ42: 0 | AR42: 0 | AS42: 579645 | AT42: 21906.3 | AU42: 601551.3 | AV42: -601551.3 | AW42: -1.037792614 | AX42: 28982.25 | AY42: 0 | BA42: 0 | BB42: 459604.9 | BC42: 4100 | BD42: -455504.9 | BE42: -455504.9 | BF42: 0 | BG42: 0 | BI42: 0 | BJ42: 0 | BK42: 0 | BL42: 0 | BM42: 0 | BN42: 0 | BO42: 0 | BP42: 0 | BQ42: 0 | BR42: 0 | BS42: 0 | BT42: 0 | BU42: 0 | BW42: 0 | BY42: 0 | BZ42: 0 | CB42: 0 | CC42: 0 | CD42: 0 | CF42: 0 | CG42: 0 | CH42: 0 | CI42: 0 | CJ42: 0 | CK42: 0 | CL42: 0 | CM42: 0 | CN42: 0 | CQ42: 0 | CR42: 0 | CS42: 0 | CT42: 0 | CU42: 526261 | CV42: 28982.25 | CW42: 555243.25 | CX42: -555243.25 | CY42: -1.055072008 | CZ42: 26313.05 | DA42: 0
A43: 0040 | B43: 1 | C43: 1 | D43: 2022-11-03 | E43: 1 | F43: 1 | G43: 1 | H43: 1402884.67 | I43: 49901214.05 | J43: 1158759.89 | K43: 0 | L43: 1146411.07 | M43: 6589190.83 | N43: 122892.5 | O43: 46766 | P43: 0 | Q43: 0 | R43: 0 | S43: 4696679.43 | T43: 65064798.44 | V43: 132000 | X43: 132000 | Y43: 64932798.44 | Z43: 432425.35 | AA43: 0 | AB43: 0 | AD43: 0 | AE43: 1128668.9 | AF43: 3935926.94 | AG43: 7237118.61 | AH43: 1413098.03 | AI43: 56640 | AJ43: 0 | AK43: 444496.8 | AL43: 14648374.63 | AO43: 60315.55979 | AP43: 60315.55979 | AQ43: 14588059.07 | AR43: 79520857.51 | AS43: 65492242 | AT43: 0 | AU43: 65492242 | AV43: 0 | AW43: 0 | AX43: 0 | AY43: 0 | BA43: 57822.48 | BB43: 64386928 | BC43: 84656214.49 | BD43: 20269286.49 | BE43: 20211464.01 | BF43: 0 | BG43: 132000 | BI43: 1330032.59 | BJ43: 57506302.28 | BK43: 1381276.04 | BL43: 0 | BM43: 988932.82 | BN43: 5051594 | BO43: 6000 | BP43: 50000 | BQ43: 0 | BR43: 0 | BS43: 0 | BT43: 3887897.4 | BU43: 70202035.13 | BW43: 132000 | BY43: 132000 | BZ43: 70070035.13 | CB43: 720167.63 | CC43: 0 | CD43: 0 | CF43: 0 | CG43: 1436312.29 | CH43: 4112061.01 | CI43: 7022123.91 | CJ43: 1790383.836 | CK43: 56640 | CL43: 0 | CM43: 599079 | CN43: 15736767.68 | CQ43: 147556.8445 | CR43: 147556.8445 | CS43: 15589210.83 | CT43: 85659245.96 | CU43: 68308994 | CV43: 0 | CW43: 68308994 | CX43: 0 | CY43: 0 | CZ43: 0 | DA43: 0
A44: 0041 | B44: 1 | C44: 1 | D44: 2022-09-30 | E44: 1 | F44: 1 | G44: 1 | H44: 199647 | I44: 6465648 | J44: 152086 | K44: 94921 | L44: 249 | M44: 543525 | N44: 33710 | O44: 0 | P44: 0 | Q44: 0 | R44: 0 | S44: 49434 | T44: 7539220 | V44: 27000 | X44: 27000 | Y44: 7512220 | Z44: 98028 | AA44: 0 | AB44: 0 | AD44: 0 | AE44: 14693 | AF44: 355153 | AG44: 1271773 | AH44: 151638 | AI44: 0 | AJ44: 0 | AK44: 115029 | AL44: 2006314 | AO44: 0 | AP44: 0 | AQ44: 2006314 | AR44: 9518534 | AS44: 5063460 | AT44: 0 | AU44: 5063460 | AV44: 0 | AW44: 0 | AX44: 0 | AY44: 0 | BA44: 0 | BB44: 5218004 | BC44: 9601055.36 | BD44: 4383051.36 | BE44: 4383051.36 | BF44: 0 | BG44: 27000 | BI44: 371205 | BJ44: 6352522 | BK44: 150985 | BL44: 20353 | BM44: 0 | BN44: 616919 | BO44: 0 | BP44: 0 | BQ44: 0 | BR44: 0 | BS44: 0 | BT44: 319989 | BU44: 7831973 | BW44: 0 | BY44: 0 | BZ44: 7831973 | CB44: 109774 | CC44: 0 | CD44: 0 | CF44: 0 | CG44: 15044 | CH44: 420759 | CI44: 1395906 | CJ44: 196976.4 | CK44: 0 | CL44: 0 | CM44: 91038 | CN44: 2229497.4 | CQ44: 0 | CR44: 0 | CS44: 2229497.4 | CT44: 10061470.4 | CU44: 5580575 | CV44: 0 | CW44: 5580575 | CX44: 0 | CY44: 0 | CZ44: 0 | DA44: 0
A45: 0042 | B45: 0 | C45: 1 | D45: 2023-01-09 | H45: 0 | I45: 0 | J45: 0 | K45: 0 | L45: 0 | M45: 0 | N45: 0 | O45: 0 | P45: 0 | Q45: 0 | R45: 0 | S45: 0 | T45: 0 | V45: 0 | X45: 0 | Y45: 0 | Z45: 0 | AA45: 0 | AB45: 0 | AD45: 0 | AE45: 0 | AF45: 0 | AG45: 0 | AH45: 0 | AI45: 0 | AJ45: 0 | AK45: 1948241 | AL45: 1948241 | AO45: 0 | AP45: 0 | AQ45: 1948241 | AR45: 1948241 | AS45: 141393 | AT45: 0 | AU45: 141393 | AV45: 0 | AW45: 0 | AX45: 0 | AY45: 0 | BA45: 0 | BB45: 149691 | BC45: 1733920 | BD45: 1584229 | BE45: 1584229 | BF45: 0 | BG45: 0 | BI45: 0 | BJ45: 0 | BK45: 0 | BL45: 0 | BM45: 0 | BN45: 0 | BO45: 0 | BP45: 0 | BQ45: 0 | BR45: 0 | BS45: 0 | BT45: 0 | BU45: 0 | BW45: 0 | BY45: 0 | BZ45: 0 | CB45: 0 | CC45: 0 | CD45: 0 | CF45: 0 | CG45: 0 | CH45: 0 | CI45: 0 | CJ45: 0 | CK45: 0 | CL45: 0 | CM45: 2084713 | CN45: 2084713 | CQ45: 0 | CR45: 0 | CS45: 2084713 | CT45: 2084713 | CU45: 169628 | CV45: 0 | CW45: 169628 | CX45: 0 | CY45: 0 | CZ45: 0 | DA45: 0
A46: 0043 | B46: 1 | C46: 1 | D46: 2022-09-27 | E46: 1 | F46: 1 | G46: 1 | H46: 106890 | I46: 2812737 | J46: 78306 | K46: 0 | L46: 0 | M46: 392194 | N46: 0 | O46: 0 | P46: 0 | Q46: 0 | R46: 0 | S46: 238704 | T46: 3628831 | V46: 0 | X46: 0 | Y46: 3628831 | Z46: 75380 | AA46: 0 | AB46: 0 | AD46: 0 | AE46: 0 | AF46: 197989 | AG46: 209018 | AH46: 55869.5 | AI46: 0 | AJ46: 0 | AK46: 113688 | AL46: 651944.5 | AO46: 4321.571361 | AP46: 4321.571361 | AQ46: 647622.9286 | AR46: 4276453.929 | AS46: 3128843 | AT46: 0 | AU46: 3128843 | AV46: 0 | AW46: 0 | AX46: 0 | AY46: 0 | BA46: 0 | BB46: 3081861 | BC46: 4119899.196 | BD46: 1038038.196 | BE46: 1038038.196 | BF46: 0 | BG46: 0 | BI46: 121321 | BJ46: 2945781 | BK46: 88944 | BL46: 1500 | BM46: 10000 | BN46: 337925 | BO46: 0 | BP46: 0 | BQ46: 0 | BR46: 0 | BS46: 0 | BT46: 345168 | BU46: 3850639 | BW46: 0 | BY46: 0 | BZ46: 3850639 | CB46: 99894 | CC46: 0 | CD46: 0 | CF46: 0 | CG46: 0 | CH46: 211969 | CI46: 228731 | CJ46: 56802 | CK46: 0 | CL46: 0 | CM46: 121164 | CN46: 718560 | CQ46: 36166.17076 | CR46: 36166.17076 | CS46: 682393.8292 | CT46: 4533032.829 | CU46: 3156449 | CV46: 0 | CW46: 3156449 | CX46: 0 | CY46: 0 | CZ46: 0 | DA46: 0
A47: 0044 | B47: 1 | C47: 1 | D47: 2022-11-09 | E47: 1 | F47: 0.9926747176 | G47: 0.9963839579 | H47: 11597859.39 | I47: 149561772.4 | J47: 5370551.45 | K47: 0 | L47: 6158015.83 | M47: 10951987.07 | N47: 855955.38 | O47: 1003275.94 | P47: 0 | Q47: 119548.84 | R47: 0 | S47: 10374556.52 | T47: 195993522.8 | V47: 0 | X47: 0 | Y47: 195993522.8 | Z47: 5912364.054 | AA47: 0 | AB47: 8630 | AD47: 0 | AE47: 332327.927 | AF47: 10665941 | AG47: 27705570 | AH47: 7210520 | AI47: 0 | AJ47: 0 | AK47: 23265600.32 | AL47: 75100953.3 | AO47: 6086781.029 | AP47: 6086781.029 | AQ47: 69014172.27 | AR47: 265007695.1 | AS47: 261944927 | AT47: 0 | AU47: 261944927 | AV47: 0 | AW47: 0 | AX47: 0 | AY47: 0 | BA47: 0 | BB47: 238803773.6 | BC47: 241981492.3 | BD47: 3177718.691 | BE47: 3177718.691 | BF47: 0 | BG47: 0 | BI47: 7296266.383 | BJ47: 160912670 | BK47: 5109335 | BL47: 0 | BM47: 2131617 | BN47: 22390373.86 | BO47: 1157458.721 | BP47: 1340110.869 | BQ47: 0 | BR47: 548949.1188 | BS47: 0 | BT47: 8568438 | BU47: 209455219 | BW47: 0 | BY47: 0 | BZ47: 209455219 | CB47: 5955807.086 | CC47: 0 | CD47: 8850 | CF47: 0 | CG47: 340045.6879 | CH47: 12711527.34 | CI47: 29137037.95 | CJ47: 8801372.695 | CK47: 0 | CL47: 0 | CM47: 26014165 | CN47: 82968805.76 | CQ47: 5978764.285 | CR47: 5978764.285 | CS47: 76990041.47 | CT47: 286445260.4 | CU47: 276250953 | CV47: 0 | CW47: 276250953 | CX47: 0 | CY47: 0 | CZ47: 0 | DA47: 0
A48: 0045 | B48: 1 | C48: 1 | D48: 2022-09-27 | E48: 1 | F48: 1 | G48: 1 | H48: 118317 | I48: 2285445 | J48: 66003 | K48: 0 | L48: 0 | M48: 328717 | N48: 43500 | O48: 0 | P48: 0 | Q48: 0 | R48: 0 | S48: 115729 | T48: 2957711 | V48: 0 | X48: 0 | Y48: 2957711 | Z48: 64408 | AA48: 0 | AB48: 0 | AD48: 0 | AE48: 0 | AF48: 124282 | AG48: 256608 | AH48: 38259.5 | AI48: 0 | AJ48: 0 | AK48: 150861 | AL48: 634418.5 | AO48: 46449.09588 | AP48: 46449.09588 | AQ48: 587969.4041 | AR48: 3545680.404 | AS48: 2862210 | AT48: 0 | AU48: 2862210 | AV48: 0 | AW48: 0 | AX48: 0 | AY48: 0 | BA48: 0 | BB48: 2871199 | BC48: 3550178.185 | BD48: 678979.1851 | BE48: 678979.1851 | BF48: 0 | BG48: 0 | BI48: 152675 | BJ48: 2384383 | BK48: 77131 | BL48: 0 | BM48: 10000 | BN48: 297324 | BO48: 0 | BP48: 0 | BQ48: 0 | BR48: 0 | BS48: 0 | BT48: 153617 | BU48: 3075130 | BW48: 0 | BY48: 0 | BZ48: 3075130 | CB48: 59987 | CC48: 0 | CD48: 0 | CF48: 0 | CG48: 0 | CH48: 138233 | CI48: 277462 | CJ48: 73200 | CK48: 0 | CL48: 0 | CM48: 215259 | CN48: 764141 | CQ48: 47398.59364 | CR48: 47398.59364 | CS48: 716742.4064 | CT48: 3791872.406 | CU48: 2961396 | CV48: 0 | CW48: 2961396 | CX48: 0 | CY48: 0 | CZ48: 0 | DA48: 0
A49: 0046 | B49: 1 | C49: 1 | D49: 2022-10-26 | E49: 0.9991932591 | F49: 1 | G49: 0.9993472605 | H49: 4265560.717 | I49: 99063301 | J49: 1981090 | K49: 233419 | L49: 1313560 | M49: 5173383.051 | N49: 94364.81059 | O49: 35989.942 | P49: 0 | Q49: 213866.326 | R49: 0 | S49: 4987518 | T49: 117362052.8 | V49: 7868.860329 | X49: 7868.860329 | Y49: 117354184 | Z49: 1602090.569 | AA49: 0 | AB49: 88942 | AD49: 96905.75904 | AE49: 12553347.58 | AF49: 7401481.102 | AG49: 22043276.43 | AH49: 1207616.979 | AI49: 0 | AJ49: 0 | AK49: 197054 | AL49: 45190714.42 | AO49: 19217.4 | AP49: 19217.4 | AQ49: 45171497.02 | AR49: 162525681 | AS49: 79086353 | AT49: 0 | AU49: 79086353 | AV49: 0 | AW49: 0 | AX49: 0 | AY49: 0 | BA49: 230626 | BB49: 84203223 | BC49: 156033503.8 | BD49: 71830280.81 | BE49: 71599654.81 | BF49: 0 | BG49: 7868.860329 | BI49: 4258080 | BJ49: 105788938 | BK49: 1889622 | BL49: 0 | BM49: 1048821 | BN49: 4099882 | BO49: 129594 | BP49: 72564 | BQ49: 0 | BR49: 222836 | BS49: 0 | BT49: 5327563 | BU49: 122837900 | BW49: 0 | BY49: 0 | BZ49: 122837900 | CB49: 1647335 | CC49: 0 | CD49: 104911 | CF49: 99894 | CG49: 12648221 | CH49: 7945060 | CI49: 22826650 | CJ49: 1534883.4 | CK49: 0 | CL49: 0 | CM49: 211392 | CN49: 47018346.4 | CQ49: 51696.136 | CR49: 51696.136 | CS49: 46966650.26 | CT49: 169804550.3 | CU49: 83480952 | CV49: 0 | CW49: 83480952 | CX49: 0 | CY49: 0 | CZ49: 0 | DA49: 0
A50: 0047 | B50: 0 | C50: 1 | D50: 2022-11-28 | H50: 0 | I50: 0 | J50: 0 | K50: 0 | L50: 0 | M50: 0 | N50: 0 | O50: 0 | P50: 0 | Q50: 0 | R50: 0 | S50: 0 | T50: 0 | V50: 0 | X50: 0 | Y50: 0 | Z50: 0 | AA50: 0 | AB50: 0 | AD50: 0 | AE50: 0 | AF50: 0 | AG50: 0 | AH50: 0 | AI50: 0 | AJ50: 0 | AK50: 18679 | AL50: 18679 | AO50: 0 | AP50: 0 | AQ50: 18679 | AR50: 18679 | AS50: 31559 | AT50: 0 | AU50: 31559 | AV50: -12880 | AW50: -0.4081244653 | AX50: 1577.95 | AY50: 0 | BA50: 0 | BB50: 31109.2 | BC50: 36800 | BD50: 5690.8 | BE50: 5690.8 | BF50: 0 | BG50: 0 | BI50: 0 | BJ50: 0 | BK50: 0 | BL50: 0 | BM50: 0 | BN50: 0 | BO50: 0 | BP50: 0 | BQ50: 0 | BR50: 0 | BS50: 0 | BT50: 0 | BU50: 0 | BW50: 0 | BY50: 0 | BZ50: 0 | CB50: 0 | CC50: 0 | CD50: 0 | CF50: 0 | CG50: 0 | CH50: 0 | CI50: 0 | CJ50: 0 | CK50: 0 | CL50: 0 | CM50: 40000 | CN50: 40000 | CQ50: 0 | CR50: 0 | CS50: 40000 | CT50: 40000 | CU50: 21251 | CV50: 1577.95 | CW50: 22828.95 | CX50: 0 | CY50: 0 | CZ50: 0 | DA50: 0
A51: 0048 | B51: 1 | C51: 1 | D51: 2022-11-03 | E51: 1 | F51: 1 | G51: 1 | H51: 2265534 | I51: 48451789 | J51: 1213910 | K51: 13000 | L51: 1236709 | M51: 5274093 | N51: 310144 | O51: 387912 | P51: 0 | Q51: 0 | R51: 0 | S51: 6160712 | T51: 65313803 | V51: 190000 | X51: 190000 | Y51: 65123803 | Z51: 664163 | AA51: 0 | AB51: 0 | AD51: 0 | AE51: 0 | AF51: 3481472 | AG51: 7022140 | AH51: 2480911 | AI51: 0 | AJ51: 0 | AK51: 403797 | AL51: 14052483 | AO51: 17075.75752 | AP51: 17075.75752 | AQ51: 14035407.24 | AR51: 79159210.24 | AS51: 40182108 | AT51: 0 | AU51: 40182108 | AV51: 0 | AW51: 0 | AX51: 0 | AY51: 0 | BA51: 0 | BB51: 40012176 | BC51: 75581056.15 | BD51: 35568880.15 | BE51: 35568880.15 | BF51: 0 | BG51: 190000 | BI51: 2107520 | BJ51: 52483513 | BK51: 1370370 | BL51: 0 | BM51: 1273855 | BN51: 5350860 | BO51: 0 | BP51: 493231 | BQ51: 0 | BR51: 0 | BS51: 0 | BT51: 5417085 | BU51: 68496434 | BW51: 0 | BY51: 0 | BZ51: 68496434 | CB51: 684550 | CC51: 0 | CD51: 0 | CF51: 0 | CG51: 0 | CH51: 3714209 | CI51: 7824557 | CJ51: 2807702 | CK51: 0 | CL51: 0 | CM51: 308494 | CN51: 15339512 | CQ51: 4843.753086 | CR51: 4843.753086 | CS51: 15334668.25 | CT51: 83831102.25 | CU51: 44168133 | CV51: 0 | CW51: 44168133 | CX51: 0 | CY51: 0 | CZ51: 0 | DA51: 0
A52: 0049 | B52: 1 | C52: 1 | D52: 2022-10-05 | E52: 0.9987747033 | F52: 0.9955678626 | G52: 0.9971821808 | H52: 7528167.611 | I52: 133247635.8 | J52: 2920945.06 | K52: 1218642.54 | L52: 2954573.26 | M52: 14368449.22 | N52: 6854621.631 | O52: 31889940.65 | P52: 0 | Q52: 95302.33311 | R52: 0 | S52: 8167650.21 | T52: 209245928.3 | V52: 0 | X52: 0 | Y52: 209245928.3 | Z52: 1340592.389 | AA52: 0 | AB52: 1418892.38 | AD52: 1228042.967 | AE52: 1276827.893 | AF52: 0 | AG52: 0 | AH52: 5874870.4 | AI52: 0 | AJ52: 0 | AK52: 17248564.01 | AL52: 28387790.04 | AO52: 1800327.087 | AP52: 1800327.087 | AQ52: 26587462.95 | AR52: 235833391.2 | AS52: 100848387 | AT52: 0 | AU52: 100848387 | AV52: 0 | AW52: 0 | AX52: 0 | AY52: 0 | BA52: 0 | BB52: 97837766 | BC52: 234477563.6 | BD52: 136639797.6 | BE52: 136639797.6 | BF52: 0 | BG52: 0 | BI52: 8665123.229 | BJ52: 139978799.3 | BK52: 2717822.52 | BL52: 1348291.56 | BM52: 3049520.16 | BN52: 14621273.35 | BO52: 7868148.098 | BP52: 32252428.78 | BQ52: 0 | BR52: 230422.1907 | BS52: 0 | BT52: 7809173 | BU52: 218541002.2 | BW52: 0 | BY52: 0 | BZ52: 218541002.2 | CB52: 1414671.847 | CC52: 0 | CD52: 2746900.5 | CF52: 1229549.53 | CG52: 2491906.669 | CH52: 0 | CI52: 0 | CJ52: 5856007.513 | CK52: 0 | CL52: 0 | CM52: 18427433 | CN52: 32166469.06 | CQ52: 2162107.273 | CR52: 2162107.273 | CS52: 30004361.79 | CT52: 248545364 | CU52: 105936292 | CV52: 0 | CW52: 105936292 | CX52: 0 | CY52: 0 | CZ52: 0 | DA52: 0
A53: 0050 | B53: 1 | C53: 1 | D53: 2022-11-04 | E53: 1 | F53: 1 | G53: 1 | H53: 1687428.68 | I53: 34596507.18 | J53: 823552.64 | K53: 0 | L53: 922175.26 | M53: 3537673.89 | N53: 0 | O53: 0 | P53: 0 | Q53: 0 | R53: 0 | S53: 3503581.73 | T53: 45070919.38 | V53: 0 | X53: 0 | Y53: 45070919.38 | Z53: 283753 | AA53: 0 | AB53: 0 | AD53: 0 | AE53: 166125 | AF53: 1791319 | AG53: 7029935 | AH53: 2032260 | AI53: 0 | AJ53: 0 | AK53: 850648 | AL53: 12154040 | AO53: 177846.4 | AP53: 177846.4 | AQ53: 11976193.6 | AR53: 57047112.98 | AS53: 37479187 | AT53: 0 | AU53: 37479187 | AV53: 0 | AW53: 0 | AX53: 0 | AY53: 0 | BA53: 0 | BB53: 37234940 | BC53: 55741873.58 | BD53: 18506933.58 | BE53: 18506933.58 | BF53: 0 | BG53: 0 | BI53: 1738439 | BJ53: 38197802 | BK53: 900839 | BL53: 50000 | BM53: 946077 | BN53: 3114692 | BO53: 0 | BP53: 0 | BQ53: 0 | BR53: 0 | BS53: 0 | BT53: 3093203 | BU53: 48041052 | BW53: 0 | BY53: 0 | BZ53: 48041052 | CB53: 306509 | CC53: 0 | CD53: 0 | CF53: 0 | CG53: 212465 | CH53: 3283882 | CI53: 7086179 | CJ53: 2032762 | CK53: 0 | CL53: 0 | CM53: 503315 | CN53: 13425112 | CQ53: 111009.576 | CR53: 111009.576 | CS53: 13314102.42 | CT53: 61355154.42 | CU53: 40961226 | CV53: 0 | CW53: 40961226 | CX53: 0 | CY53: 0 | CZ53: 0 | DA53: 0
A54: 0051 | B54: 1 | C54: 1 | D54: 2022-12-02 | E54: 1 | F54: 1 | G54: 1 | H54: 471858 | I54: 9294945 | J54: 161174 | K54: 0 | L54: 88419 | M54: 1236173 | N54: 0 | O54: 0 | P54: 0 | Q54: 0 | R54: 0 | S54: 288555 | T54: 11541124 | V54: 0 | X54: 0 | Y54: 11541124 | Z54: 79630 | AA54: 0 | AB54: 0 | AD54: 0 | AE54: 0 | AF54: 0 | AG54: 823291 | AH54: 266846 | AI54: 0 | AJ54: 0 | AK54: 0 | AL54: 1169767 | AO54: 0 | AP54: 0 | AQ54: 1169767 | AR54: 12710891 | AS54: 5795093 | AT54: 0 | AU54: 5795093 | AV54: 0 | AW54: 0 | AX54: 0 | AY54: 0 | BA54: 0 | BB54: 5783671 | BC54: 11440333.7 | BD54: 5656662.7 | BE54: 5656662.7 | BF54: 0 | BG54: 0 | BI54: 317414 | BJ54: 9849183 | BK54: 161896 | BL54: 0 | BM54: 37056 | BN54: 1076456 | BO54: 0 | BP54: 0 | BQ54: 0 | BR54: 0 | BS54: 0 | BT54: 408491 | BU54: 11850496 | BW54: 0 | BY54: 0 | BZ54: 11850496 | CB54: 86887 | CC54: 0 | CD54: 0 | CF54: 0 | CG54: 0 | CH54: 0 | CI54: 875968 | CJ54: 331016 | CK54: 0 | CL54: 0 | CM54: 0 | CN54: 1293871 | CQ54: 0 | CR54: 0 | CS54: 1293871 | CT54: 13144367 | CU54: 6420143 | CV54: 0 | CW54: 6420143 | CX54: 0 | CY54: 0 | CZ54: 0 | DA54: 0
A55: 0052 | B55: 1 | C55: 1 | D55: 2022-09-29 | E55: 1 | F55: 1 | G55: 1 | H55: 639063 | I55: 14294546 | J55: 232754 | K55: 108730 | L55: 502007 | M55: 1580532 | N55: 1247518 | O55: 3006130 | P55: 949779 | Q55: 0 | R55: 0 | S55: 887196 | T55: 23448255 | V55: 0 | X55: 0 | Y55: 23448255 | Z55: 0 | AA55: 0 | AB55: 0 | AD55: 0 | AE55: 0 | AF55: 0 | AG55: 35710 | AH55: 0 | AI55: 0 | AJ55: 0 | AK55: 1133237 | AL55: 1168947 | AO55: 244544.2014 | AP55: 244544.2014 | AQ55: 924402.7986 | AR55: 24372657.8 | AS55: 19649054 | AT55: 0 | AU55: 19649054 | AV55: 0 | AW55: 0 | AX55: 0 | AY55: 0 | BA55: 0 | BB55: 19427158 | BC55: 23527245.58 | BD55: 4100087.577 | BE55: 4100087.577 | BF55: 0 | BG55: 0 | BI55: 681913 | BJ55: 16618242 | BK55: 379983 | BL55: 151040 | BM55: 572915 | BN55: 1499152 | BO55: 269500 | BP55: 276700 | BQ55: 50500 | BR55: 0 | BS55: 0 | BT55: 1506500 | BU55: 22006445 | BW55: 0 | BY55: 0 | BZ55: 22006445 | CB55: 0 | CC55: 0 | CD55: 0 | CF55: 0 | CG55: 176843 | CH55: 1142348 | CI55: 3026806 | CJ55: 968781 | CK55: 0 | CL55: 0 | CM55: 1164850 | CN55: 6479628 | CQ55: 174703.1251 | CR55: 174703.1251 | CS55: 6304924.875 | CT55: 28311369.87 | CU55: 20396537 | CV55: 0 | CW55: 20396537 | CX55: 0 | CY55: 0 | CZ55: 0 | DA55: 0
A56: 0053 | B56: 0 | C56: 1 | D56: 2022-11-29 | H56: 0 | I56: 0 | J56: 0 | K56: 0 | L56: 0 | M56: 0 | N56: 0 | O56: 0 | P56: 0 | Q56: 0 | R56: 0 | S56: 0 | T56: 0 | V56: 0 | X56: 0 | Y56: 0 | Z56: 0 | AA56: 0 | AB56: 0 | AD56: 0 | AE56: 0 | AF56: 0 | AG56: 0 | AH56: 0 | AI56: 0 | AJ56: 0 | AK56: 132858 | AL56: 132858 | AO56: 0 | AP56: 0 | AQ56: 132858 | AR56: 132858 | AS56: 157494 | AT56: 7771.08 | AU56: 165265.08 | AV56: -32407.08 | AW56: -0.2057670768 | AX56: 7874.7 | AY56: 0 | BA56: 0 | BB56: 165403.05 | BC56: 119400 | BD56: -46003.05 | BE56: -46003.05 | BF56: 0 | BG56: 0 | BI56: 0 | BJ56: 0 | BK56: 0 | BL56: 0 | BM56: 0 | BN56: 0 | BO56: 0 | BP56: 0 | BQ56: 0 | BR56: 0 | BS56: 0 | BT56: 0 | BU56: 0 | BW56: 0 | BY56: 0 | BZ56: 0 | CB56: 0 | CC56: 0 | CD56: 0 | CF56: 0 | CG56: 0 | CH56: 0 | CI56: 0 | CJ56: 0 | CK56: 0 | CL56: 0 | CM56: 210000 | CN56: 210000 | CQ56: 0 | CR56: 0 | CS56: 210000 | CT56: 210000 | CU56: 155632 | CV56: 7874.7 | CW56: 163506.7 | CX56: 0 | CY56: 0 | CZ56: 0 | DA56: 0
A57: 0054 | B57: 0 | C57: 1 | D57: 2022-09-20 | H57: 0 | I57: 0 | J57: 0 | K57: 0 | L57: 0 | M57: 0 | N57: 0 | O57: 0 | P57: 0 | Q57: 0 | R57: 0 | S57: 0 | T57: 0 | V57: 0 | X57: 0 | Y57: 0 | Z57: 0 | AA57: 0 | AB57: 0 | AD57: 0 | AE57: 0 | AF57: 0 | AG57: 0 | AH57: 0 | AI57: 0 | AJ57: 0 | AK57: 24100 | AL57: 24100 | AO57: 0 | AP57: 0 | AQ57: 24100 | AR57: 24100 | AS57: 15185 | AT57: 0 | AU57: 15185 | AV57: 0 | AW57: 0 | AX57: 0 | AY57: 0 | BA57: 0 | BB57: 14659 | BC57: 23634 | BD57: 8975 | BE57: 8975 | BF57: 0 | BG57: 0 | BI57: 0 | BJ57: 0 | BK57: 0 | BL57: 0 | BM57: 0 | BN57: 0 | BO57: 0 | BP57: 0 | BQ57: 0 | BR57: 0 | BS57: 0 | BT57: 0 | BU57: 0 | BW57: 0 | BY57: 0 | BZ57: 0 | CB57: 0 | CC57: 0 | CD57: 0 | CF57: 0 | CG57: 0 | CH57: 0 | CI57: 0 | CJ57: 0 | CK57: 0 | CL57: 0 | CM57: 25000 | CN57: 25000 | CQ57: 0 | CR57: 0 | CS57: 25000 | CT57: 25000 | CU57: 15698 | CV57: 0 | CW57: 15698 | CX57: 0 | CY57: 0 | CZ57: 0 | DA57: 0
A58: 0055 | B58: 0 | C58: 1 | D58: 2022-10-03 | H58: 0 | I58: 0 | J58: 0 | K58: 0 | L58: 0 | M58: 0 | N58: 0 | O58: 0 | P58: 0 | Q58: 0 | R58: 0 | S58: 0 | T58: 0 | V58: 0 | X58: 0 | Y58: 0 | Z58: 0 | AA58: 0 | AB58: 0 | AD58: 0 | AE58: 0 | AF58: 0 | AG58: 0 | AH58: 0 | AI58: 0 | AJ58: 0 | AK58: 0 | AL58: 0 | AO58: 0 | AP58: 0 | AQ58: 0 | AR58: 0 | AS58: 0 | AT58: 0 | AU58: 0 | AV58: 0 | AW58: 0 | AX58: 0 | AY58: 0 | BA58: 0 | BB58: 0 | BC58: 0 | BD58: 0 | BE58: 0 | BF58: 0 | BG58: 0 | BI58: 0 | BJ58: 0 | BK58: 0 | BL58: 0 | BM58: 0 | BN58: 0 | BO58: 0 | BP58: 0 | BQ58: 0 | BR58: 0 | BS58: 0 | BT58: 0 | BU58: 0 | BW58: 0 | BY58: 0 | BZ58: 0 | CB58: 0 | CC58: 0 | CD58: 0 | CF58: 0 | CG58: 0 | CH58: 0 | CI58: 0 | CJ58: 0 | CK58: 0 | CL58: 0 | CM58: 0 | CN58: 0 | CQ58: 0 | CR58: 0 | CS58: 0 | CT58: 0 | CU58: 0 | CV58: 0 | CW58: 0 | CX58: 0 | CY58: 0 | CZ58: 0 | DA58: 0
A59: 0056 | B59: 1 | C59: 1 | D59: 2022-10-28 | E59: 1 | F59: 1 | G59: 1 | H59: 1851072 | I59: 47070295 | J59: 824110 | K59: 322820 | L59: 1409731 | M59: 4836327 | N59: 288464 | O59: 0 | P59: 0 | Q59: 0 | R59: 0 | S59: 2376329 | T59: 58979148 | V59: 0 | X59: 0 | Y59: 58979148 | Z59: 209384 | AA59: 0 | AB59: 0 | AD59: 0 | AE59: 1402253 | AF59: 3063764 | AG59: 7335994 | AH59: 1997826 | AI59: 0 | AJ59: 0 | AK59: 2067637 | AL59: 16076858 | AO59: 298501 | AP59: 298501 | AQ59: 15778357 | AR59: 74757505 | AS59: 56199122 | AT59: 0 | AU59: 56199122 | AV59: 0 | AW59: 0 | AX59: 0 | AY59: 0 | BA59: 34042 | BB59: 55079311 | BC59: 73621324.51 | BD59: 18542013.51 | BE59: 18507971.51 | BF59: 0 | BG59: 0 | BI59: 3549380 | BJ59: 50958069 | BK59: 884101 | BL59: 123174 | BM59: 1317379 | BN59: 3245266 | BO59: 249632 | BP59: 0 | BQ59: 0 | BR59: 0 | BS59: 0 | BT59: 2874580 | BU59: 63201581 | BW59: 0 | BY59: 0 | BZ59: 63201581 | CB59: 221855 | CC59: 0 | CD59: 0 | CF59: 0 | CG59: 1496974 | CH59: 3266821 | CI59: 8134551 | CJ59: 2167852 | CK59: 0 | CL59: 0 | CM59: 1874692 | CN59: 17162745 | CQ59: 180470.76 | CR59: 180470.76 | CS59: 16982274.24 | CT59: 80183855.24 | CU59: 59337599 | CV59: 0 | CW59: 59337599 | CX59: 0 | CY59: 0 | CZ59: 0 | DA59: 0
A60: 0057 | B60: 1 | C60: 1 | D60: 2022-12-16 | E60: 1 | F60: 1 | G60: 1 | H60: 3454040.23 | I60: 56591409.48 | J60: 2258034.89 | K60: 0 | L60: 1888483.085 | M60: 10904395.59 | N60: 3634929.75 | O60: 10335031.05 | P60: 1847927.38 | Q60: 259029.5 | R60: 0 | S60: 11182747.98 | T60: 102356028.9 | V60: 0 | X60: 0 | Y60: 102356028.9 | Z60: 986870 | AA60: 17517 | AB60: 0 | AD60: 0 | AE60: 216333 | AF60: 0 | AG60: 0 | AH60: 11895 | AI60: 0 | AJ60: 0 | AK60: 15300241 | AL60: 16532856 | AO60: 1850438.721 | AP60: 1850438.721 | AQ60: 14682417.28 | AR60: 117038446.2 | AS60: 114110343 | AT60: 0 | AU60: 114110343 | AV60: 0 | AW60: 0 | AX60: 0 | AY60: 0 | BA60: 687544.71 | BB60: 105672868 | BC60: 110205588 | BD60: 4532720.049 | BE60: 3845175.339 | BF60: 0 | BG60: 0 | BI60: 4339607 | BJ60: 64023093 | BK60: 2723203 | BL60: 0 | BM60: 2018584 | BN60: 9648478 | BO60: 4122635 | BP60: 11284586 | BQ60: 2078663 | BR60: 251000 | BS60: 0 | BT60: 12088159 | BU60: 112578008 | BW60: 30500 | BY60: 30500 | BZ60: 112547508 | CB60: 1092309 | CC60: 19441 | CD60: 0 | CF60: 0 | CG60: 219695 | CH60: 0 | CI60: 0 | CJ60: 0 | CK60: 0 | CL60: 0 | CM60: 15664991 | CN60: 16996436 | CQ60: 1379377.408 | CR60: 1379377.408 | CS60: 15617058.59 | CT60: 128164566.6 | CU60: 125093688 | CV60: 0 | CW60: 125093688 | CX60: 0 | CY60: 0 | CZ60: 0 | DA60: 0
A61: 0058 | B61: 0 | C61: 1 | D61: 2022-11-28 | H61: 0 | I61: 0 | J61: 0 | K61: 0 | L61: 0 | M61: 0 | N61: 0 | O61: 0 | P61: 0 | Q61: 0 | R61: 0 | S61: 0 | T61: 0 | V61: 0 | X61: 0 | Y61: 0 | Z61: 0 | AA61: 0 | AB61: 0 | AD61: 0 | AE61: 0 | AF61: 0 | AG61: 0 | AH61: 0 | AI61: 0 | AJ61: 0 | AK61: 18679 | AL61: 18679 | AO61: 0 | AP61: 0 | AQ61: 18679 | AR61: 18679 | AS61: 15215 | AT61: 0 | AU61: 15215 | AV61: 0 | AW61: 0 | AX61: 0 | AY61: 0 | BA61: 0 | BB61: 15616.995 | BC61: 545249.05 | BD61: 529632.055 | BE61: 529632.055 | BF61: 0 | BG61: 0 | BI61: 0 | BJ61: 0 | BK61: 0 | BL61: 0 | BM61: 0 | BN61: 0 | BO61: 0 | BP61: 0 | BQ61: 0 | BR61: 0 | BS61: 0 | BT61: 0 | BU61: 0 | BW61: 0 | BY61: 0 | BZ61: 0 | CB61: 0 | CC61: 0 | CD61: 0 | CF61: 0 | CG61: 0 | CH61: 0 | CI61: 0 | CJ61: 0 | CK61: 0 | CL61: 0 | CM61: 18679 | CN61: 18679 | CQ61: 0 | CR61: 0 | CS61: 18679 | CT61: 18679 | CU61: 31395 | CV61: 0 | CW61: 31395 | CX61: -12716 | CY61: -0.4050326485 | CZ61: 1569.75 | DA61: 0
A62: 0059 | B62: 0 | C62: 1 | D62: 2022-11-29 | H62: 0 | I62: 0 | J62: 0 | K62: 0 | L62: 0 | M62: 0 | N62: 0 | O62: 0 | P62: 0 | Q62: 0 | R62: 0 | S62: 0 | T62: 0 | V62: 0 | X62: 0 | Y62: 0 | Z62: 0 | AA62: 0 | AB62: 0 | AD62: 0 | AE62: 0 | AF62: 0 | AG62: 0 | AH62: 0 | AI62: 0 | AJ62: 0 | AK62: 138464 | AL62: 138464 | AO62: 0 | AP62: 0 | AQ62: 138464 | AR62: 138464 | AS62: 136414 | AT62: 0 | AU62: 136414 | AV62: 0 | AW62: 0 | AX62: 0 | AY62: 0 | BA62: 0 | BB62: 137275.45 | BC62: 196404.95 | BD62: 59129.5 | BE62: 59129.5 | BF62: 0 | BG62: 0 | BI62: 0 | BJ62: 0 | BK62: 0 | BL62: 0 | BM62: 0 | BN62: 0 | BO62: 0 | BP62: 0 | BQ62: 0 | BR62: 0 | BS62: 0 | BT62: 0 | BU62: 0 | BW62: 0 | BY62: 0 | BZ62: 0 | CB62: 0 | CC62: 0 | CD62: 0 | CF62: 0 | CG62: 0 | CH62: 0 | CI62: 0 | CJ62: 0 | CK62: 0 | CL62: 0 | CM62: 152000 | CN62: 152000 | CQ62: 0 | CR62: 0 | CS62: 152000 | CT62: 152000 | CU62: 129086 | CV62: 0 | CW62: 129086 | CX62: 0 | CY62: 0 | CZ62: 0 | DA62: 0
A63: 0060 | B63: 0 | C63: 1 | D63: 2022-11-29 | H63: 0 | I63: 0 | J63: 0 | K63: 0 | L63: 0 | M63: 0 | N63: 0 | O63: 0 | P63: 0 | Q63: 0 | R63: 0 | S63: 0 | T63: 0 | V63: 0 | X63: 0 | Y63: 0 | Z63: 0 | AA63: 0 | AB63: 0 | AD63: 0 | AE63: 0 | AF63: 0 | AG63: 0 | AH63: 0 | AI63: 0 | AJ63: 0 | AK63: 375569.19 | AL63: 375569.19 | AO63: 0 | AP63: 0 | AQ63: 375569.19 | AR63: 375569.19 | AS63: 343188 | AT63: 12949.1 | AU63: 356137.1 | AV63: 0 | AW63: 0 | AX63: 0 | AY63: 0 | BA63: 0 | BB63: 348941.1 | BC63: 335992 | BD63: -12949.1 | BE63: -12949.1 | BF63: 0 | BG63: 0 | BI63: 0 | BJ63: 0 | BK63: 0 | BL63: 0 | BM63: 0 | BN63: 0 | BO63: 0 | BP63: 0 | BQ63: 0 | BR63: 0 | BS63: 0 | BT63: 0 | BU63: 0 | BW63: 0 | BY63: 0 | BZ63: 0 | CB63: 0 | CC63: 0 | CD63: 0 | CF63: 0 | CG63: 0 | CH63: 0 | CI63: 0 | CJ63: 0 | CK63: 0 | CL63: 0 | CM63: 390833 | CN63: 390833 | CQ63: 0 | CR63: 0 | CS63: 390833 | CT63: 390833 | CU63: 347248 | CV63: 0 | CW63: 347248 | CX63: 0 | CY63: 0 | CZ63: 0 | DA63: 0
A64: 0061 | B64: 1 | C64: 1 | D64: 2022-10-12 | E64: 1 | F64: 1 | G64: 1 | H64: 3531423.97 | I64: 63925555.17 | J64: 152232.99 | K64: 0 | L64: 1176102.82 | M64: 10129227.87 | N64: 320709.43 | O64: 13605.26 | P64: 0 | Q64: 0 | R64: 0 | S64: 1230197.69 | T64: 80479055.2 | V64: 0 | X64: 0 | Y64: 80479055.2 | Z64: 886938 | AA64: 0 | AB64: 0 | AD64: 169655 | AE64: 142008.54 | AF64: 5875694 | AG64: 9686378 | AH64: 2352781 | AI64: 0 | AJ64: 0 | AK64: 6902437.13 | AL64: 26015891.67 | AO64: 1020084.771 | AP64: 1020084.771 | AQ64: 24995806.9 | AR64: 105474862.1 | AS64: 103803922 | AT64: 0 | AU64: 103803922 | AV64: 0 | AW64: 0 | AX64: 0 | AY64: 0 | BA64: 191383.75 | BB64: 99981144 | BC64: 103572600.2 | BD64: 3591456.207 | BE64: 3400072.457 | BF64: 0 | BG64: 0 | BI64: 4479556 | BJ64: 72670737 | BK64: 136833 | BL64: 0 | BM64: 1340680 | BN64: 10848726 | BO64: 354500 | BP64: 32000 | BQ64: 0 | BR64: 0 | BS64: 0 | BT64: 2500000 | BU64: 92363032 | BW64: 0 | BY64: 0 | BZ64: 92363032 | CB64: 960139 | CC64: 0 | CD64: 0 | CF64: 167377 | CG64: 145799 | CH64: 5909200 | CI64: 9529703 | CJ64: 2551247 | CK64: 0 | CL64: 0 | CM64: 7727574 | CN64: 26991039 | CQ64: 1262503.459 | CR64: 1262503.459 | CS64: 25728535.54 | CT64: 118091567.5 | CU64: 112893440 | CV64: 0 | CW64: 112893440 | CX64: 0 | CY64: 0 | CZ64: 0 | DA64: 0
A65: 0062 | B65: 0 | C65: 1 | D65: 2022-10-21 | H65: 0 | I65: 0 | J65: 0 | K65: 0 | L65: 0 | M65: 0 | N65: 0 | O65: 0 | P65: 0 | Q65: 0 | R65: 0 | S65: 0 | T65: 0 | V65: 0 | X65: 0 | Y65: 0 | Z65: 0 | AA65: 0 | AB65: 0 | AD65: 0 | AE65: 0 | AF65: 0 | AG65: 0 | AH65: 0 | AI65: 0 | AJ65: 0 | AK65: 0 | AL65: 0 | AO65: 0 | AP65: 0 | AQ65: 0 | AR65: 0 | AS65: 0 | AT65: 0 | AU65: 0 | AV65: 0 | AW65: 0 | AX65: 0 | AY65: 0 | BA65: 0 | BB65: 0 | BC65: 0 | BD65: 0 | BE65: 0 | BF65: 0 | BG65: 0 | BI65: 0 | BJ65: 0 | BK65: 0 | BL65: 0 | BM65: 0 | BN65: 0 | BO65: 0 | BP65: 0 | BQ65: 0 | BR65: 0 | BS65: 0 | BT65: 0 | BU65: 0 | BW65: 0 | BY65: 0 | BZ65: 0 | CB65: 0 | CC65: 0 | CD65: 0 | CF65: 0 | CG65: 0 | CH65: 0 | CI65: 0 | CJ65: 0 | CK65: 0 | CL65: 0 | CM65: 0 | CN65: 0 | CQ65: 0 | CR65: 0 | CS65: 0 | CT65: 0 | CU65: 0 | CV65: 0 | CW65: 0 | CX65: 0 | CY65: 0 | CZ65: 0 | DA65: 0
A66: 0063 | B66: 1 | C66: 1 | D66: 2023-03-20 | E66: 1 | F66: 1 | G66: 1 | H66: 155879.96 | I66: 1284853.58 | J66: 36582.13 | K66: 0 | L66: 805.87 | M66: 158471.05 | N66: 28634.51 | O66: 448794.06 | P66: 0 | Q66: 22584.58 | R66: 0 | S66: 408675.71 | T66: 2545281.45 | V66: 4788 | X66: 4788 | Y66: 2540493.45 | Z66: 0 | AA66: 0 | AB66: 0 | AD66: 0 | AE66: 0 | AF66: 105378 | AG66: 0 | AH66: 0 | AI66: 0 | AJ66: 0 | AK66: 522840 | AL66: 628218 | AO66: 46971.6 | AP66: 46971.6 | AQ66: 581246.4 | AR66: 3121739.85 | AS66: 2541177 | AT66: 0 | AU66: 2541177 | AV66: 0 | AW66: 0 | AX66: 0 | AY66: 0 | BA66: 0 | BB66: 2483400 | BC66: 2871262.87 | BD66: 387862.87 | BE66: 387862.87 | BF66: 0 | BG66: 4788 | BI66: 159004.23 | BJ66: 1260377 | BK66: 61609 | BL66: 4000 | BM66: 0 | BN66: 160392.96 | BO66: 27711 | BP66: 361375.04 | BQ66: 65115.468 | BR66: 25664 | BS66: 0 | BT66: 386764 | BU66: 2512012.698 | BW66: 4788 | BY66: 4788 | BZ66: 2507224.698 | CB66: 24445 | CC66: 0 | CD66: 0 | CF66: 0 | CG66: 0 | CH66: 122977 | CI66: 0 | CJ66: 0 | CK66: 0 | CL66: 0 | CM66: 465242 | CN66: 612664 | CQ66: 29274.984 | CR66: 29274.984 | CS66: 583389.016 | CT66: 3090613.714 | CU66: 2578300 | CV66: 0 | CW66: 2578300 | CX66: 0 | CY66: 0 | CZ66: 0 | DA66: 0
A67: 0064 | B67: 1 | C67: 1 | D67: 2022-11-30 | E67: 1 | F67: 1 | G67: 1 | H67: 684272 | I67: 16967282 | J67: 334327 | K67: 0 | L67: 508471 | M67: 1339696 | N67: 224039.5 | O67: 0 | P67: 0 | Q67: 0 | R67: 0 | S67: 3419130 | T67: 23477217.5 | V67: 120000 | X67: 120000 | Y67: 23357217.5 | Z67: 152112 | AA67: 0 | AB67: 0 | AD67: 0 | AE67: 1421914 | AF67: 1045527 | AG67: 2897204 | AH67: 611167 | AI67: 0 | AJ67: 0 | AK67: 1638600 | AL67: 7766524 | AO67: 195729.4257 | AP67: 195729.4257 | AQ67: 7570794.574 | AR67: 30928012.07 | AS67: 26864609 | AT67: 0 | AU67: 26864609 | AV67: 0 | AW67: 0 | AX67: 0 | AY67: 0 | BA67: 0 | BB67: 25739350 | BC67: 29802495.34 | BD67: 4063145.337 | BE67: 4063145.337 | BF67: 0 | BG67: 120000 | BI67: 718485 | BJ67: 18658452 | BK67: 454337 | BL67: 0 | BM67: 586748 | BN67: 1307949 | BO67: 126000 | BP67: 0 | BQ67: 0 | BR67: 0 | BS67: 0 | BT67: 3579884 | BU67: 25431855 | BW67: 27800 | BY67: 27800 | BZ67: 25404055 | CB67: 141845 | CC67: 0 | CD67: 0 | CF67: 0 | CG67: 1551414 | CH67: 916276 | CI67: 2982255 | CJ67: 629502 | CK67: 0 | CL67: 0 | CM67: 1577725 | CN67: 7799017 | CQ67: 122410.1282 | CR67: 122410.1282 | CS67: 7676606.872 | CT67: 33080661.87 | CU67: 29918746 | CV67: 0 | CW67: 29918746 | CX67: 0 | CY67: 0 | CZ67: 0 | DA67: 0
A68: 0065 | B68: 1 | C68: 1 | D68: 2022-10-11 | E68: 1 | F68: 1 | G68: 1 | H68: 904260.7 | I68: 16230148.9 | J68: 336179.6 | K68: 0 | L68: 494573.73 | M68: 1735497.41 | N68: 0 | O68: 22980.33 | P68: 0 | Q68: 49002.24 | R68: 0 | S68: 1374035.71 | T68: 21146678.62 | V68: 0 | X68: 0 | Y68: 21146678.62 | Z68: 186606 | AA68: 0 | AB68: 0 | AD68: 0 | AE68: 647157 | AF68: 1388685.463 | AG68: 2972462.203 | AH68: 342354.5 | AI68: 0 | AJ68: 0 | AK68: 240227 | AL68: 5777492.166 | AO68: 60411.12687 | AP68: 60411.12687 | AQ68: 5717081.039 | AR68: 26863759.66 | AS68: 15483664 | AT68: 0 | AU68: 15483664 | AV68: 0 | AW68: 0 | AX68: 0 | AY68: 0 | BA68: 11452.96 | BB68: 15547528 | BC68: 25952350.05 | BD68: 10404822.05 | BE68: 10393369.09 | BF68: 0 | BG68: 0 | BI68: 1047066 | BJ68: 17284905.5 | BK68: 330003 | BL68: 0 | BM68: 516005 | BN68: 1370013.1 | BO68: 0 | BP68: 40000 | BQ68: 0 | BR68: 51491 | BS68: 0 | BT68: 1149811 | BU68: 21789294.6 | BW68: 0 | BY68: 0 | BZ68: 21789294.6 | CB68: 200052 | CC68: 0 | CD68: 0 | CF68: 0 | CG68: 657171.75 | CH68: 1490014.773 | CI68: 3481895.397 | CJ68: 485230.2 | CK68: 0 | CL68: 0 | CM68: 246040 | CN68: 6560404.12 | CQ68: 62631.07505 | CR68: 62631.07505 | CS68: 6497773.045 | CT68: 28287067.65 | CU68: 16000701 | CV68: 0 | CW68: 16000701 | CX68: 0 | CY68: 0 | CZ68: 0 | DA68: 0
A69: 0066 | B69: 0 | C69: 1 | D69: 2022-11-28 | H69: 0 | I69: 0 | J69: 0 | K69: 0 | L69: 0 | M69: 0 | N69: 0 | O69: 0 | P69: 0 | Q69: 0 | R69: 0 | S69: 0 | T69: 0 | V69: 0 | X69: 0 | Y69: 0 | Z69: 0 | AA69: 0 | AB69: 0 | AD69: 0 | AE69: 0 | AF69: 0 | AG69: 0 | AH69: 0 | AI69: 0 | AJ69: 0 | AK69: 339072.28 | AL69: 339072.28 | AO69: 0 | AP69: 0 | AQ69: 339072.28 | AR69: 339072.28 | AS69: 0 | AT69: 0 | AU69: 0 | AV69: 0 | AW69: 0 | AX69: 0 | AY69: 0 | BA69: 0 | BB69: 0 | BC69: 343691.6 | BD69: 343691.6 | BE69: 343691.6 | BF69: 0 | BG69: 0 | BI69: 0 | BJ69: 0 | BK69: 0 | BL69: 0 | BM69: 0 | BN69: 0 | BO69: 0 | BP69: 0 | BQ69: 0 | BR69: 0 | BS69: 0 | BT69: 0 | BU69: 0 | BW69: 0 | BY69: 0 | BZ69: 0 | CB69: 0 | CC69: 0 | CD69: 0 | CF69: 0 | CG69: 0 | CH69: 0 | CI69: 0 | CJ69: 0 | CK69: 0 | CL69: 0 | CM69: 368801 | CN69: 368801 | CQ69: 0 | CR69: 0 | CS69: 368801 | CT69: 368801 | CU69: 0 | CV69: 0 | CW69: 0 | CX69: 0 | CY69: 0 | CZ69: 0 | DA69: 0
A70: 0067 | B70: 1 | C70: 1 | D70: 2022-10-14 | E70: 1 | F70: 1 | G70: 1 | H70: 962399 | I70: 32612048 | J70: 655424 | K70: 0 | L70: 49472 | M70: 3022506 | N70: 144367 | O70: 0 | P70: 0 | Q70: 0 | R70: 0 | S70: 2095857.85 | T70: 39542073.85 | V70: 0 | X70: 0 | Y70: 39542073.85 | Z70: 0 | AA70: 0 | AB70: 0 | AD70: 0 | AE70: 0 | AF70: 2011402 | AG70: 2448057 | AH70: 234286.5 | AI70: 0 | AJ70: 0 | AK70: 40022 | AL70: 4733767.5 | AO70: 2451.6 | AP70: 2451.6 | AQ70: 4731315.9 | AR70: 44273389.75 | AS70: 21318091 | AT70: 0 | AU70: 21318091 | AV70: 0 | AW70: 0 | AX70: 0 | AY70: 0 | BA70: 0 | BB70: 21359035 | BC70: 41840241.38 | BD70: 20481206.38 | BE70: 20481206.38 | BF70: 0 | BG70: 0 | BI70: 1645295 | BJ70: 33933843 | BK70: 632180 | BL70: 0 | BM70: 235901 | BN70: 3447479 | BO70: 251709 | BP70: 77146 | BQ70: 0 | BR70: 0 | BS70: 0 | BT70: 275517 | BU70: 40499070 | BW70: 0 | BY70: 0 | BZ70: 40499070 | CB70: 0 | CC70: 0 | CD70: 0 | CF70: 0 | CG70: 0 | CH70: 2110729 | CI70: 2668382 | CJ70: 304195.8 | CK70: 0 | CL70: 0 | CM70: 71057 | CN70: 5154363.8 | CQ70: 12823.944 | CR70: 12823.944 | CS70: 5141539.856 | CT70: 45640609.86 | CU70: 22343913 | CV70: 0 | CW70: 22343913 | CX70: 0 | CY70: 0 | CZ70: 0 | DA70: 0
A71: 0068 | B71: 1 | C71: 1 | D71: 2022-10-18 | E71: 1 | F71: 1 | G71: 1 | H71: 78581.03 | I71: 1522547.05 | J71: 53293.54 | K71: 5444.45 | L71: 0 | M71: 245645.44 | N71: 535.92 | O71: 24278.44 | P71: 0 | Q71: 0 | R71: 0 | S71: 0 | T71: 1930325.87 | V71: 330000 | X71: 330000 | Y71: 1600325.87 | Z71: 17220 | AA71: 0 | AB71: 0 | AD71: 0 | AE71: 88398 | AF71: 234503 | AG71: 286978 | AH71: 19139.5 | AI71: 0 | AJ71: 0 | AK71: 89554.71 | AL71: 735793.21 | AO71: 0 | AP71: 0 | AQ71: 735793.21 | AR71: 2336119.08 | AS71: 1392772 | AT71: 0 | AU71: 1392772 | AV71: 0 | AW71: 0 | AX71: 0 | AY71: 0 | BA71: 0 | BB71: 1364505 | BC71: 2487205.05 | BD71: 1122700.05 | BE71: 1122700.05 | BF71: 0 | BG71: 330000 | BI71: 94349 | BJ71: 1542616 | BK71: 67743 | BL71: 6566 | BM71: 750 | BN71: 266375 | BO71: 0 | BP71: 38248 | BQ71: 0 | BR71: 0 | BS71: 0 | BT71: 0 | BU71: 2016647 | BW71: 330000 | BY71: 330000 | BZ71: 1686647 | CB71: 19129 | CC71: 0 | CD71: 0 | CF71: 0 | CG71: 141444 | CH71: 147135 | CI71: 286977 | CJ71: 22967.4 | CK71: 0 | CL71: 0 | CM71: 89140 | CN71: 706792.4 | CQ71: 0 | CR71: 0 | CS71: 706792.4 | CT71: 2393439.4 | CU71: 1443910 | CV71: 0 | CW71: 1443910 | CX71: 0 | CY71: 0 | CZ71: 0 | DA71: 0
A72: 0069 | B72: 0 | C72: 0 | H72: 0 | I72: 0 | J72: 0 | K72: 0 | L72: 0 | M72: 0 | N72: 0 | O72: 0 | P72: 0 | Q72: 0 | R72: 0 | S72: 0 | T72: 0 | V72: 0 | X72: 0 | Y72: 0 | Z72: 0 | AA72: 0 | AB72: 0 | AD72: 0 | AE72: 0 | AF72: 0 | AG72: 0 | AH72: 0 | AI72: 0 | AJ72: 0 | AK72: 93395 | AL72: 93395 | AO72: 0 | AP72: 0 | AQ72: 93395 | AR72: 93395 | AS72: 109155.12 | AT72: 7312 | AU72: 116467.12 | AV72: -23072.12 | AW72: -0.2113700209 | AX72: 5457.756 | AY72: 0 | BA72: 0 | BB72: 153481.2 | BC72: 73600.08 | BD72: -79881.12 | BE72: -79881.12 | BF72: 0 | BG72: 0 | BI72: 0 | BJ72: 0 | BK72: 0 | BL72: 0 | BM72: 0 | BN72: 0 | BO72: 0 | BP72: 0 | BQ72: 0 | BR72: 0 | BS72: 0 | BT72: 0 | BU72: 0 | BW72: 0 | BY72: 0 | BZ72: 0 | CB72: 0 | CC72: 0 | CD72: 0 | CF72: 0 | CG72: 0 | CH72: 0 | CI72: 0 | CJ72: 0 | CK72: 0 | CL72: 0 | CM72: 93395 | CN72: 93395 | CQ72: 0 | CR72: 0 | CS72: 93395 | CT72: 93395 | CU72: 116944.12 | CV72: 5457.756 | CW72: 122401.876 | CX72: -29006.876 | CY72: -0.2480404829 | CZ72: 5847.206 | DA72: 0
A73: 0070 | B73: 0 | C73: 1 | D73: 2022-12-08 | H73: 0 | I73: 0 | J73: 0 | K73: 0 | L73: 0 | M73: 0 | N73: 0 | O73: 0 | P73: 0 | Q73: 0 | R73: 0 | S73: 0 | T73: 0 | V73: 0 | X73: 0 | Y73: 0 | Z73: 0 | AA73: 0 | AB73: 0 | AD73: 0 | AE73: 0 | AF73: 0 | AG73: 0 | AH73: 0 | AI73: 0 | AJ73: 0 | AK73: 277104 | AL73: 277104 | AO73: 0 | AP73: 0 | AQ73: 277104 | AR73: 277104 | AS73: 392070 | AT73: 21161.3 | AU73: 413231.3 | AV73: -136127.3 | AW73: -0.3472015201 | AX73: 19603.5 | AY73: 0 | BA73: 0 | BB73: 423226 | BC73: 310193 | BD73: -113033 | BE73: -113033 | BF73: 0 | BG73: 0 | BI73: 0 | BJ73: 0 | BK73: 0 | BL73: 0 | BM73: 0 | BN73: 0 | BO73: 0 | BP73: 0 | BQ73: 0 | BR73: 0 | BS73: 0 | BT73: 0 | BU73: 0 | BW73: 0 | BY73: 0 | BZ73: 0 | CB73: 0 | CC73: 0 | CD73: 0 | CF73: 0 | CG73: 0 | CH73: 0 | CI73: 0 | CJ73: 0 | CK73: 0 | CL73: 0 | CM73: 349300 | CN73: 349300 | CQ73: 0 | CR73: 0 | CS73: 349300 | CT73: 349300 | CU73: 362160 | CV73: 19603.5 | CW73: 381763.5 | CX73: -32463.5 | CY73: -0.08963855754 | CZ73: 18108 | DA73: 0
A74: 0071 | B74: 1 | C74: 1 | D74: 2022-09-30 | E74: 1 | F74: 1 | G74: 1 | H74: 1532951.57 | I74: 35773814.75 | J74: 812437 | K74: 0 | L74: 559984 | M74: 323937 | N74: 210318 | O74: 0 | P74: 0 | Q74: 126747.92 | R74: 0 | S74: 3764123 | T74: 43104313.24 | V74: 200000 | X74: 200000 | Y74: 42904313.24 | Z74: 428449 | AA74: 0 | AB74: 0 | AD74: 0 | AE74: 5125821 | AF74: 1040251 | AG74: 4466549 | AH74: 1810034 | AI74: 0 | AJ74: 0 | AK74: 555566 | AL74: 13426670 | AO74: 76101.89523 | AP74: 76101.89523 | AQ74: 13350568.1 | AR74: 56254881.34 | AS74: 38127292 | AT74: 0 | AU74: 38127292 | AV74: 0 | AW74: 0 | AX74: 0 | AY74: 0 | BA74: 13047 | BB74: 37698138 | BC74: 54893278.92 | BD74: 17195140.92 | BE74: 17182093.92 | BF74: 0 | BG74: 200000 | BI74: 1794609 | BJ74: 37898562 | BK74: 859953 | BL74: 0 | BM74: 507788 | BN74: 373184 | BO74: 0 | BP74: 0 | BQ74: 0 | BR74: 0 | BS74: 0 | BT74: 3521205 | BU74: 44955301 | BW74: 200000 | BY74: 200000 | BZ74: 44755301 | CB74: 467496 | CC74: 0 | CD74: 0 | CF74: 26400 | CG74: 5345615 | CH74: 1120962 | CI74: 4537616 | CJ74: 1828135 | CK74: 0 | CL74: 0 | CM74: 749601 | CN74: 14075825 | CQ74: 217103.4676 | CR74: 217103.4676 | CS74: 13858721.53 | CT74: 58614022.53 | CU74: 39586571 | CV74: 0 | CW74: 39586571 | CX74: 0 | CY74: 0 | CZ74: 0 | DA74: 0
A75: 0072 | B75: 1 | C75: 1 | D75: 2022-09-27 | E75: 1 | F75: 1 | G75: 1 | H75: 1074710.77 | I75: 34042827.23 | J75: 794623.24 | K75: 0 | L75: 1194224.8 | M75: 3408976.73 | N75: 105473.08 | O75: 444 | P75: 0 | Q75: 93329.84 | R75: 0 | S75: 2619163.59 | T75: 43333773.28 | V75: 0 | X75: 0 | Y75: 43333773.28 | Z75: 481743.67 | AA75: 0 | AB75: 0 | AD75: 0 | AE75: 0 | AF75: 1519275.91 | AG75: 3391161.35 | AH75: 1051432.74 | AI75: 0 | AJ75: 0 | AK75: 454681 | AL75: 6898294.67 | AO75: 9645.69484 | AP75: 9645.69484 | AQ75: 6888648.975 | AR75: 50222422.26 | AS75: 41739938 | AT75: 0 | AU75: 41739938 | AV75: 0 | AW75: 0 | AX75: 0 | AY75: 0 | BA75: 38482.07 | BB75: 41945822 | BC75: 49151870.82 | BD75: 7206048.82 | BE75: 7167566.75 | BF75: 0 | BG75: 0 | BI75: 1183079.68 | BJ75: 36315226.47 | BK75: 733188.9 | BL75: 0 | BM75: 1074340.81 | BN75: 3953305.23 | BO75: 60000 | BP75: 1000 | BQ75: 0 | BR75: 120000 | BS75: 0 | BT75: 2218433 | BU75: 45658574.09 | BW75: 0 | BY75: 0 | BZ75: 45658574.09 | CB75: 559261.36 | CC75: 0 | CD75: 0 | CF75: 0 | CG75: 0 | CH75: 1573608.59 | CI75: 3730858.07 | CJ75: 1060534.93 | CK75: 0 | CL75: 0 | CM75: 583864 | CN75: 7508126.95 | CQ75: 18548.21227 | CR75: 18548.21227 | CS75: 7489578.738 | CT75: 53148152.83 | CU75: 43287689 | CV75: 0 | CW75: 43287689 | CX75: 0 | CY75: 0 | CZ75: 0 | DA75: 0
A76: 0073 | B76: 1 | C76: 1 | D76: 2022-09-23 | E76: 1 | F76: 1 | G76: 1 | H76: 1706116.7 | I76: 36331897.89 | J76: 866341.88 | K76: 0 | L76: 883268.12 | M76: 4822398.12 | N76: 22055.45 | O76: 20068.18 | P76: 0 | Q76: 0 | R76: 0 | S76: 1866211.58 | T76: 46518357.92 | V76: 947500 | X76: 947500 | Y76: 45570857.92 | Z76: 802572.54 | AA76: 0 | AB76: 0 | AD76: 0 | AE76: 0 | AF76: 673261.03 | AG76: 6256858.2 | AH76: 923718 | AI76: 0 | AJ76: 0 | AK76: 1026455 | AL76: 9682864.77 | AO76: 357996.9541 | AP76: 357996.9541 | AQ76: 9324867.816 | AR76: 54895725.74 | AS76: 31443810 | AT76: 0 | AU76: 31443810 | AV76: 0 | AW76: 0 | AX76: 0 | AY76: 0 | BA76: 18845.12 | BB76: 31271558 | BC76: 53146225.48 | BD76: 21874667.48 | BE76: 21855822.36 | BF76: 0 | BG76: 947500 | BI76: 1852977.2 | BJ76: 37320119.2 | BK76: 916675.3 | BL76: 0 | BM76: 966856.4 | BN76: 5037592 | BO76: 11093 | BP76: 93850 | BQ76: 0 | BR76: 0 | BS76: 0 | BT76: 2407319 | BU76: 48606482.1 | BW76: 0 | BY76: 0 | BZ76: 48606482.1 | CB76: 721193.85 | CC76: 0 | CD76: 0 | CF76: 0 | CG76: 0 | CH76: 706924.08 | CI76: 6954011.98 | CJ76: 1044774 | CK76: 0 | CL76: 0 | CM76: 879007 | CN76: 10305910.91 | CQ76: 208883.8768 | CR76: 208883.8768 | CS76: 10097027.03 | CT76: 58703509.13 | CU76: 33049835 | CV76: 0 | CW76: 33049835 | CX76: 0 | CY76: 0 | CZ76: 0 | DA76: 0
A77: 0074 | B77: 1 | C77: 1 | D77: 2022-10-17 | E77: 1 | F77: 1 | G77: 1 | H77: 206118.89 | I77: 3811537.67 | J77: 96750.51 | K77: 56794.63 | L77: 771.98 | M77: 487625.15 | N77: 21407.19 | O77: 72027.07 | P77: 0 | Q77: 0 | R77: 0 | S77: 0 | T77: 4753033.09 | V77: 0 | X77: 0 | Y77: 4753033.09 | Z77: 23318 | AA77: 0 | AB77: 0 | AD77: 43665 | AE77: 0 | AF77: 287049 | AG77: 590997 | AH77: 4250 | AI77: 0 | AJ77: 0 | AK77: 337639.35 | AL77: 1286918.35 | AO77: 29834.6 | AP77: 29834.6 | AQ77: 1257083.75 | AR77: 6010116.84 | AS77: 3759310 | AT77: 0 | AU77: 3759310 | AV77: 0 | AW77: 0 | AX77: 0 | AY77: 0 | BA77: 0 | BB77: 3846636 | BC77: 6144848.53 | BD77: 2298212.53 | BE77: 2298212.53 | BF77: 0 | BG77: 0 | BI77: 220251 | BJ77: 4040586 | BK77: 108679 | BL77: 14808 | BM77: 1000 | BN77: 475103 | BO77: 30500 | BP77: 83677 | BQ77: 0 | BR77: 0 | BS77: 0 | BT77: 0 | BU77: 4974604 | BW77: 0 | BY77: 0 | BZ77: 4974604 | CB77: 24661 | CC77: 0 | CD77: 0 | CF77: 55000 | CG77: 83700 | CH77: 291462 | CI77: 636582 | CJ77: 53820 | CK77: 0 | CL77: 0 | CM77: 348804 | CN77: 1494029 | CQ77: 46607.584 | CR77: 46607.584 | CS77: 1447421.416 | CT77: 6422025.416 | CU77: 3871482 | CV77: 0 | CW77: 3871482 | CX77: 0 | CY77: 0 | CZ77: 0 | DA77: 0
A78: 0075 | B78: 0 | C78: 0 | H78: 0 | I78: 0 | J78: 0 | K78: 0 | L78: 0 | M78: 0 | N78: 0 | O78: 0 | P78: 0 | Q78: 0 | R78: 0 | S78: 0 | T78: 0 | V78: 0 | X78: 0 | Y78: 0 | Z78: 0 | AA78: 0 | AB78: 0 | AD78: 0 | AE78: 0 | AF78: 0 | AG78: 0 | AH78: 0 | AI78: 0 | AJ78: 0 | AK78: 0 | AL78: 0 | AO78: 0 | AP78: 0 | AQ78: 0 | AR78: 0 | AS78: 0 | AT78: 0 | AU78: 0 | AV78: 0 | AW78: 0 | AX78: 0 | AY78: 0 | BA78: 0 | BB78: 0 | BC78: 105000 | BD78: 105000 | BE78: 105000 | BF78: 0 | BG78: 0 | BI78: 0 | BJ78: 0 | BK78: 0 | BL78: 0 | BM78: 0 | BN78: 0 | BO78: 0 | BP78: 0 | BQ78: 0 | BR78: 0 | BS78: 0 | BT78: 0 | BU78: 0 | BW78: 0 | BY78: 0 | BZ78: 0 | CB78: 0 | CC78: 0 | CD78: 0 | CF78: 0 | CG78: 0 | CH78: 0 | CI78: 0 | CJ78: 0 | CK78: 0 | CL78: 0 | CM78: 0 | CN78: 0 | CQ78: 0 | CR78: 0 | CS78: 0 | CT78: 0 | CU78: 0 | CV78: 0 | CW78: 0 | CX78: 0 | CY78: 0 | CZ78: 0 | DA78: 0
A79: 0076 | B79: 0 | C79: 1 | D79: 2022-11-29 | H79: 0 | I79: 0 | J79: 0 | K79: 0 | L79: 0 | M79: 0 | N79: 0 | O79: 0 | P79: 0 | Q79: 0 | R79: 0 | S79: 0 | T79: 0 | V79: 0 | X79: 0 | Y79: 0 | Z79: 0 | AA79: 0 | AB79: 0 | AD79: 0 | AE79: 0 | AF79: 0 | AG79: 0 | AH79: 0 | AI79: 0 | AJ79: 0 | AK79: 0 | AL79: 0 | AO79: 0 | AP79: 0 | AQ79: 0 | AR79: 0 | AS79: 0 | AT79: 0 | AU79: 0 | AV79: 0 | AW79: 0 | AX79: 0 | AY79: 0 | BA79: 0 | BB79: 0 | BC79: 0 | BD79: 0 | BE79: 0 | BF79: 0 | BG79: 0 | BI79: 0 | BJ79: 0 | BK79: 0 | BL79: 0 | BM79: 0 | BN79: 0 | BO79: 0 | BP79: 0 | BQ79: 0 | BR79: 0 | BS79: 0 | BT79: 0 | BU79: 0 | BW79: 0 | BY79: 0 | BZ79: 0 | CB79: 0 | CC79: 0 | CD79: 0 | CF79: 0 | CG79: 0 | CH79: 0 | CI79: 0 | CJ79: 0 | CK79: 0 | CL79: 0 | CM79: 0 | CN79: 0 | CQ79: 0 | CR79: 0 | CS79: 0 | CT79: 0 | CU79: 0 | CV79: 0 | CW79: 0 | CX79: 0 | CY79: 0 | CZ79: 0 | DA79: 0
A80: 0077 | B80: 1 | C80: 1 | D80: 2022-10-20 | E80: 1 | F80: 1 | G80: 1 | H80: 482722.02 | I80: 10914140.56 | J80: 364070.2 | K80: 163.45 | L80: 267213.21 | M80: 1153329.84 | N80: 0 | O80: 0 | P80: 0 | Q80: 0 | R80: 0 | S80: 817697.9 | T80: 13999337.18 | V80: 0 | X80: 0 | Y80: 13999337.18 | Z80: 149031.48 | AA80: 0 | AB80: 0 | AD80: 53564.1 | AE80: 50000 | AF80: 382913 | AG80: 2394843.41 | AH80: 162790.11 | AI80: 0 | AJ80: 0 | AK80: 342887 | AL80: 3536029.1 | AO80: 25635.6 | AP80: 25635.6 | AQ80: 3510393.5 | AR80: 17509730.68 | AS80: 16284767 | AT80: 0 | AU80: 16284767 | AV80: 0 | AW80: 0 | AX80: 0 | AY80: 0 | BA80: 3868.32 | BB80: 16115496 | BC80: 17253644.02 | BD80: 1138148.02 | BE80: 1134279.7 | BF80: 0 | BG80: 0 | BI80: 649659 | BJ80: 11756101 | BK80: 333417 | BL80: 2205 | BM80: 310208 | BN80: 840979 | BO80: 0 | BP80: 0 | BQ80: 0 | BR80: 0 | BS80: 0 | BT80: 715520 | BU80: 14608089 | BW80: 0 | BY80: 0 | BZ80: 14608089 | CB80: 166569.12 | CC80: 0 | CD80: 0 | CF80: 54933.94 | CG80: 55000 | CH80: 416614 | CI80: 2529579.88 | CJ80: 133786 | CK80: 0 | CL80: 0 | CM80: 327847 | CN80: 3684329.94 | CQ80: 16406.784 | CR80: 16406.784 | CS80: 3667923.156 | CT80: 18276012.16 | CU80: 16804982 | CV80: 0 | CW80: 16804982 | CX80: 0 | CY80: 0 | CZ80: 0 | DA80: 0
A81: 0078 | B81: 1 | C81: 1 | D81: 2023-01-30 | E81: 1 | F81: 1 | G81: 1 | H81: 310376 | I81: 6102106.87 | J81: 90923 | K81: 0 | L81: 0 | M81: 647518 | N81: 5000 | O81: 0 | P81: 0 | Q81: 0 | R81: 0 | S81: 1521233 | T81: 8677156.87 | V81: 0 | X81: 0 | Y81: 8677156.87 | Z81: 426149 | AA81: 0 | AB81: 0 | AD81: 0 | AE81: 128052 | AF81: 708872 | AG81: 986038 | AH81: 125858.5 | AI81: 0 | AJ81: 0 | AK81: 0 | AL81: 2374969.5 | AO81: 0 | AP81: 0 | AQ81: 2374969.5 | AR81: 11052126.37 | AS81: 4997331 | AT81: 0 | AU81: 4997331 | AV81: 0 | AW81: 0 | AX81: 0 | AY81: 0 | BA81: 0 | BB81: 4983216 | BC81: 11383748.02 | BD81: 6400532.02 | BE81: 6400532.02 | BF81: 0 | BG81: 0 | BI81: 378973 | BJ81: 6419609 | BK81: 102607 | BL81: 0 | BM81: 0 | BN81: 693561 | BO81: 0 | BP81: 0 | BQ81: 0 | BR81: 0 | BS81: 0 | BT81: 2140000 | BU81: 9734750 | BW81: 0 | BY81: 0 | BZ81: 9734750 | CB81: 486050 | CC81: 0 | CD81: 0 | CF81: 0 | CG81: 128052 | CH81: 708872 | CI81: 1069753 | CJ81: 166133.4 | CK81: 0 | CL81: 0 | CM81: 0 | CN81: 2558860.4 | CQ81: 0 | CR81: 0 | CS81: 2558860.4 | CT81: 12293610.4 | CU81: 5377259 | CV81: 0 | CW81: 5377259 | CX81: 0 | CY81: 0 | CZ81: 0 | DA81: 0
A82: 0079 | B82: 1 | C82: 1 | D82: 2022-09-27 | E82: 1 | F82: 1 | G82: 1 | H82: 1606336.79 | I82: 25224939.38 | J82: 554658.01 | K82: 0 | L82: 648234.13 | M82: 3441439.08 | N82: 246418.41 | O82: 0 | P82: 0 | Q82: 0 | R82: 0 | S82: 1555879.2 | T82: 33277905 | V82: 0 | X82: 0 | Y82: 33277905 | Z82: 179775 | AA82: 0 | AB82: 0 | AD82: 0 | AE82: 745269 | AF82: 2348577 | AG82: 4881730 | AH82: 2174956 | AI82: 0 | AJ82: 0 | AK82: 3468302 | AL82: 13798609 | AO82: 413990.6 | AP82: 413990.6 | AQ82: 13384618.4 | AR82: 46662523.4 | AS82: 46058563 | AT82: 0 | AU82: 46058563 | AV82: 0 | AW82: 0 | AX82: 0 | AY82: 0 | BA82: 1367 | BB82: 44107776 | BC82: 44294288.49 | BD82: 186512.49 | BE82: 185145.49 | BF82: 0 | BG82: 0 | BI82: 1596705.65 | BJ82: 27730461.35 | BK82: 656947.07 | BL82: 0 | BM82: 1005492.53 | BN82: 3994346.46 | BO82: 315038.77 | BP82: 0 | BQ82: 0 | BR82: 0 | BS82: 0 | BT82: 1015202.57 | BU82: 36314194.4 | BW82: 0 | BY82: 0 | BZ82: 36314194.4 | CB82: 339678 | CC82: 0 | CD82: 0 | CF82: 0 | CG82: 1316040 | CH82: 2490199 | CI82: 5175294 | CJ82: 2298170 | CK82: 0 | CL82: 0 | CM82: 3816711 | CN82: 15436092 | CQ82: 504784.704 | CR82: 504784.704 | CS82: 14931307.3 | CT82: 51245501.7 | CU82: 50418701 | CV82: 0 | CW82: 50418701 | CX82: 0 | CY82: 0 | CZ82: 0 | DA82: 0
A83: 0080 | B83: 0 | C83: 1 | D83: 2022-09-22 | H83: 0 | I83: 0 | J83: 0 | K83: 0 | L83: 0 | M83: 0 | N83: 0 | O83: 0 | P83: 0 | Q83: 0 | R83: 0 | S83: 0 | T83: 0 | V83: 0 | X83: 0 | Y83: 0 | Z83: 0 | AA83: 0 | AB83: 0 | AD83: 0 | AE83: 0 | AF83: 0 | AG83: 0 | AH83: 0 | AI83: 0 | AJ83: 0 | AK83: 0 | AL83: 0 | AO83: 0 | AP83: 0 | AQ83: 0 | AR83: 0 | AS83: 0 | AT83: 962.65 | AU83: 962.65 | AV83: -962.65 | AW83: 0 | AX83: 962.65 | AY83: 0 | BA83: 0 | BB83: 962.65 | BC83: 0 | BD83: -962.65 | BE83: -962.65 | BF83: 0 | BG83: 0 | BI83: 0 | BJ83: 0 | BK83: 0 | BL83: 0 | BM83: 0 | BN83: 0 | BO83: 0 | BP83: 0 | BQ83: 0 | BR83: 0 | BS83: 0 | BT83: 0 | BU83: 0 | BW83: 0 | BY83: 0 | BZ83: 0 | CB83: 0 | CC83: 0 | CD83: 0 | CF83: 0 | CG83: 0 | CH83: 0 | CI83: 0 | CJ83: 0 | CK83: 0 | CL83: 0 | CM83: 0 | CN83: 0 | CQ83: 0 | CR83: 0 | CS83: 0 | CT83: 0 | CU83: 0 | CV83: 962.65 | CW83: 962.65 | CX83: -962.65 | DA83: 0
A84: 0081 | B84: 0 | C84: 1 | D84: 2022-10-19 | H84: 0 | I84: 0 | J84: 0 | K84: 0 | L84: 0 | M84: 0 | N84: 0 | O84: 0 | P84: 0 | Q84: 0 | R84: 0 | S84: 0 | T84: 0 | V84: 0 | X84: 0 | Y84: 0 | Z84: 0 | AA84: 0 | AB84: 0 | AD84: 0 | AE84: 0 | AF84: 0 | AG84: 0 | AH84: 0 | AI84: 0 | AJ84: 0 | AK84: 0 | AL84: 0 | AO84: 0 | AP84: 0 | AQ84: 0 | AR84: 0 | AS84: 0 | AT84: 694.4 | AU84: 694.4 | AV84: -694.4 | AW84: 0 | AX84: 694.4 | AY84: 0 | BA84: 0 | BB84: 694.4 | BC84: 0 | BD84: -694.4 | BE84: -694.4 | BF84: 0 | BG84: 0 | BI84: 0 | BJ84: 0 | BK84: 0 | BL84: 0 | BM84: 0 | BN84: 0 | BO84: 0 | BP84: 0 | BQ84: 0 | BR84: 0 | BS84: 0 | BT84: 0 | BU84: 0 | BW84: 0 | BY84: 0 | BZ84: 0 | CB84: 0 | CC84: 0 | CD84: 0 | CF84: 0 | CG84: 0 | CH84: 0 | CI84: 0 | CJ84: 0 | CK84: 0 | CL84: 0 | CM84: 0 | CN84: 0 | CQ84: 0 | CR84: 0 | CS84: 0 | CT84: 0 | CU84: 0 | CV84: 694.4 | CW84: 694.4 | CX84: -694.4 | DA84: 0
A85: 0082 | B85: 1 | C85: 1 | D85: 2022-12-05 | E85: 1 | F85: 1 | G85: 1 | H85: 1499440.71 | I85: 28907872.15 | J85: 441543.33 | K85: 0 | L85: 998740.44 | M85: 3098340.65 | N85: 4000 | O85: 0 | P85: 0 | Q85: 0 | R85: 0 | S85: 1197467 | T85: 36147404.28 | V85: 0 | X85: 0 | Y85: 36147404.28 | Z85: 361249 | AA85: 0 | AB85: 35000 | AD85: 0 | AE85: 414498 | AF85: 1376838 | AG85: 6061659 | AH85: 383849 | AI85: 0 | AJ85: 0 | AK85: 223707 | AL85: 8856800 | AO85: 22744 | AP85: 22744 | AQ85: 8834056 | AR85: 44981460.28 | AS85: 30133087 | AT85: 0 | AU85: 30133087 | AV85: 0 | AW85: 0 | AX85: 0 | AY85: 0 | BA85: 50250.66 | BB85: 30754556 | BC85: 43791969.29 | BD85: 13037413.29 | BE85: 12987162.63 | BF85: 0 | BG85: 0 | BI85: 1688009.89 | BJ85: 30775792 | BK85: 483107.68 | BL85: 3000 | BM85: 980923.37 | BN85: 2889917.8 | BO85: 0 | BP85: 0 | BQ85: 0 | BR85: 0 | BS85: 0 | BT85: 1155791 | BU85: 37976541.74 | BW85: 0 | BY85: 0 | BZ85: 37976541.74 | CB85: 404061 | CC85: 0 | CD85: 31188 | CF85: 0 | CG85: 438195 | CH85: 1485591 | CI85: 6039369 | CJ85: 457147.2 | CK85: 0 | CL85: 0 | CM85: 236484 | CN85: 9092035.2 | CQ85: 41002.4 | CR85: 41002.4 | CS85: 9051032.8 | CT85: 47027574.54 | CU85: 31970863 | CV85: 0 | CW85: 31970863 | CX85: 0 | CY85: 0 | CZ85: 0 | DA85: 0
A86: 0083 | B86: 1 | C86: 1 | D86: 2022-10-18 | E86: 1 | F86: 1 | G86: 1 | H86: 946502 | I86: 16940997 | J86: 246093 | K86: 42257 | L86: 553750 | M86: 1211395 | N86: 13343 | O86: 6767 | P86: 0 | Q86: 0 | R86: 0 | S86: 1171671 | T86: 21132775 | V86: 0 | X86: 0 | Y86: 21132775 | Z86: 331851 | AA86: 0 | AB86: 0 | AD86: 72480 | AE86: 1640846 | AF86: 1089368 | AG86: 2507323 | AH86: 844570 | AI86: 0 | AJ86: 0 | AK86: 514253 | AL86: 7000691 | AO86: 130812.5691 | AP86: 130812.5691 | AQ86: 6869878.431 | AR86: 28002653.43 | AS86: 23955862 | AT86: 0 | AU86: 23955862 | AV86: 0 | AW86: 0 | AX86: 0 | AY86: 0 | BA86: 0 | BB86: 23575703 | BC86: 27249721.83 | BD86: 3674018.825 | BE86: 3674018.825 | BF86: 0 | BG86: 0 | BI86: 964492 | BJ86: 18513621 | BK86: 274873 | BL86: 48000 | BM86: 645198 | BN86: 1021596 | BO86: 35700 | BP86: 6995 | BQ86: 0 | BR86: 0 | BS86: 0 | BT86: 1341325 | BU86: 22851800 | BW86: 0 | BY86: 0 | BZ86: 22851800 | CB86: 234740 | CC86: 0 | CD86: 0 | CF86: 82896 | CG86: 1792340 | CH86: 1176318 | CI86: 2646095 | CJ86: 886799 | CK86: 0 | CL86: 0 | CM86: 594680 | CN86: 7413868 | CQ86: 139222.8788 | CR86: 139222.8788 | CS86: 7274645.121 | CT86: 30126445.12 | CU86: 25682683 | CV86: 0 | CW86: 25682683 | CX86: 0 | CY86: 0 | CZ86: 0 | DA86: 0
A87: 0084 | B87: 0 | C87: 1 | D87: 2022-12-01 | H87: 0 | I87: 0 | J87: 0 | K87: 0 | L87: 0 | M87: 0 | N87: 0 | O87: 0 | P87: 0 | Q87: 0 | R87: 0 | S87: 0 | T87: 0 | V87: 0 | X87: 0 | Y87: 0 | Z87: 0 | AA87: 0 | AB87: 0 | AD87: 0 | AE87: 0 | AF87: 0 | AG87: 0 | AH87: 0 | AI87: 0 | AJ87: 0 | AK87: 137474 | AL87: 137474 | AO87: 0 | AP87: 0 | AQ87: 137474 | AR87: 137474 | AS87: 362073 | AT87: 17402.15 | AU87: 379475.15 | AV87: -242001.15 | AW87: -0.6683766809 | AX87: 18103.65 | AY87: 0 | BA87: 0 | BB87: 365523.65 | BC87: 176084 | BD87: -189439.65 | BE87: -189439.65 | BF87: 0 | BG87: 0 | BI87: 0 | BJ87: 0 | BK87: 0 | BL87: 0 | BM87: 0 | BN87: 0 | BO87: 0 | BP87: 0 | BQ87: 0 | BR87: 0 | BS87: 0 | BT87: 0 | BU87: 0 | BW87: 0 | BY87: 0 | BZ87: 0 | CB87: 0 | CC87: 0 | CD87: 0 | CF87: 0 | CG87: 0 | CH87: 0 | CI87: 0 | CJ87: 0 | CK87: 0 | CL87: 0 | CM87: 185000 | CN87: 185000 | CQ87: 0 | CR87: 0 | CS87: 185000 | CT87: 185000 | CU87: 325902 | CV87: 18103.65 | CW87: 344005.65 | CX87: -159005.65 | CY87: -0.4878940602 | CZ87: 16295.1 | DA87: 0
A88: 0085 | B88: 1 | C88: 1 | D88: 2022-09-30 | E88: 1 | F88: 1 | G88: 1 | H88: 93895 | I88: 3088162 | J88: 89563 | K88: 33641 | L88: 55 | M88: 302102 | N88: 19624 | O88: 0 | P88: 0 | Q88: 0 | R88: 0 | S88: 187 | T88: 3627229 | V88: 0 | X88: 0 | Y88: 3627229 | Z88: 145913 | AA88: 0 | AB88: 0 | AD88: 0 | AE88: 16689 | AF88: 145219 | AG88: 578263 | AH88: 7658 | AI88: 0 | AJ88: 0 | AK88: 137428 | AL88: 1031170 | AO88: 0 | AP88: 0 | AQ88: 1031170 | AR88: 4658399 | AS88: 2320434 | AT88: 0 | AU88: 2320434 | AV88: 0 | AW88: 0 | AX88: 0 | AY88: 0 | BA88: 3442 | BB88: 2151872 | BC88: 4733557.68 | BD88: 2581685.68 | BE88: 2578243.68 | BF88: 0 | BG88: 0 | BI88: 161878 | BJ88: 2840043 | BK88: 92678 | BL88: 23571 | BM88: 400 | BN88: 299530 | BO88: 0 | BP88: 0 | BQ88: 0 | BR88: 0 | BS88: 0 | BT88: 188328 | BU88: 3606428 | BW88: 0 | BY88: 0 | BZ88: 3606428 | CB88: 148453 | CC88: 0 | CD88: 0 | CF88: 0 | CG88: 25933 | CH88: 152480 | CI88: 612759 | CJ88: 9664.2 | CK88: 0 | CL88: 0 | CM88: 162285 | CN88: 1111574.2 | CQ88: 0 | CR88: 0 | CS88: 1111574.2 | CT88: 4718002.2 | CU88: 2709776 | CV88: 0 | CW88: 2709776 | CX88: 0 | CY88: 0 | CZ88: 0 | DA88: 0
A89: 0086 | B89: 1 | C89: 1 | D89: 2022-09-30 | E89: 1 | F89: 1 | G89: 1 | H89: 548631.22 | I89: 11474852.04 | J89: 166154.17 | K89: 0 | L89: 164322.59 | M89: 1439365.66 | N89: 0 | O89: 2229 | P89: 0 | Q89: 0 | R89: 0 | S89: 2130634.81 | T89: 15926189.49 | V89: 0 | X89: 0 | Y89: 15926189.49 | Z89: 213069.71 | AA89: 0 | AB89: 0 | AD89: 0 | AE89: 111511.19 | AF89: 868090 | AG89: 2786338.25 | AH89: 331867 | AI89: 0 | AJ89: 0 | AK89: 2549370 | AL89: 6860246.15 | AO89: 101052.1155 | AP89: 101052.1155 | AQ89: 6759194.035 | AR89: 22685383.52 | AS89: 21054596 | AT89: 0 | AU89: 21054596 | AV89: 0 | AW89: 0 | AX89: 0 | AY89: 0 | BA89: 0 | BB89: 20680925 | BC89: 23523201.72 | BD89: 2842276.717 | BE89: 2842276.717 | BF89: 0 | BG89: 0 | BI89: 977510 | BJ89: 11931685 | BK89: 163337 | BL89: 0 | BM89: 188467 | BN89: 1317339 | BO89: 67000 | BP89: 3000 | BQ89: 0 | BR89: 61000 | BS89: 0 | BT89: 2004478.6 | BU89: 16713816.6 | BW89: 0 | BY89: 0 | BZ89: 16713816.6 | CB89: 197814.54 | CC89: 0 | CD89: 0 | CF89: 0 | CG89: 125764.52 | CH89: 882152 | CI89: 2912064 | CJ89: 407458.8 | CK89: 0 | CL89: 0 | CM89: 2559077 | CN89: 7084330.86 | CQ89: 127292.4314 | CR89: 127292.4314 | CS89: 6957038.429 | CT89: 23670855.03 | CU89: 21391869 | CV89: 0 | CW89: 21391869 | CX89: 0 | CY89: 0 | CZ89: 0 | DA89: 0
A90: 0087 | B90: 1 | C90: 1 | D90: 2022-09-30 | E90: 1 | F90: 1 | G90: 1 | H90: 819188.37 | I90: 25113055.24 | J90: 839699.91 | K90: 0 | L90: 587918.263 | M90: 1290228.36 | N90: 31372.43 | O90: 0 | P90: 0 | Q90: 0 | R90: 0 | S90: 1598587.7 | T90: 30280050.27 | V90: 0 | X90: 0 | Y90: 30280050.27 | Z90: 448125 | AA90: 0 | AB90: 0 | AD90: 84536 | AE90: 1444451 | AF90: 1936583 | AG90: 4218761 | AH90: 995527 | AI90: 0 | AJ90: 0 | AK90: 512953 | AL90: 9640936 | AO90: 142773.3357 | AP90: 142773.3357 | AQ90: 9498162.664 | AR90: 39778212.94 | AS90: 29366036 | AT90: 0 | AU90: 29366036 | AV90: 0 | AW90: 0 | AX90: 0 | AY90: 0 | BA90: 19031.5 | BB90: 29596456 | BC90: 38993949.47 | BD90: 9397493.473 | BE90: 9378461.973 | BF90: 0 | BG90: 0 | BI90: 908631 | BJ90: 26387432 | BK90: 919357 | BL90: 0 | BM90: 584967 | BN90: 1198025 | BO90: 140899 | BP90: 0 | BQ90: 0 | BR90: 0 | BS90: 0 | BT90: 1476527 | BU90: 31615838 | BW90: 0 | BY90: 0 | BZ90: 31615838 | CB90: 620223 | CC90: 0 | CD90: 0 | CF90: 87290 | CG90: 1618418 | CH90: 2101973 | CI90: 5442042 | CJ90: 1915567 | CK90: 0 | CL90: 0 | CM90: 503215 | CN90: 12288728 | CQ90: 85717.69159 | CR90: 85717.69159 | CS90: 12203010.31 | CT90: 43818848.31 | CU90: 31009727 | CV90: 0 | CW90: 31009727 | CX90: 0 | CY90: 0 | CZ90: 0 | DA90: 0
A91: 0088 | B91: 1 | C91: 1 | D91: 2022-10-01 | E91: 0.9956787676 | F91: 1 | G91: 1 | H91: 1398323.415 | I91: 31597429.19 | J91: 691295.35 | K91: 0 | L91: 819270.94 | M91: 4183420.063 | N91: 16926.53905 | O91: 15001.12532 | P91: 0 | Q91: 94151.38426 | R91: 0 | S91: 2427997.73 | T91: 41243815.74 | V91: 165000 | X91: 165000 | Y91: 41078815.74 | Z91: 463156 | AA91: 0 | AB91: 0 | AD91: 0 | AE91: 437372 | AF91: 1269708.482 | AG91: 4812818.433 | AH91: 1934733.284 | AI91: 0 | AJ91: 0 | AK91: 471527 | AL91: 9389315.199 | AO91: 2370.108264 | AP91: 2370.108264 | AQ91: 9386945.091 | AR91: 50465760.83 | AS91: 40413003 | AT91: 0 | AU91: 40413003 | AV91: 0 | AW91: 0 | AX91: 0 | AY91: 0 | BA91: 25573.78 | BB91: 39533276 | BC91: 48099351.23 | BD91: 8566075.227 | BE91: 8540501.447 | BF91: 0 | BG91: 165000 | BI91: 1542425 | BJ91: 34635025 | BK91: 758019 | BL91: 0 | BM91: 831029 | BN91: 3812221 | BO91: 20000 | BP91: 20000 | BQ91: 0 | BR91: 46560 | BS91: 0 | BT91: 1427201 | BU91: 43092480 | BW91: 165000 | BY91: 165000 | BZ91: 42927480 | CB91: 505395 | CC91: 0 | CD91: 0 | CF91: 0 | CG91: 469788 | CH91: 1353782 | CI91: 5442592 | CJ91: 2117689 | CK91: 0 | CL91: 0 | CM91: 650164 | CN91: 10539410 | CQ91: 120430.8984 | CR91: 120430.8984 | CS91: 10418979.1 | CT91: 53346459.1 | CU91: 42014540 | CV91: 0 | CW91: 42014540 | CX91: 0 | CY91: 0 | CZ91: 0 | DA91: 0
A92: 0089 | B92: 1 | C92: 1 | D92: 2022-09-30 | E92: 1 | F92: 1 | G92: 1 | H92: 244125.06 | I92: 6679936.37 | J92: 210820 | K92: 181031 | L92: 9681 | M92: 899326.15 | N92: 96598 | O92: 261550 | P92: 9382 | Q92: 0 | R92: 0 | S92: 64398 | T92: 8656847.58 | V92: 0 | X92: 0 | Y92: 8656847.58 | Z92: 51015 | AA92: 0 | AB92: 0 | AD92: 0 | AE92: 0 | AF92: 269421 | AG92: 1522367.51 | AH92: 168322.5 | AI92: 0 | AJ92: 0 | AK92: 814405 | AL92: 2825531.01 | AO92: 21733 | AP92: 21733 | AQ92: 2803798.01 | AR92: 11460645.59 | AS92: 5243885 | AT92: 0 | AU92: 5243885 | AV92: 0 | AW92: 0 | AX92: 0 | AY92: 0 | BA92: 0 | BB92: 5167543 | BC92: 11310845.67 | BD92: 6143302.67 | BE92: 6143302.67 | BF92: 0 | BG92: 0 | BI92: 237075 | BJ92: 7561281 | BK92: 221390 | BL92: 175416 | BM92: 7720 | BN92: 983238 | BO92: 99746 | BP92: 304266 | BQ92: 8045.4 | BR92: 0 | BS92: 0 | BT92: 0 | BU92: 9598177.4 | BW92: 0 | BY92: 0 | BZ92: 9598177.4 | CB92: 55664 | CC92: 0 | CD92: 0 | CF92: 0 | CG92: 0 | CH92: 285917 | CI92: 1515638 | CJ92: 165987 | CK92: 0 | CL92: 0 | CM92: 879081 | CN92: 2902287 | CQ92: 105092.8 | CR92: 105092.8 | CS92: 2797194.2 | CT92: 12395371.6 | CU92: 5932989 | CV92: 0 | CW92: 5932989 | CX92: 0 | CY92: 0 | CZ92: 0 | DA92: 0
A93: 0090 | B93: 0 | C93: 1 | D93: 2022-09-22 | H93: 0 | I93: 0 | J93: 0 | K93: 0 | L93: 0 | M93: 0 | N93: 0 | O93: 0 | P93: 0 | Q93: 0 | R93: 0 | S93: 0 | T93: 0 | V93: 0 | X93: 0 | Y93: 0 | Z93: 0 | AA93: 0 | AB93: 0 | AD93: 0 | AE93: 0 | AF93: 0 | AG93: 0 | AH93: 0 | AI93: 0 | AJ93: 0 | AK93: 6800 | AL93: 6800 | AO93: 0 | AP93: 0 | AQ93: 6800 | AR93: 6800 | AS93: 0 | AT93: 0 | AU93: 0 | AV93: 0 | AW93: 0 | AX93: 0 | AY93: 0 | BA93: 0 | BB93: 0 | BC93: 0 | BD93: 0 | BE93: 0 | BF93: 0 | BG93: 0 | BI93: 0 | BJ93: 0 | BK93: 0 | BL93: 0 | BM93: 0 | BN93: 0 | BO93: 0 | BP93: 0 | BQ93: 0 | BR93: 0 | BS93: 0 | BT93: 0 | BU93: 0 | BW93: 0 | BY93: 0 | BZ93: 0 | CB93: 0 | CC93: 0 | CD93: 0 | CF93: 0 | CG93: 0 | CH93: 0 | CI93: 0 | CJ93: 0 | CK93: 0 | CL93: 0 | CM93: 6800 | CN93: 6800 | CQ93: 0 | CR93: 0 | CS93: 6800 | CT93: 6800 | CU93: 0 | CV93: 0 | CW93: 0 | CX93: 0 | CY93: 0 | CZ93: 0 | DA93: 0
A94: 0091 | B94: 1 | C94: 1 | D94: 2022-10-25 | E94: 1 | F94: 1 | G94: 1 | H94: 125825 | I94: 2586995 | J94: 0 | K94: 0 | L94: 0 | M94: 341336 | N94: 0 | O94: 4390 | P94: 0 | Q94: 0 | R94: 0 | S94: 1069462 | T94: 4128008 | V94: 0 | X94: 0 | Y94: 4128008 | Z94: 63083 | AA94: 0 | AB94: 0 | AD94: 0 | AE94: 0 | AF94: 154569 | AG94: 621153 | AH94: 81873.5 | AI94: 0 | AJ94: 0 | AK94: 284679 | AL94: 1205357.5 | AO94: 7426.8 | AP94: 7426.8 | AQ94: 1197930.7 | AR94: 5325938.7 | AS94: 2421205 | AT94: 0 | AU94: 2421205 | AV94: 0 | AW94: 0 | AX94: 0 | AY94: 0 | BA94: 0 | BB94: 2390611 | BC94: 5480711.047 | BD94: 3090100.047 | BE94: 3090100.047 | BF94: 0 | BG94: 0 | BI94: 141941 | BJ94: 2712204 | BK94: 95231 | BL94: 26000 | BM94: 0 | BN94: 319051 | BO94: 1164 | BP94: 5110 | BQ94: 0 | BR94: 0 | BS94: 0 | BT94: 490063 | BU94: 3790764 | BW94: 11393 | BY94: 11393 | BZ94: 3779371 | CB94: 0 | CC94: 0 | CD94: 0 | CF94: 0 | CG94: 0 | CH94: 154969 | CI94: 690000 | CJ94: 40500 | CK94: 0 | CL94: 0 | CM94: 205294 | CN94: 1090763 | CQ94: 4753.152 | CR94: 4753.152 | CS94: 1086009.848 | CT94: 4865380.848 | CU94: 2504088 | CV94: 0 | CW94: 2504088 | CX94: 0 | CY94: 0 | CZ94: 0 | DA94: 0
A95: 0092 | B95: 0 | C95: 1 | D95: 2022-11-29 | H95: 0 | I95: 0 | J95: 0 | K95: 0 | L95: 0 | M95: 0 | N95: 0 | O95: 0 | P95: 0 | Q95: 0 | R95: 0 | S95: 0 | T95: 0 | V95: 0 | X95: 0 | Y95: 0 | Z95: 0 | AA95: 0 | AB95: 0 | AD95: 0 | AE95: 0 | AF95: 0 | AG95: 0 | AH95: 0 | AI95: 0 | AJ95: 0 | AK95: 0 | AL95: 0 | AO95: 0 | AP95: 0 | AQ95: 0 | AR95: 0 | AS95: 0 | AT95: 0 | AU95: 0 | AV95: 0 | AW95: 0 | AX95: 0 | AY95: 0 | BA95: 0 | BB95: 0 | BC95: 0 | BD95: 0 | BE95: 0 | BF95: 0 | BG95: 0 | BI95: 0 | BJ95: 0 | BK95: 0 | BL95: 0 | BM95: 0 | BN95: 0 | BO95: 0 | BP95: 0 | BQ95: 0 | BR95: 0 | BS95: 0 | BT95: 0 | BU95: 0 | BW95: 0 | BY95: 0 | BZ95: 0 | CB95: 0 | CC95: 0 | CD95: 0 | CF95: 0 | CG95: 0 | CH95: 0 | CI95: 0 | CJ95: 0 | CK95: 0 | CL95: 0 | CM95: 0 | CN95: 0 | CQ95: 0 | CR95: 0 | CS95: 0 | CT95: 0 | CU95: 0 | CV95: 0 | CW95: 0 | CX95: 0 | CY95: 0 | CZ95: 0 | DA95: 0
A96: 0093 | B96: 1 | C96: 1 | D96: 2022-10-25 | E96: 0.999955698 | F96: 1 | G96: 1 | H96: 2604980.619 | I96: 76096348.35 | J96: 74572.24 | K96: 0 | L96: 1507522.31 | M96: 6540953.48 | N96: 83706.75146 | O96: 0 | P96: 0 | Q96: 66997.03177 | R96: 0 | S96: 6163531.1 | T96: 93138611.88 | V96: 0 | X96: 0 | Y96: 93138611.88 | Z96: 539488 | AA96: 0 | AB96: 679287 | AD96: 191977.4946 | AE96: 46895 | AF96: 2993033.397 | AG96: 17995560.73 | AH96: 2050645.148 | AI96: 0 | AJ96: 0 | AK96: 9796046.6 | AL96: 34292933.36 | AO96: 1418411 | AP96: 1418411 | AQ96: 32874522.36 | AR96: 126013134.2 | AS96: 120819748 | AT96: 0 | AU96: 120819748 | AV96: 0 | AW96: 0 | AX96: 0 | AY96: 0 | BA96: 0 | BB96: 110433220 | BC96: 115109269.8 | BD96: 4676049.771 | BE96: 4676049.771 | BF96: 0 | BG96: 0 | BI96: 2617617 | BJ96: 86625167 | BK96: 338457 | BL96: 0 | BM96: 1894393 | BN96: 8636395 | BO96: 100000 | BP96: 0 | BQ96: 0 | BR96: 600000 | BS96: 0 | BT96: 4732823 | BU96: 105544852 | BW96: 0 | BY96: 0 | BZ96: 105544852 | CB96: 588701 | CC96: 0 | CD96: 900749 | CF96: 131056.6 | CG96: 29147 | CH96: 2041305.65 | CI96: 12520128.02 | CJ96: 2254284 | CK96: 0 | CL96: 0 | CM96: 11215335 | CN96: 29680706.27 | CQ96: 2342655.6 | CR96: 2342655.6 | CS96: 27338050.67 | CT96: 132882902.7 | CU96: 131079662 | CV96: 0 | CW96: 131079662 | CX96: 0 | CY96: 0 | CZ96: 0 | DA96: 0
A97: 0094 | B97: 1 | C97: 1 | D97: 2022-09-30 | E97: 1 | F97: 1 | G97: 1 | H97: 828150.04 | I97: 15707536.99 | J97: 257501.52 | K97: 17923.88 | L97: 613529.79 | M97: 2236220.81 | N97: 37038.6 | O97: 3390 | P97: 0 | Q97: 51943.14 | R97: 0 | S97: 1067849.6 | T97: 20821084.37 | V97: 2538827.06 | X97: 2538827.06 | Y97: 18282257.31 | Z97: 426317.58 | AA97: 0 | AB97: 0 | AD97: 109155.71 | AE97: 207049.93 | AF97: 1234386.92 | AG97: 2250409.23 | AH97: 709011.24 | AI97: 0 | AJ97: 0 | AK97: 323698 | AL97: 5260028.61 | AO97: 7271.618106 | AP97: 7271.618106 | AQ97: 5252756.992 | AR97: 23535014.3 | AS97: 20975457 | AT97: 0 | AU97: 20975457 | AV97: 0 | AW97: 0 | AX97: 0 | AY97: 0 | BA97: 41874.66 | BB97: 20980114 | BC97: 22025294.49 | BD97: 1045180.494 | BE97: 1003305.834 | BF97: 0 | BG97: 2538827.06 | BI97: 849609 | BJ97: 16484032 | BK97: 288149 | BL97: 39287 | BM97: 571489 | BN97: 1721656 | BO97: 8343.16 | BP97: 0 | BQ97: 0 | BR97: 0 | BS97: 0 | BT97: 1014045 | BU97: 20976610.16 | BW97: 2820491 | BY97: 2820491 | BZ97: 18156119.16 | CB97: 452224.95 | CC97: 0 | CD97: 0 | CF97: 128687.92 | CG97: 236848.48 | CH97: 1273762.96 | CI97: 2169298.45 | CJ97: 723191.46 | CK97: 0 | CL97: 0 | CM97: 308345 | CN97: 5292359.22 | CQ97: 14600.39517 | CR97: 14600.39517 | CS97: 5277758.825 | CT97: 23433877.98 | CU97: 22300571 | CV97: 0 | CW97: 22300571 | CX97: 0 | CY97: 0 | CZ97: 0 | DA97: 0
A98: 0095 | B98: 1 | C98: 1 | D98: 2022-10-26 | E98: 1 | F98: 1 | G98: 1 | H98: 3358735 | I98: 90065413 | J98: 2861764 | K98: 0 | L98: 2957375 | M98: 17500431 | N98: 224560 | O98: 1784579 | P98: 0 | Q98: 181874 | R98: 0 | S98: 5179537 | T98: 124114268 | V98: 134202 | X98: 134202 | Y98: 123980066 | Z98: 1369660 | AA98: 0 | AB98: 0 | AD98: 0 | AE98: 100000 | AF98: 7059098 | AG98: 18548672 | AH98: 7252437 | AI98: 0 | AJ98: 0 | AK98: 24919822.49 | AL98: 59249689.49 | AO98: 2207046.248 | AP98: 2207046.248 | AQ98: 57042643.24 | AR98: 181022709.2 | AS98: 179469091 | AT98: 3230045.826 | AU98: 182699136.8 | AV98: -1676427.584 | AW98: -0.009341037917 | AX98: 1676427.584 | AY98: 0 | BA98: 134202 | BB98: 172964682.8 | BC98: 169734637 | BD98: -3230045.826 | BE98: -3364247.826 | BF98: 134202 | BG98: 0 | BI98: 6531890 | BJ98: 103613318 | BK98: 3082046 | BL98: 0 | BM98: 3749532 | BN98: 15928965 | BO98: 220000 | BP98: 2075009 | BQ98: 0 | BR98: 150000 | BS98: 0 | BT98: 8149218 | BU98: 143499978 | BW98: 0 | BY98: 0 | BZ98: 143499978 | CB98: 1593229 | CC98: 0 | CD98: 0 | CF98: 0 | CG98: 100000 | CH98: 7359235 | CI98: 21780316 | CJ98: 7021530 | CK98: 0 | CL98: 0 | CM98: 28463253 | CN98: 66317563 | CQ98: 4424147.346 | CR98: 4424147.346 | CS98: 61893415.65 | CT98: 205393393.7 | CU98: 204753290 | CV98: 1676427.584 | CW98: 206429717.6 | CX98: -1036323.93 | CY98: -0.005061329808 | CZ98: 1036323.93 | DA98: 0
A99: 0096 | B99: 1 | C99: 1 | D99: 2022-11-30 | E99: 1 | F99: 1 | G99: 1 | H99: 1553913.09 | I99: 36553843.05 | J99: 719545 | K99: 0 | L99: 906270 | M99: 6004521.33 | N99: 94930 | O99: 0 | P99: 0 | Q99: 64750 | R99: 0 | S99: 1866557 | T99: 47764329.47 | V99: 0 | X99: 0 | Y99: 47764329.47 | Z99: 210611 | AA99: 0 | AB99: 0 | AD99: 0 | AE99: 634970 | AF99: 2843202 | AG99: 7970955 | AH99: 921431.5 | AI99: 0 | AJ99: 0 | AK99: 3047515 | AL99: 15628684.5 | AO99: 718279.1773 | AP99: 718279.1773 | AQ99: 14910405.32 | AR99: 62674734.79 | AS99: 37392327 | AT99: 0 | AU99: 37392327 | AV99: 0 | AW99: 0 | AX99: 0 | AY99: 0 | BA99: 0 | BB99: 38213943 | BC99: 61973362.27 | BD99: 23759419.27 | BE99: 23759419.27 | BF99: 0 | BG99: 0 | BI99: 2238493 | BJ99: 37995928 | BK99: 752100 | BL99: 0 | BM99: 1074072 | BN99: 4972357 | BO99: 0 | BP99: 0 | BQ99: 0 | BR99: 60000 | BS99: 0 | BT99: 2125000 | BU99: 49217950 | BW99: 0 | BY99: 0 | BZ99: 49217950 | CB99: 193802 | CC99: 0 | CD99: 0 | CF99: 0 | CG99: 580026 | CH99: 2843202 | CI99: 8946206 | CJ99: 1108258.8 | CK99: 0 | CL99: 0 | CM99: 3191545 | CN99: 16863039.8 | CQ99: 445448.7692 | CR99: 445448.7692 | CS99: 16417591.03 | CT99: 65635541.03 | CU99: 41087216 | CV99: 0 | CW99: 41087216 | CX99: 0 | CY99: 0 | CZ99: 0 | DA99: 0
A100: 0097 | B100: 1 | C100: 1 | D100: 2022-10-03 | E100: 1 | F100: 1 | G100: 1 | H100: 2066795.28 | I100: 42580389.36 | J100: 1173956.63 | K100: 0 | L100: 819698 | M100: 6419600.76 | N100: 73054 | O100: 180873.35 | P100: 0 | Q100: 92000 | R100: 0 | S100: 6386633.35 | T100: 59793000.73 | V100: 0 | X100: 0 | Y100: 59793000.73 | Z100: 700000 | AA100: 0 | AB100: 72000 | AD100: 235000 | AE100: 5000 | AF100: 4608804 | AG100: 7735110 | AH100: 2881020 | AI100: 0 | AJ100: 0 | AK100: 5694545 | AL100: 21931479 | AO100: 573704.1986 | AP100: 573704.1986 | AQ100: 21357774.8 | AR100: 81150775.53 | AS100: 80950249 | AT100: 0 | AU100: 80950249 | AV100: 0 | AW100: 0 | AX100: 0 | AY100: 0 | BA100: 0 | BB100: 77039273 | BC100: 78817637.44 | BD100: 1778364.441 | BE100: 1778364.441 | BF100: 0 | BG100: 0 | BI100: 2490615 | BJ100: 50053773 | BK100: 1210987 | BL100: 0 | BM100: 704343 | BN100: 6296779 | BO100: 25000 | BP100: 50000 | BQ100: 0 | BR100: 50000 | BS100: 0 | BT100: 6275985 | BU100: 67157482 | BW100: 0 | BY100: 0 | BZ100: 67157482 | CB100: 799362 | CC100: 0 | CD100: 72000 | CF100: 235000 | CG100: 5000 | CH100: 4832166 | CI100: 7686000 | CJ100: 2663000 | CK100: 0 | CL100: 0 | CM100: 6003712 | CN100: 22296240 | CQ100: 694755.1265 | CR100: 694755.1265 | CS100: 21601484.87 | CT100: 88758966.87 | CU100: 88839003 | CV100: 0 | CW100: 88839003 | CX100: -80036.12647 | CY100: -0.0009009120293 | CZ100: 80036.12647 | DA100: 0
A101: 0098 | B101: 1 | C101: 1 | D101: 2023-03-31 | E101: 1 | F101: 1 | G101: 1 | H101: 56986.88 | I101: 939141.4 | J101: 21796.57 | K101: 0 | L101: 0 | M101: 124776.3 | N101: 0 | O101: 762.3 | P101: 0 | Q101: 5816.12 | R101: 0 | S101: 67916.47 | T101: 1217196.04 | V101: 303324.55 | X101: 303324.55 | Y101: 913871.49 | Z101: 7380.5 | AA101: 0 | AB101: 0 | AD101: 0 | AE101: 371000 | AF101: 67709.48 | AG101: 183983 | AH101: 24227.5 | AI101: 0 | AJ101: 0 | AK101: 40390 | AL101: 694690.48 | AO101: 6118.649918 | AP101: 6118.649918 | AQ101: 688571.8301 | AR101: 1602443.32 | AS101: 985195 | AT101: 0 | AU101: 985195 | AV101: 0 | AW101: 0 | AX101: 0 | AY101: 0 | BA101: 0 | BB101: 1026141 | BC101: 1783183.814 | BD101: 757042.8142 | BE101: 757042.8142 | BF101: 0 | BG101: 303324.55 | BI101: 78096.71 | BJ101: 902896 | BK101: 43679.97 | BL101: 12610 | BM101: 1200 | BN101: 142555 | BO101: 0 | BP101: 880 | BQ101: 0 | BR101: 6300 | BS101: 0 | BT101: 124108 | BU101: 1312325.68 | BW101: 136073 | BY101: 136073 | BZ101: 1176252.68 | CB101: 12225 | CC101: 0 | CD101: 0 | CF101: 0 | CG101: 0 | CH101: 68190.32 | CI101: 225432.63 | CJ101: 32036.4 | CK101: 0 | CL101: 0 | CM101: 50279 | CN101: 388163.35 | CQ101: -49.31260686 | CR101: -49.31260686 | CS101: 388212.6626 | CT101: 1564465.343 | CU101: 1014928 | CV101: 0 | CW101: 1014928 | CX101: 0 | CY101: 0 | CZ101: 0 | DA101: 0
A102: 0099 | B102: 1 | C102: 1 | D102: 2022-11-01 | E102: 1 | F102: 1 | G102: 1 | H102: 1162976.8 | I102: 27326136.27 | J102: 518076.89 | K102: 39413.28 | L102: 856673.76 | M102: 3905124.32 | N102: 102054.88 | O102: 12457 | P102: 0 | Q102: 0 | R102: 0 | S102: 2382949.44 | T102: 36305862.64 | V102: 0 | X102: 0 | Y102: 36305862.64 | Z102: 320592 | AA102: 0 | AB102: 0 | AD102: 0 | AE102: 565538 | AF102: 2497281 | AG102: 5074248 | AH102: 783893 | AI102: 0 | AJ102: 0 | AK102: 2050452 | AL102: 11292004 | AO102: 53827.93403 | AP102: 53827.93403 | AQ102: 11238176.07 | AR102: 47544038.71 | AS102: 33613372 | AT102: 0 | AU102: 33613372 | AV102: 0 | AW102: 0 | AX102: 0 | AY102: 0 | BA102: 11134.48 | BB102: 33616320 | BC102: 46982423.01 | BD102: 13366103.01 | BE102: 13354968.53 | BF102: 0 | BG102: 0 | BI102: 2307413 | BJ102: 28695391 | BK102: 509439 | BL102: 37800 | BM102: 908793 | BN102: 2801483 | BO102: 0 | BP102: 13500 | BQ102: 0 | BR102: 0 | BS102: 0 | BT102: 2313790 | BU102: 37587609 | BW102: 35000 | BY102: 35000 | BZ102: 37552609 | CB102: 348114 | CC102: 0 | CD102: 0 | CF102: 0 | CG102: 609259 | CH102: 2529836 | CI102: 5211413 | CJ102: 763676 | CK102: 0 | CL102: 0 | CM102: 2071146 | CN102: 11533444 | CQ102: 30645.81189 | CR102: 30645.81189 | CS102: 11502798.19 | CT102: 49055407.19 | CU102: 35055644 | CV102: 0 | CW102: 35055644 | CX102: 0 | CY102: 0 | CZ102: 0 | DA102: 0
A103: 0100 | B103: 1 | C103: 1 | D103: 2022-11-15 | E103: 0.9936220548 | F103: 0.994046605 | G103: 0.9898462372 | H103: 5361750.386 | I103: 104743806 | J103: 3409932 | K103: 10792 | L103: 2417591 | M103: 12371307.01 | N103: 248377.6923 | O103: 4382.866884 | P103: 0 | Q103: 0 | R103: 0 | S103: 9983213 | T103: 138551152 | V103: 430583.1132 | X103: 430583.1132 | Y103: 138120568.8 | Z103: 2440104.604 | AA103: 0 | AB103: 0 | AD103: 0 | AE103: 660104.6993 | AF103: 8435591.91 | AG103: 18519174.56 | AH103: 7157830.712 | AI103: 0 | AJ103: 0 | AK103: 6430040 | AL103: 43642846.48 | AO103: 301684.6215 | AP103: 301684.6215 | AQ103: 43341161.86 | AR103: 181461730.7 | AS103: 124235874 | AT103: 0 | AU103: 124235874 | AV103: 0 | AW103: 0 | AX103: 0 | AY103: 0 | BA103: 996 | BB103: 121857618 | BC103: 174590256.6 | BD103: 52732638.58 | BE103: 52731642.58 | BF103: 0 | BG103: 430583.1132 | BI103: 7582907.586 | BJ103: 111303879 | BK103: 3949650 | BL103: 0 | BM103: 2451200 | BN103: 9293386.442 | BO103: 141651.6412 | BP103: 4384.739575 | BQ103: 0 | BR103: 0 | BS103: 0 | BT103: 10360837 | BU103: 145087896.4 | BW103: 682263.8873 | BY103: 682263.8873 | BZ103: 144405632.5 | CB103: 2658576.651 | CC103: 0 | CD103: 0 | CF103: 0 | CG103: 720272.2533 | CH103: 8946511.891 | CI103: 19734495.12 | CJ103: 7573124.179 | CK103: 0 | CL103: 0 | CM103: 6318704 | CN103: 45951684.09 | CQ103: 167674.903 | CR103: 167674.903 | CS103: 45784009.19 | CT103: 190189641.7 | CU103: 139318257 | CV103: 0 | CW103: 139318257 | CX103: 0 | CY103: 0 | CZ103: 0 | DA103: 0
A104: 0101 | B104: 1 | C104: 1 | D104: 2022-09-30 | E104: 1 | F104: 1 | G104: 1 | H104: 1414124 | I104: 50116764 | J104: 943416 | K104: 0 | L104: 834830 | M104: 830672 | N104: 768869 | O104: 5843142 | P104: 0 | Q104: 0 | R104: 0 | S104: 3822097 | T104: 64573914 | V104: 0 | X104: 0 | Y104: 64573914 | Z104: 420931 | AA104: 0 | AB104: 0 | AD104: 89364 | AE104: 6310275 | AF104: 2277375 | AG104: 921029 | AH104: 958813.5 | AI104: 0 | AJ104: 0 | AK104: 5119311.2 | AL104: 16097098.7 | AO104: 221032.3029 | AP104: 221032.3029 | AQ104: 15876066.4 | AR104: 80449980.4 | AS104: 71018218 | AT104: 0 | AU104: 71018218 | AV104: 0 | AW104: 0 | AX104: 0 | AY104: 0 | BA104: 27917 | BB104: 69568684 | BC104: 78398099.4 | BD104: 8829415.402 | BE104: 8801498.402 | BF104: 0 | BG104: 0 | BI104: 1554967 | BJ104: 53243280 | BK104: 1022960 | BL104: 0 | BM104: 457496 | BN104: 909330 | BO104: 833000 | BP104: 6186361 | BQ104: 0 | BR104: 0 | BS104: 0 | BT104: 3469085 | BU104: 67676479 | BW104: 0 | BY104: 0 | BZ104: 67676479 | CB104: 433428 | CC104: 0 | CD104: 0 | CF104: 99965 | CG104: 6364486 | CH104: 1927255 | CI104: 724769 | CJ104: 1144650 | CK104: 0 | CL104: 0 | CM104: 5582716 | CN104: 16277269 | CQ104: 565161.0985 | CR104: 565161.0985 | CS104: 15712107.9 | CT104: 83388586.9 | CU104: 73686081 | CV104: 0 | CW104: 73686081 | CX104: 0 | CY104: 0 | CZ104: 0 | DA104: 0
A105: 0102 | B105: 0 | C105: 1 | D105: 2022-11-15 | H105: 0 | I105: 0 | J105: 0 | K105: 0 | L105: 0 | M105: 0 | N105: 0 | O105: 0 | P105: 0 | Q105: 0 | R105: 0 | S105: 0 | T105: 0 | V105: 0 | X105: 0 | Y105: 0 | Z105: 0 | AA105: 0 | AB105: 0 | AD105: 0 | AE105: 0 | AF105: 0 | AG105: 0 | AH105: 0 | AI105: 0 | AJ105: 0 | AK105: 1236883.92 | AL105: 1236883.92 | AO105: 0 | AP105: 0 | AQ105: 1236883.92 | AR105: 1236883.92 | AS105: 1260482 | AT105: 72903.05 | AU105: 1333385.05 | AV105: -96501.13 | AW105: -0.07655891159 | AX105: 63024.1 | AY105: 0 | BA105: 0 | BB105: 1458061 | BC105: 1372841 | BD105: -85220 | BE105: -85220 | BF105: 0 | BG105: 0 | BI105: 0 | BJ105: 0 | BK105: 0 | BL105: 0 | BM105: 0 | BN105: 0 | BO105: 0 | BP105: 0 | BQ105: 0 | BR105: 0 | BS105: 0 | BT105: 0 | BU105: 0 | BW105: 0 | BY105: 0 | BZ105: 0 | CB105: 0 | CC105: 0 | CD105: 0 | CF105: 0 | CG105: 0 | CH105: 0 | CI105: 0 | CJ105: 0 | CK105: 0 | CL105: 0 | CM105: 1060557 | CN105: 1060557 | CQ105: 0 | CR105: 0 | CS105: 1060557 | CT105: 1060557 | CU105: 1177723 | CV105: 63024.1 | CW105: 1240747.1 | CX105: -180190.1 | CY105: -0.1529987102 | CZ105: 58886.15 | DA105: 0
A106: 0103 | B106: 1 | C106: 1 | D106: 2022-09-30 | E106: 1 | F106: 1 | G106: 1 | H106: 707476 | I106: 18821506 | J106: 478886 | K106: 0 | L106: 623574 | M106: 1705686 | N106: 143232 | O106: 21626 | P106: 0 | Q106: 74141 | R106: 0 | S106: 1041416 | T106: 23617543 | V106: 0 | X106: 0 | Y106: 23617543 | Z106: 290799 | AA106: 0 | AB106: 84188 | AD106: 0 | AE106: 0 | AF106: 1547319 | AG106: 4882122 | AH106: 194607 | AI106: 0 | AJ106: 0 | AK106: 1673231 | AL106: 8672266 | AO106: 50471.63222 | AP106: 50471.63222 | AQ106: 8621794.368 | AR106: 32239337.37 | AS106: 31404375 | AT106: 0 | AU106: 31404375 | AV106: 0 | AW106: 0 | AX106: 0 | AY106: 0 | BA106: 232378 | BB106: 30930785 | BC106: 31970247.33 | BD106: 1039462.329 | BE106: 807084.3291 | BF106: 0 | BG106: 0 | BI106: 859629 | BJ106: 20011622 | BK106: 493659 | BL106: 0 | BM106: 516172 | BN106: 2729733 | BO106: 39293 | BP106: 28574 | BQ106: 0 | BR106: 70071 | BS106: 0 | BT106: 1041887 | BU106: 25790640 | BW106: 0 | BY106: 0 | BZ106: 25790640 | CB106: 215021 | CC106: 0 | CD106: 71041 | CF106: 0 | CG106: 0 | CH106: 1647087 | CI106: 4834987 | CJ106: 228159 | CK106: 0 | CL106: 0 | CM106: 1554724 | CN106: 8551019 | CQ106: 25294.87597 | CR106: 25294.87597 | CS106: 8525724.124 | CT106: 34316364.12 | CU106: 34029130 | CV106: 0 | CW106: 34029130 | CX106: 0 | CY106: 0 | CZ106: 0 | DA106: 0
A107: 0104 | B107: 0 | C107: 1 | D107: 2023-04-14 | H107: 0 | I107: 0 | J107: 0 | K107: 0 | L107: 0 | M107: 0 | N107: 0 | O107: 0 | P107: 0 | Q107: 0 | R107: 0 | S107: 0 | T107: 0 | V107: 0 | X107: 0 | Y107: 0 | Z107: 0 | AA107: 0 | AB107: 0 | AD107: 0 | AE107: 0 | AF107: 0 | AG107: 0 | AH107: 0 | AI107: 0 | AJ107: 0 | AK107: 0 | AL107: 0 | AO107: 0 | AP107: 0 | AQ107: 0 | AR107: 0 | AS107: 0 | AT107: 0 | AU107: 0 | AV107: 0 | AW107: 0 | AX107: 0 | AY107: 0 | BA107: 0 | BB107: 0 | BC107: 0 | BD107: 0 | BE107: 0 | BF107: 0 | BG107: 0 | BI107: 0 | BJ107: 0 | BK107: 0 | BL107: 0 | BM107: 0 | BN107: 0 | BO107: 0 | BP107: 0 | BQ107: 0 | BR107: 0 | BS107: 0 | BT107: 0 | BU107: 0 | BW107: 0 | BY107: 0 | BZ107: 0 | CB107: 0 | CC107: 0 | CD107: 0 | CF107: 0 | CG107: 0 | CH107: 0 | CI107: 0 | CJ107: 0 | CK107: 0 | CL107: 0 | CM107: 0 | CN107: 0 | CQ107: 0 | CR107: 0 | CS107: 0 | CT107: 0 | CU107: 0 | CV107: 0 | CW107: 0 | CX107: 0 | CY107: 0 | CZ107: 0 | DA107: 0
A108: 0105 | B108: 1 | C108: 1 | D108: 2022-09-30 | E108: 1 | F108: 1 | G108: 1 | H108: 909953.62 | I108: 12137566.47 | J108: 205489.6 | K108: 0 | L108: 289475.84 | M108: 1404940.33 | N108: 90787.7 | O108: 0 | P108: 0 | Q108: 0 | R108: 0 | S108: 1044039.18 | T108: 16082252.74 | V108: 0 | X108: 0 | Y108: 16082252.74 | Z108: 44828 | AA108: 0 | AB108: 0 | AD108: 0 | AE108: 434641 | AF108: 785202 | AG108: 2066828 | AH108: 534146 | AI108: 0 | AJ108: 0 | AK108: 284107 | AL108: 4149752 | AO108: 7255 | AP108: 7255 | AQ108: 4142497 | AR108: 20224749.74 | AS108: 16245424 | AT108: 0 | AU108: 16245424 | AV108: 0 | AW108: 0 | AX108: 0 | AY108: 0 | BA108: 0 | BB108: 16145694 | BC108: 19488212.86 | BD108: 3342518.86 | BE108: 3342518.86 | BF108: 0 | BG108: 0 | BI108: 890160 | BJ108: 12703842 | BK108: 195570 | BL108: 0 | BM108: 261962 | BN108: 1304228 | BO108: 74625 | BP108: 0 | BQ108: 0 | BR108: 0 | BS108: 0 | BT108: 910073 | BU108: 16340460 | BW108: 0 | BY108: 0 | BZ108: 16340460 | CB108: 46726 | CC108: 0 | CD108: 0 | CF108: 0 | CG108: 471446 | CH108: 846727 | CI108: 2205000 | CJ108: 536551 | CK108: 0 | CL108: 0 | CM108: 279819 | CN108: 4386269 | CQ108: 36601 | CR108: 36601 | CS108: 4349668 | CT108: 20690128 | CU108: 16647575 | CV108: 0 | CW108: 16647575 | CX108: 0 | CY108: 0 | CZ108: 0 | DA108: 0
A109: 0106 | B109: 0 | C109: 1 | D109: 2022-12-02 | H109: 0 | I109: 0 | J109: 0 | K109: 0 | L109: 0 | M109: 0 | N109: 0 | O109: 0 | P109: 0 | Q109: 0 | R109: 0 | S109: 0 | T109: 0 | V109: 0 | X109: 0 | Y109: 0 | Z109: 0 | AA109: 0 | AB109: 0 | AD109: 0 | AE109: 0 | AF109: 0 | AG109: 0 | AH109: 0 | AI109: 0 | AJ109: 0 | AK109: 229192.72 | AL109: 229192.72 | AO109: 0 | AP109: 0 | AQ109: 229192.72 | AR109: 229192.72 | AS109: 0 | AT109: 0 | AU109: 0 | AV109: 0 | AW109: 0 | AX109: 0 | AY109: 0 | BA109: 0 | BB109: 0 | BC109: 0 | BD109: 0 | BE109: 0 | BF109: 0 | BG109: 0 | BI109: 0 | BJ109: 0 | BK109: 0 | BL109: 0 | BM109: 0 | BN109: 0 | BO109: 0 | BP109: 0 | BQ109: 0 | BR109: 0 | BS109: 0 | BT109: 0 | BU109: 0 | BW109: 0 | BY109: 0 | BZ109: 0 | CB109: 0 | CC109: 0 | CD109: 0 | CF109: 0 | CG109: 0 | CH109: 0 | CI109: 0 | CJ109: 0 | CK109: 0 | CL109: 0 | CM109: 235367 | CN109: 235367 | CQ109: 0 | CR109: 0 | CS109: 235367 | CT109: 235367 | CU109: 0 | CV109: 0 | CW109: 0 | CX109: 0 | CY109: 0 | CZ109: 0 | DA109: 0
A110: 0107 | B110: 1 | C110: 1 | D110: 2022-12-08 | E110: 1 | F110: 1 | G110: 1 | H110: 1398241.43 | I110: 30635412.14 | J110: 801012.27 | K110: 193597.95 | L110: 424724.13 | M110: 430413.94 | N110: 144183.17 | O110: 5793253.51 | P110: 729557.32 | Q110: 1125 | R110: 0 | S110: 2248942.98 | T110: 42800463.84 | V110: 0 | X110: 0 | Y110: 42800463.84 | Z110: 600840 | AA110: 0 | AB110: 0 | AD110: 160458.62 | AE110: 5198493.69 | AF110: 1758469.76 | AG110: 333578 | AH110: 2211699 | AI110: 0 | AJ110: 0 | AK110: 2203958.02 | AL110: 12467497.09 | AO110: 17339.25273 | AP110: 17339.25273 | AQ110: 12450157.84 | AR110: 55250621.68 | AS110: 39342679 | AT110: 0 | AU110: 39342679 | AV110: 0 | AW110: 0 | AX110: 0 | AY110: 0 | BA110: 53253 | BB110: 38460243 | BC110: 53338128.09 | BD110: 14877885.09 | BE110: 14824632.09 | BF110: 0 | BG110: 0 | BI110: 1356269 | BJ110: 32905921 | BK110: 816177 | BL110: 104500 | BM110: 346768 | BN110: 519354 | BO110: 175000 | BP110: 6297000 | BQ110: 742000 | BR110: 1619 | BS110: 0 | BT110: 1432365 | BU110: 44696973 | BW110: 0 | BY110: 0 | BZ110: 44696973 | CB110: 589749.76 | CC110: 0 | CD110: 0 | CF110: 160459 | CG110: 6055639 | CH110: 1897642 | CI110: 450867.4 | CJ110: 2269100 | CK110: 0 | CL110: 0 | CM110: 2087603 | CN110: 13511060.16 | CQ110: 9903.491784 | CR110: 9903.491784 | CS110: 13501156.67 | CT110: 58198129.67 | CU110: 43648880 | CV110: 0 | CW110: 43648880 | CX110: 0 | CY110: 0 | CZ110: 0 | DA110: 0
A111: 0108 | B111: 0 | C111: 1 | D111: 2022-11-29 | H111: 0 | I111: 0 | J111: 0 | K111: 0 | L111: 0 | M111: 0 | N111: 0 | O111: 0 | P111: 0 | Q111: 0 | R111: 0 | S111: 0 | T111: 0 | V111: 0 | X111: 0 | Y111: 0 | Z111: 0 | AA111: 0 | AB111: 0 | AD111: 0 | AE111: 0 | AF111: 0 | AG111: 0 | AH111: 0 | AI111: 0 | AJ111: 0 | AK111: 152226.66 | AL111: 152226.66 | AO111: 0 | AP111: 0 | AQ111: 152226.66 | AR111: 152226.66 | AS111: 184063 | AT111: 8223 | AU111: 192286 | AV111: -40059.34 | AW111: -0.2176392865 | AX111: 9203.15 | AY111: 0 | BA111: 0 | BB111: 184697 | BC111: 176474 | BD111: -8223 | BE111: -8223 | BF111: 0 | BG111: 0 | BI111: 0 | BJ111: 0 | BK111: 0 | BL111: 0 | BM111: 0 | BN111: 0 | BO111: 0 | BP111: 0 | BQ111: 0 | BR111: 0 | BS111: 0 | BT111: 0 | BU111: 0 | BW111: 0 | BY111: 0 | BZ111: 0 | CB111: 0 | CC111: 0 | CD111: 0 | CF111: 0 | CG111: 0 | CH111: 0 | CI111: 0 | CJ111: 0 | CK111: 0 | CL111: 0 | CM111: 200000 | CN111: 200000 | CQ111: 0 | CR111: 0 | CS111: 200000 | CT111: 200000 | CU111: 168167 | CV111: 9203.15 | CW111: 177370.15 | CX111: 0 | CY111: 0 | CZ111: 0 | DA111: 0
A112: 0109 | B112: 0 | C112: 1 | D112: 2022-09-29 | F112: 1 | G112: 1 | H112: 0 | I112: 0 | J112: 0 | K112: 0 | L112: 0 | M112: 0 | N112: 0 | O112: 0 | P112: 0 | Q112: 0 | R112: 0 | S112: 15095 | T112: 15095 | V112: 1001 | X112: 1001 | Y112: 14094 | Z112: 300 | AA112: 0 | AB112: 0 | AD112: 0 | AE112: 500 | AF112: 0 | AG112: 0 | AH112: 0 | AI112: 0 | AJ112: 0 | AK112: 0 | AL112: 800 | AO112: 0 | AP112: 0 | AQ112: 800 | AR112: 14894 | AS112: 42848.48 | AT112: 0 | AU112: 42848.48 | AV112: -27954.48 | AW112: -0.6524030724 | AX112: 2142.424 | AY112: 0 | BA112: 0 | BB112: 17049.78 | BC112: 122197 | BD112: 105147.22 | BE112: 105147.22 | BF112: 0 | BG112: 1001 | BI112: 40800 | BJ112: 0 | BK112: 0 | BL112: 0 | BM112: 0 | BN112: 7775 | BO112: 354 | BP112: 0 | BQ112: 0 | BR112: 2400 | BS112: 0 | BT112: 0 | BU112: 51329 | BW112: 1100 | BY112: 1100 | BZ112: 50229 | CB112: 0 | CC112: 300 | CD112: 0 | CF112: 0 | CG112: 500 | CH112: 0 | CI112: 0 | CJ112: 0 | CK112: 0 | CL112: 0 | CM112: 0 | CN112: 800 | CQ112: 0 | CR112: 0 | CS112: 800 | CT112: 51029 | CU112: 15515.48 | CV112: 2142.424 | CW112: 17657.904 | CX112: 0 | CY112: 0 | CZ112: 0 | DA112: 0
A113: 0110 | B113: 1 | C113: 1 | D113: 2022-12-12 | E113: 0.9999319996 | F113: 1 | G113: 0.9900723318 | H113: 1063738.42 | I113: 30139329.45 | J113: 960268 | K113: 0 | L113: 650952.94 | M113: 3128535.514 | N113: 49494.23414 | O113: 4599.687198 | P113: 0 | Q113: 0 | R113: 0 | S113: 1462182.56 | T113: 37459100.81 | V113: 0 | X113: 0 | Y113: 37459100.81 | Z113: 225558.5261 | AA113: 0 | AB113: 0 | AD113: 0 | AE113: 420384.7121 | AF113: 1416111.527 | AG113: 5174031.51 | AH113: 449087.6398 | AI113: 0 | AJ113: 0 | AK113: 588922 | AL113: 8274095.915 | AO113: 0 | AP113: 0 | AQ113: 8274095.915 | AR113: 45733196.72 | AS113: 33731215 | AT113: 0 | AU113: 33731215 | AV113: 0 | AW113: 0 | AX113: 0 | AY113: 0 | BA113: 0 | BB113: 33320646 | BC113: 42299897.89 | BD113: 8979251.893 | BE113: 8979251.893 | BF113: 0 | BG113: 0 | BI113: 888857 | BJ113: 32433862 | BK113: 742509 | BL113: 0 | BM113: 668435 | BN113: 3202164 | BO113: 48000 | BP113: 4600 | BQ113: 0 | BR113: 0 | BS113: 0 | BT113: 1507910 | BU113: 39496337 | BW113: 0 | BY113: 0 | BZ113: 39496337 | CB113: 201149.9 | CC113: 0 | CD113: 0 | CF113: 0 | CG113: 59000 | CH113: 1522396.15 | CI113: 5398591.31 | CJ113: 560499.486 | CK113: 0 | CL113: 0 | CM113: 395760 | CN113: 8137396.846 | CQ113: 0 | CR113: 0 | CS113: 8137396.846 | CT113: 47633733.85 | CU113: 36001738 | CV113: 0 | CW113: 36001738 | CX113: 0 | CY113: 0 | CZ113: 0 | DA113: 0
A114: 0111 | B114: 1 | C114: 1 | D114: 2022-10-27 | E114: 1 | F114: 1 | G114: 1 | H114: 646428 | I114: 6261405.48 | J114: 203818.8 | K114: 0 | L114: 181995.49 | M114: 501170.89 | N114: 36798.96 | O114: 0 | P114: 0 | Q114: 0 | R114: 0 | S114: 27724 | T114: 7859341.62 | V114: 0 | X114: 0 | Y114: 7859341.62 | Z114: 116664 | AA114: 0 | AB114: 0 | AD114: 39776 | AE114: 22295 | AF114: 458143 | AG114: 1140023 | AH114: 253743 | AI114: 0 | AJ114: 0 | AK114: 650381 | AL114: 2681025 | AO114: 60007.68403 | AP114: 60007.68403 | AQ114: 2621017.316 | AR114: 10480358.94 | AS114: 9833607 | AT114: 0 | AU114: 9833607 | AV114: 0 | AW114: 0 | AX114: 0 | AY114: 0 | BA114: 0 | BB114: 9815763 | BC114: 10126361.26 | BD114: 310598.2639 | BE114: 310598.2639 | BF114: 0 | BG114: 0 | BI114: 682148.5082 | BJ114: 6519494.504 | BK114: 214322 | BL114: 0 | BM114: 143609.9118 | BN114: 613276.648 | BO114: 0 | BP114: 0 | BQ114: 0 | BR114: 0 | BS114: 0 | BT114: 65000 | BU114: 8237851.572 | BW114: 0 | BY114: 0 | BZ114: 8237851.572 | CB114: 105278 | CC114: 0 | CD114: 0 | CF114: 0 | CG114: 18150 | CH114: 505901 | CI114: 1309529 | CJ114: 0 | CK114: 0 | CL114: 0 | CM114: 677839 | CN114: 2616697 | CQ114: 92336.94605 | CR114: 92336.94605 | CS114: 2524360.054 | CT114: 10762211.63 | CU114: 10156688 | CV114: 0 | CW114: 10156688 | CX114: 0 | CY114: 0 | CZ114: 0 | DA114: 0
A115: 0112 | B115: 0 | C115: 1 | D115: 2022-12-02 | H115: 0 | I115: 0 | J115: 0 | K115: 0 | L115: 0 | M115: 0 | N115: 0 | O115: 0 | P115: 0 | Q115: 0 | R115: 0 | S115: 0 | T115: 0 | V115: 0 | X115: 0 | Y115: 0 | Z115: 0 | AA115: 0 | AB115: 0 | AD115: 0 | AE115: 0 | AF115: 0 | AG115: 0 | AH115: 0 | AI115: 0 | AJ115: 0 | AK115: 0 | AL115: 0 | AO115: 0 | AP115: 0 | AQ115: 0 | AR115: 0 | AS115: 0 | AT115: 0 | AU115: 0 | AV115: 0 | AW115: 0 | AX115: 0 | AY115: 0 | BA115: 0 | BB115: 0 | BC115: 0 | BD115: 0 | BE115: 0 | BF115: 0 | BG115: 0 | BI115: 0 | BJ115: 0 | BK115: 0 | BL115: 0 | BM115: 0 | BN115: 0 | BO115: 0 | BP115: 0 | BQ115: 0 | BR115: 0 | BS115: 0 | BT115: 0 | BU115: 0 | BW115: 0 | BY115: 0 | BZ115: 0 | CB115: 0 | CC115: 0 | CD115: 0 | CF115: 0 | CG115: 0 | CH115: 0 | CI115: 0 | CJ115: 0 | CK115: 0 | CL115: 0 | CM115: 0 | CN115: 0 | CQ115: 0 | CR115: 0 | CS115: 0 | CT115: 0 | CU115: 0 | CV115: 0 | CW115: 0 | CX115: 0 | CY115: 0 | CZ115: 0 | DA115: 0
A116: 0113 | B116: 0 | C116: 1 | D116: 2022-09-23 | H116: 0 | I116: 0 | J116: 0 | K116: 0 | L116: 0 | M116: 0 | N116: 0 | O116: 0 | P116: 0 | Q116: 0 | R116: 0 | S116: 0 | T116: 0 | V116: 0 | X116: 0 | Y116: 0 | Z116: 0 | AA116: 0 | AB116: 0 | AD116: 0 | AE116: 0 | AF116: 0 | AG116: 0 | AH116: 0 | AI116: 0 | AJ116: 0 | AK116: 18679 | AL116: 18679 | AO116: 0 | AP116: 0 | AQ116: 18679 | AR116: 18679 | AS116: 0 | AT116: 0 | AU116: 0 | AV116: 0 | AW116: 0 | AX116: 0 | AY116: 0 | BA116: 0 | BB116: 0 | BC116: 19915 | BD116: 19915 | BE116: 19915 | BF116: 0 | BG116: 0 | BI116: 0 | BJ116: 0 | BK116: 0 | BL116: 0 | BM116: 0 | BN116: 0 | BO116: 0 | BP116: 0 | BQ116: 0 | BR116: 0 | BS116: 0 | BT116: 0 | BU116: 0 | BW116: 0 | BY116: 0 | BZ116: 0 | CB116: 0 | CC116: 0 | CD116: 0 | CF116: 0 | CG116: 0 | CH116: 0 | CI116: 0 | CJ116: 0 | CK116: 0 | CL116: 0 | CM116: 230000 | CN116: 230000 | CQ116: 0 | CR116: 0 | CS116: 230000 | CT116: 230000 | CU116: 0 | CV116: 0 | CW116: 0 | CX116: 0 | CY116: 0 | CZ116: 0 | DA116: 0
A117: 0114 | B117: 1 | C117: 1 | D117: 2022-11-08 | E117: 1 | F117: 1 | G117: 1 | H117: 1183517 | I117: 13787533 | J117: 351091 | K117: 0 | L117: 222181 | M117: 1734413 | N117: 0 | O117: 0 | P117: 0 | Q117: 39878 | R117: 0 | S117: 730273 | T117: 18048886 | V117: 7270 | X117: 7270 | Y117: 18041616 | Z117: 200047 | AA117: 0 | AB117: 0 | AD117: 0 | AE117: 654739 | AF117: 1394398 | AG117: 3763373 | AH117: 1223140 | AI117: 0 | AJ117: 0 | AK117: 3785276.71 | AL117: 11020973.71 | AO117: 125879.3487 | AP117: 125879.3487 | AQ117: 10895094.36 | AR117: 28936710.36 | AS117: 24139103 | AT117: 0 | AU117: 24139103 | AV117: 0 | AW117: 0 | AX117: 0 | AY117: 0 | BA117: 0 | BB117: 24159292 | BC117: 28755284.51 | BD117: 4595992.513 | BE117: 4595992.513 | BF117: 0 | BG117: 7270 | BI117: 1715527 | BJ117: 14469234 | BK117: 464066 | BL117: 1000 | BM117: 353068 | BN117: 1280180 | BO117: 0 | BP117: 0 | BQ117: 0 | BR117: 49920 | BS117: 0 | BT117: 1230107 | BU117: 19563102 | BW117: 4831 | BY117: 4831 | BZ117: 19558271 | CB117: 226613 | CC117: 0 | CD117: 0 | CF117: 0 | CG117: 880613 | CH117: 1711781 | CI117: 3747618 | CJ117: 1306931 | CK117: 0 | CL117: 0 | CM117: 4394596 | CN117: 12268152 | CQ117: 412095.044 | CR117: 412095.044 | CS117: 11856056.96 | CT117: 31414327.96 | CU117: 26326536 | CV117: 0 | CW117: 26326536 | CX117: 0 | CY117: 0 | CZ117: 0 | DA117: 0
A118: 0115 | B118: 0 | C118: 1 | D118: 2022-11-22 | H118: 0 | I118: 0 | J118: 0 | K118: 0 | L118: 0 | M118: 0 | N118: 0 | O118: 0 | P118: 0 | Q118: 0 | R118: 0 | S118: 0 | T118: 0 | V118: 0 | X118: 0 | Y118: 0 | Z118: 0 | AA118: 0 | AB118: 0 | AD118: 0 | AE118: 0 | AF118: 0 | AG118: 0 | AH118: 0 | AI118: 0 | AJ118: 0 | AK118: 0 | AL118: 0 | AO118: 0 | AP118: 0 | AQ118: 0 | AR118: 0 | AS118: 0 | AT118: 0 | AU118: 0 | AV118: 0 | AW118: 0 | AX118: 0 | AY118: 0 | BA118: 0 | BB118: 0 | BC118: 0 | BD118: 0 | BE118: 0 | BF118: 0 | BG118: 0 | BI118: 0 | BJ118: 0 | BK118: 0 | BL118: 0 | BM118: 0 | BN118: 0 | BO118: 0 | BP118: 0 | BQ118: 0 | BR118: 0 | BS118: 0 | BT118: 0 | BU118: 0 | BW118: 0 | BY118: 0 | BZ118: 0 | CB118: 0 | CC118: 0 | CD118: 0 | CF118: 0 | CG118: 0 | CH118: 0 | CI118: 0 | CJ118: 0 | CK118: 0 | CL118: 0 | CM118: 0 | CN118: 0 | CQ118: 0 | CR118: 0 | CS118: 0 | CT118: 0 | CU118: 0 | CV118: 0 | CW118: 0 | CX118: 0 | CY118: 0 | CZ118: 0 | DA118: 0
A119: 0116 | B119: 0 | C119: 1 | D119: 2022-09-26 | H119: 0 | I119: 0 | J119: 0 | K119: 0 | L119: 0 | M119: 0 | N119: 0 | O119: 0 | P119: 0 | Q119: 0 | R119: 0 | S119: 0 | T119: 0 | V119: 0 | X119: 0 | Y119: 0 | Z119: 0 | AA119: 0 | AB119: 0 | AD119: 0 | AE119: 0 | AF119: 0 | AG119: 0 | AH119: 0 | AI119: 0 | AJ119: 0 | AK119: 0 | AL119: 0 | AO119: 0 | AP119: 0 | AQ119: 0 | AR119: 0 | AS119: 166052 | AT119: 7500.15 | AU119: 173552.15 | AV119: -173552.15 | AW119: -1.045167478 | AX119: 8302.6 | AY119: 0 | BA119: 0 | BB119: 159860.2 | BC119: 0 | BD119: -159860.2 | BE119: -159860.2 | BF119: 0 | BG119: 0 | BI119: 0 | BJ119: 0 | BK119: 0 | BL119: 0 | BM119: 0 | BN119: 0 | BO119: 0 | BP119: 0 | BQ119: 0 | BR119: 0 | BS119: 0 | BT119: 0 | BU119: 0 | BW119: 0 | BY119: 0 | BZ119: 0 | CB119: 0 | CC119: 0 | CD119: 0 | CF119: 0 | CG119: 0 | CH119: 0 | CI119: 0 | CJ119: 0 | CK119: 0 | CL119: 0 | CM119: 0 | CN119: 0 | CQ119: 0 | CR119: 0 | CS119: 0 | CT119: 0 | CU119: 158034 | CV119: 8302.6 | CW119: 166336.6 | CX119: -166336.6 | CY119: -1.052536796 | CZ119: 7901.7 | DA119: 0
A120: 0117 | B120: 1 | C120: 1 | D120: 2022-09-30 | E120: 1 | F120: 1 | G120: 1 | H120: 397183.38 | I120: 4792291.31 | J120: 168463.6 | K120: 0 | L120: 250409.82 | M120: 606565.8 | N120: 0 | O120: 0 | P120: 0 | Q120: 0 | R120: 0 | S120: 564062.75 | T120: 6778976.66 | V120: 0 | X120: 0 | Y120: 6778976.66 | Z120: 82357.1059 | AA120: 0 | AB120: 0 | AD120: 0 | AE120: 0 | AF120: 430593.75 | AG120: 609374 | AH120: 121926.5 | AI120: 0 | AJ120: 0 | AK120: 1117751 | AL120: 2362002.356 | AO120: 136064.8 | AP120: 136064.8 | AQ120: 2225937.556 | AR120: 9004914.216 | AS120: 6126694 | AT120: 0 | AU120: 6126694 | AV120: 0 | AW120: 0 | AX120: 0 | AY120: 0 | BA120: 0 | BB120: 6164920 | BC120: 8603359.416 | BD120: 2438439.416 | BE120: 2438439.416 | BF120: 0 | BG120: 0 | BI120: 411334.07 | BJ120: 4820908.24 | BK120: 196218.23 | BL120: 0 | BM120: 287234.84 | BN120: 672121.52 | BO120: 0 | BP120: 0 | BQ120: 0 | BR120: 0 | BS120: 0 | BT120: 613902.4 | BU120: 7001719.3 | BW120: 0 | BY120: 0 | BZ120: 7001719.3 | CB120: 90903.2 | CC120: 0 | CD120: 0 | CF120: 0 | CG120: 0 | CH120: 451536 | CI120: 646650 | CJ120: 158269.8 | CK120: 0 | CL120: 0 | CM120: 1087547 | CN120: 2434906 | CQ120: 90022.192 | CR120: 90022.192 | CS120: 2344883.808 | CT120: 9346603.108 | CU120: 6293720 | CV120: 0 | CW120: 6293720 | CX120: 0 | CY120: 0 | CZ120: 0 | DA120: 0
A121: 0118 | B121: 1 | C121: 1 | D121: 2023-03-29 | E121: 1 | F121: 1 | G121: 1 | H121: 209419.18 | I121: 4658132.61 | J121: 108402.96 | K121: 0 | L121: 0 | M121: 538056.1 | N121: 52535 | O121: 0 | P121: 0 | Q121: 0 | R121: 0 | S121: 2096304.71 | T121: 7662850.56 | V121: 0 | X121: 0 | Y121: 7662850.56 | Z121: 145838.47 | AA121: 78528.41 | AB121: 6843.24 | AD121: 0 | AE121: 37435.3 | AF121: 101420.76 | AG121: 674533 | AH121: 130765.47 | AI121: 0 | AJ121: 0 | AK121: 121148 | AL121: 1296512.65 | AO121: 5269.6 | AP121: 5269.6 | AQ121: 1291243.05 | AR121: 8954093.61 | AS121: 6915659 | AT121: 0 | AU121: 6915659 | AV121: 0 | AW121: 0 | AX121: 0 | AY121: 0 | BA121: 7414.12 | BB121: 6858853 | BC121: 8480389.74 | BD121: 1621536.74 | BE121: 1614122.62 | BF121: 0 | BG121: 0 | BI121: 200487 | BJ121: 4804392 | BK121: 96133 | BL121: 0 | BM121: 0 | BN121: 554833 | BO121: 0 | BP121: 0 | BQ121: 0 | BR121: 0 | BS121: 0 | BT121: 2248889 | BU121: 7904734 | BW121: 0 | BY121: 0 | BZ121: 7904734 | CB121: 135466.8 | CC121: 72943.66 | CD121: 1110.81 | CF121: 0 | CG121: 38914.03 | CH121: 104463.38 | CI121: 694768.99 | CJ121: 134688.43 | CK121: 0 | CL121: 0 | CM121: 57305 | CN121: 1239661.1 | CQ121: 19951.944 | CR121: 19951.944 | CS121: 1219709.156 | CT121: 9124443.156 | CU121: 7179616 | CV121: 0 | CW121: 7179616 | CX121: 0 | CY121: 0 | CZ121: 0 | DA121: 0
A122: 0119 | B122: 0 | C122: 0 | H122: 0 | I122: 0 | J122: 0 | K122: 0 | L122: 0 | M122: 0 | N122: 0 | O122: 0 | P122: 0 | Q122: 0 | R122: 0 | S122: 0 | T122: 0 | V122: 0 | X122: 0 | Y122: 0 | Z122: 0 | AA122: 0 | AB122: 0 | AD122: 0 | AE122: 0 | AF122: 0 | AG122: 0 | AH122: 0 | AI122: 0 | AJ122: 0 | AK122: 0 | AL122: 0 | AO122: 0 | AP122: 0 | AQ122: 0 | AR122: 0 | AS122: 0 | AT122: 0 | AU122: 0 | AV122: 0 | AW122: 0 | AX122: 0 | AY122: 0 | BA122: 0 | BB122: 0 | BC122: 0 | BD122: 0 | BE122: 0 | BF122: 0 | BG122: 0 | BI122: 0 | BJ122: 0 | BK122: 0 | BL122: 0 | BM122: 0 | BN122: 0 | BO122: 0 | BP122: 0 | BQ122: 0 | BR122: 0 | BS122: 0 | BT122: 0 | BU122: 0 | BW122: 0 | BY122: 0 | BZ122: 0 | CB122: 0 | CC122: 0 | CD122: 0 | CF122: 0 | CG122: 0 | CH122: 0 | CI122: 0 | CJ122: 0 | CK122: 0 | CL122: 0 | CM122: 0 | CN122: 0 | CQ122: 0 | CR122: 0 | CS122: 0 | CT122: 0 | CU122: 0 | CV122: 0 | CW122: 0 | CX122: 0 | CY122: 0 | CZ122: 0 | DA122: 0
A123: 0120 | B123: 0 | C123: 1 | D123: 2022-10-06 | H123: 0 | I123: 0 | J123: 0 | K123: 0 | L123: 0 | M123: 0 | N123: 0 | O123: 0 | P123: 0 | Q123: 0 | R123: 0 | S123: 0 | T123: 0 | V123: 0 | X123: 0 | Y123: 0 | Z123: 0 | AA123: 0 | AB123: 0 | AD123: 0 | AE123: 0 | AF123: 0 | AG123: 0 | AH123: 0 | AI123: 0 | AJ123: 0 | AK123: 0 | AL123: 0 | AO123: 0 | AP123: 0 | AQ123: 0 | AR123: 0 | AS123: 0 | AT123: 0 | AU123: 0 | AV123: 0 | AW123: 0 | AX123: 0 | AY123: 0 | BA123: 0 | BB123: 0 | BC123: 0 | BD123: 0 | BE123: 0 | BF123: 0 | BG123: 0 | BI123: 0 | BJ123: 0 | BK123: 0 | BL123: 0 | BM123: 0 | BN123: 0 | BO123: 0 | BP123: 0 | BQ123: 0 | BR123: 0 | BS123: 0 | BT123: 0 | BU123: 0 | BW123: 0 | BY123: 0 | BZ123: 0 | CB123: 0 | CC123: 0 | CD123: 0 | CF123: 0 | CG123: 0 | CH123: 0 | CI123: 0 | CJ123: 0 | CK123: 0 | CL123: 0 | CM123: 0 | CN123: 0 | CQ123: 0 | CR123: 0 | CS123: 0 | CT123: 0 | CU123: 0 | CV123: 0 | CW123: 0 | CX123: 0 | CY123: 0 | CZ123: 0 | DA123: 0
A124: 0121 | B124: 1 | C124: 1 | D124: 2022-10-13 | E124: 1 | F124: 1 | G124: 1 | H124: 44766 | I124: 581111 | J124: 54147 | K124: 0 | L124: 0 | M124: 38365 | N124: 2438 | O124: 0 | P124: 0 | Q124: 0 | R124: 0 | S124: 752389 | T124: 1473216 | V124: 0 | X124: 0 | Y124: 1473216 | Z124: 0 | AA124: 0 | AB124: 0 | AD124: 0 | AE124: 0 | AF124: 0 | AG124: 18288 | AH124: 0 | AI124: 0 | AJ124: 0 | AK124: 15000 | AL124: 33288 | AO124: 0 | AP124: 0 | AQ124: 33288 | AR124: 1506504 | AS124: 936904 | AT124: 0 | AU124: 936904 | AV124: 0 | AW124: 0 | AX124: 0 | AY124: 0 | BA124: 0 | BB124: 885043 | BC124: 1322101.34 | BD124: 437058.34 | BE124: 437058.34 | BF124: 0 | BG124: 0 | BI124: 168021 | BJ124: 660194 | BK124: 58481 | BL124: 0 | BM124: 0 | BN124: 41840 | BO124: 0 | BP124: 0 | BQ124: 0 | BR124: 0 | BS124: 0 | BT124: 1233133 | BU124: 2161669 | BW124: 31280 | BY124: 31280 | BZ124: 2130389 | CB124: 0 | CC124: 0 | CD124: 0 | CF124: 0 | CG124: 0 | CH124: 0 | CI124: 18000 | CJ124: 0 | CK124: 0 | CL124: 0 | CM124: 10000 | CN124: 28000 | CQ124: 0 | CR124: 0 | CS124: 28000 | CT124: 2158389 | CU124: 1024022 | CV124: 0 | CW124: 1024022 | CX124: 0 | CY124: 0 | CZ124: 0 | DA124: 0
A125: 0122 | B125: 1 | C125: 1 | D125: 2022-11-16 | E125: 1 | F125: 1 | G125: 1 | H125: 1078803.11 | I125: 26570841.7 | J125: 104340.79 | K125: 1841.13 | L125: 729388.85 | M125: 0 | N125: 0 | O125: 17535 | P125: 0 | Q125: 0 | R125: 0 | S125: 1220950 | T125: 29723700.58 | V125: 0 | X125: 0 | Y125: 29723700.58 | Z125: 241287.33 | AA125: 0 | AB125: 0 | AD125: 0 | AE125: 2891759.15 | AF125: 1686329.68 | AG125: 1500801.34 | AH125: 208733.95 | AI125: 0 | AJ125: 0 | AK125: 523250 | AL125: 7052161.45 | AO125: 26200.16379 | AP125: 26200.16379 | AQ125: 7025961.286 | AR125: 36749661.87 | AS125: 28693777 | AT125: 0 | AU125: 28693777 | AV125: 0 | AW125: 0 | AX125: 0 | AY125: 0 | BA125: 0 | BB125: 28148157 | BC125: 34049928.98 | BD125: 5901771.985 | BE125: 5901771.985 | BF125: 0 | BG125: 0 | BI125: 1979796 | BJ125: 28472371 | BK125: 370457 | BL125: 20000 | BM125: 529583 | BN125: 0 | BO125: 0 | BP125: 17038 | BQ125: 0 | BR125: 0 | BS125: 0 | BT125: 585816 | BU125: 31975061 | BW125: 0 | BY125: 0 | BZ125: 31975061 | CB125: 249105.63 | CC125: 0 | CD125: 0 | CF125: 0 | CG125: 2494003 | CH125: 1818836.5 | CI125: 1653440.34 | CJ125: 257995.164 | CK125: 0 | CL125: 0 | CM125: 489430 | CN125: 6962810.634 | CQ125: 24875.80728 | CR125: 24875.80728 | CS125: 6937934.827 | CT125: 38912995.83 | CU125: 29748743 | CV125: 0 | CW125: 29748743 | CX125: 0 | CY125: 0 | CZ125: 0 | DA125: 0
A126: 0123 | B126: 0 | C126: 1 | D126: 2022-11-29 | H126: 0 | I126: 0 | J126: 0 | K126: 0 | L126: 0 | M126: 0 | N126: 0 | O126: 0 | P126: 0 | Q126: 0 | R126: 0 | S126: 0 | T126: 0 | V126: 0 | X126: 0 | Y126: 0 | Z126: 0 | AA126: 0 | AB126: 0 | AD126: 0 | AE126: 0 | AF126: 0 | AG126: 0 | AH126: 0 | AI126: 0 | AJ126: 0 | AK126: 1281578 | AL126: 1281578 | AO126: 0 | AP126: 0 | AQ126: 1281578 | AR126: 1281578 | AS126: 23850 | AT126: 0 | AU126: 23850 | AV126: 0 | AW126: 0 | AX126: 0 | AY126: 0 | BA126: 0 | BB126: 23164.8 | BC126: 1159054 | BD126: 1135889.2 | BE126: 1135889.2 | BF126: 0 | BG126: 0 | BI126: 0 | BJ126: 0 | BK126: 0 | BL126: 0 | BM126: 0 | BN126: 0 | BO126: 0 | BP126: 0 | BQ126: 0 | BR126: 0 | BS126: 0 | BT126: 0 | BU126: 0 | BW126: 0 | BY126: 0 | BZ126: 0 | CB126: 0 | CC126: 0 | CD126: 0 | CF126: 0 | CG126: 0 | CH126: 0 | CI126: 0 | CJ126: 0 | CK126: 0 | CL126: 0 | CM126: 1264596 | CN126: 1264596 | CQ126: 0 | CR126: 0 | CS126: 1264596 | CT126: 1264596 | CU126: 47093 | CV126: 0 | CW126: 47093 | CX126: 0 | CY126: 0 | CZ126: 0 | DA126: 0
A127: 0124 | B127: 0 | C127: 1 | D127: 2023-01-06 | H127: 0 | I127: 0 | J127: 0 | K127: 0 | L127: 0 | M127: 0 | N127: 0 | O127: 0 | P127: 0 | Q127: 0 | R127: 0 | S127: 0 | T127: 0 | V127: 0 | X127: 0 | Y127: 0 | Z127: 0 | AA127: 0 | AB127: 0 | AD127: 0 | AE127: 0 | AF127: 0 | AG127: 0 | AH127: 0 | AI127: 0 | AJ127: 0 | AK127: 37933.39 | AL127: 37933.39 | AO127: 0 | AP127: 0 | AQ127: 37933.39 | AR127: 37933.39 | AS127: 44867 | AT127: 1465.8 | AU127: 46332.8 | AV127: -8399.41 | AW127: -0.1872068558 | AX127: 2243.35 | AY127: 0 | BA127: 0 | BB127: 29316 | BC127: 0 | BD127: -29316 | BE127: -29316 | BF127: 0 | BG127: 0 | BI127: 0 | BJ127: 0 | BK127: 0 | BL127: 0 | BM127: 0 | BN127: 0 | BO127: 0 | BP127: 0 | BQ127: 0 | BR127: 0 | BS127: 0 | BT127: 0 | BU127: 0 | BW127: 0 | BY127: 0 | BZ127: 0 | CB127: 0 | CC127: 0 | CD127: 0 | CF127: 0 | CG127: 0 | CH127: 0 | CI127: 0 | CJ127: 0 | CK127: 0 | CL127: 0 | CM127: 0 | CN127: 0 | CQ127: 0 | CR127: 0 | CS127: 0 | CT127: 0 | CU127: 40081 | CV127: 2243.35 | CW127: 42324.35 | CX127: -42324.35 | CY127: -1.05597041 | CZ127: 2004.05 | DA127: 0
A128: 0125 | B128: 1 | C128: 1 | D128: 2022-11-23 | E128: 1 | F128: 1 | G128: 1 | H128: 368001 | I128: 9884124 | J128: 259982 | K128: 0 | L128: 136708 | M128: 1416124 | N128: 130956 | O128: 0 | P128: 0 | Q128: 0 | R128: 0 | S128: 1029980 | T128: 13225875 | V128: 2121720 | X128: 2121720 | Y128: 11104155 | Z128: 167122.8 | AA128: 0 | AB128: 0 | AD128: 0 | AE128: 100000 | AF128: 589556 | AG128: 1707076 | AH128: 1219807 | AI128: 0 | AJ128: 0 | AK128: 459722 | AL128: 4243283.8 | AO128: 98524.65593 | AP128: 98524.65593 | AQ128: 4144759.144 | AR128: 15248914.14 | AS128: 9760072 | AT128: 0 | AU128: 9760072 | AV128: 0 | AW128: 0 | AX128: 0 | AY128: 0 | BA128: 0 | BB128: 9785808 | BC128: 15197365.41 | BD128: 5411557.41 | BE128: 5411557.41 | BF128: 0 | BG128: 2121720 | BI128: 490490 | BJ128: 10496041 | BK128: 233295 | BL128: 0 | BM128: 134577 | BN128: 1532890 | BO128: 85500 | BP128: 0 | BQ128: 0 | BR128: 0 | BS128: 0 | BT128: 838940 | BU128: 13811733 | BW128: 2070572 | BY128: 2070572 | BZ128: 11741161 | CB128: 177670 | CC128: 0 | CD128: 0 | CF128: 0 | CG128: 101280 | CH128: 648644 | CI128: 1755052 | CJ128: 1258091 | CK128: 0 | CL128: 0 | CM128: 387820 | CN128: 4328557 | CQ128: 54886.42931 | CR128: 54886.42931 | CS128: 4273670.571 | CT128: 16014831.57 | CU128: 10079963 | CV128: 0 | CW128: 10079963 | CX128: 0 | CY128: 0 | CZ128: 0 | DA128: 0
A129: 0126 | B129: 0 | C129: 1 | D129: 2022-10-28 | H129: 0 | I129: 0 | J129: 0 | K129: 0 | L129: 0 | M129: 0 | N129: 0 | O129: 0 | P129: 0 | Q129: 0 | R129: 0 | S129: 0 | T129: 0 | V129: 0 | X129: 0 | Y129: 0 | Z129: 0 | AA129: 0 | AB129: 0 | AD129: 0 | AE129: 0 | AF129: 0 | AG129: 0 | AH129: 0 | AI129: 0 | AJ129: 0 | AK129: 0 | AL129: 0 | AO129: 0 | AP129: 0 | AQ129: 0 | AR129: 0 | AS129: 0 | AT129: 0 | AU129: 0 | AV129: 0 | AW129: 0 | AX129: 0 | AY129: 0 | BA129: 0 | BB129: 0 | BC129: 0 | BD129: 0 | BE129: 0 | BF129: 0 | BG129: 0 | BI129: 0 | BJ129: 0 | BK129: 0 | BL129: 0 | BM129: 0 | BN129: 0 | BO129: 0 | BP129: 0 | BQ129: 0 | BR129: 0 | BS129: 0 | BT129: 0 | BU129: 0 | BW129: 0 | BY129: 0 | BZ129: 0 | CB129: 0 | CC129: 0 | CD129: 0 | CF129: 0 | CG129: 0 | CH129: 0 | CI129: 0 | CJ129: 0 | CK129: 0 | CL129: 0 | CM129: 0 | CN129: 0 | CQ129: 0 | CR129: 0 | CS129: 0 | CT129: 0 | CU129: 0 | CV129: 0 | CW129: 0 | CX129: 0 | CY129: 0 | CZ129: 0 | DA129: 0
A130: 0127 | B130: 1 | C130: 1 | D130: 2022-11-16 | E130: 1 | F130: 1 | G130: 1 | H130: 225471 | I130: 4465930 | J130: 62794 | K130: 0 | L130: 36897 | M130: 256431 | N130: 0 | O130: 0 | P130: 0 | Q130: 0 | R130: 0 | S130: 0 | T130: 5047523 | V130: 0 | X130: 0 | Y130: 5047523 | Z130: 131152 | AA130: 0 | AB130: 0 | AD130: 0 | AE130: 8152 | AF130: 210855 | AG130: 443821 | AH130: 76067 | AI130: 0 | AJ130: 0 | AK130: 500867 | AL130: 1370914 | AO130: 44056.12138 | AP130: 44056.12138 | AQ130: 1326857.879 | AR130: 6374380.879 | AS130: 4054949 | AT130: 0 | AU130: 4054949 | AV130: 0 | AW130: 0 | AX130: 0 | AY130: 0 | BA130: 0 | BB130: 4013848 | BC130: 5575329.76 | BD130: 1561481.76 | BE130: 1561481.76 | BF130: 0 | BG130: 0 | BI130: 215935 | BJ130: 3992266 | BK130: 63940 | BL130: 0 | BM130: 49012 | BN130: 459097 | BO130: 0 | BP130: 0 | BQ130: 0 | BR130: 0 | BS130: 0 | BT130: 243706 | BU130: 5023956 | BW130: 0 | BY130: 0 | BZ130: 5023956 | CB130: 144308 | CC130: 0 | CD130: 0 | CF130: 0 | CG130: 8499 | CH130: 237093 | CI130: 468572 | CJ130: 102484.8 | CK130: 0 | CL130: 0 | CM130: 554933 | CN130: 1515889.8 | CQ130: 74700.47495 | CR130: 74700.47495 | CS130: 1441189.325 | CT130: 6465145.325 | CU130: 4163732 | CV130: 0 | CW130: 4163732 | CX130: 0 | CY130: 0 | CZ130: 0 | DA130: 0
A131: 0128 | B131: 1 | C131: 1 | D131: 2022-10-14 | E131: 1 | F131: 1 | G131: 0.9619154525 | H131: 2389294.73 | I131: 74991661.88 | J131: 2856614.47 | K131: 0 | L131: 2202590.34 | M131: 8403464.46 | N131: 53927.67 | O131: 0 | P131: 0 | Q131: 0 | R131: 0 | S131: 6463420.2 | T131: 97360973.75 | V131: 0 | X131: 0 | Y131: 97360973.75 | Z131: 255648.2698 | AA131: 0 | AB131: 0 | AD131: 0 | AE131: 784460.3279 | AF131: 4483714 | AG131: 12409284 | AH131: 4815643 | AI131: 0 | AJ131: 0 | AK131: 6046163 | AL131: 28794912.6 | AO131: 952768.5054 | AP131: 952768.5054 | AQ131: 27842144.09 | AR131: 125203117.8 | AS131: 109839438 | AT131: 0 | AU131: 109839438 | AV131: 0 | AW131: 0 | AX131: 0 | AY131: 0 | BA131: 0 | BB131: 107185066 | BC131: 120148191.9 | BD131: 12963125.86 | BE131: 12963125.86 | BF131: 0 | BG131: 0 | BI131: 3402844.26 | BJ131: 83445877.66 | BK131: 3109070.14 | BL131: 0 | BM131: 2156244.25 | BN131: 7148814.21 | BO131: 25000 | BP131: 0 | BQ131: 0 | BR131: 0 | BS131: 0 | BT131: 6675249 | BU131: 105963099.5 | BW131: 704000 | BY131: 704000 | BZ131: 105259099.5 | CB131: 559526 | CC131: 0 | CD131: 0 | CF131: 0 | CG131: 1413635 | CH131: 4741830 | CI131: 12695815 | CJ131: 4902325 | CK131: 0 | CL131: 0 | CM131: 6850970 | CN131: 31164101 | CQ131: 1322835.328 | CR131: 1322835.328 | CS131: 29841265.67 | CT131: 135100365.2 | CU131: 121331843 | CV131: 0 | CW131: 121331843 | CX131: 0 | CY131: 0 | CZ131: 0 | DA131: 0
A132: 0129 | B132: 0 | C132: 1 | D132: 2022-09-20 | H132: 0 | I132: 0 | J132: 0 | K132: 0 | L132: 0 | M132: 0 | N132: 0 | O132: 0 | P132: 0 | Q132: 0 | R132: 0 | S132: 0 | T132: 0 | V132: 0 | X132: 0 | Y132: 0 | Z132: 0 | AA132: 0 | AB132: 0 | AD132: 0 | AE132: 0 | AF132: 0 | AG132: 0 | AH132: 0 | AI132: 0 | AJ132: 0 | AK132: 68448 | AL132: 68448 | AO132: 0 | AP132: 0 | AQ132: 68448 | AR132: 68448 | AS132: 59842 | AT132: 0 | AU132: 59842 | AV132: 0 | AW132: 0 | AX132: 0 | AY132: 0 | BA132: 0 | BB132: 15826.358 | BC132: 77339.17 | BD132: 61512.812 | BE132: 61512.812 | BF132: 0 | BG132: 0 | BI132: 0 | BJ132: 0 | BK132: 0 | BL132: 0 | BM132: 0 | BN132: 0 | BO132: 0 | BP132: 0 | BQ132: 0 | BR132: 0 | BS132: 0 | BT132: 0 | BU132: 0 | BW132: 0 | BY132: 0 | BZ132: 0 | CB132: 0 | CC132: 0 | CD132: 0 | CF132: 0 | CG132: 0 | CH132: 0 | CI132: 0 | CJ132: 0 | CK132: 0 | CL132: 0 | CM132: 88000 | CN132: 88000 | CQ132: 0 | CR132: 0 | CS132: 88000 | CT132: 88000 | CU132: 64675 | CV132: 0 | CW132: 64675 | CX132: 0 | CY132: 0 | CZ132: 0 | DA132: 0
A133: 0130 | B133: 0 | C133: 1 | D133: 2022-11-29 | H133: 0 | I133: 0 | J133: 0 | K133: 0 | L133: 0 | M133: 0 | N133: 0 | O133: 0 | P133: 0 | Q133: 0 | R133: 0 | S133: 0 | T133: 0 | V133: 0 | X133: 0 | Y133: 0 | Z133: 0 | AA133: 0 | AB133: 0 | AD133: 0 | AE133: 0 | AF133: 0 | AG133: 0 | AH133: 0 | AI133: 0 | AJ133: 0 | AK133: 66235.52 | AL133: 66235.52 | AO133: 0 | AP133: 0 | AQ133: 66235.52 | AR133: 66235.52 | AS133: 0 | AT133: 0 | AU133: 0 | AV133: 0 | AW133: 0 | AX133: 0 | AY133: 0 | BA133: 0 | BB133: 0 | BC133: 70215.09 | BD133: 70215.09 | BE133: 70215.09 | BF133: 0 | BG133: 0 | BI133: 0 | BJ133: 0 | BK133: 0 | BL133: 0 | BM133: 0 | BN133: 0 | BO133: 0 | BP133: 0 | BQ133: 0 | BR133: 0 | BS133: 0 | BT133: 0 | BU133: 0 | BW133: 0 | BY133: 0 | BZ133: 0 | CB133: 0 | CC133: 0 | CD133: 0 | CF133: 0 | CG133: 0 | CH133: 0 | CI133: 0 | CJ133: 0 | CK133: 0 | CL133: 0 | CM133: 91065.3 | CN133: 91065.3 | CQ133: 0 | CR133: 0 | CS133: 91065.3 | CT133: 91065.3 | CU133: 0 | CV133: 0 | CW133: 0 | CX133: 0 | CY133: 0 | CZ133: 0 | DA133: 0
A134: 0131 | B134: 1 | C134: 1 | D134: 2022-12-02 | E134: 1 | F134: 1 | G134: 1 | H134: 1793565.15 | I134: 46539977.88 | J134: 979732.77 | K134: 0 | L134: 946747.75 | M134: 5705466.22 | N134: 138130.33 | O134: 0 | P134: 0 | Q134: 0 | R134: 0 | S134: 2179207.84 | T134: 58282827.94 | V134: 30000 | X134: 30000 | Y134: 58252827.94 | Z134: 632404 | AA134: 0 | AB134: 0 | AD134: 0 | AE134: 0 | AF134: 1043305 | AG134: 4359227 | AH134: 1097762.5 | AI134: 0 | AJ134: 0 | AK134: 249933 | AL134: 7382631.5 | AO134: 57288.75418 | AP134: 57288.75418 | AQ134: 7325342.746 | AR134: 65578170.69 | AS134: 43741996 | AT134: 0 | AU134: 43741996 | AV134: 0 | AW134: 0 | AX134: 0 | AY134: 0 | BA134: 74794 | BB134: 45460704 | BC134: 59253335.47 | BD134: 13792631.47 | BE134: 13717837.47 | BF134: 0 | BG134: 30000 | BI134: 2512885 | BJ134: 48201596 | BK134: 843200 | BL134: 0 | BM134: 920576 | BN134: 5059112 | BO134: 200000 | BP134: 0 | BQ134: 0 | BR134: 61201 | BS134: 0 | BT134: 1486095 | BU134: 59284665 | BW134: 35000 | BY134: 35000 | BZ134: 59249665 | CB134: 704113 | CC134: 0 | CD134: 0 | CF134: 0 | CG134: 0 | CH134: 1118810 | CI134: 4526681 | CJ134: 1317315 | CK134: 0 | CL134: 0 | CM134: 238121 | CN134: 7905040 | CQ134: 29868.00579 | CR134: 29868.00579 | CS134: 7875171.994 | CT134: 67124836.99 | CU134: 45566365 | CV134: 0 | CW134: 45566365 | CX134: 0 | CY134: 0 | CZ134: 0 | DA134: 0
A135: 0132 | B135: 0 | C135: 1 | D135: 2022-10-01 | H135: 0 | I135: 0 | J135: 0 | K135: 0 | L135: 0 | M135: 0 | N135: 0 | O135: 0 | P135: 0 | Q135: 0 | R135: 0 | S135: 0 | T135: 0 | V135: 0 | X135: 0 | Y135: 0 | Z135: 0 | AA135: 0 | AB135: 0 | AD135: 0 | AE135: 0 | AF135: 0 | AG135: 0 | AH135: 0 | AI135: 0 | AJ135: 0 | AK135: 115274 | AL135: 115274 | AO135: 0 | AP135: 0 | AQ135: 115274 | AR135: 115274 | AS135: 201663 | AT135: 10071.2 | AU135: 211734.2 | AV135: -96460.2 | AW135: -0.4783237381 | AX135: 10083.15 | AY135: 0 | BA135: 0 | BB135: 215485.7 | BC135: 129226 | BD135: -86259.7 | BE135: -86259.7 | BF135: 0 | BG135: 0 | BI135: 0 | BJ135: 0 | BK135: 0 | BL135: 0 | BM135: 0 | BN135: 0 | BO135: 0 | BP135: 0 | BQ135: 0 | BR135: 0 | BS135: 0 | BT135: 0 | BU135: 0 | BW135: 0 | BY135: 0 | BZ135: 0 | CB135: 0 | CC135: 0 | CD135: 0 | CF135: 0 | CG135: 0 | CH135: 0 | CI135: 0 | CJ135: 0 | CK135: 0 | CL135: 0 | CM135: 156976 | CN135: 156976 | CQ135: 0 | CR135: 0 | CS135: 156976 | CT135: 156976 | CU135: 190250 | CV135: 10083.15 | CW135: 200333.15 | CX135: -43357.15 | CY135: -0.2278956636 | CZ135: 9512.5 | DA135: 0
A136: 0133 | B136: 1 | C136: 1 | D136: 2022-10-13 | E136: 1 | F136: 1 | G136: 1 | H136: 600268.27 | I136: 10666779.98 | J136: 241710.32 | K136: 0 | L136: 304915.16 | M136: 1631141.38 | N136: 0 | O136: 0 | P136: 0 | Q136: 0 | R136: 0 | S136: 1219145.1 | T136: 14663960.21 | V136: 0 | X136: 0 | Y136: 14663960.21 | Z136: 171846.76 | AA136: 0 | AB136: 0 | AD136: 81599.09 | AE136: 0 | AF136: 479880.2 | AG136: 2712156.28 | AH136: 1003059.33 | AI136: 0 | AJ136: 0 | AK136: 888818.93 | AL136: 5337360.59 | AO136: 127378 | AP136: 127378 | AQ136: 5209982.59 | AR136: 19873942.8 | AS136: 17262299 | AT136: 0 | AU136: 17262299 | AV136: 0 | AW136: 0 | AX136: 0 | AY136: 0 | BA136: 4143.9 | BB136: 16099518 | BC136: 18576987.32 | BD136: 2477469.32 | BE136: 2473325.42 | BF136: 0 | BG136: 0 | BI136: 576391 | BJ136: 10813245 | BK136: 242162 | BL136: 0 | BM136: 292610 | BN136: 1478182 | BO136: 50000 | BP136: 0 | BQ136: 0 | BR136: 0 | BS136: 0 | BT136: 1613000 | BU136: 15065590 | BW136: 0 | BY136: 0 | BZ136: 15065590 | CB136: 188530.52 | CC136: 0 | CD136: 0 | CF136: 83231.07 | CG136: 0 | CH136: 514778.4 | CI136: 3835825.55 | CJ136: 1050276.22 | CK136: 0 | CL136: 0 | CM136: 878497 | CN136: 6551138.76 | CQ136: 78091.08 | CR136: 78091.08 | CS136: 6473047.68 | CT136: 21538637.68 | CU136: 18684758 | CV136: 0 | CW136: 18684758 | CX136: 0 | CY136: 0 | CZ136: 0 | DA136: 0
A137: 0134 | B137: 0 | C137: 1 | D137: 2022-10-12 | H137: 0 | I137: 0 | J137: 0 | K137: 0 | L137: 0 | M137: 0 | N137: 0 | O137: 0 | P137: 0 | Q137: 0 | R137: 0 | S137: 0 | T137: 0 | V137: 0 | X137: 0 | Y137: 0 | Z137: 0 | AA137: 0 | AB137: 0 | AD137: 0 | AE137: 0 | AF137: 0 | AG137: 0 | AH137: 0 | AI137: 0 | AJ137: 0 | AK137: 24100 | AL137: 24100 | AO137: 0 | AP137: 0 | AQ137: 24100 | AR137: 24100 | AS137: 15220 | AT137: 0 | AU137: 15220 | AV137: 0 | AW137: 0 | AX137: 0 | AY137: 0 | BA137: 0 | BB137: 693.05 | BC137: 28834 | BD137: 28140.95 | BE137: 28140.95 | BF137: 0 | BG137: 0 | BI137: 0 | BJ137: 0 | BK137: 0 | BL137: 0 | BM137: 0 | BN137: 0 | BO137: 0 | BP137: 0 | BQ137: 0 | BR137: 0 | BS137: 0 | BT137: 0 | BU137: 0 | BW137: 0 | BY137: 0 | BZ137: 0 | CB137: 0 | CC137: 0 | CD137: 0 | CF137: 0 | CG137: 0 | CH137: 0 | CI137: 0 | CJ137: 0 | CK137: 0 | CL137: 0 | CM137: 29700 | CN137: 29700 | CQ137: 0 | CR137: 0 | CS137: 29700 | CT137: 29700 | CU137: 15698 | CV137: 0 | CW137: 15698 | CX137: 0 | CY137: 0 | CZ137: 0 | DA137: 0
A138: 0135 | B138: 1 | C138: 1 | D138: 2022-09-28 | E138: 1 | F138: 1 | G138: 1 | H138: 93847 | I138: 1836270 | J138: 85620 | K138: 0 | L138: 4456 | M138: 225320 | N138: 0 | O138: 0 | P138: 0 | Q138: 0 | R138: 0 | S138: 281747 | T138: 2527260 | V138: 0 | X138: 0 | Y138: 2527260 | Z138: 48561 | AA138: 0 | AB138: 0 | AD138: 0 | AE138: 960 | AF138: 189356 | AG138: 163132 | AH138: 16679 | AI138: 0 | AJ138: 0 | AK138: 119246 | AL138: 537934 | AO138: 36062.8 | AP138: 36062.8 | AQ138: 501871.2 | AR138: 3029131.2 | AS138: 2101881 | AT138: 0 | AU138: 2101881 | AV138: 0 | AW138: 0 | AX138: 0 | AY138: 0 | BA138: 0 | BB138: 2051676 | BC138: 3083219.43 | BD138: 1031543.43 | BE138: 1031543.43 | BF138: 0 | BG138: 0 | BI138: 100396 | BJ138: 1941308 | BK138: 86320 | BL138: 0 | BM138: 10000 | BN138: 204346 | BO138: 0 | BP138: 0 | BQ138: 0 | BR138: 0 | BS138: 0 | BT138: 341126 | BU138: 2683496 | BW138: 0 | BY138: 0 | BZ138: 2683496 | CB138: 43314 | CC138: 0 | CD138: 0 | CF138: 0 | CG138: 0 | CH138: 196040 | CI138: 162145 | CJ138: 20014.8 | CK138: 0 | CL138: 0 | CM138: 176165 | CN138: 597678.8 | CQ138: 39483.272 | CR138: 39483.272 | CS138: 558195.528 | CT138: 3241691.528 | CU138: 2386919 | CV138: 0 | CW138: 2386919 | CX138: 0 | CY138: 0 | CZ138: 0 | DA138: 0
A139: 0136 | B139: 1 | C139: 1 | D139: 2022-12-01 | E139: 1 | F139: 1 | G139: 1 | H139: 1073087.18 | I139: 28535515.74 | J139: 472000.82 | K139: 0 | L139: 753487.66 | M139: 2926237.04 | N139: 15446.45 | O139: 132379.52 | P139: 0 | Q139: 0 | R139: 0 | S139: 1558277.36 | T139: 35466431.77 | V139: 68697 | X139: 68697 | Y139: 35397734.77 | Z139: 337166 | AA139: 0 | AB139: 0 | AD139: 0 | AE139: 135852.08 | AF139: 972670.62 | AG139: 2339902.85 | AH139: 361071.935 | AI139: 0 | AJ139: 0 | AK139: 462111 | AL139: 4608774.485 | AO139: 11998.14995 | AP139: 11998.14995 | AQ139: 4596776.335 | AR139: 39994511.11 | AS139: 29457390 | AT139: 0 | AU139: 29457390 | AV139: 0 | AW139: 0 | AX139: 0 | AY139: 0 | BA139: 0 | BB139: 29138345 | BC139: 37551536.64 | BD139: 8413191.639 | BE139: 8413191.639 | BF139: 0 | BG139: 68697 | BI139: 1329089 | BJ139: 29739853 | BK139: 507959 | BL139: 0 | BM139: 720448 | BN139: 2479174 | BO139: 0 | BP139: 128000 | BQ139: 0 | BR139: 0 | BS139: 0 | BT139: 2044325 | BU139: 36948848 | BW139: 68697 | BY139: 68697 | BZ139: 36880151 | CB139: 384847 | CC139: 0 | CD139: 0 | CF139: 0 | CG139: 163998.21 | CH139: 1067077.84 | CI139: 2540789.54 | CJ139: 478597.638 | CK139: 0 | CL139: 0 | CM139: 399696 | CN139: 5035006.228 | CQ139: -96.69781067 | CR139: -96.69781067 | CS139: 5035102.926 | CT139: 41915253.93 | CU139: 31404798 | CV139: 0 | CW139: 31404798 | CX139: 0 | CY139: 0 | CZ139: 0 | DA139: 0
A140: 0137 | B140: 1 | C140: 1 | D140: 2022-10-05 | E140: 1 | F140: 1 | G140: 1 | H140: 2384312.72 | I140: 50148375.22 | J140: 1555829.45 | K140: 0 | L140: 580003.01 | M140: 8403366.52 | N140: 81494 | O140: 445391 | P140: 3839200 | Q140: 161857 | R140: 0 | S140: 5089089 | T140: 72688917.92 | V140: 1269551 | X140: 1269551 | Y140: 71419366.92 | Z140: 73400 | AA140: 0 | AB140: 0 | AD140: 0 | AE140: 75000 | AF140: 2233693 | AG140: 7544544.75 | AH140: 508537 | AI140: 0 | AJ140: 0 | AK140: 13090307.01 | AL140: 23525481.76 | AO140: 586.7143951 | AP140: 586.7143951 | AQ140: 23524895.05 | AR140: 94944261.97 | AS140: 94347341 | AT140: 597920.5427 | AU140: 94945261.54 | AV140: -999.57541 | AW140: -1.059463255e-05 | AX140: 999.57541 | AY140: 0 | BA140: 1269551 | BB140: 91113919.44 | BC140: 90515998.9 | BD140: -597920.5427 | BE140: -1867471.543 | BF140: 1269551 | BG140: 0 | BI140: 4825424 | BJ140: 54069330 | BK140: 1936778 | BL140: 0 | BM140: 735595 | BN140: 7120687 | BO140: 0 | BP140: 811000 | BQ140: 3806731 | BR140: 0 | BS140: 0 | BT140: 5001132 | BU140: 78306677 | BW140: 0 | BY140: 0 | BZ140: 78306677 | CB140: 73400 | CC140: 0 | CD140: 0 | CF140: 0 | CG140: 75000 | CH140: 2336947 | CI140: 7491847 | CJ140: 516317 | CK140: 0 | CL140: 0 | CM140: 14227680 | CN140: 24721191 | CQ140: 1551595.271 | CR140: 1551595.271 | CS140: 23169595.73 | CT140: 101476272.7 | CU140: 101613349 | CV140: 999.57541 | CW140: 101614348.6 | CX140: -138075.8468 | CY140: -0.001358835706 | CZ140: 138075.8468 | DA140: 0
A141: 0138 | B141: 1 | C141: 1 | D141: 2022-09-30 | E141: 1 | F141: 1 | G141: 1 | H141: 446349 | I141: 10152875 | J141: 142481 | K141: 0 | L141: 3375 | M141: 866881 | N141: 16800 | O141: 3081 | P141: 0 | Q141: 0 | R141: 0 | S141: 632004 | T141: 12263846 | V141: 0 | X141: 0 | Y141: 12263846 | Z141: 54895 | AA141: 0 | AB141: 2125 | AD141: 0 | AE141: 30000 | AF141: 500713 | AG141: 2342749 | AH141: 21684.5 | AI141: 0 | AJ141: 0 | AK141: 271542 | AL141: 3223708.5 | AO141: 22173.70122 | AP141: 22173.70122 | AQ141: 3201534.799 | AR141: 15465380.8 | AS141: 12214154 | AT141: 0 | AU141: 12214154 | AV141: 0 | AW141: 0 | AX141: 0 | AY141: 0 | BA141: 2417 | BB141: 11951471 | BC141: 15437473.34 | BD141: 3486002.344 | BE141: 3483585.344 | BF141: 0 | BG141: 0 | BI141: 482891 | BJ141: 10606845 | BK141: 150499 | BL141: 0 | BM141: 22750 | BN141: 972552 | BO141: 10000 | BP141: 9379 | BQ141: 0 | BR141: 0 | BS141: 0 | BT141: 517218 | BU141: 12772134 | BW141: 0 | BY141: 0 | BZ141: 12772134 | CB141: 58525 | CC141: 0 | CD141: 2125 | CF141: 0 | CG141: 30000 | CH141: 548610 | CI141: 2757904 | CJ141: 29283.6 | CK141: 0 | CL141: 0 | CM141: 294525 | CN141: 3720972.6 | CQ141: 7804.477862 | CR141: 7804.477862 | CS141: 3713168.122 | CT141: 16485302.12 | CU141: 12546415 | CV141: 0 | CW141: 12546415 | CX141: 0 | CY141: 0 | CZ141: 0 | DA141: 0
A142: 0139 | B142: 1 | C142: 1 | D142: 2022-10-27 | E142: 1 | F142: 1 | G142: 1 | H142: 2011871.22 | I142: 40397650.76 | J142: 596699.52 | K142: 13248 | L142: 1340397.29 | M142: 4750089.48 | N142: 0 | O142: 893.75 | P142: 0 | Q142: 108903.8 | R142: 0 | S142: 2014335 | T142: 51234088.82 | V142: 0 | X142: 0 | Y142: 51234088.82 | Z142: 504700 | AA142: 0 | AB142: 0 | AD142: 0 | AE142: 301034 | AF142: 1833024 | AG142: 6106674 | AH142: 432332 | AI142: 0 | AJ142: 0 | AK142: 227107 | AL142: 9404871 | AO142: 2550.134986 | AP142: 2550.134986 | AQ142: 9402320.865 | AR142: 60636409.69 | AS142: 44006243 | AT142: 0 | AU142: 44006243 | AV142: 0 | AW142: 0 | AX142: 0 | AY142: 0 | BA142: 0 | BB142: 41585309 | BC142: 56767840.01 | BD142: 15182531.01 | BE142: 15182531.01 | BF142: 0 | BG142: 0 | BI142: 4127611 | BJ142: 40729687 | BK142: 623393 | BL142: 5400 | BM142: 1296955 | BN142: 3581681 | BO142: 0 | BP142: 975 | BQ142: 0 | BR142: 124115 | BS142: 0 | BT142: 1865919 | BU142: 52355736 | BW142: 0 | BY142: 0 | BZ142: 52355736 | CB142: 582947 | CC142: 0 | CD142: 0 | CF142: 0 | CG142: 293159 | CH142: 1965447 | CI142: 6579561 | CJ142: 466919 | CK142: 0 | CL142: 0 | CM142: 145910 | CN142: 10033943 | CQ142: -20.55254112 | CR142: -20.55254112 | CS142: 10033963.55 | CT142: 62389699.55 | CU142: 46722628 | CV142: 0 | CW142: 46722628 | CX142: 0 | CY142: 0 | CZ142: 0 | DA142: 0
A143: 0140 | B143: 0 | C143: 1 | D143: 2022-09-26 | H143: 0 | I143: 0 | J143: 0 | K143: 0 | L143: 0 | M143: 0 | N143: 0 | O143: 0 | P143: 0 | Q143: 0 | R143: 0 | S143: 0 | T143: 0 | V143: 0 | X143: 0 | Y143: 0 | Z143: 0 | AA143: 0 | AB143: 0 | AD143: 0 | AE143: 0 | AF143: 0 | AG143: 0 | AH143: 0 | AI143: 0 | AJ143: 0 | AK143: 0 | AL143: 0 | AO143: 0 | AP143: 0 | AQ143: 0 | AR143: 0 | AS143: 0 | AT143: 0 | AU143: 0 | AV143: 0 | AW143: 0 | AX143: 0 | AY143: 0 | BA143: 0 | BB143: 0 | BC143: 0 | BD143: 0 | BE143: 0 | BF143: 0 | BG143: 0 | BI143: 0 | BJ143: 0 | BK143: 0 | BL143: 0 | BM143: 0 | BN143: 0 | BO143: 0 | BP143: 0 | BQ143: 0 | BR143: 0 | BS143: 0 | BT143: 0 | BU143: 0 | BW143: 0 | BY143: 0 | BZ143: 0 | CB143: 0 | CC143: 0 | CD143: 0 | CF143: 0 | CG143: 0 | CH143: 0 | CI143: 0 | CJ143: 0 | CK143: 0 | CL143: 0 | CM143: 0 | CN143: 0 | CQ143: 0 | CR143: 0 | CS143: 0 | CT143: 0 | CU143: 0 | CV143: 0 | CW143: 0 | CX143: 0 | CY143: 0 | CZ143: 0 | DA143: 0
A144: 0141 | B144: 1 | C144: 1 | D144: 2022-11-08 | E144: 1 | F144: 1 | G144: 1 | H144: 1451564.12 | I144: 31223573.01 | J144: 788608.91 | K144: 28871.66 | L144: 680430.92 | M144: 3345607.23 | N144: 77184.38 | O144: 19764 | P144: 0 | Q144: 87919.53 | R144: 0 | S144: 1605930.32 | T144: 39309454.08 | V144: 0 | X144: 0 | Y144: 39309454.08 | Z144: 392233 | AA144: 0 | AB144: 0 | AD144: 0 | AE144: 133382 | AF144: 420347 | AG144: 3296926 | AH144: 1561365 | AI144: 0 | AJ144: 0 | AK144: 3352875 | AL144: 9157128 | AO144: 884293.775 | AP144: 884293.775 | AQ144: 8272834.225 | AR144: 47582288.3 | AS144: 31027255 | AT144: 0 | AU144: 31027255 | AV144: 0 | AW144: 0 | AX144: 0 | AY144: 0 | BA144: 0 | BB144: 30687205 | BC144: 45589915.63 | BD144: 14902710.63 | BE144: 14902710.63 | BF144: 0 | BG144: 0 | BI144: 1538751 | BJ144: 30628677 | BK144: 815074 | BL144: 40500 | BM144: 795204 | BN144: 3532346 | BO144: 125000 | BP144: 21000 | BQ144: 0 | BR144: 121000 | BS144: 0 | BT144: 2165001 | BU144: 39782553 | BW144: 0 | BY144: 0 | BZ144: 39782553 | CB144: 409721 | CC144: 0 | CD144: 0 | CF144: 0 | CG144: 144603 | CH144: 715320 | CI144: 3519996 | CJ144: 1680592 | CK144: 0 | CL144: 0 | CM144: 3623243 | CN144: 10093475 | CQ144: 809681.1212 | CR144: 809681.1212 | CS144: 9283793.879 | CT144: 49066346.88 | CU144: 32381884 | CV144: 0 | CW144: 32381884 | CX144: 0 | CY144: 0 | CZ144: 0 | DA144: 0
A145: 0142 | B145: 1 | C145: 1 | D145: 2022-09-30 | E145: 1 | F145: 1 | G145: 1 | H145: 853079.41 | I145: 10763569.44 | J145: 312163.84 | K145: 0 | L145: 342640.3 | M145: 2251660.92 | N145: 124682.66 | O145: 5185 | P145: 0 | Q145: 0 | R145: 0 | S145: 946241.06 | T145: 15599222.63 | V145: 8000 | X145: 8000 | Y145: 15591222.63 | Z145: 106950 | AA145: 0 | AB145: 0 | AD145: 0 | AE145: 0 | AF145: 768662 | AG145: 2611075 | AH145: 318974 | AI145: 0 | AJ145: 0 | AK145: 385934 | AL145: 4191595 | AO145: 0 | AP145: 0 | AQ145: 4191595 | AR145: 19782817.63 | AS145: 12407416 | AT145: 0 | AU145: 12407416 | AV145: 0 | AW145: 0 | AX145: 0 | AY145: 0 | BA145: 0 | BB145: 12592950 | BC145: 19486470.63 | BD145: 6893520.63 | BE145: 6893520.63 | BF145: 0 | BG145: 8000 | BI145: 1064410 | BJ145: 10987652 | BK145: 283967 | BL145: 20000 | BM145: 290576 | BN145: 2202801 | BO145: 148778 | BP145: 5185 | BQ145: 0 | BR145: 0 | BS145: 0 | BT145: 849744 | BU145: 15853113 | BW145: 0 | BY145: 0 | BZ145: 15853113 | CB145: 111470 | CC145: 0 | CD145: 0 | CF145: 0 | CG145: 0 | CH145: 768662 | CI145: 2750266 | CJ145: 328492 | CK145: 0 | CL145: 0 | CM145: 375669 | CN145: 4334559 | CQ145: 0 | CR145: 0 | CS145: 4334559 | CT145: 20187672 | CU145: 12728927 | CV145: 0 | CW145: 12728927 | CX145: 0 | CY145: 0 | CZ145: 0 | DA145: 0
A146: 0143 | B146: 0 | C146: 0 | H146: 0 | I146: 0 | J146: 0 | K146: 0 | L146: 0 | M146: 0 | N146: 0 | O146: 0 | P146: 0 | Q146: 0 | R146: 0 | S146: 0 | T146: 0 | V146: 0 | X146: 0 | Y146: 0 | Z146: 0 | AA146: 0 | AB146: 0 | AD146: 0 | AE146: 0 | AF146: 0 | AG146: 0 | AH146: 0 | AI146: 0 | AJ146: 0 | AK146: 517138 | AL146: 517138 | AO146: 0 | AP146: 0 | AQ146: 517138 | AR146: 517138 | AS146: 457292 | AT146: 0 | AU146: 457292 | AV146: 0 | AW146: 0 | AX146: 0 | AY146: 0 | BA146: 0 | BB146: 449090 | BC146: 559259 | BD146: 110169 | BE146: 110169 | BF146: 0 | BG146: 0 | BI146: 0 | BJ146: 0 | BK146: 0 | BL146: 0 | BM146: 0 | BN146: 0 | BO146: 0 | BP146: 0 | BQ146: 0 | BR146: 0 | BS146: 0 | BT146: 0 | BU146: 0 | BW146: 0 | BY146: 0 | BZ146: 0 | CB146: 0 | CC146: 0 | CD146: 0 | CF146: 0 | CG146: 0 | CH146: 0 | CI146: 0 | CJ146: 0 | CK146: 0 | CL146: 0 | CM146: 583267 | CN146: 583267 | CQ146: 0 | CR146: 0 | CS146: 583267 | CT146: 583267 | CU146: 444149 | CV146: 0 | CW146: 444149 | CX146: 0 | CY146: 0 | CZ146: 0 | DA146: 0
A147: 0144 | B147: 1 | C147: 1 | D147: 2022-09-21 | E147: 1 | F147: 1 | G147: 1 | H147: 1013168 | I147: 20733560 | J147: 259235 | K147: 27656 | L147: 557231 | M147: 2420838 | N147: 1519074 | O147: 2814040 | P147: 242833.5 | Q147: 62185 | R147: 0 | S147: 792458 | T147: 30442278.5 | V147: 0 | X147: 0 | Y147: 30442278.5 | Z147: 136209 | AA147: 0 | AB147: 0 | AD147: 60326 | AE147: 14000 | AF147: 0 | AG147: 0 | AH147: 0 | AI147: 0 | AJ147: 0 | AK147: 417435 | AL147: 627970 | AO147: 0 | AP147: 0 | AQ147: 627970 | AR147: 31070248.5 | AS147: 18527082 | AT147: 0 | AU147: 18527082 | AV147: 0 | AW147: 0 | AX147: 0 | AY147: 0 | BA147: 8608 | BB147: 18591467 | BC147: 29737888.19 | BD147: 11146421.19 | BE147: 11137813.19 | BF147: 0 | BG147: 0 | BI147: 1053477 | BJ147: 22347992 | BK147: 342508 | BL147: 57522 | BM147: 568154 | BN147: 2537624 | BO147: 1634932 | BP147: 3394542 | BQ147: 300000 | BR147: 0 | BS147: 0 | BT147: 1232353 | BU147: 33469104 | BW147: 0 | BY147: 0 | BZ147: 33469104 | CB147: 143455 | CC147: 0 | CD147: 0 | CF147: 61000 | CG147: 20000 | CH147: 0 | CI147: 0 | CJ147: 0 | CK147: 0 | CL147: 0 | CM147: 405466 | CN147: 629921 | CQ147: 0 | CR147: 0 | CS147: 629921 | CT147: 34099025 | CU147: 19884295 | CV147: 0 | CW147: 19884295 | CX147: 0 | CY147: 0 | CZ147: 0 | DA147: 0
A148: 0145 | B148: 1 | C148: 1 | D148: 2023-05-23 | E148: 1 | F148: 1 | G148: 1 | H148: 331272.94 | I148: 8688602.98 | J148: 182866.86 | K148: 0 | L148: 0 | M148: 1231958.08 | N148: 2038.8 | O148: 0 | P148: 0 | Q148: 0 | R148: 0 | S148: 2387092.51 | T148: 12823832.17 | V148: 0 | X148: 0 | Y148: 12823832.17 | Z148: 71629.6 | AA148: 0 | AB148: 0 | AD148: 50142.08 | AE148: 214831.26 | AF148: 582205.39 | AG148: 853260.92 | AH148: 268871 | AI148: 0 | AJ148: 0 | AK148: 303822 | AL148: 2344762.25 | AO148: 52909.71759 | AP148: 52909.71759 | AQ148: 2291852.532 | AR148: 15115684.7 | AS148: 12251103 | AT148: 0 | AU148: 12251103 | AV148: 0 | AW148: 0 | AX148: 0 | AY148: 0 | BA148: 56580.39 | BB148: 12065178 | BC148: 14553509.39 | BD148: 2488331.388 | BE148: 2431750.998 | BF148: 0 | BG148: 0 | BI148: 369464 | BJ148: 9163915 | BK148: 187652 | BL148: 1 | BM148: 0 | BN148: 1134228 | BO148: 0 | BP148: 0 | BQ148: 0 | BR148: 0 | BS148: 0 | BT148: 2376776 | BU148: 13232036 | BW148: 0 | BY148: 0 | BZ148: 13232036 | CB148: 74504.1 | CC148: 0 | CD148: 0 | CF148: 51444.92 | CG148: 118476.11 | CH148: 593849.49 | CI148: 791832.48 | CJ148: 243610 | CK148: 0 | CL148: 0 | CM148: 212269 | CN148: 2085986.1 | CQ148: 30460.00903 | CR148: 30460.00903 | CS148: 2055526.091 | CT148: 15287562.09 | CU148: 13087069 | CV148: 0 | CW148: 13087069 | CX148: 0 | CY148: 0 | CZ148: 0 | DA148: 0
A149: 0146 | B149: 0 | C149: 1 | D149: 2022-10-13 | H149: 0 | I149: 0 | J149: 0 | K149: 0 | L149: 0 | M149: 0 | N149: 0 | O149: 0 | P149: 0 | Q149: 0 | R149: 0 | S149: 0 | T149: 0 | V149: 0 | X149: 0 | Y149: 0 | Z149: 0 | AA149: 0 | AB149: 0 | AD149: 0 | AE149: 0 | AF149: 0 | AG149: 0 | AH149: 0 | AI149: 0 | AJ149: 0 | AK149: 2401128 | AL149: 2401128 | AO149: 0 | AP149: 0 | AQ149: 2401128 | AR149: 2401128 | AS149: 179686 | AT149: 0 | AU149: 179686 | AV149: 0 | AW149: 0 | AX149: 0 | AY149: 0 | BA149: 0 | BB149: 219369 | BC149: 2238223 | BD149: 2018854 | BE149: 2018854 | BF149: 0 | BG149: 0 | BI149: 0 | BJ149: 0 | BK149: 0 | BL149: 0 | BM149: 0 | BN149: 0 | BO149: 0 | BP149: 0 | BQ149: 0 | BR149: 0 | BS149: 0 | BT149: 0 | BU149: 0 | BW149: 0 | BY149: 0 | BZ149: 0 | CB149: 0 | CC149: 0 | CD149: 0 | CF149: 0 | CG149: 0 | CH149: 0 | CI149: 0 | CJ149: 0 | CK149: 0 | CL149: 0 | CM149: 2798678 | CN149: 2798678 | CQ149: 0 | CR149: 0 | CS149: 2798678 | CT149: 2798678 | CU149: 219003 | CV149: 0 | CW149: 219003 | CX149: 0 | CY149: 0 | CZ149: 0 | DA149: 0
A150: 0147 | B150: 0 | C150: 1 | D150: 2022-12-02 | H150: 0 | I150: 0 | J150: 0 | K150: 0 | L150: 0 | M150: 0 | N150: 0 | O150: 0 | P150: 0 | Q150: 0 | R150: 0 | S150: 0 | T150: 0 | V150: 0 | X150: 0 | Y150: 0 | Z150: 0 | AA150: 0 | AB150: 0 | AD150: 0 | AE150: 0 | AF150: 0 | AG150: 0 | AH150: 0 | AI150: 0 | AJ150: 0 | AK150: 0 | AL150: 0 | AO150: 0 | AP150: 0 | AQ150: 0 | AR150: 0 | AS150: 14960 | AT150: 0 | AU150: 14960 | AV150: -14960 | AW150: -1 | AX150: 748 | AY150: 0 | BA150: 0 | BB150: 906.55 | BC150: 23634 | BD150: 22727.45 | BE150: 22727.45 | BF150: 0 | BG150: 0 | BI150: 0 | BJ150: 0 | BK150: 0 | BL150: 0 | BM150: 0 | BN150: 0 | BO150: 0 | BP150: 0 | BQ150: 0 | BR150: 0 | BS150: 0 | BT150: 0 | BU150: 0 | BW150: 0 | BY150: 0 | BZ150: 0 | CB150: 0 | CC150: 0 | CD150: 0 | CF150: 0 | CG150: 0 | CH150: 0 | CI150: 0 | CJ150: 0 | CK150: 0 | CL150: 0 | CM150: 53902 | CN150: 53902 | CQ150: 0 | CR150: 0 | CS150: 53902 | CT150: 53902 | CU150: 31395 | CV150: 748 | CW150: 32143 | CX150: 0 | CY150: 0 | CZ150: 0 | DA150: 0
A151: 0148 | B151: 0 | C151: 1 | D151: 2022-09-20 | H151: 0 | I151: 0 | J151: 0 | K151: 0 | L151: 0 | M151: 0 | N151: 0 | O151: 0 | P151: 0 | Q151: 0 | R151: 0 | S151: 0 | T151: 0 | V151: 0 | X151: 0 | Y151: 0 | Z151: 0 | AA151: 0 | AB151: 0 | AD151: 0 | AE151: 0 | AF151: 0 | AG151: 0 | AH151: 0 | AI151: 0 | AJ151: 0 | AK151: 0 | AL151: 0 | AO151: 0 | AP151: 0 | AQ151: 0 | AR151: 0 | AS151: 19862 | AT151: 1466.55 | AU151: 21328.55 | AV151: -21328.55 | AW151: -1.073836975 | AX151: 993.1 | AY151: 0 | BA151: 0 | BB151: 29331 | BC151: 0 | BD151: -29331 | BE151: -29331 | BF151: 0 | BG151: 0 | BI151: 0 | BJ151: 0 | BK151: 0 | BL151: 0 | BM151: 0 | BN151: 0 | BO151: 0 | BP151: 0 | BQ151: 0 | BR151: 0 | BS151: 0 | BT151: 0 | BU151: 0 | BW151: 0 | BY151: 0 | BZ151: 0 | CB151: 0 | CC151: 0 | CD151: 0 | CF151: 0 | CG151: 0 | CH151: 0 | CI151: 0 | CJ151: 0 | CK151: 0 | CL151: 0 | CM151: 0 | CN151: 0 | CQ151: 0 | CR151: 0 | CS151: 0 | CT151: 0 | CU151: 0 | CV151: 993.1 | CW151: 993.1 | CX151: -993.1 | DA151: 0
A152: 0149 | B152: 1 | C152: 1 | D152: 2022-11-09 | E152: 0.999972424 | F152: 1 | G152: 1 | H152: 7319804.944 | I152: 129996092.3 | J152: 3632492.54 | K152: 0 | L152: 3309714.36 | M152: 18564556.34 | N152: 9519577.791 | O152: 21110337.89 | P152: 0 | Q152: 4535716.88 | R152: 0 | S152: 6992645 | T152: 204980938 | V152: 3628722.3 | X152: 3628722.3 | Y152: 201352215.7 | Z152: 819779 | AA152: 0 | AB152: 0 | AD152: 0 | AE152: 3726230 | AF152: 0 | AG152: 0 | AH152: 2398275.863 | AI152: 0 | AJ152: 3988.889999 | AK152: 29698507 | AL152: 36646780.75 | AO152: 3994881.248 | AP152: 3994881.248 | AQ152: 32651899.51 | AR152: 234004115.2 | AS152: 234592261 | AT152: 10673887.16 | AU152: 245266148.2 | AV152: -11262032.96 | AW152: -0.04800683923 | AX152: 11262032.96 | AY152: 0 | BA152: 3628722.3 | BB152: 226931356.3 | BC152: 216257469.1 | BD152: -10673887.16 | BE152: -14302609.46 | BF152: 3628722.3 | BG152: 0 | BI152: 12699421.95 | BJ152: 136246508 | BK152: 3528794.69 | BL152: 0 | BM152: 3896430.04 | BN152: 13994490.6 | BO152: 10168878 | BP152: 30626983 | BQ152: 0 | BR152: 2027331.05 | BS152: 0 | BT152: 8599255 | BU152: 221788092.4 | BW152: 0 | BY152: 0 | BZ152: 221788092.4 | CB152: 920185 | CC152: 0 | CD152: 0 | CF152: 0 | CG152: 2502335 | CH152: 0 | CI152: 0 | CJ152: 3101090.4 | CK152: 0 | CL152: 0 | CM152: 31677925 | CN152: 38201535.4 | CQ152: 4177907.762 | CR152: 4177907.762 | CS152: 34023627.64 | CT152: 255811720 | CU152: 253714475 | CV152: 11262032.96 | CW152: 264976508 | CX152: -9164787.961 | CY152: -0.03612244812 | CZ152: 9164787.961 | DA152: 0
A153: 0150 | B153: 1 | C153: 1 | D153: 2022-12-02 | E153: 0.9775497165 | F153: 1 | G153: 1 | H153: 358411.7607 | I153: 7248731.23 | J153: 119428 | K153: 0 | L153: 164560 | M153: 946775.4739 | N153: 0 | O153: 28837.71664 | P153: 0 | Q153: 1090.945484 | R153: 0 | S153: 258100 | T153: 9125935.127 | V153: 344806 | X153: 344806 | Y153: 8781129.127 | Z153: 48395 | AA153: 10429 | AB153: 0 | AD153: 0 | AE153: 23545 | AF153: 458549.021 | AG153: 1974237.735 | AH153: 431870.7117 | AI153: 0 | AJ153: 0 | AK153: 711310.76 | AL153: 3658337.228 | AO153: 0 | AP153: 0 | AQ153: 3658337.228 | AR153: 12439466.35 | AS153: 8177437 | AT153: 0 | AU153: 8177437 | AV153: 0 | AW153: 0 | AX153: 0 | AY153: 0 | BA153: 0 | BB153: 8121618 | BC153: 12711352.11 | BD153: 4589734.113 | BE153: 4589734.113 | BF153: 0 | BG153: 344806 | BI153: 369271 | BJ153: 7645307 | BK153: 123759 | BL153: 0 | BM153: 167340 | BN153: 960431 | BO153: 0 | BP153: 29500 | BQ153: 0 | BR153: 3116 | BS153: 0 | BT153: 374100 | BU153: 9672824 | BW153: 0 | BY153: 0 | BZ153: 9672824 | CB153: 99136 | CC153: 11262.28 | CD153: 0 | CF153: 0 | CG153: 38694 | CH153: 449887.79 | CI153: 2037344 | CJ153: 451841 | CK153: 0 | CL153: 0 | CM153: 647326 | CN153: 3735491.07 | CQ153: 0 | CR153: 0 | CS153: 3735491.07 | CT153: 13408315.07 | CU153: 8519039 | CV153: 0 | CW153: 8519039 | CX153: 0 | CY153: 0 | CZ153: 0 | DA153: 0
A154: 0151 | B154: 1 | C154: 1 | D154: 2022-10-28 | E154: 1 | F154: 1 | G154: 1 | H154: 904869.8 | I154: 11662496.84 | J154: 292897.84 | K154: 259 | L154: 262736.39 | M154: 1339622.33 | N154: 81333.97 | O154: 0 | P154: 0 | Q154: 0 | R154: 0 | S154: 1277457.4 | T154: 15821673.57 | V154: 0 | X154: 0 | Y154: 15821673.57 | Z154: 123110 | AA154: 0 | AB154: 0 | AD154: 0 | AE154: 0 | AF154: 1101098 | AG154: 1766550 | AH154: 397986 | AI154: 0 | AJ154: 0 | AK154: 1806882 | AL154: 5195626 | AO154: 58541.03809 | AP154: 58541.03809 | AQ154: 5137084.962 | AR154: 20958758.53 | AS154: 18721234 | AT154: 0 | AU154: 18721234 | AV154: 0 | AW154: 0 | AX154: 0 | AY154: 0 | BA154: 13944 | BB154: 18395374 | BC154: 20201548.5 | BD154: 1806174.503 | BE154: 1792230.503 | BF154: 0 | BG154: 0 | BI154: 1297618 | BJ154: 11445778 | BK154: 263878 | BL154: 0 | BM154: 273592 | BN154: 1233847.83 | BO154: 50000 | BP154: 0 | BQ154: 0 | BR154: 12000 | BS154: 0 | BT154: 1246689 | BU154: 15823402.83 | BW154: 0 | BY154: 0 | BZ154: 15823402.83 | CB154: 159975 | CC154: 0 | CD154: 0 | CF154: 0 | CG154: 0 | CH154: 1101097 | CI154: 1851155 | CJ154: 397986 | CK154: 0 | CL154: 0 | CM154: 1742812 | CN154: 5253025 | CQ154: 57463.11493 | CR154: 57463.11493 | CS154: 5195561.885 | CT154: 21018964.72 | CU154: 19402051 | CV154: 0 | CW154: 19402051 | CX154: 0 | CY154: 0 | CZ154: 0 | DA154: 0
A155: 0152 | B155: 1 | C155: 1 | D155: 2022-10-25 | E155: 1 | F155: 1 | G155: 1 | H155: 548337 | I155: 7938282.76 | J155: 158966 | K155: 0 | L155: 353322 | M155: 1383688.5 | N155: 54652 | O155: 10694 | P155: 0 | Q155: 0 | R155: 0 | S155: 117185 | T155: 10565127.26 | V155: 0 | X155: 0 | Y155: 10565127.26 | Z155: 0 | AA155: 0 | AB155: 0 | AD155: 0 | AE155: 0 | AF155: 496829 | AG155: 1829913 | AH155: 711933 | AI155: 0 | AJ155: 0 | AK155: 244957 | AL155: 3283632 | AO155: 3593.227087 | AP155: 3593.227087 | AQ155: 3280038.773 | AR155: 13845166.03 | AS155: 6072044 | AT155: 0 | AU155: 6072044 | AV155: 0 | AW155: 0 | AX155: 0 | AY155: 0 | BA155: 0 | BB155: 6000896 | BC155: 13355696.48 | BD155: 7354800.481 | BE155: 7354800.481 | BF155: 0 | BG155: 0 | BI155: 540128 | BJ155: 8513631 | BK155: 189120 | BL155: 0 | BM155: 401216 | BN155: 1337450 | BO155: 0 | BP155: 9519 | BQ155: 0 | BR155: 0 | BS155: 0 | BT155: 156642 | BU155: 11147706 | BW155: 0 | BY155: 0 | BZ155: 11147706 | CB155: 0 | CC155: 0 | CD155: 0 | CF155: 0 | CG155: 520200 | CH155: 536726 | CI155: 2459591 | CJ155: 800409 | CK155: 0 | CL155: 0 | CM155: 286750 | CN155: 4603676 | CQ155: -28.95923072 | CR155: -28.95923072 | CS155: 4603704.959 | CT155: 15751410.96 | CU155: 6358019 | CV155: 0 | CW155: 6358019 | CX155: 0 | CY155: 0 | CZ155: 0 | DA155: 0
A156: 0153 | B156: 1 | C156: 1 | D156: 2022-10-17 | E156: 1 | F156: 1 | G156: 1 | H156: 1767969 | I156: 49399475.35 | J156: 940509 | K156: 0 | L156: 865891 | M156: 5469868 | N156: 100670 | O156: 10536375 | P156: 3517165 | Q156: 119042 | R156: 0 | S156: 4961758 | T156: 77678722.35 | V156: 0 | X156: 0 | Y156: 77678722.35 | Z156: 447830 | AA156: 0 | AB156: 0 | AD156: 138274 | AE156: 84050 | AF156: 549643 | AG156: 475187.08 | AH156: 0 | AI156: 0 | AJ156: 0 | AK156: 2423251 | AL156: 4118235.08 | AO156: 111468.2 | AP156: 111468.2 | AQ156: 4006766.88 | AR156: 81685489.23 | AS156: 81408337 | AT156: 0 | AU156: 81408337 | AV156: 0 | AW156: 0 | AX156: 0 | AY156: 0 | BA156: 107313 | BB156: 79655609 | BC156: 80844595.39 | BD156: 1188986.39 | BE156: 1081673.39 | BF156: 0 | BG156: 0 | BI156: 2115850 | BJ156: 56149968 | BK156: 1100326 | BL156: 0 | BM156: 836439 | BN156: 6683125 | BO156: 90000 | BP156: 10809000 | BQ156: 3403557 | BR156: 160000 | BS156: 0 | BT156: 5188867 | BU156: 86537132 | BW156: 0 | BY156: 0 | BZ156: 86537132 | CB156: 524771.94 | CC156: 0 | CD156: 0 | CF156: 180000 | CG156: 84000 | CH156: 967676 | CI156: 461412.19 | CJ156: 0 | CK156: 0 | CL156: 0 | CM156: 2607622 | CN156: 4825482.13 | CQ156: 166693.128 | CR156: 166693.128 | CS156: 4658789.002 | CT156: 91195921 | CU156: 91159936 | CV156: 0 | CW156: 91159936 | CX156: 0 | CY156: 0 | CZ156: 0 | DA156: 0
A157: 0154 | B157: 1 | C157: 1 | D157: 2022-10-22 | E157: 0.9962988143 | F157: 1 | G157: 0.9981201605 | H157: 139592.4232 | I157: 1449881 | J157: 54483 | K157: 7938 | L157: 0 | M157: 323450.4027 | N157: 0 | O157: 4273.125615 | P157: 0 | Q157: 0 | R157: 0 | S157: 89918 | T157: 2069535.951 | V157: 79849.61284 | X157: 79849.61284 | Y157: 1989686.339 | Z157: 249.5300401 | AA157: 0 | AB157: 0 | AD157: 0 | AE157: 0 | AF157: 87002.79026 | AG157: 362854.0208 | AH157: 29267.77212 | AI157: 0 | AJ157: 0 | AK157: 144679 | AL157: 624053.1132 | AO157: 4712.901701 | AP157: 4712.901701 | AQ157: 619340.2115 | AR157: 2609026.55 | AS157: 1241178 | AT157: 0 | AU157: 1241178 | AV157: 0 | AW157: 0 | AX157: 0 | AY157: 0 | BA157: 0 | BB157: 1288483 | BC157: 2423868.719 | BD157: 1135385.719 | BE157: 1135385.719 | BF157: 0 | BG157: 79849.61284 | BI157: 141726 | BJ157: 1887323 | BK157: 65250 | BL157: 30000 | BM157: 0 | BN157: 249322 | BO157: 1246 | BP157: 5190 | BQ157: 0 | BR157: 0 | BS157: 0 | BT157: 0 | BU157: 2380057 | BW157: 0 | BY157: 0 | BZ157: 2380057 | CB157: 0 | CC157: 0 | CD157: 0 | CF157: 0 | CG157: 0 | CH157: 88104 | CI157: 392822 | CJ157: 7410 | CK157: 0 | CL157: 0 | CM157: 55096 | CN157: 543432 | CQ157: 1522.297275 | CR157: 1522.297275 | CS157: 541909.7027 | CT157: 2921966.703 | CU157: 1361700 | CV157: 0 | CW157: 1361700 | CX157: 0 | CY157: 0 | CZ157: 0 | DA157: 0
A158: 0155 | B158: 1 | C158: 1 | D158: 2023-02-16 | E158: 1 | F158: 1 | G158: 1 | H158: 3384930.43 | I158: 99164266 | J158: 1963053.71 | K158: 70492.85 | L158: 2017803.86 | M158: 1250174.31 | N158: 63126.54 | O158: 459 | P158: 0 | Q158: 0 | R158: 0 | S158: 7349002.51 | T158: 115263309.2 | V158: 0 | X158: 0 | Y158: 115263309.2 | Z158: 394770 | AA158: 0 | AB158: 0 | AD158: 97377 | AE158: 8534697 | AF158: 1767113 | AG158: 18994392 | AH158: 4804136 | AI158: 0 | AJ158: 0 | AK158: 255295 | AL158: 34847780 | AO158: 94662.6 | AP158: 94662.6 | AQ158: 34753117.4 | AR158: 150016426.6 | AS158: 81157401 | AT158: 0 | AU158: 81157401 | AV158: 0 | AW158: 0 | AX158: 0 | AY158: 0 | BA158: 2313365.77 | BB158: 81593820 | BC158: 141484365.3 | BD158: 59890545.27 | BE158: 57577179.5 | BF158: 0 | BG158: 0 | BI158: 3644836 | BJ158: 105271755 | BK158: 1970083 | BL158: 0 | BM158: 1690851 | BN158: 546451 | BO158: 0 | BP158: 794 | BQ158: 0 | BR158: 0 | BS158: 0 | BT158: 9420447 | BU158: 122545217 | BW158: 0 | BY158: 0 | BZ158: 122545217 | CB158: 461325 | CC158: 0 | CD158: 0 | CF158: 88297 | CG158: 9220062 | CH158: 1850000 | CI158: 18903111 | CJ158: 4610886 | CK158: 0 | CL158: 0 | CM158: 147948 | CN158: 35281629 | CQ158: 58361.544 | CR158: 58361.544 | CS158: 35223267.46 | CT158: 157768484.5 | CU158: 84457008 | CV158: 0 | CW158: 84457008 | CX158: 0 | CY158: 0 | CZ158: 0 | DA158: 0
A159: 0156 | B159: 0 | C159: 1 | D159: 2022-11-20 | H159: 0 | I159: 0 | J159: 0 | K159: 0 | L159: 0 | M159: 0 | N159: 0 | O159: 0 | P159: 0 | Q159: 0 | R159: 0 | S159: 0 | T159: 0 | V159: 0 | X159: 0 | Y159: 0 | Z159: 0 | AA159: 0 | AB159: 0 | AD159: 0 | AE159: 0 | AF159: 0 | AG159: 0 | AH159: 0 | AI159: 0 | AJ159: 0 | AK159: 0 | AL159: 0 | AO159: 0 | AP159: 0 | AQ159: 0 | AR159: 0 | AS159: 0 | AT159: 0 | AU159: 0 | AV159: 0 | AW159: 0 | AX159: 0 | AY159: 0 | BA159: 0 | BB159: 0 | BC159: 0 | BD159: 0 | BE159: 0 | BF159: 0 | BG159: 0 | BI159: 0 | BJ159: 0 | BK159: 0 | BL159: 0 | BM159: 0 | BN159: 0 | BO159: 0 | BP159: 0 | BQ159: 0 | BR159: 0 | BS159: 0 | BT159: 0 | BU159: 0 | BW159: 0 | BY159: 0 | BZ159: 0 | CB159: 0 | CC159: 0 | CD159: 0 | CF159: 0 | CG159: 0 | CH159: 0 | CI159: 0 | CJ159: 0 | CK159: 0 | CL159: 0 | CM159: 0 | CN159: 0 | CQ159: 0 | CR159: 0 | CS159: 0 | CT159: 0 | CU159: 0 | CV159: 0 | CW159: 0 | CX159: 0 | CY159: 0 | CZ159: 0 | DA159: 0
A160: 0157 | B160: 1 | C160: 1 | D160: 2022-12-05 | E160: 1 | F160: 1 | G160: 1 | H160: 567813.18 | I160: 8452049.329 | J160: 128075.19 | K160: 25437.96 | L160: 40200 | M160: 1568356.53 | N160: 4042.23 | O160: 367.5 | P160: 0 | Q160: 0 | R160: 0 | S160: 322423.46 | T160: 11108765.38 | V160: 0 | X160: 0 | Y160: 11108765.38 | Z160: 209866 | AA160: 0 | AB160: 0 | AD160: 0 | AE160: 62950 | AF160: 1161820.993 | AG160: 401985.43 | AH160: 1209882.758 | AI160: 0 | AJ160: 0 | AK160: 0 | AL160: 3046505.181 | AO160: 0 | AP160: 0 | AQ160: 3046505.181 | AR160: 14155270.56 | AS160: 6436691 | AT160: 0 | AU160: 6436691 | AV160: 0 | AW160: 0 | AX160: 0 | AY160: 0 | BA160: 0 | BB160: 6350394 | BC160: 13570938 | BD160: 7220544 | BE160: 7220544 | BF160: 0 | BG160: 0 | BI160: 685063 | BJ160: 9130113 | BK160: 149195 | BL160: 26233 | BM160: 43265 | BN160: 1516045 | BO160: 4042 | BP160: 50903 | BQ160: 0 | BR160: 0 | BS160: 0 | BT160: 272250 | BU160: 11877109 | BW160: 0 | BY160: 0 | BZ160: 11877109 | CB160: 207963.1918 | CC160: 0 | CD160: 0 | CF160: 0 | CG160: 114953.75 | CH160: 1344298.085 | CI160: 1308559.904 | CJ160: 441451.0558 | CK160: 0 | CL160: 0 | CM160: 27777 | CN160: 3445002.987 | CQ160: 0 | CR160: 0 | CS160: 3445002.987 | CT160: 15322111.99 | CU160: 7110979 | CV160: 0 | CW160: 7110979 | CX160: 0 | CY160: 0 | CZ160: 0 | DA160: 0
A161: 0158 | B161: 1 | C161: 1 | D161: 2022-10-19 | E161: 1 | F161: 1 | G161: 1 | H161: 1126983 | I161: 15471920 | J161: 332973 | K161: 0 | L161: 301796 | M161: 3245557 | N161: 18600 | O161: 0 | P161: 0 | Q161: 0 | R161: 0 | S161: 1360249 | T161: 21858078 | V161: 115000 | X161: 115000 | Y161: 21743078 | Z161: 291999 | AA161: 0 | AB161: 0 | AD161: 0 | AE161: 449681 | AF161: 965863 | AG161: 2811624 | AH161: 660291 | AI161: 0 | AJ161: 0 | AK161: 1080302 | AL161: 6259760 | AO161: 82178 | AP161: 82178 | AQ161: 6177582 | AR161: 27920660 | AS161: 17472772 | AT161: 0 | AU161: 17472772 | AV161: 0 | AW161: 0 | AX161: 0 | AY161: 0 | BA161: 24947 | BB161: 17892738 | BC161: 25712269 | BD161: 7819531 | BE161: 7794584 | BF161: 0 | BG161: 115000 | BI161: 1357961 | BJ161: 16030924 | BK161: 301781 | BL161: 35000 | BM161: 295425 | BN161: 1728440 | BO161: 2500 | BP161: 0 | BQ161: 0 | BR161: 0 | BS161: 0 | BT161: 2041464 | BU161: 21793495 | BW161: 100000 | BY161: 100000 | BZ161: 21693495 | CB161: 348351 | CC161: 0 | CD161: 0 | CF161: 0 | CG161: 512281 | CH161: 1127507 | CI161: 3498774 | CJ161: 660291 | CK161: 0 | CL161: 0 | CM161: 997229 | CN161: 7144433 | CQ161: 49306.8 | CR161: 49306.8 | CS161: 7095126.2 | CT161: 28788621.2 | CU161: 18465846 | CV161: 0 | CW161: 18465846 | CX161: 0 | CY161: 0 | CZ161: 0 | DA161: 0
A162: 0159 | B162: 1 | C162: 1 | D162: 2022-09-28 | E162: 1 | F162: 1 | G162: 1 | H162: 876881.59 | I162: 28338764.55 | J162: 471990.64 | K162: 67811.59 | L162: 562045.64 | M162: 2712490.31 | N162: 94008.28 | O162: 0 | P162: 0 | Q162: 0 | R162: 0 | S162: 2379028.7 | T162: 35503021.3 | V162: 0 | X162: 0 | Y162: 35503021.3 | Z162: 538786.6 | AA162: 0 | AB162: 0 | AD162: 75074 | AE162: 985954.12 | AF162: 1660121 | AG162: 4039956 | AH162: 1057828.89 | AI162: 0 | AJ162: 0 | AK162: 161602 | AL162: 8519322.61 | AO162: 0 | AP162: 0 | AQ162: 8519322.61 | AR162: 44022343.91 | AS162: 29782664 | AT162: 0 | AU162: 29782664 | AV162: 0 | AW162: 0 | AX162: 0 | AY162: 0 | BA162: 0 | BB162: 29790544 | BC162: 42899179.89 | BD162: 13108635.89 | BE162: 13108635.89 | BF162: 0 | BG162: 0 | BI162: 862864.78 | BJ162: 30011501.29 | BK162: 533500 | BL162: 83280 | BM162: 355629 | BN162: 2789388.86 | BO162: 86000 | BP162: 0 | BQ162: 0 | BR162: 0 | BS162: 0 | BT162: 1836788 | BU162: 36558951.93 | BW162: 0 | BY162: 0 | BZ162: 36558951.93 | CB162: 578127 | CC162: 0 | CD162: 0 | CF162: 75074 | CG162: 1223786 | CH162: 1793000 | CI162: 4293123 | CJ162: 1110550 | CK162: 0 | CL162: 0 | CM162: 192136 | CN162: 9265796 | CQ162: 14502 | CR162: 14502 | CS162: 9251294 | CT162: 45810245.93 | CU162: 31528951 | CV162: 0 | CW162: 31528951 | CX162: 0 | CY162: 0 | CZ162: 0 | DA162: 0
A163: 0160 | B163: 1 | C163: 1 | D163: 2022-11-02 | E163: 0.999586519 | F163: 1 | G163: 1 | H163: 7723074.405 | I163: 142816685.3 | J163: 1026793.11 | K163: 0 | L163: 1882439.19 | M163: 7938880.506 | N163: 1286469.359 | O163: 18720733.03 | P163: 0 | Q163: 552443.4806 | R163: 0 | S163: 5634776.1 | T163: 187582294.5 | V163: 0 | X163: 0 | Y163: 187582294.5 | Z163: 1551106.36 | AA163: 0 | AB163: 1828492.59 | AD163: 472595.5799 | AE163: 4808796.64 | AF163: 8521824.93 | AG163: 3580358.438 | AH163: 7909237.808 | AI163: 0 | AJ163: 0 | AK163: 30215940 | AL163: 58888352.35 | AO163: 5180358.769 | AP163: 5180358.769 | AQ163: 53707993.58 | AR163: 241290288.1 | AS163: 232665678 | AT163: 0 | AU163: 232665678 | AV163: 0 | AW163: 0 | AX163: 0 | AY163: 0 | BA163: 0 | BB163: 218763251 | BC163: 225220325.9 | BD163: 6457074.862 | BE163: 6457074.862 | BF163: 0 | BG163: 0 | BI163: 6202899 | BJ163: 150881227 | BK163: 4205370 | BL163: 0 | BM163: 2859071 | BN163: 7094178 | BO163: 1100000 | BP163: 21347079 | BQ163: 0 | BR163: 552672 | BS163: 0 | BT163: 7012118.99 | BU163: 201254615 | BW163: 0 | BY163: 0 | BZ163: 201254615 | CB163: 1715162.95 | CC163: 0 | CD163: 2404808.28 | CF163: 472791.07 | CG163: 5109689.97 | CH163: 8525350 | CI163: 3581869.46 | CJ163: 7912509.48 | CK163: 0 | CL163: 0 | CM163: 35305574 | CN163: 65027755.21 | CQ163: 7682304.648 | CR163: 7682304.648 | CS163: 57345450.56 | CT163: 258600065.6 | CU163: 257876445 | CV163: 0 | CW163: 257876445 | CX163: 0 | CY163: 0 | CZ163: 0 | DA163: 0
A164: 0161 | B164: 1 | C164: 1 | D164: 2022-10-14 | E164: 1 | F164: 1 | G164: 1 | H164: 921001 | I164: 24347165 | J164: 678532 | K164: 84494 | L164: 496163 | M164: 2728532 | N164: 3000 | O164: 0 | P164: 0 | Q164: 63351 | R164: 0 | S164: 2539946 | T164: 31862184 | V164: 134000 | X164: 134000 | Y164: 31728184 | Z164: 437887 | AA164: 0 | AB164: 0 | AD164: 0 | AE164: 102838 | AF164: 755267 | AG164: 6535604 | AH164: 420510 | AI164: 0 | AJ164: 0 | AK164: 846741.94 | AL164: 9098847.94 | AO164: 15062.59006 | AP164: 15062.59006 | AQ164: 9083785.35 | AR164: 40811969.35 | AS164: 30544988 | AT164: 0 | AU164: 30544988 | AV164: 0 | AW164: 0 | AX164: 0 | AY164: 0 | BA164: 0 | BB164: 30239697 | BC164: 39439146.35 | BD164: 9199449.353 | BE164: 9199449.353 | BF164: 0 | BG164: 134000 | BI164: 1379908 | BJ164: 24590004 | BK164: 714488 | BL164: 110943 | BM164: 551606 | BN164: 2400211 | BO164: 163075 | BP164: 0 | BQ164: 0 | BR164: 35000 | BS164: 0 | BT164: 2217964 | BU164: 32163199 | BW164: 185000 | BY164: 185000 | BZ164: 31978199 | CB164: 383848 | CC164: 0 | CD164: 0 | CF164: 0 | CG164: 188763 | CH164: 759683 | CI164: 6731672 | CJ164: 433125 | CK164: 0 | CL164: 0 | CM164: 995954 | CN164: 9493045 | CQ164: 105737.6047 | CR164: 105737.6047 | CS164: 9387307.395 | CT164: 41365506.4 | CU164: 31427468 | CV164: 0 | CW164: 31427468 | CX164: 0 | CY164: 0 | CZ164: 0 | DA164: 0
A165: 0162 | B165: 1 | C165: 1 | D165: 2022-10-24 | E165: 1 | F165: 1 | G165: 1 | H165: 1006601 | I165: 14069131.62 | J165: 356066 | K165: 0 | L165: 440141 | M165: 1806133 | N165: 12147 | O165: 2593020 | P165: 0 | Q165: 0 | R165: 0 | S165: 397233 | T165: 20680472.62 | V165: 13661 | X165: 13661 | Y165: 20666811.62 | Z165: 214419 | AA165: 0 | AB165: 0 | AD165: 0 | AE165: 144168 | AF165: 550637 | AG165: 415145 | AH165: 1098777 | AI165: 0 | AJ165: 0 | AK165: 873896 | AL165: 3297042 | AO165: 44664.28801 | AP165: 44664.28801 | AQ165: 3252377.712 | AR165: 23919189.33 | AS165: 18731996 | AT165: 0 | AU165: 18731996 | AV165: 0 | AW165: 0 | AX165: 0 | AY165: 0 | BA165: 13888 | BB165: 18301715 | BC165: 22735918.14 | BD165: 4434203.135 | BE165: 4420315.135 | BF165: 0 | BG165: 13661 | BI165: 915032 | BJ165: 14472789 | BK165: 510999 | BL165: 0 | BM165: 334815 | BN165: 1636190 | BO165: 0 | BP165: 2845917 | BQ165: 0 | BR165: 0 | BS165: 0 | BT165: 489918 | BU165: 21205660 | BW165: 42103 | BY165: 42103 | BZ165: 21163557 | CB165: 236079 | CC165: 0 | CD165: 0 | CF165: 0 | CG165: 171304 | CH165: 604164 | CI165: 420000 | CJ165: 1227011 | CK165: 0 | CL165: 0 | CM165: 862151 | CN165: 3520709 | CQ165: 94885.40239 | CR165: 94885.40239 | CS165: 3425823.598 | CT165: 24589380.6 | CU165: 20056630 | CV165: 0 | CW165: 20056630 | CX165: 0 | CY165: 0 | CZ165: 0 | DA165: 0
A166: 0163 | B166: 1 | C166: 1 | D166: 2022-10-19 | E166: 1 | F166: 1 | G166: 1 | H166: 5980231 | I166: 142772240 | J166: 3846436 | K166: 1106224 | L166: 3423178 | M166: 8763360 | N166: 232518 | O166: 0 | P166: 0 | Q166: 0 | R166: 0 | S166: 8641087 | T166: 174765274 | V166: 204522 | X166: 204522 | Y166: 174560752 | Z166: 2222524 | AA166: 0 | AB166: 0 | AD166: 0 | AE166: 19332612 | AF166: 15671950 | AG166: 26628641 | AH166: 6543774 | AI166: 0 | AJ166: 0 | AK166: 27997257 | AL166: 98396758 | AO166: 4942337.854 | AP166: 4942337.854 | AQ166: 93454420.15 | AR166: 268015172.1 | AS166: 268344427 | AT166: 1629265.248 | AU166: 269973692.2 | AV166: -1958520.101 | AW166: -0.007298530933 | AX166: 1958520.101 | AY166: 0 | BA166: 119692 | BB166: 252551048 | BC166: 250921782.8 | BD166: -1629265.248 | BE166: -1748957.248 | BF166: 119692 | BG166: 84830 | BI166: 5682497 | BJ166: 173129575 | BK166: 4861821 | BL166: 762487 | BM166: 4023694 | BN166: 892433 | BO166: 162917 | BP166: 500000 | BQ166: 0 | BR166: 0 | BS166: 0 | BT166: 10535198 | BU166: 200550622 | BW166: 0 | BY166: 0 | BZ166: 200550622 | CB166: 2472258 | CC166: 0 | CD166: 0 | CF166: 0 | CG166: 23216266 | CH166: 16603522 | CI166: 27260207 | CJ166: 6550466 | CK166: 0 | CL166: 0 | CM166: 29956149 | CN166: 106058868 | CQ166: 4722561.462 | CR166: 4722561.462 | CS166: 101336306.5 | CT166: 301886928.5 | CU166: 299740597 | CV166: 1958520.101 | CW166: 301699117.1 | CX166: 0 | CY166: 0 | CZ166: 0 | DA166: 0
A167: 0164 | B167: 1 | C167: 1 | D167: 2022-10-04 | E167: 1 | F167: 1 | G167: 1 | H167: 1047118 | I167: 23096141 | J167: 388299 | K167: 0 | L167: 818355 | M167: 949272 | N167: 49906 | O167: 19044 | P167: 0 | Q167: 108445 | R167: 0 | S167: 1120290 | T167: 27596870 | V167: 66354 | X167: 66354 | Y167: 27530516 | Z167: 333909 | AA167: 0 | AB167: 0 | AD167: 0 | AE167: 2799578 | AF167: 1135999 | AG167: 3416451 | AH167: 501579.5 | AI167: 0 | AJ167: 0 | AK167: 178334 | AL167: 8365850.5 | AO167: 17549.2 | AP167: 17549.2 | AQ167: 8348301.3 | AR167: 35878817.3 | AS167: 24211035 | AT167: 0 | AU167: 24211035 | AV167: 0 | AW167: 0 | AX167: 0 | AY167: 0 | BA167: 3664 | BB167: 23722073 | BC167: 34525774.37 | BD167: 10803701.37 | BE167: 10800037.37 | BF167: 0 | BG167: 66354 | BI167: 868129 | BJ167: 23850477 | BK167: 431184 | BL167: 0 | BM167: 892263 | BN167: 925276 | BO167: 32000 | BP167: 45000 | BQ167: 0 | BR167: 125000 | BS167: 0 | BT167: 1322855 | BU167: 28492184 | BW167: 115770 | BY167: 115770 | BZ167: 28376414 | CB167: 377627 | CC167: 0 | CD167: 0 | CF167: 0 | CG167: 2952586 | CH167: 1224939 | CI167: 3589203 | CJ167: 630000 | CK167: 0 | CL167: 0 | CM167: 188915 | CN167: 8963270 | CQ167: 47116.648 | CR167: 47116.648 | CS167: 8916153.352 | CT167: 37292567.35 | CU167: 25488528 | CV167: 0 | CW167: 25488528 | CX167: 0 | CY167: 0 | CZ167: 0 | DA167: 0
A168: 0165 | B168: 1 | C168: 1 | D168: 2022-09-28 | E168: 1 | F168: 1 | G168: 1 | H168: 2074153.93 | I168: 57300496.35 | J168: 1892175.21 | K168: 0 | L168: 790574.37 | M168: 5484686.99 | N168: 37883.68 | O168: 0 | P168: 0 | Q168: 0 | R168: 0 | S168: 4202504.9 | T168: 71782475.43 | V168: 0 | X168: 0 | Y168: 71782475.43 | Z168: 896131.08 | AA168: 0 | AB168: 0 | AD168: 0 | AE168: 1411113.09 | AF168: 3239296 | AG168: 9770305.9 | AH168: 3009491.76 | AI168: 0 | AJ168: 0 | AK168: 9254807 | AL168: 27581144.83 | AO168: 101292.8923 | AP168: 101292.8923 | AQ168: 27479851.94 | AR168: 99262327.37 | AS168: 99196109 | AT168: 0 | AU168: 99196109 | AV168: 0 | AW168: 0 | AX168: 0 | AY168: 0 | BA168: 636085.82 | BB168: 96766915 | BC168: 98814892.2 | BD168: 2047977.195 | BE168: 1411891.375 | BF168: 0 | BG168: 0 | BI168: 2025005.02 | BJ168: 60942945.84 | BK168: 2013734.37 | BL168: 0 | BM168: 799660.86 | BN168: 4983617.87 | BO168: 25000 | BP168: 0 | BQ168: 0 | BR168: 0 | BS168: 0 | BT168: 4902000 | BU168: 75691963.96 | BW168: 0 | BY168: 0 | BZ168: 75691963.96 | CB168: 961127.84 | CC168: 0 | CD168: 0 | CF168: 0 | CG168: 1787184.58 | CH168: 3239296 | CI168: 9777355.45 | CJ168: 3009491.76 | CK168: 0 | CL168: 0 | CM168: 9294051 | CN168: 28068506.63 | CQ168: 41635.16013 | CR168: 41635.16013 | CS168: 28026871.47 | CT168: 103718835.4 | CU168: 105452144 | CV168: 0 | CW168: 105452144 | CX168: -1733308.57 | CY168: -0.01643692109 | CZ168: 1733308.57 | DA168: 0
A169: 0166 | B169: 0 | C169: 1 | D169: 2022-11-10 | H169: 0 | I169: 0 | J169: 0 | K169: 0 | L169: 0 | M169: 0 | N169: 0 | O169: 0 | P169: 0 | Q169: 0 | R169: 0 | S169: 0 | T169: 0 | V169: 0 | X169: 0 | Y169: 0 | Z169: 0 | AA169: 0 | AB169: 0 | AD169: 0 | AE169: 0 | AF169: 0 | AG169: 0 | AH169: 0 | AI169: 0 | AJ169: 0 | AK169: 0 | AL169: 0 | AO169: 0 | AP169: 0 | AQ169: 0 | AR169: 0 | AS169: 0 | AT169: 0 | AU169: 0 | AV169: 0 | AW169: 0 | AX169: 0 | AY169: 0 | BA169: 0 | BB169: 0 | BC169: 0 | BD169: 0 | BE169: 0 | BF169: 0 | BG169: 0 | BI169: 0 | BJ169: 0 | BK169: 0 | BL169: 0 | BM169: 0 | BN169: 0 | BO169: 0 | BP169: 0 | BQ169: 0 | BR169: 0 | BS169: 0 | BT169: 0 | BU169: 0 | BW169: 0 | BY169: 0 | BZ169: 0 | CB169: 0 | CC169: 0 | CD169: 0 | CF169: 0 | CG169: 0 | CH169: 0 | CI169: 0 | CJ169: 0 | CK169: 0 | CL169: 0 | CM169: 0 | CN169: 0 | CQ169: 0 | CR169: 0 | CS169: 0 | CT169: 0 | CU169: 0 | CV169: 0 | CW169: 0 | CX169: 0 | CY169: 0 | CZ169: 0 | DA169: 0
A170: 0167 | B170: 1 | C170: 1 | D170: 2022-09-30 | E170: 1 | F170: 1 | G170: 1 | H170: 1494696.71 | I170: 40004543.85 | J170: 882044.68 | K170: 193859.21 | L170: 1208835.57 | M170: 4423188.89 | N170: 167207.13 | O170: 0 | P170: 0 | Q170: 131704.66 | R170: 0 | S170: 2399810.76 | T170: 50905891.46 | V170: 0 | X170: 0 | Y170: 50905891.46 | Z170: 179522 | AA170: 0 | AB170: 0 | AD170: 0 | AE170: 0 | AF170: 1791868 | AG170: 7415620 | AH170: 1128366 | AI170: 0 | AJ170: 0 | AK170: 1386553 | AL170: 11901929 | AO170: 160765.2 | AP170: 160765.2 | AQ170: 11741163.8 | AR170: 62647055.26 | AS170: 48992878 | AT170: 0 | AU170: 48992878 | AV170: 0 | AW170: 0 | AX170: 0 | AY170: 0 | BA170: 141357 | BB170: 48671865 | BC170: 60650347.37 | BD170: 11978482.37 | BE170: 11837125.37 | BF170: 0 | BG170: 0 | BI170: 1574110 | BJ170: 42666297 | BK170: 926931 | BL170: 177381 | BM170: 1309736 | BN170: 3865267 | BO170: 272500 | BP170: 0 | BQ170: 0 | BR170: 149522 | BS170: 0 | BT170: 1845269 | BU170: 52787013 | BW170: 0 | BY170: 0 | BZ170: 52787013 | CB170: 210964 | CC170: 0 | CD170: 0 | CF170: 0 | CG170: 0 | CH170: 1881138 | CI170: 8383621 | CJ170: 1392601.2 | CK170: 0 | CL170: 0 | CM170: 1244097 | CN170: 13112421.2 | CQ170: 102889.728 | CR170: 102889.728 | CS170: 13009531.47 | CT170: 65796544.47 | CU170: 50647455 | CV170: 0 | CW170: 50647455 | CX170: 0 | CY170: 0 | CZ170: 0 | DA170: 0
A171: 0168 | B171: 1 | C171: 1 | D171: 2022-10-13 | E171: 1 | F171: 1 | G171: 1 | H171: 1337984.42 | I171: 31088624.94 | J171: 530768.75 | K171: 2078.48 | L171: 804177.91 | M171: 3946562.03 | N171: 99841.14 | O171: 102821.01 | P171: 0 | Q171: 0 | R171: 0 | S171: 3075213.22 | T171: 40988071.9 | V171: 2000 | X171: 2000 | Y171: 40986071.9 | Z171: 350373 | AA171: 0 | AB171: 0 | AD171: 59901.05 | AE171: 564777 | AF171: 1144073.63 | AG171: 6017271 | AH171: 1941602 | AI171: 0 | AJ171: 0 | AK171: 2004739 | AL171: 12082736.68 | AO171: 566639 | AP171: 566639 | AQ171: 11516097.68 | AR171: 52502169.58 | AS171: 30979769 | AT171: 0 | AU171: 30979769 | AV171: 0 | AW171: 0 | AX171: 0 | AY171: 0 | BA171: 56855.37 | BB171: 32282629 | BC171: 50740543.22 | BD171: 18457914.22 | BE171: 18401058.85 | BF171: 0 | BG171: 2000 | BI171: 1483846.46 | BJ171: 33743921.26 | BK171: 509622.37 | BL171: 77500 | BM171: 863631.28 | BN171: 4099747.77 | BO171: 74000 | BP171: 151000 | BQ171: 0 | BR171: 0 | BS171: 0 | BT171: 2412628 | BU171: 43415897.14 | BW171: 2000 | BY171: 2000 | BZ171: 43413897.14 | CB171: 367611 | CC171: 0 | CD171: 0 | CF171: 0 | CG171: 573305 | CH171: 1200000 | CI171: 6341366 | CJ171: 2042566 | CK171: 0 | CL171: 0 | CM171: 1868973 | CN171: 12393821 | CQ171: 339983.4 | CR171: 339983.4 | CS171: 12053837.6 | CT171: 55467734.74 | CU171: 31697545 | CV171: 0 | CW171: 31697545 | CX171: 0 | CY171: 0 | CZ171: 0 | DA171: 0
A172: 0169 | B172: 1 | C172: 1 | D172: 2022-11-04 | E172: 1 | F172: 1 | G172: 1 | H172: 178006 | I172: 4808853 | J172: 66120 | K172: 10983 | L172: 0 | M172: 574608 | N172: 16994 | O172: 0 | P172: 0 | Q172: 8591 | R172: 0 | S172: 442333 | T172: 6106488 | V172: 0 | X172: 0 | Y172: 6106488 | Z172: 107885 | AA172: 0 | AB172: 0 | AD172: 0 | AE172: 0 | AF172: 541728 | AG172: 562659 | AH172: 61867 | AI172: 0 | AJ172: 0 | AK172: 27726 | AL172: 1301865 | AO172: 0 | AP172: 0 | AQ172: 1301865 | AR172: 7408353 | AS172: 4481242 | AT172: 0 | AU172: 4481242 | AV172: 0 | AW172: 0 | AX172: 0 | AY172: 0 | BA172: 0 | BB172: 4591548 | BC172: 7108390.75 | BD172: 2516842.75 | BE172: 2516842.75 | BF172: 0 | BG172: 0 | BI172: 156959 | BJ172: 5014174 | BK172: 67621 | BL172: 0 | BM172: 1500 | BN172: 404295 | BO172: 0 | BP172: 200 | BQ172: 0 | BR172: 15100 | BS172: 0 | BT172: 402587 | BU172: 6062436 | BW172: 0 | BY172: 0 | BZ172: 6062436 | CB172: 110883 | CC172: 0 | CD172: 0 | CF172: 0 | CG172: 0 | CH172: 584790 | CI172: 585686 | CJ172: 76467.6 | CK172: 0 | CL172: 0 | CM172: 19259 | CN172: 1377085.6 | CQ172: 0 | CR172: 0 | CS172: 1377085.6 | CT172: 7439521.6 | CU172: 4816494 | CV172: 0 | CW172: 4816494 | CX172: 0 | CY172: 0 | CZ172: 0 | DA172: 0
A173: 0170 | B173: 1 | C173: 1 | D173: 2022-10-21 | E173: 1 | F173: 1 | G173: 1 | H173: 2532905.82 | I173: 52921539.59 | J173: 846258.46 | K173: 0 | L173: 948481.94 | M173: 3463996.26 | N173: 0 | O173: 0 | P173: 0 | Q173: 0 | R173: 0 | S173: 1456714.34 | T173: 62169896.41 | V173: 0 | X173: 0 | Y173: 62169896.41 | Z173: 380978 | AA173: 0 | AB173: 0 | AD173: 0 | AE173: 2587403 | AF173: 2730696 | AG173: 8437076 | AH173: 2060678 | AI173: 0 | AJ173: 0 | AK173: 7818425 | AL173: 24015256 | AO173: 6856.825909 | AP173: 6856.825909 | AQ173: 24008399.17 | AR173: 86178295.58 | AS173: 69331528 | AT173: 0 | AU173: 69331528 | AV173: 0 | AW173: 0 | AX173: 0 | AY173: 0 | BA173: 0 | BB173: 67969830 | BC173: 86654624.18 | BD173: 18684794.18 | BE173: 18684794.18 | BF173: 0 | BG173: 0 | BI173: 3132285 | BJ173: 54798058 | BK173: 1160104 | BL173: 0 | BM173: 1236130 | BN173: 2543719 | BO173: 0 | BP173: 0 | BQ173: 0 | BR173: 0 | BS173: 0 | BT173: 1912758 | BU173: 64783054 | BW173: 0 | BY173: 0 | BZ173: 64783054 | CB173: 375748 | CC173: 0 | CD173: 0 | CF173: 0 | CG173: 3236200 | CH173: 2121765 | CI173: 8997421 | CJ173: 2163712 | CK173: 0 | CL173: 0 | CM173: 8344715 | CN173: 25239561 | CQ173: 480382.7381 | CR173: 480382.7381 | CS173: 24759178.26 | CT173: 89542232.26 | CU173: 77315387 | CV173: 0 | CW173: 77315387 | CX173: 0 | CY173: 0 | CZ173: 0 | DA173: 0
A174: 0171 | B174: 1 | C174: 1 | D174: 2022-10-28 | E174: 1 | F174: 1 | G174: 1 | H174: 1252167.9 | I174: 37394169.65 | J174: 938533.18 | K174: 0 | L174: 979571.22 | M174: 4140708.85 | N174: 384532.99 | O174: 0 | P174: 0 | Q174: 0 | R174: 0 | S174: 1867629.65 | T174: 46957313.44 | V174: 0 | X174: 0 | Y174: 46957313.44 | Z174: 469233 | AA174: 0 | AB174: 0 | AD174: 0 | AE174: 376100 | AF174: 1886836 | AG174: 4563792 | AH174: 545224.5 | AI174: 0 | AJ174: 0 | AK174: 631383 | AL174: 8472568.5 | AO174: 158250 | AP174: 158250 | AQ174: 8314318.5 | AR174: 55271631.94 | AS174: 50481178 | AT174: 0 | AU174: 50481178 | AV174: 0 | AW174: 0 | AX174: 0 | AY174: 0 | BA174: 0 | BB174: 50564399 | BC174: 57036993 | BD174: 6472594 | BE174: 6472594 | BF174: 0 | BG174: 0 | BI174: 1241148 | BJ174: 41241944 | BK174: 853225 | BL174: 0 | BM174: 812817 | BN174: 3603004 | BO174: 400000 | BP174: 0 | BQ174: 0 | BR174: 0 | BS174: 0 | BT174: 3581899 | BU174: 51734037 | BW174: 0 | BY174: 0 | BZ174: 51734037 | CB174: 469233 | CC174: 0 | CD174: 0 | CF174: 42792 | CG174: 376100 | CH174: 2017019 | CI174: 5131979.6 | CJ174: 686982.6 | CK174: 0 | CL174: 0 | CM174: 816390 | CN174: 9540496.2 | CQ174: 267611.68 | CR174: 267611.68 | CS174: 9272884.52 | CT174: 61006921.52 | CU174: 52297584 | CV174: 0 | CW174: 52297584 | CX174: 0 | CY174: 0 | CZ174: 0 | DA174: 0
A175: 0172 | B175: 1 | C175: 1 | D175: 2022-10-14 | E175: 1 | F175: 1 | G175: 1 | H175: 1169509.59 | I175: 16597172.81 | J175: 430445.5 | K175: 80665.07 | L175: 851562.22 | M175: 732491.04 | N175: 371290.45 | O175: 7331.15 | P175: 0 | Q175: 0 | R175: 0 | S175: 734001.32 | T175: 20974469.15 | V175: 0 | X175: 0 | Y175: 20974469.15 | Z175: 231861 | AA175: 0 | AB175: 0 | AD175: 162297.47 | AE175: 3281314 | AF175: 690626.25 | AG175: 3678765.74 | AH175: 1158470.55 | AI175: 0 | AJ175: 0 | AK175: 1679445.23 | AL175: 10882780.24 | AO175: 214689.9153 | AP175: 214689.9153 | AQ175: 10668090.32 | AR175: 31642559.48 | AS175: 19726133 | AT175: 0 | AU175: 19726133 | AV175: 0 | AW175: 0 | AX175: 0 | AY175: 0 | BA175: 0 | BB175: 19840736 | BC175: 31279257.29 | BD175: 11438521.29 | BE175: 11438521.29 | BF175: 0 | BG175: 0 | BI175: 921722 | BJ175: 17852183 | BK175: 361771 | BL175: 73518 | BM175: 775055 | BN175: 154959 | BO175: 0 | BP175: 10000 | BQ175: 0 | BR175: 0 | BS175: 0 | BT175: 1170865 | BU175: 21320073 | BW175: 0 | BY175: 0 | BZ175: 21320073 | CB175: 227107.91 | CC175: 0 | CD175: 0 | CF175: 77974.84 | CG175: 7748177.72 | CH175: 759096.36 | CI175: 4442403.84 | CJ175: 1494894.28 | CK175: 0 | CL175: 0 | CM175: 1725938 | CN175: 16475592.95 | CQ175: 124911.0163 | CR175: 124911.0163 | CS175: 16350681.93 | CT175: 37670754.93 | CU175: 20516175 | CV175: 0 | CW175: 20516175 | CX175: 0 | CY175: 0 | CZ175: 0 | DA175: 0
A176: 0173 | B176: 1 | C176: 1 | D176: 2022-11-10 | E176: 1 | F176: 1 | G176: 1 | H176: 182685 | I176: 5401135 | J176: 144804 | K176: 0 | L176: 5237 | M176: 811209 | N176: 22473 | O176: 0 | P176: 0 | Q176: 7874 | R176: 0 | S176: 548358 | T176: 7123775 | V176: 0 | X176: 0 | Y176: 7123775 | Z176: 146174 | AA176: 0 | AB176: 0 | AD176: 0 | AE176: 0 | AF176: 448438 | AG176: 1174568 | AH176: 72032.5 | AI176: 0 | AJ176: 0 | AK176: 5000 | AL176: 1846212.5 | AO176: 3552.837328 | AP176: 3552.837328 | AQ176: 1842659.663 | AR176: 8966434.663 | AS176: 4359828 | AT176: 0 | AU176: 4359828 | AV176: 0 | AW176: 0 | AX176: 0 | AY176: 0 | BA176: 0 | BB176: 4590611 | BC176: 8597117.798 | BD176: 4006506.798 | BE176: 4006506.798 | BF176: 0 | BG176: 0 | BI176: 208311 | BJ176: 5544853 | BK176: 159819 | BL176: 0 | BM176: 7800 | BN176: 771055 | BO176: 0 | BP176: 0 | BQ176: 0 | BR176: 16500 | BS176: 0 | BT176: 343416 | BU176: 7051754 | BW176: 0 | BY176: 0 | BZ176: 7051754 | CB176: 152091 | CC176: 0 | CD176: 0 | CF176: 0 | CG176: 0 | CH176: 484552 | CI176: 1394310 | CJ176: 91077.6 | CK176: 0 | CL176: 0 | CM176: 7282 | CN176: 2129312.6 | CQ176: -28.63371376 | CR176: -28.63371376 | CS176: 2129341.234 | CT176: 9181095.234 | CU176: 4913934 | CV176: 0 | CW176: 4913934 | CX176: 0 | CY176: 0 | CZ176: 0 | DA176: 0
A177: 0174 | B177: 1 | C177: 1 | D177: 2022-09-30 | E177: 1 | F177: 1 | G177: 1 | H177: 872296.42 | I177: 15299224.27 | J177: 198068.75 | K177: 13097.74 | L177: 336712.56 | M177: 1686055.16 | N177: 55151.33 | O177: 0 | P177: 0 | Q177: 0 | R177: 0 | S177: 1824568.17 | T177: 20285174.4 | V177: 110000 | X177: 110000 | Y177: 20175174.4 | Z177: 478682 | AA177: 0 | AB177: 0 | AD177: 0 | AE177: 0 | AF177: 803670 | AG177: 3488037 | AH177: 144393 | AI177: 0 | AJ177: 0 | AK177: 1641258 | AL177: 6556040 | AO177: 236724.5451 | AP177: 236724.5451 | AQ177: 6319315.455 | AR177: 26494489.85 | AS177: 16083653 | AT177: 0 | AU177: 16083653 | AV177: 0 | AW177: 0 | AX177: 0 | AY177: 0 | BA177: 0 | BB177: 15619900 | BC177: 24623530.02 | BD177: 9003630.022 | BE177: 9003630.022 | BF177: 0 | BG177: 110000 | BI177: 939343.27 | BJ177: 15677250.09 | BK177: 203515.74 | BL177: 15000 | BM177: 312278.11 | BN177: 1806292.91 | BO177: 0 | BP177: 0 | BQ177: 0 | BR177: 0 | BS177: 0 | BT177: 1928578 | BU177: 20882258.12 | BW177: 280000 | BY177: 280000 | BZ177: 20602258.12 | CB177: 485238 | CC177: 0 | CD177: 0 | CF177: 0 | CG177: 5382 | CH177: 852066 | CI177: 4214384 | CJ177: 155869.8 | CK177: 0 | CL177: 0 | CM177: 1501359 | CN177: 7214298.8 | CQ177: 144434.0704 | CR177: 144434.0704 | CS177: 7069864.73 | CT177: 27672122.85 | CU177: 16951711 | CV177: 0 | CW177: 16951711 | CX177: 0 | CY177: 0 | CZ177: 0 | DA177: 0
A178: 0175 | B178: 1 | C178: 1 | D178: 2022-09-23 | E178: 1 | F178: 1 | G178: 1 | H178: 896086.02 | I178: 29227537.48 | J178: 617400.52 | K178: 14667.12 | L178: 917914.83 | M178: 3792666.39 | N178: 69730 | O178: 0 | P178: 0 | Q178: 41770.51 | R178: 0 | S178: 1428111.1 | T178: 37005883.97 | V178: 0 | X178: 0 | Y178: 37005883.97 | Z178: 325124 | AA178: 0 | AB178: 1105 | AD178: 77811 | AE178: 2856 | AF178: 1170037 | AG178: 3074424 | AH178: 602955 | AI178: 0 | AJ178: 0 | AK178: 127168 | AL178: 5381480 | AO178: 86167.8 | AP178: 86167.8 | AQ178: 5295312.2 | AR178: 42301196.17 | AS178: 28161684 | AT178: 0 | AU178: 28161684 | AV178: 0 | AW178: 0 | AX178: 0 | AY178: 0 | BA178: 97466.03 | BB178: 28194225 | BC178: 40362898.12 | BD178: 12168673.12 | BE178: 12071207.09 | BF178: 0 | BG178: 0 | BI178: 981294 | BJ178: 30034110 | BK178: 622702 | BL178: 20408 | BM178: 938321 | BN178: 4788306 | BO178: 87000 | BP178: 74000 | BQ178: 0 | BR178: 0 | BS178: 0 | BT178: 1065729 | BU178: 38611870 | BW178: 0 | BY178: 0 | BZ178: 38611870 | CB178: 357438 | CC178: 0 | CD178: 2709 | CF178: 81701 | CG178: 0 | CH178: 1255807 | CI178: 3341120 | CJ178: 690326 | CK178: 0 | CL178: 0 | CM178: 73438 | CN178: 5802539 | CQ178: 52467.672 | CR178: 52467.672 | CS178: 5750071.328 | CT178: 44361941.33 | CU178: 29095977 | CV178: 0 | CW178: 29095977 | CX178: 0 | CY178: 0 | CZ178: 0 | DA178: 0
A179: 0176 | B179: 1 | C179: 1 | D179: 2023-01-03 | E179: 1 | F179: 1 | G179: 1 | H179: 2431045 | I179: 49164637 | J179: 1436267 | K179: 0 | L179: 1362063 | M179: 6741306 | N179: 0 | O179: 170548 | P179: 0 | Q179: 0 | R179: 0 | S179: 1598581 | T179: 62904447 | V179: 0 | X179: 0 | Y179: 62904447 | Z179: 0 | AA179: 0 | AB179: 0 | AD179: 0 | AE179: 0 | AF179: 1987712 | AG179: 11461123 | AH179: 3063644 | AI179: 0 | AJ179: 0 | AK179: 7656126 | AL179: 24168605 | AO179: 871467.3009 | AP179: 871467.3009 | AQ179: 23297137.7 | AR179: 86201584.7 | AS179: 61086493 | AT179: 0 | AU179: 61086493 | AV179: 0 | AW179: 0 | AX179: 0 | AY179: 0 | BA179: 0 | BB179: 61250887 | BC179: 82812826.29 | BD179: 21561939.29 | BE179: 21561939.29 | BF179: 0 | BG179: 0 | BI179: 4672858 | BJ179: 50624362 | BK179: 1452077 | BL179: 0 | BM179: 980994 | BN179: 6123135 | BO179: 300000 | BP179: 250000 | BQ179: 0 | BR179: 0 | BS179: 0 | BT179: 1650000 | BU179: 66053426 | BW179: 0 | BY179: 0 | BZ179: 66053426 | CB179: 0 | CC179: 0 | CD179: 0 | CF179: 0 | CG179: 0 | CH179: 0 | CI179: 9511099 | CJ179: 5013668 | CK179: 0 | CL179: 0 | CM179: 7399093 | CN179: 21923860 | CQ179: 475827.5402 | CR179: 475827.5402 | CS179: 21448032.46 | CT179: 87501458.46 | CU179: 64950374 | CV179: 0 | CW179: 64950374 | CX179: 0 | CY179: 0 | CZ179: 0 | DA179: 0
A180: 0177 | B180: 1 | C180: 1 | D180: 2022-09-27 | E180: 1 | F180: 1 | G180: 1 | H180: 986650.46 | I180: 20472652.01 | J180: 580330.72 | K180: 236 | L180: 652609 | M180: 3421647.71 | N180: 80971 | O180: 0 | P180: 0 | Q180: 0 | R180: 0 | S180: 1220344 | T180: 27415440.9 | V180: 0 | X180: 0 | Y180: 27415440.9 | Z180: 132402 | AA180: 0 | AB180: 6137 | AD180: 0 | AE180: 254967 | AF180: 1896974 | AG180: 4549183 | AH180: 304804 | AI180: 0 | AJ180: 0 | AK180: 594321 | AL180: 7738788 | AO180: 57478.43839 | AP180: 57478.43839 | AQ180: 7681309.562 | AR180: 35096750.46 | AS180: 27985641 | AT180: 0 | AU180: 27985641 | AV180: 0 | AW180: 0 | AX180: 0 | AY180: 0 | BA180: 3736 | BB180: 27386711 | BC180: 34056871.87 | BD180: 6670160.867 | BE180: 6666424.867 | BF180: 0 | BG180: 0 | BI180: 830749 | BJ180: 21799164 | BK180: 539563 | BL180: 0 | BM180: 700307 | BN180: 2964561 | BO180: 42500 | BP180: 0 | BQ180: 0 | BR180: 0 | BS180: 0 | BT180: 1070855 | BU180: 27947699 | BW180: 0 | BY180: 0 | BZ180: 27947699 | CB180: 136454 | CC180: 0 | CD180: 7000 | CF180: 0 | CG180: 277120 | CH180: 2036032 | CI180: 5286689 | CJ180: 430883.4 | CK180: 0 | CL180: 0 | CM180: 498759 | CN180: 8672937.4 | CQ180: 28698.65368 | CR180: 28698.65368 | CS180: 8644238.746 | CT180: 36591937.75 | CU180: 29130894 | CV180: 0 | CW180: 29130894 | CX180: 0 | CY180: 0 | CZ180: 0 | DA180: 0
A181: 0178 | B181: 1 | C181: 1 | D181: 2022-10-28 | E181: 1 | F181: 1 | G181: 1 | H181: 856739.45 | I181: 28815994.2 | J181: 7000 | K181: 0 | L181: 676780.12 | M181: 265596.39 | N181: 8142.07 | O181: 22863 | P181: 0 | Q181: 0 | R181: 0 | S181: 1640721.89 | T181: 32293837.12 | V181: 0 | X181: 0 | Y181: 32293837.12 | Z181: 519215 | AA181: 0 | AB181: 650303 | AD181: 504478 | AE181: 3192364 | AF181: 1287226 | AG181: 6040896 | AH181: 2460715 | AI181: 0 | AJ181: 0 | AK181: 3298092 | AL181: 17953289 | AO181: 320134.7779 | AP181: 320134.7779 | AQ181: 17633154.22 | AR181: 49926991.34 | AS181: 44779595 | AT181: 0 | AU181: 44779595 | AV181: 0 | AW181: 0 | AX181: 0 | AY181: 0 | BA181: 49 | BB181: 43622947 | BC181: 49313902.05 | BD181: 5690955.055 | BE181: 5690906.055 | BF181: 0 | BG181: 0 | BI181: 864707 | BJ181: 31547839.4 | BK181: 7000 | BL181: 0 | BM181: 589060 | BN181: 411004 | BO181: 0 | BP181: 23000 | BQ181: 0 | BR181: 0 | BS181: 0 | BT181: 860482 | BU181: 34303092.4 | BW181: 0 | BY181: 0 | BZ181: 34303092.4 | CB181: 554524 | CC181: 0 | CD181: 676009 | CF181: 389400 | CG181: 3251651 | CH181: 1362087 | CI181: 6686418 | CJ181: 2546708 | CK181: 0 | CL181: 0 | CM181: 3260742 | CN181: 18727539 | CQ181: 202091.2892 | CR181: 202091.2892 | CS181: 18525447.71 | CT181: 52828540.11 | CU181: 47377571 | CV181: 0 | CW181: 47377571 | CX181: 0 | CY181: 0 | CZ181: 0 | DA181: 0
A182: 0179 | B182: 0 | C182: 1 | D182: 2022-09-26 | H182: 0 | I182: 0 | J182: 0 | K182: 0 | L182: 0 | M182: 0 | N182: 0 | O182: 0 | P182: 0 | Q182: 0 | R182: 0 | S182: 0 | T182: 0 | V182: 0 | X182: 0 | Y182: 0 | Z182: 0 | AA182: 0 | AB182: 0 | AD182: 0 | AE182: 0 | AF182: 0 | AG182: 0 | AH182: 0 | AI182: 0 | AJ182: 0 | AK182: 0 | AL182: 0 | AO182: 0 | AP182: 0 | AQ182: 0 | AR182: 0 | AS182: 104597 | AT182: 5677.75 | AU182: 110274.75 | AV182: -110274.75 | AW182: -1.05428215 | AX182: 5229.85 | AY182: 0 | BA182: 0 | BB182: 119518.1 | BC182: 0 | BD182: -119518.1 | BE182: -119518.1 | BF182: 0 | BG182: 0 | BI182: 0 | BJ182: 0 | BK182: 0 | BL182: 0 | BM182: 0 | BN182: 0 | BO182: 0 | BP182: 0 | BQ182: 0 | BR182: 0 | BS182: 0 | BT182: 0 | BU182: 0 | BW182: 0 | BY182: 0 | BZ182: 0 | CB182: 0 | CC182: 0 | CD182: 0 | CF182: 0 | CG182: 0 | CH182: 0 | CI182: 0 | CJ182: 0 | CK182: 0 | CL182: 0 | CM182: 0 | CN182: 0 | CQ182: 0 | CR182: 0 | CS182: 0 | CT182: 0 | CU182: 118346 | CV182: 5229.85 | CW182: 123575.85 | CX182: -123575.85 | CY182: -1.044191185 | CZ182: 5917.3 | DA182: 0
A183: 0180 | B183: 0 | C183: 1 | D183: 2022-09-22 | H183: 0 | I183: 0 | J183: 0 | K183: 0 | L183: 0 | M183: 0 | N183: 0 | O183: 0 | P183: 0 | Q183: 0 | R183: 0 | S183: 0 | T183: 0 | V183: 0 | X183: 0 | Y183: 0 | Z183: 0 | AA183: 0 | AB183: 0 | AD183: 0 | AE183: 0 | AF183: 0 | AG183: 0 | AH183: 0 | AI183: 0 | AJ183: 0 | AK183: 0 | AL183: 0 | AO183: 0 | AP183: 0 | AQ183: 0 | AR183: 0 | AS183: 144270 | AT183: 7330 | AU183: 151600 | AV183: -151600 | AW183: -1.050807514 | AX183: 7213.5 | AY183: 0 | BA183: 0 | BB183: 152349.25 | BC183: 0 | BD183: -152349.25 | BE183: -152349.25 | BF183: 0 | BG183: 0 | BI183: 0 | BJ183: 0 | BK183: 0 | BL183: 0 | BM183: 0 | BN183: 0 | BO183: 0 | BP183: 0 | BQ183: 0 | BR183: 0 | BS183: 0 | BT183: 0 | BU183: 0 | BW183: 0 | BY183: 0 | BZ183: 0 | CB183: 0 | CC183: 0 | CD183: 0 | CF183: 0 | CG183: 0 | CH183: 0 | CI183: 0 | CJ183: 0 | CK183: 0 | CL183: 0 | CM183: 0 | CN183: 0 | CQ183: 0 | CR183: 0 | CS183: 0 | CT183: 0 | CU183: 202094 | CV183: 7213.5 | CW183: 209307.5 | CX183: -209307.5 | CY183: -1.035693786 | CZ183: 10104.7 | DA183: 0
A184: 0181 | B184: 1 | C184: 1 | D184: 2022-10-28 | E184: 1 | F184: 1 | G184: 1 | H184: 1864595 | I184: 55866012 | J184: 1716145 | K184: 915 | L184: 1299627 | M184: 7181328 | N184: 105113 | O184: 80294 | P184: 0 | Q184: 0 | R184: 0 | S184: 8595956 | T184: 76709985 | V184: 0 | X184: 0 | Y184: 76709985 | Z184: 613384 | AA184: 0 | AB184: 0 | AD184: 210525 | AE184: 365593 | AF184: 3431558 | AG184: 8126666 | AH184: 2606166 | AI184: 0 | AJ184: 0 | AK184: 2560642 | AL184: 17914534 | AO184: 402708.3551 | AP184: 402708.3551 | AQ184: 17511825.64 | AR184: 94221810.64 | AS184: 89540204 | AT184: 0 | AU184: 89540204 | AV184: 0 | AW184: 0 | AX184: 0 | AY184: 0 | BA184: 0 | BB184: 88769466 | BC184: 91249123.11 | BD184: 2479657.108 | BE184: 2479657.108 | BF184: 0 | BG184: 0 | BI184: 1905571 | BJ184: 61258569 | BK184: 2043236 | BL184: 0 | BM184: 1249821 | BN184: 7642195 | BO184: 111761 | BP184: 226850 | BQ184: 0 | BR184: 2300 | BS184: 0 | BT184: 8511777 | BU184: 82952080 | BW184: 1000000 | BY184: 1000000 | BZ184: 81952080 | CB184: 671943 | CC184: 0 | CD184: 0 | CF184: 309547 | CG184: 402390 | CH184: 3848796 | CI184: 7440076 | CJ184: 3879498 | CK184: 0 | CL184: 0 | CM184: 3437430 | CN184: 19989680 | CQ184: 963599.3004 | CR184: 963599.3004 | CS184: 19026080.7 | CT184: 100978160.7 | CU184: 99305682 | CV184: 0 | CW184: 99305682 | CX184: 0 | CY184: 0 | CZ184: 0 | DA184: 0
A185: 0182 | B185: 1 | C185: 1 | D185: 2022-10-24 | E185: 1 | F185: 1 | G185: 1 | H185: 908598 | I185: 25833489.78 | J185: 679888 | K185: 0 | L185: 649940 | M185: 3416109 | N185: 55414 | O185: 0 | P185: 0 | Q185: 0 | R185: 0 | S185: 2056514 | T185: 33599952.78 | V185: 0 | X185: 0 | Y185: 33599952.78 | Z185: 305003 | AA185: 0 | AB185: 0 | AD185: 0 | AE185: 0 | AF185: 2272471 | AG185: 4531324 | AH185: 1802653 | AI185: 0 | AJ185: 464667 | AK185: 1206934.03 | AL185: 10583052.03 | AO185: 194059.9339 | AP185: 194059.9339 | AQ185: 10388992.1 | AR185: 43988944.88 | AS185: 37158860 | AT185: 0 | AU185: 37158860 | AV185: 0 | AW185: 0 | AX185: 0 | AY185: 0 | BA185: 0 | BB185: 36199011 | BC185: 42852508.54 | BD185: 6653497.54 | BE185: 6653497.54 | BF185: 0 | BG185: 0 | BI185: 864236 | BJ185: 29114015 | BK185: 715095 | BL185: 0 | BM185: 730819 | BN185: 3621381 | BO185: 100000 | BP185: 0 | BQ185: 0 | BR185: 0 | BS185: 0 | BT185: 1814361 | BU185: 36959907 | BW185: 0 | BY185: 0 | BZ185: 36959907 | CB185: 260739 | CC185: 0 | CD185: 0 | CF185: 0 | CG185: 38061 | CH185: 2681605 | CI185: 5172790 | CJ185: 1835250 | CK185: 0 | CL185: 1400484 | CM185: 1316490 | CN185: 12705419 | CQ185: 183053.2937 | CR185: 183053.2937 | CS185: 12522365.71 | CT185: 49482272.71 | CU185: 40901732 | CV185: 0 | CW185: 40901732 | CX185: 0 | CY185: 0 | CZ185: 0 | DA185: 0
A186: 0183 | B186: 0 | C186: 0 | H186: 0 | I186: 0 | J186: 0 | K186: 0 | L186: 0 | M186: 0 | N186: 0 | O186: 0 | P186: 0 | Q186: 0 | R186: 0 | S186: 0 | T186: 0 | V186: 0 | X186: 0 | Y186: 0 | Z186: 0 | AA186: 0 | AB186: 0 | AD186: 0 | AE186: 0 | AF186: 0 | AG186: 0 | AH186: 0 | AI186: 0 | AJ186: 0 | AK186: 60225 | AL186: 60225 | AO186: 0 | AP186: 0 | AQ186: 60225 | AR186: 60225 | AS186: 50298 | AT186: 2473.9 | AU186: 52771.9 | AV186: 0 | AW186: 0 | AX186: 0 | AY186: 0 | BA186: 0 | BB186: 51851.35 | BC186: 0 | BD186: -51851.35 | BE186: -51851.35 | BF186: 0 | BG186: 0 | BI186: 0 | BJ186: 0 | BK186: 0 | BL186: 0 | BM186: 0 | BN186: 0 | BO186: 0 | BP186: 0 | BQ186: 0 | BR186: 0 | BS186: 0 | BT186: 0 | BU186: 0 | BW186: 0 | BY186: 0 | BZ186: 0 | CB186: 0 | CC186: 0 | CD186: 0 | CF186: 0 | CG186: 0 | CH186: 0 | CI186: 0 | CJ186: 0 | CK186: 0 | CL186: 0 | CM186: 58080 | CN186: 58080 | CQ186: 0 | CR186: 0 | CS186: 58080 | CT186: 58080 | CU186: 52142 | CV186: 0 | CW186: 52142 | CX186: 0 | CY186: 0 | CZ186: 0 | DA186: 0
A187: 0184 | B187: 1 | C187: 1 | D187: 2022-09-22 | E187: 1 | F187: 1 | G187: 1 | H187: 554305 | I187: 8063534 | J187: 183791 | K187: 73793 | L187: 101236 | M187: 1003021 | N187: 40463 | O187: 1483885 | P187: 194361 | Q187: 0 | R187: 0 | S187: 241901 | T187: 11940290 | V187: 0 | X187: 0 | Y187: 11940290 | Z187: 99441 | AA187: 0 | AB187: 5000 | AD187: 194982 | AE187: 26523 | AF187: 479082 | AG187: 0 | AH187: 0 | AI187: 0 | AJ187: 0 | AK187: 17861 | AL187: 822889 | AO187: 409.2120328 | AP187: 409.2120328 | AQ187: 822479.788 | AR187: 12762769.79 | AS187: 7400837 | AT187: 0 | AU187: 7400837 | AV187: 0 | AW187: 0 | AX187: 0 | AY187: 0 | BA187: 17586 | BB187: 7452115 | BC187: 12918766.27 | BD187: 5466651.271 | BE187: 5449065.271 | BF187: 0 | BG187: 0 | BI187: 636337 | BJ187: 9354381 | BK187: 212181 | BL187: 99679 | BM187: 2450 | BN187: 1060955 | BO187: 47000 | BP187: 1667512 | BQ187: 246180 | BR187: 39188 | BS187: 0 | BT187: 131744 | BU187: 13497607 | BW187: 0 | BY187: 0 | BZ187: 13497607 | CB187: 100733 | CC187: 0 | CD187: 5000 | CF187: 201038 | CG187: 50000 | CH187: 491269 | CI187: 0 | CJ187: 0 | CK187: 0 | CL187: 0 | CM187: 48209 | CN187: 896249 | CQ187: 1114.701999 | CR187: 1114.701999 | CS187: 895134.298 | CT187: 14392741.3 | CU187: 8108478 | CV187: 0 | CW187: 8108478 | CX187: 0 | CY187: 0 | CZ187: 0 | DA187: 0
A188: 0185 | B188: 1 | C188: 1 | D188: 2022-09-26 | E188: 1 | F188: 1 | G188: 1 | H188: 1669970.02 | I188: 42868982.55 | J188: 825020.5 | K188: 0 | L188: 717565.89 | M188: 3127120 | N188: 13132.6 | O188: 7906.59 | P188: 0 | Q188: 66329 | R188: 0 | S188: 3088300 | T188: 52384327.15 | V188: 0 | X188: 0 | Y188: 52384327.15 | Z188: 430192 | AA188: 0 | AB188: 20067 | AD188: 85151 | AE188: 683520 | AF188: 4041673 | AG188: 7392684 | AH188: 698099.5 | AI188: 0 | AJ188: 0 | AK188: 3200276 | AL188: 16551662.5 | AO188: 683506.5364 | AP188: 683506.5364 | AQ188: 15868155.96 | AR188: 68252483.11 | AS188: 58526188 | AT188: 0 | AU188: 58526188 | AV188: 0 | AW188: 0 | AX188: 0 | AY188: 0 | BA188: 5926 | BB188: 56604614 | BC188: 63865298.93 | BD188: 7260684.931 | BE188: 7254758.931 | BF188: 0 | BG188: 0 | BI188: 1685752 | BJ188: 47501372 | BK188: 1116091 | BL188: 0 | BM188: 812512 | BN188: 3446187 | BO188: 20000 | BP188: 0 | BQ188: 0 | BR188: 25000 | BS188: 0 | BT188: 3584398 | BU188: 58191312 | BW188: 0 | BY188: 0 | BZ188: 58191312 | CB188: 474985 | CC188: 0 | CD188: 12997 | CF188: 78107 | CG188: 643204 | CH188: 4257472 | CI188: 8031522 | CJ188: 829914 | CK188: 0 | CL188: 0 | CM188: 3827333 | CN188: 18155534 | CQ188: 818598.0042 | CR188: 818598.0042 | CS188: 17336936 | CT188: 75528248 | CU188: 66524190 | CV188: 0 | CW188: 66524190 | CX188: 0 | CY188: 0 | CZ188: 0 | DA188: 0
A189: 0186 | B189: 1 | C189: 1 | D189: 2022-10-04 | E189: 1 | F189: 1 | G189: 1 | H189: 708556 | I189: 16435503 | J189: 289807 | K189: 36615 | L189: 504698 | M189: 2584907 | N189: 34275 | O189: 0 | P189: 0 | Q189: 0 | R189: 0 | S189: 1389426 | T189: 21983787 | V189: 55000 | X189: 55000 | Y189: 21928787 | Z189: 129203 | AA189: 115000 | AB189: 11667 | AD189: 0 | AE189: 62681 | AF189: 1096752 | AG189: 2867477 | AH189: 874017 | AI189: 0 | AJ189: 0 | AK189: 592501 | AL189: 5749298 | AO189: 51392.71562 | AP189: 51392.71562 | AQ189: 5697905.284 | AR189: 27626692.28 | AS189: 19976867 | AT189: 0 | AU189: 19976867 | AV189: 0 | AW189: 0 | AX189: 0 | AY189: 0 | BA189: 136425 | BB189: 19675592 | BC189: 27129193.1 | BD189: 7453601.101 | BE189: 7317176.101 | BF189: 0 | BG189: 55000 | BI189: 733695 | BJ189: 17385761 | BK189: 276853 | BL189: 1000 | BM189: 531647 | BN189: 1827667 | BO189: 20695 | BP189: 0 | BQ189: 0 | BR189: 0 | BS189: 0 | BT189: 1760068 | BU189: 22537386 | BW189: 30000 | BY189: 30000 | BZ189: 22507386 | CB189: 128954 | CC189: 255000 | CD189: 3215 | CF189: 0 | CG189: 70972 | CH189: 1202696 | CI189: 3178014 | CJ189: 976035 | CK189: 0 | CL189: 0 | CM189: 621888 | CN189: 6436774 | CQ189: 28391.13864 | CR189: 28391.13864 | CS189: 6408382.861 | CT189: 28915768.86 | CU189: 20915573 | CV189: 0 | CW189: 20915573 | CX189: 0 | CY189: 0 | CZ189: 0 | DA189: 0
A190: 0187 | B190: 1 | C190: 1 | D190: 2022-10-27 | E190: 1 | F190: 1 | G190: 1 | H190: 692457 | I190: 12837740.88 | J190: 244978 | K190: 4979 | L190: 349496 | M190: 1494915.99 | N190: 0 | O190: 48003 | P190: 0 | Q190: 18663 | R190: 0 | S190: 873032 | T190: 16564264.87 | V190: 0 | X190: 0 | Y190: 16564264.87 | Z190: 396663 | AA190: 1195 | AB190: 8496 | AD190: 0 | AE190: 25880 | AF190: 757251 | AG190: 2107024 | AH190: 476025 | AI190: 71213 | AJ190: 0 | AK190: 284088 | AL190: 4127835 | AO190: 36839.89676 | AP190: 36839.89676 | AQ190: 4090995.103 | AR190: 20655259.97 | AS190: 13958306 | AT190: 0 | AU190: 13958306 | AV190: 0 | AW190: 0 | AX190: 0 | AY190: 0 | BA190: 6904 | BB190: 13507883 | BC190: 19967424.12 | BD190: 6459541.121 | BE190: 6452637.121 | BF190: 0 | BG190: 0 | BI190: 647286 | BJ190: 13417889.27 | BK190: 244423 | BL190: 6319 | BM190: 353804 | BN190: 1652655 | BO190: 0 | BP190: 74780 | BQ190: 0 | BR190: 58650 | BS190: 0 | BT190: 1250097 | BU190: 17705903.27 | BW190: 0 | BY190: 0 | BZ190: 17705903.27 | CB190: 420693 | CC190: 1195 | CD190: 5824 | CF190: 0 | CG190: 149048 | CH190: 757251 | CI190: 2107024 | CJ190: 476025 | CK190: 69835 | CL190: 0 | CM190: 322924 | CN190: 4309819 | CQ190: 55491.36385 | CR190: 55491.36385 | CS190: 4254327.636 | CT190: 21960230.91 | CU190: 14883765 | CV190: 0 | CW190: 14883765 | CX190: 0 | CY190: 0 | CZ190: 0 | DA190: 0
A191: 0188 | B191: 0 | C191: 1 | D191: 2022-12-26 | H191: 0 | I191: 0 | J191: 0 | K191: 0 | L191: 0 | M191: 0 | N191: 0 | O191: 0 | P191: 0 | Q191: 0 | R191: 0 | S191: 0 | T191: 0 | V191: 0 | X191: 0 | Y191: 0 | Z191: 0 | AA191: 0 | AB191: 0 | AD191: 0 | AE191: 0 | AF191: 0 | AG191: 0 | AH191: 0 | AI191: 0 | AJ191: 0 | AK191: 183632 | AL191: 183632 | AO191: 0 | AP191: 0 | AQ191: 183632 | AR191: 183632 | AS191: 128114 | AT191: 0 | AU191: 128114 | AV191: 0 | AW191: 0 | AX191: 0 | AY191: 0 | BA191: 0 | BB191: 110611.2 | BC191: 168822 | BD191: 58210.8 | BE191: 58210.8 | BF191: 0 | BG191: 0 | BI191: 0 | BJ191: 0 | BK191: 0 | BL191: 0 | BM191: 0 | BN191: 0 | BO191: 0 | BP191: 0 | BQ191: 0 | BR191: 0 | BS191: 0 | BT191: 0 | BU191: 0 | BW191: 0 | BY191: 0 | BZ191: 0 | CB191: 0 | CC191: 0 | CD191: 0 | CF191: 0 | CG191: 0 | CH191: 0 | CI191: 0 | CJ191: 0 | CK191: 0 | CL191: 0 | CM191: 195252 | CN191: 195252 | CQ191: 0 | CR191: 0 | CS191: 195252 | CT191: 195252 | CU191: 141279 | CV191: 0 | CW191: 141279 | CX191: 0 | CY191: 0 | CZ191: 0 | DA191: 0
A192: 0189 | B192: 1 | C192: 1 | D192: 2022-10-03 | E192: 1 | F192: 1 | G192: 1 | H192: 1986328.75 | I192: 41556469.08 | J192: 775040 | K192: 143093 | L192: 1274618 | M192: 4157395 | N192: 32076 | O192: 0 | P192: 0 | Q192: 0 | R192: 0 | S192: 2681204 | T192: 52606223.83 | V192: 0 | X192: 0 | Y192: 52606223.83 | Z192: 236480 | AA192: 0 | AB192: 0 | AD192: 0 | AE192: 1542077 | AF192: 1420398 | AG192: 9684108 | AH192: 768899.5 | AI192: 0 | AJ192: 0 | AK192: 214481 | AL192: 13866443.5 | AO192: 85244.4 | AP192: 85244.4 | AQ192: 13781199.1 | AR192: 66387422.93 | AS192: 48454883 | AT192: 0 | AU192: 48454883 | AV192: 0 | AW192: 0 | AX192: 0 | AY192: 0 | BA192: 0 | BB192: 46914153 | BC192: 63193977.93 | BD192: 16279824.93 | BE192: 16279824.93 | BF192: 0 | BG192: 0 | BI192: 1638251 | BJ192: 44639487 | BK192: 822710 | BL192: 148919 | BM192: 1050717 | BN192: 4274295 | BO192: 65000 | BP192: 0 | BQ192: 0 | BR192: 0 | BS192: 0 | BT192: 3410000 | BU192: 56049379 | BW192: 0 | BY192: 0 | BZ192: 56049379 | CB192: 244514 | CC192: 0 | CD192: 0 | CF192: 0 | CG192: 1628911 | CH192: 1463010 | CI192: 9548887 | CJ192: 891003 | CK192: 0 | CL192: 0 | CM192: 355455 | CN192: 14131780 | CQ192: 173072.696 | CR192: 173072.696 | CS192: 13958707.3 | CT192: 70008086.3 | CU192: 51259127 | CV192: 0 | CW192: 51259127 | CX192: 0 | CY192: 0 | CZ192: 0 | DA192: 0
A193: 0190 | B193: 0 | C193: 0 | H193: 0 | I193: 0 | J193: 0 | K193: 0 | L193: 0 | M193: 0 | N193: 0 | O193: 0 | P193: 0 | Q193: 0 | R193: 0 | S193: 0 | T193: 0 | V193: 0 | X193: 0 | Y193: 0 | Z193: 0 | AA193: 0 | AB193: 25041.78 | AD193: 0 | AE193: 0 | AF193: 0 | AG193: 0 | AH193: 0 | AI193: 0 | AJ193: 0 | AK193: 0 | AL193: 25041.78 | AO193: 0 | AP193: 0 | AQ193: 25041.78 | AR193: 25041.78 | AS193: 150928 | AT193: 0 | AU193: 150928 | AV193: -125886.22 | AW193: -0.8340812838 | AX193: 7546.4 | AY193: 0 | BA193: 0 | BB193: 149215 | BC193: 208231.87 | BD193: 59016.87 | BE193: 59016.87 | BF193: 0 | BG193: 0 | BI193: 0 | BJ193: 0 | BK193: 0 | BL193: 0 | BM193: 0 | BN193: 0 | BO193: 0 | BP193: 0 | BQ193: 0 | BR193: 0 | BS193: 0 | BT193: 0 | BU193: 0 | BW193: 0 | BY193: 0 | BZ193: 0 | CB193: 0 | CC193: 0 | CD193: 0 | CF193: 0 | CG193: 0 | CH193: 0 | CI193: 0 | CJ193: 0 | CK193: 0 | CL193: 0 | CM193: 34432 | CN193: 34432 | CQ193: 0 | CR193: 0 | CS193: 34432 | CT193: 34432 | CU193: 226092 | CV193: 7546.4 | CW193: 233638.4 | CX193: -199206.4 | CY193: -0.8810855758 | CZ193: 11304.6 | DA193: 0
A194: 0191 | B194: 1 | C194: 1 | D194: 2023-01-24 | E194: 1 | F194: 1 | G194: 1 | H194: 534949 | I194: 8462696 | J194: 192695 | K194: 0 | L194: 150876 | M194: 883756 | N194: 25487 | O194: 0 | P194: 0 | Q194: 0 | R194: 0 | S194: 505461 | T194: 10755920 | V194: 0 | X194: 0 | Y194: 10755920 | Z194: 176092 | AA194: 0 | AB194: 0 | AD194: 0 | AE194: 84446 | AF194: 900805 | AG194: 1305186 | AH194: 614375 | AI194: 0 | AJ194: 0 | AK194: 862127.46 | AL194: 3943031.46 | AO194: 68361.34606 | AP194: 68361.34606 | AQ194: 3874670.114 | AR194: 14630590.11 | AS194: 13575013 | AT194: 0 | AU194: 13575013 | AV194: 0 | AW194: 0 | AX194: 0 | AY194: 0 | BA194: 11741 | BB194: 13434643 | BC194: 14378214.84 | BD194: 943571.8377 | BE194: 931830.8377 | BF194: 0 | BG194: 0 | BI194: 439676 | BJ194: 8303668 | BK194: 230453 | BL194: 0 | BM194: 174462 | BN194: 914759 | BO194: 35593 | BP194: 0 | BQ194: 0 | BR194: 0 | BS194: 0 | BT194: 671139 | BU194: 10769750 | BW194: 0 | BY194: 0 | BZ194: 10769750 | CB194: 150896 | CC194: 0 | CD194: 0 | CF194: 0 | CG194: 92117 | CH194: 905908 | CI194: 1304000 | CJ194: 615000 | CK194: 0 | CL194: 0 | CM194: 839977 | CN194: 3907898 | CQ194: 65665.01623 | CR194: 65665.01623 | CS194: 3842232.984 | CT194: 14611982.98 | CU194: 13883580 | CV194: 0 | CW194: 13883580 | CX194: 0 | CY194: 0 | CZ194: 0 | DA194: 0
A195: 0192 | B195: 0 | C195: 1 | D195: 2022-09-20 | H195: 0 | I195: 0 | J195: 0 | K195: 0 | L195: 0 | M195: 0 | N195: 0 | O195: 0 | P195: 0 | Q195: 0 | R195: 0 | S195: 0 | T195: 0 | V195: 0 | X195: 0 | Y195: 0 | Z195: 0 | AA195: 0 | AB195: 0 | AD195: 0 | AE195: 0 | AF195: 0 | AG195: 0 | AH195: 0 | AI195: 0 | AJ195: 0 | AK195: 15462 | AL195: 15462 | AO195: 0 | AP195: 0 | AQ195: 15462 | AR195: 15462 | AS195: 0 | AT195: 0 | AU195: 0 | AV195: 0 | AW195: 0 | AX195: 0 | AY195: 0 | BA195: 0 | BB195: 0 | BC195: 0 | BD195: 0 | BE195: 0 | BF195: 0 | BG195: 0 | BI195: 0 | BJ195: 0 | BK195: 0 | BL195: 0 | BM195: 0 | BN195: 0 | BO195: 0 | BP195: 0 | BQ195: 0 | BR195: 0 | BS195: 0 | BT195: 0 | BU195: 0 | BW195: 0 | BY195: 0 | BZ195: 0 | CB195: 0 | CC195: 0 | CD195: 0 | CF195: 0 | CG195: 0 | CH195: 0 | CI195: 0 | CJ195: 0 | CK195: 0 | CL195: 0 | CM195: 20000 | CN195: 20000 | CQ195: 0 | CR195: 0 | CS195: 20000 | CT195: 20000 | CU195: 0 | CV195: 0 | CW195: 0 | CX195: 0 | CY195: 0 | CZ195: 0 | DA195: 0
A196: 0193 | B196: 0 | C196: 1 | D196: 2022-10-17 | H196: 0 | I196: 0 | J196: 0 | K196: 0 | L196: 0 | M196: 0 | N196: 0 | O196: 0 | P196: 0 | Q196: 0 | R196: 0 | S196: 0 | T196: 0 | V196: 0 | X196: 0 | Y196: 0 | Z196: 0 | AA196: 0 | AB196: 0 | AD196: 0 | AE196: 0 | AF196: 0 | AG196: 0 | AH196: 0 | AI196: 0 | AJ196: 0 | AK196: 0 | AL196: 0 | AO196: 0 | AP196: 0 | AQ196: 0 | AR196: 0 | AS196: 0 | AT196: 0 | AU196: 0 | AV196: 0 | AW196: 0 | AX196: 0 | AY196: 0 | BA196: 0 | BB196: 0 | BC196: 0 | BD196: 0 | BE196: 0 | BF196: 0 | BG196: 0 | BI196: 0 | BJ196: 0 | BK196: 0 | BL196: 0 | BM196: 0 | BN196: 0 | BO196: 0 | BP196: 0 | BQ196: 0 | BR196: 0 | BS196: 0 | BT196: 0 | BU196: 0 | BW196: 0 | BY196: 0 | BZ196: 0 | CB196: 0 | CC196: 0 | CD196: 0 | CF196: 0 | CG196: 0 | CH196: 0 | CI196: 0 | CJ196: 0 | CK196: 0 | CL196: 0 | CM196: 0 | CN196: 0 | CQ196: 0 | CR196: 0 | CS196: 0 | CT196: 0 | CU196: 0 | CV196: 0 | CW196: 0 | CX196: 0 | CY196: 0 | CZ196: 0 | DA196: 0
A197: 0194 | B197: 0 | C197: 0 | H197: 0 | I197: 0 | J197: 0 | K197: 0 | L197: 0 | M197: 0 | N197: 0 | O197: 0 | P197: 0 | Q197: 0 | R197: 0 | S197: 0 | T197: 0 | V197: 0 | X197: 0 | Y197: 0 | Z197: 0 | AA197: 0 | AB197: 0 | AD197: 0 | AE197: 0 | AF197: 0 | AG197: 0 | AH197: 0 | AI197: 0 | AJ197: 0 | AK197: 66382 | AL197: 66382 | AO197: 0 | AP197: 0 | AQ197: 66382 | AR197: 66382 | AS197: 70499 | AT197: 4474.3 | AU197: 74973.3 | AV197: -8591.3 | AW197: -0.1218641399 | AX197: 3524.95 | AY197: 0 | BA197: 0 | BB197: 95280.8 | BC197: 82192.23 | BD197: -13088.57 | BE197: -13088.57 | BF197: 0 | BG197: 0 | BI197: 0 | BJ197: 0 | BK197: 0 | BL197: 0 | BM197: 0 | BN197: 0 | BO197: 0 | BP197: 0 | BQ197: 0 | BR197: 0 | BS197: 0 | BT197: 0 | BU197: 0 | BW197: 0 | BY197: 0 | BZ197: 0 | CB197: 0 | CC197: 0 | CD197: 0 | CF197: 0 | CG197: 0 | CH197: 0 | CI197: 0 | CJ197: 0 | CK197: 0 | CL197: 0 | CM197: 114000 | CN197: 114000 | CQ197: 0 | CR197: 0 | CS197: 114000 | CT197: 114000 | CU197: 59472 | CV197: 3524.95 | CW197: 62996.95 | CX197: 0 | CY197: 0 | CZ197: 0 | DA197: 0
A198: 0195 | B198: 0 | C198: 1 | D198: 2022-10-13 | H198: 0 | I198: 0 | J198: 0 | K198: 0 | L198: 0 | M198: 0 | N198: 0 | O198: 0 | P198: 0 | Q198: 0 | R198: 0 | S198: 0 | T198: 0 | V198: 0 | X198: 0 | Y198: 0 | Z198: 0 | AA198: 0 | AB198: 0 | AD198: 0 | AE198: 0 | AF198: 0 | AG198: 0 | AH198: 0 | AI198: 0 | AJ198: 0 | AK198: 130284.16 | AL198: 130284.16 | AO198: 0 | AP198: 0 | AQ198: 130284.16 | AR198: 130284.16 | AS198: 43813 | AT198: 0 | AU198: 43813 | AV198: 0 | AW198: 0 | AX198: 0 | AY198: 0 | BA198: 0 | BB198: 22312 | BC198: 112578 | BD198: 90266 | BE198: 90266 | BF198: 0 | BG198: 0 | BI198: 0 | BJ198: 0 | BK198: 0 | BL198: 0 | BM198: 0 | BN198: 0 | BO198: 0 | BP198: 0 | BQ198: 0 | BR198: 0 | BS198: 0 | BT198: 0 | BU198: 0 | BW198: 0 | BY198: 0 | BZ198: 0 | CB198: 0 | CC198: 0 | CD198: 0 | CF198: 0 | CG198: 0 | CH198: 0 | CI198: 0 | CJ198: 0 | CK198: 0 | CL198: 0 | CM198: 136799 | CN198: 136799 | CQ198: 0 | CR198: 0 | CS198: 136799 | CT198: 136799 | CU198: 47889 | CV198: 0 | CW198: 47889 | CX198: 0 | CY198: 0 | CZ198: 0 | DA198: 0
A199: 0196 | B199: 1 | C199: 1 | D199: 2022-10-20 | E199: 1 | F199: 1 | G199: 1 | H199: 124845 | I199: 1189133 | J199: 82072 | K199: 0 | L199: 5370 | M199: 312756 | N199: 0 | O199: 0 | P199: 0 | Q199: 5938 | R199: 0 | S199: 1893594 | T199: 3613708 | V199: 1000 | X199: 1000 | Y199: 3612708 | Z199: 252481 | AA199: 0 | AB199: 0 | AD199: 0 | AE199: 110314 | AF199: 115729 | AG199: 212778 | AH199: 0 | AI199: 0 | AJ199: 0 | AK199: 163976 | AL199: 855278 | AO199: 39126.19908 | AP199: 39126.19908 | AQ199: 816151.8009 | AR199: 4428859.801 | AS199: 2878958 | AT199: 0 | AU199: 2878958 | AV199: 0 | AW199: 0 | AX199: 0 | AY199: 0 | BA199: 0 | BB199: 2783423 | BC199: 4316439.777 | BD199: 1533016.777 | BE199: 1533016.777 | BF199: 0 | BG199: 1000 | BI199: 128678 | BJ199: 1349258 | BK199: 80312 | BL199: 0 | BM199: 6956 | BN199: 287754 | BO199: 0 | BP199: 0 | BQ199: 0 | BR199: 7175 | BS199: 0 | BT199: 2064874 | BU199: 3925007 | BW199: 3000 | BY199: 3000 | BZ199: 3922007 | CB199: 280380 | CC199: 0 | CD199: 0 | CF199: 0 | CG199: 119830 | CH199: 126058 | CI199: 254806 | CJ199: 54555.6 | CK199: 0 | CL199: 0 | CM199: 244462 | CN199: 1080091.6 | CQ199: 109907.6875 | CR199: 109907.6875 | CS199: 970183.9125 | CT199: 4892190.913 | CU199: 2902964 | CV199: 0 | CW199: 2902964 | CX199: 0 | CY199: 0 | CZ199: 0 | DA199: 0
A200: 0197 | B200: 1 | C200: 1 | D200: 2022-09-30 | E200: 1 | F200: 1 | G200: 1 | H200: 797254 | I200: 23632077 | J200: 324850 | K200: 70936 | L200: 1119887 | M200: 3782502 | N200: 38887 | O200: 390332 | P200: 0 | Q200: 102513 | R200: 0 | S200: 757003 | T200: 31016241 | V200: 30000 | X200: 30000 | Y200: 30986241 | Z200: 215584 | AA200: 0 | AB200: 0 | AD200: 0 | AE200: 0 | AF200: 1604044 | AG200: 6198304 | AH200: 741086 | AI200: 0 | AJ200: 0 | AK200: 77136 | AL200: 8836154 | AO200: 24248 | AP200: 24248 | AQ200: 8811906 | AR200: 39798147 | AS200: 20233402 | AT200: 0 | AU200: 20233402 | AV200: 0 | AW200: 0 | AX200: 0 | AY200: 0 | BA200: 0 | BB200: 19664938 | BC200: 37909628.75 | BD200: 18244690.75 | BE200: 18244690.75 | BF200: 0 | BG200: 30000 | BI200: 1839767 | BJ200: 24972800 | BK200: 345411 | BL200: 0 | BM200: 911303 | BN200: 4360393 | BO200: 40000 | BP200: 419813 | BQ200: 0 | BR200: 90000 | BS200: 0 | BT200: 650000 | BU200: 33629487 | BW200: 0 | BY200: 0 | BZ200: 33629487 | CB200: 237492 | CC200: 0 | CD200: 0 | CF200: 0 | CG200: 0 | CH200: 1691790 | CI200: 6964916 | CJ200: 1041855 | CK200: 0 | CL200: 0 | CM200: 93544 | CN200: 10029597 | CQ200: 22736.8 | CR200: 22736.8 | CS200: 10006860.2 | CT200: 43636347.2 | CU200: 22613558 | CV200: 0 | CW200: 22613558 | CX200: 0 | CY200: 0 | CZ200: 0 | DA200: 0
... 247 more rows

Sheet Report
D1: Massachusetts Department of Elementary and Secondary Education | H1: February 2024
D2: Office of School Finance
D3: Chapter 70 Net School Spending Compliance, FY22
A4: lea lookup------------> | B4: =VLOOKUP(D4, lea, 2, FALSE) -> 0001 | D4: Abington | E4: School Committee | F4: City/Town | H4: Total
A5: SC Lookup | B5: Muni Lookup
A6: 8 | B6: 26 | C6: 1 | D6: Administration (1000) | E6: =VLOOKUP($B$4, nsscalc,A6, FALSE) -> 614647.44 | F6: =VLOOKUP($B$4, nsscalc,B6, FALSE) -> 147610.84 | G6: * | H6: =SUM(E6:F6) -> 762258.28
A7: 9 | B7: 27 | C7: 2 | D7: Instruction (2000) | E7: 19310731.37 | F7: 53633 | G7: * | H7: =SUM(E7:F7) -> 19364364.37
A8: 10 | B8: 28 | C8: 3 | D8: Attendance-Health (3100, 3200) | E8: 338112.29 | F8: 0 | G8: * | H8: 338112.29
A9: 11 | B9: 29 | C9: 4 | D9: Food Services (3400) | E9: 0 | F9: 0 | H9: 0
A10: 12 | B10: 30 | C10: 5 | D10: Athletics/Student Activities/Security (3500, 3600) | E10: 437489.96 | F10: 0 | H10: 437489.96
A11: 13 | B11: 31 | C11: 6 | D11: Maintenance (4000) | E11: 1955312.09 | F11: 69305 | G11: * | H11: 2024617.09
A12: 14 | B12: 32 | C12: 7 | D12: Employer Retirement Contributions (5100) | E12: 60679.26 | F12: 698271 | H12: 758950.26
A13: 15 | B13: 33 | C13: 8 | D13: Insurance (5200) | E13: 0 | F13: 4260803 | H13: 4260803
A14: 16 | B14: 34 | C14: 9 | D14: Retired Employee Insurance (5250) | E14: 0 | F14: =VLOOKUP($B$4, nsscalc,B14, FALSE) -> 1032378 | H14: 1032378
A15: 17 | B15: 35 | C15: 10 | D15: Rentals (5300) | E15: 0 | F15: 0 | G15: * | H15: 0
A16: 18 | B16: 36 | C16: 11 | D16: Short Term Interest (5400) | E16: 0 | F16: 0 | H16: 0
A17: 19 | B17: 37 | C17: 12 | D17: Tuition (9000) | E17: 2087714.07 | F17: 872632 | H17: 2960346.07
A18: 20 | B18: 38 | C18: 13 | D18: Total School Spending (lines 1 through 12) | E18: 24804686.48 | F18: 7134632.84 | H18: 31939319.32
A19: 21 | B19: 39 | C19: 14 | D19: FY22 School Revenues
A20: 22 | B20: 40 | D20: 14a) FY22 School Revenues * | E20: 0 | F20: 0 | H20: 0
A21: 23 | B21: 41 | D21: 14b) FY22 Charter Reimbursement | E21: 0 | F21: 176472 | H21: 176472
A22: 24 | B22: 42 | D22: 14c) Subtotal, School Revenues (14a + 14b) | E22: 0 | F22: 176472 | H22: 176472
A24: 25 | B24: 43 | C24: 15 | D24: FY22 Net School Spending (13 - 14) | E24: =VLOOKUP($B$4, nsscalc,A24, FALSE) -> 24804686.48 | F24: =VLOOKUP($B$4, nsscalc,B24, FALSE) -> 6958160.84 | H24: 31762847.32
B25: 45 | C25: 16 | D25: FY22 Chapter 70 Required Net School Spending | H25: =VLOOKUP($B$4, nsscalc, B25, FALSE) -> 26629510
B26: 46 | C26: 17 | D26: Carryover from FY21 | H26: =VLOOKUP($B$4, nsscalc, B26, FALSE) -> 0
B27: 47 | C27: 18 | D27: Total FY22 Net School Spending Requirement (16 + 17) | H27: =VLOOKUP($B$4, nsscalc, B27, FALSE) -> 26629510
B29: 48 | C29: 19 | D29: Shortfall in Net School Spending (15 - 18) | H29: =VLOOKUP($B$4, nsscalc, B29, FALSE) -> 0
B30: 49 | C30: 20 | D30: Carryover/Penalty Calculation, Percent Unexpended (19 / 16) | H30: =VLOOKUP($B$4, nsscalc, B30, FALSE) -> 0
B31: 50 | C31: 21 | D31: FY22 Carry-Over into FY23 (Line 19 or 5% of line 16 ) | H31: =VLOOKUP($B$4, nsscalc, B31, FALSE) -> 0
B32: 51 | C32: 22 | D32: Penalty (19 - 21) | H32: =VLOOKUP($B$4, nsscalc, B32, FALSE) -> 0
D33: * Budgeted amounts as reported on FY21 End of Year Pupil and Financial Report, Schedule 19
D35: Massachusetts Department of Elementary and Secondary Education
D36: Office of School Finance
D37: Chapter 70 Net School Spending Compliance, Budgeted FY23
D38: =D4 -> Abington | E38: School Committee | F38: City/Town | H38: Total
A39: 61 | B39: 80 | C39: 1 | D39: Administration (1000) | E39: =VLOOKUP($B$4, nsscalc,A39, FALSE) -> 1082287.7 | F39: =VLOOKUP($B$4, nsscalc,B39, FALSE) -> 109468 | H39: =SUM(E39:F39) -> 1191755.7
A40: 62 | B40: 81 | C40: 2 | D40: Instruction (2000) | E40: 18124856 | F40: =VLOOKUP($B$4, nsscalc,B40, FALSE) -> 56710 | H40: =SUM(E40:F40) -> 18181566
A41: 63 | B41: 82 | C41: 3 | D41: Attendance-Health (3100, 3200) | E41: 373095 | F41: 0 | H41: 373095
A42: 64 | B42: 83 | C42: 4 | D42: Food Services (3400) | E42: 0 | F42: 0 | H42: 0
A43: 65 | B43: 84 | C43: 5 | D43: Athletics/Student Activities/Security (3500, 3600) | E43: =VLOOKUP($B$4, nsscalc,A43, FALSE) -> 248168 | F43: 0 | H43: 248168
A44: 66 | B44: 85 | C44: 6 | D44: Maintenance (4000) | E44: =VLOOKUP($B$4, nsscalc,A44, FALSE) -> 2109556 | F44: 60615 | H44: 2170171
A45: 67 | B45: 86 | C45: 7 | D45: Employer Retirement Contributions (5100) | E45: 40000 | F45: 754159 | H45: 794159
A46: 68 | B46: 87 | C46: 8 | D46: Insurance (5200) | E46: 0 | F46: 4321415 | H46: 4321415
A47: 69 | B47: 88 | C47: 9 | D47: Retired Employee Insurance (5250) | E47: 0 | F47: =VLOOKUP($B$4, nsscalc,B47, FALSE) -> 1083853 | H47: 1083853
A48: 70 | B48: 89 | C48: 10 | D48: Rentals (5300) | E48: 0 | F48: 0 | H48: 0
A49: 71 | B49: 90 | C49: 11 | D49: Short Term Interest (5400) | E49: 0 | F49: 0 | H49: 0
A50: 72 | B50: 91 | C50: 12 | D50: Tuition (9000) | E50: 3884157 | F50: 1048913 | H50: 4933070
A51: 73 | B51: 92 | C51: 13 | D51: FY23 Budgeted School Spending (lines 1 through 12) | E51: 25862119.7 | F51: 7435133 | H51: 33297252.7
A52: 74 | B52: 93 | C52: 14 | D52: FY23 Budgeted School Revenues
A53: 75 | B53: 94 | D53: 14a) FY23 Budgeted School Revenues | E53: =VLOOKUP($B$4, nsscalc,A53, FALSE) -> 0 | F53: 0 | H53: 0
A54: 76 | B54: 95 | D54: 14b) FY23 Charter Reimb (local districts) | E54: =VLOOKUP($B$4, nsscalc,A54, FALSE) -> 0 | F54: 285875.92 | H54: 285875.92
A55: 77 | B55: 96 | D55: 14c) Subtotal, NSS Revenues (36a + 36b) | E55: =VLOOKUP($B$4, nsscalc,A55, FALSE) -> 0 | F55: 285875.92 | H55: 285875.92
A57: 78 | B57: 97 | C57: 15 | D57: FY23 Net School Spending (13 - 14) | E57: =VLOOKUP($B$4, nsscalc,A57, FALSE) -> 25862119.7 | F57: =VLOOKUP($B$4, nsscalc,B57, FALSE) -> 7149257.08 | H57: =SUM(E57:F57) -> 33011376.78
B59: 99 | C59: 16 | D59: FY23 Chapter 70 Required Net School Spending | H59: =VLOOKUP($B$4, nsscalc, B59, FALSE) -> 29563171
B60: 100 | C60: 17 | D60: Carryover from FY22 | H60: =VLOOKUP($B$4, nsscalc, B60, FALSE) -> 0
B61: 101 | C61: 18 | D61: Total FY23 Requirement (16 + 17) | H61: =VLOOKUP($B$4, nsscalc, B61, FALSE) -> 29563171
B63: 102 | C63: 19 | D63: Shortfall in Budgeted FY23 Net School Spending (15 - 18) | H63: =VLOOKUP($B$4, nsscalc, B63, FALSE) -> 0
B64: 103 | C64: 20 | D64: Carryover/Penalty Calculation, Percent Unexpended (19 / 16) | H64: =VLOOKUP($B$4, nsscalc, B64, FALSE) -> 0

Sheet funccodes (hidden)
A1: FuncCode | B1: FuncName | C1: FuncSubttl
A2: 1000 | B2: District Administration
A3: 1110 | B3: School Committee | C3: ADMN
A4: 1210 | B4: Superintendent | C4: ADMN
A5: 1220 | B5: Assistant Superintendents | C5: ADMN
A6: 1230 | B6: Other District-Wide Administration | C6: ADMN
A7: 1400 | B7: Administrative Depts (Finance, Personnel)
A8: 1410 | B8: Business and Finance | C8: ADMN
A9: 1420 | B9: Human Resources and Benefits | C9: ADMN
A10: 1430 | B10: Legal Service for School Committee | C10: ADMN
A11: 1435 | B11: Legal Settlements | C11: ADMN
A12: 1450 | B12: District-wide Information Mgmt & Tech | C12: ADMN
A13: 2000 | B13: Instruction
A14: 2100 | B14: Districtwide Academic Leadership
A15: 2110 | B15: Curriculum Directors (Supervisory) | C15: LDRS
A16: 2120 | B16: Department Heads (Non-Supervisory) | C16: LDRS
A17: 2200 | B17: School Building Leadership
A18: 2210 | B18: School Leadership | C18: LDRS
A19: 2220 | B19: Curriculum/Dept Leaders (School Level) | C19: LDRS
A20: 2250 | B20: Admin. Technology (School Level) | C20: LDRS
A21: 2300 | B21: Instruction - Teaching Services
A22: 2305 | B22: Teachers, Classroom | C22: TCHR
A23: 2310 | B23: Teachers, Specialists | C23: TCHR
A24: 2315 | B24: Instructional Coordinators (Non-Supervisory) | C24: LDRS
A25: 2320 | B25: Medical/ Therapeutic Services | C25: TSER
A26: 2325 | B26: Substitute Teachers | C26: TSER
A27: 2330 | B27: Paraprofessionals | C27: TSER
A28: 2340 | B28: Librarians/Media Center Directors | C28: TSER
A29: 2350 | B29: Professional Development
A30: 2351 | B30: Professional Development Leadership | C30: PDEV
A31: 2353 | B31: Instructional Staff-Professional Days | C31: PDEV
A32: 2355 | B32: Substitutes for Prof. Development | C32: PDEV
A33: 2357 | B33: Prof. Dev. Stipends, Providers, Expenses | C33: PDEV
A34: 2400 | B34: Instructional Materials and Equipment
A35: 2410 | B35: Textbooks, Related Software/Media/Matls | C35: MATL
A36: 2415 | B36: Other Instructional Matls (Libraries) | C36: MATL
A37: 2420 | B37: Instructional Equipment | C37: MATL
A38: 2430 | B38: General Classroom Supplies | C38: MATL
A39: 2440 | B39: Other Instructional Services | C39: MATL
A40: 2450 | B40: Instructional Technology
A41: 2451 | B41: Classroom Instructional Technology | C41: MATL
A42: 2453 | B42: Other Instructional Hardware (Libraries) | C42: MATL
A43: 2455 | B43: Instructional Software | C43: MATL
A44: 2700 | B44: Guidance, Counseling and Testing
A45: 2710 | B45: Guidance incl Adjustment Counselors | C45: GUID
A46: 2720 | B46: Testing and Assessment | C46: GUID
A47: 2800 | B47: Psychological Services | C47: GUID
A48: 3000 | B48: Other School Services
A49: 3100 | B49: Attendance and Parent Liaison Services | C49: SERV
A50: 3132 | B50: Attendance/Health (Sched 19, NSS)
A51: 3200 | B51: Medical/Health Services | C51: SERV
A52: 3300 | B52: Transportation Services | C52: SERV
A53: 3399 | B53: Public Transportation Assessment (NIC Expenditures)
A54: 3400 | B54: Food Services | C54: SERV
A55: 3510 | B55: Athletics | C55: SERV
A56: 3512 | B56: Athletics/Activities/Security (Sched 19, NSS)
A57: 3520 | B57: Other Student Activities | C57: SERV
A58: 3600 | B58: School Security | C58: SERV
A59: 4000 | B59: Operation and Plant Maintenance
A60: 4110 | B60: Custodial Services | C60: OPMN
A61: 4120 | B61: Heating of Buildings | C61: OPMN
A62: 4130 | B62: Utility Services | C62: OPMN
A63: 4200 | B63: Operation and Maintenance
A64: 4210 | B64: Maintenance of Grounds | C64: OPMN
A65: 4220 | B65: Maintenance of Buildings | C65: OPMN
A66: 4225 | B66: Building Security System | C66: OPMN
A67: 4230 | B67: Maintenance of Equipment | C67: OPMN
A68: 4300 | B68: Extraordinary Maintenance | C68: OPMN
A69: 4400 | B69: Networking and Telecommunications | C69: OPMN
A70: 4450 | B70: Technology Maintenance | C70: OPMN
A71: 5000 | B71: Fixed Charges
A72: 5100 | B72: Employer Retirement Contributions | C72: BENE
A73: 5150 | B73: Employee Separation Costs | C73: BENE
A74: 5200 | B74: Insurance for Active Employees | C74: BENE
A75: 5250 | B75: Insurance for Retired School Employees | C75: BENE
A76: 5260 | B76: Other Non-Employee Insurance | C76: BENE
A77: 5300 | B77: Rental Lease of Equipment | C77: BENE
A78: 5350 | B78: Rental Lease of Buildings | C78: BENE
A79: 5400 | B79: Short Term Interest RANs | C79: BENE
A80: 5450 | B80: Short Term Interest BANs | C80: DEBT
A81: 5500 | B81: Other Fixed Charges | C81: BENE
A82: 5550 | B82: School Crossing Guards | C82: BENE
A83: 5990 | B83: Indirect Cost Transfers | C83: INDR
A84: 6000 | B84: Community Services
A85: 6200 | B85: Civic Activities | C85: COMM
A86: 6300 | B86: Recreation Services | C86: COMM
A87: 6800 | B87: Health Services to Non-Public Schools | C87: COMM
A88: 6900 | B88: Transportation to Non-Public Schools | C88: COMM
A89: 6910 | B89: Non-public transportation in-district | C89: COMM
A90: 6920 | B90: Non-public transportation out-of-district | C90: COMM
A91: 7000 | B91: Fixed Assets
A92: 7100 | B92: Purchase of Land and Buildings (7100, 7200) | C92: CAPT
A93: 7200 | B93: Purchase of Land and Buildings (7100, 7200) | C93: CAPT
A94: 7300 | B94: Equipment (7300, 7400) | C94: CAPT
A95: 7350 | B95: Capital Technology | C95: CAPT
A96: 7400 | B96: Equipment (7300, 7400) | C96: CAPT
A97: 7500 | B97: Motor Vehicles (7500, 7600) | C97: CAPT
A98: 7600 | B98: Motor Vehicles (7500, 7600) | C98: CAPT
A99: 8000 | B99: Long Term Debt
A100: 8100 | B100: Debt Retirement/School Construction | C100: DEBT
A101: 8200 | B101: Debt Service/School Construction | C101: DEBT
A102: 8400 | B102: Debt Service/Educ and Other (8400, 8600) | C102: DEBT
A103: 8600 | B103: Debt Service/Educ and Other (8400, 8600) | C103: DEBT
A104: 9000 | B104: Payments to Other Districts
A105: 9100 | B105: Tuition to Mass. Schools | C105: TUIT
A106: 9110 | B106: Tuition for School Choice | C106: TUIT
A107: 9120 | B107: Tuition to Commonwealth Charter Schools | C107: TUIT
A108: 9125 | B108: Tuition to Horace Mann Charter Schools | C108: TUIT
A109: 9200 | B109: Tuition to Out-of-State Schools | C109: TUIT
A110: 9300 | B110: Tuition to Non-Public Schools | C110: TUIT
A111: 9400 | B111: Tuition to Collaboratives | C111: TUIT
A112: 9500 | B112: Regional School Assessment | C112: REGL
A113: 9600 | B113: Out-of-district Transportation | C113: ODTR
A114: 9810 | B114: NSS Required Net School Spending (EOY)
A115: 9820 | B115: NSS Carryover (EOY)
A116: ADMN | B116: Administration
A117: BENE | B117: Insurance, Retirement Programs and Other
A118: CAPT | B118: Fixed Assets (Buildings, Equipment)
A119: COMM | B119: Community Activities
A120: DEBT | B120: Debt and BANs
A121: GUID | B121: Guidance, Counseling and Testing
A122: IIII | B122: In-district Expenditure
A123: INDR | B123: Indirect Cost Transfers
A124: LDRS | B124: Instructional Leadership
A125: MATL | B125: Instructional Materials, Equipment and Technology
A126: ODTR | B126: Out-of-district Transportation
A127: OODD | B127: Out-of-district Expenditure
A128: OPMN | B128: Operations and Maintenance
A129: OTHR | B129: Total Other Costs
A130: PDEV | B130: Professional Development
A131: REGL | B131: Regional Assessments
A132: SERV | B132: Pupil Services
A133: SPGR | B133: SPED From Grants, Revolving
A134: TCHR | B134: Teachers
A135: TSER | B135: Other Teaching Services
A136: TTPP | B136: Expenditure (Admin, Instruction, Operations)
A137: TTTT | B137: Grand Total Expenditures
A138: TUIT | B138: Payments to Out-of-District Schools

Sheet lea (hidden)
A1: leaname | B1: lea | E1: Sorted by LEA
A2: Abington | B2: 0001 | E2: 0001 | F2: Abington
A3: Acton | B3: 0002 | E3: 0002 | F3: Acton
A4: Acton Boxborough | B4: 0600 | E4: 0003 | F4: Acushnet
A5: Acushnet | B5: 0003 | E5: 0004 | F5: Adams
A6: Adams | B6: 0004 | E6: 0005 | F6: Agawam
A7: Agawam | B7: 0005 | E7: 0006 | F7: Alford
A8: Alford | B8: 0006 | E8: 0007 | F8: Amesbury
A9: Amesbury | B9: 0007 | E9: 0008 | F9: Amherst
A10: Amherst | B10: 0008 | E10: 0009 | F10: Andover
A11: Amherst Pelham | B11: 0605 | E11: 0010 | F11: Arlington
A12: Andover | B12: 0009 | E12: 0011 | F12: Ashburnham
A13: Arlington | B13: 0010 | E13: 0012 | F13: Ashby
A14: Ashburnham | B14: 0011 | E14: 0013 | F14: Ashfield
A15: Ashburnham Westminster | B15: 0610 | E15: 0014 | F15: Ashland
A16: Ashby | B16: 0012 | E16: 0015 | F16: Athol
A17: Ashfield | B17: 0013 | E17: 0016 | F17: Attleboro
A18: Ashland | B18: 0014 | E18: 0017 | F18: Auburn
A19: Assabet Valley | B19: 0801 | E19: 0018 | F19: Avon
A20: Athol | B20: 0015 | E20: 0019 | F20: Ayer
A21: Athol Royalston | B21: 0615 | E21: 0020 | F21: Barnstable
A22: Attleboro | B22: 0016 | E22: 0021 | F22: Barre
A23: Auburn | B23: 0017 | E23: 0022 | F23: Becket
A24: Avon | B24: 0018 | E24: 0023 | F24: Bedford
A25: Ayer | B25: 0019 | E25: 0024 | F25: Belchertown
A26: Ayer Shirley | B26: 0616 | E26: 0025 | F26: Bellingham
A27: Barnstable | B27: 0020 | E27: 0026 | F27: Belmont
A28: Barre | B28: 0021 | E28: 0027 | F28: Berkley
A29: Becket | B29: 0022 | E29: 0028 | F29: Berlin
A30: Bedford | B30: 0023 | E30: 0029 | F30: Bernardston
A31: Belchertown | B31: 0024 | E31: 0030 | F31: Beverly
A32: Bellingham | B32: 0025 | E32: 0031 | F32: Billerica
A33: Belmont | B33: 0026 | E33: 0032 | F33: Blackstone
A34: Berkley | B34: 0027 | E34: 0033 | F34: Blandford
A35: Berkshire Hills | B35: 0618 | E35: 0034 | F35: Bolton
A36: Berlin | B36: 0028 | E36: 0035 | F36: Boston
A37: Berlin Boylston | B37: 0620 | E37: 0036 | F37: Bourne
A38: Bernardston | B38: 0029 | E38: 0037 | F38: Boxborough
A39: Beverly | B39: 0030 | E39: 0038 | F39: Boxford
A40: Billerica | B40: 0031 | E40: 0039 | F40: Boylston
A41: Blackstone | B41: 0032 | E41: 0040 | F41: Braintree
A42: Blackstone Millville | B42: 0622 | E42: 0041 | F42: Brewster
A43: Blackstone Valley | B43: 0805 | E43: 0042 | F43: Bridgewater
A44: Blandford | B44: 0033 | E44: 0043 | F44: Brimfield
A45: Blue Hills | B45: 0806 | E45: 0044 | F45: Brockton
A46: Bolton | B46: 0034 | E46: 0045 | F46: Brookfield
A47: Boston | B47: 0035 | E47: 0046 | F47: Brookline
A48: Bourne | B48: 0036 | E48: 0047 | F48: Buckland
A49: Boxborough | B49: 0037 | E49: 0048 | F49: Burlington
A50: Boxford | B50: 0038 | E50: 0049 | F50: Cambridge
A51: Boylston | B51: 0039 | E51: 0050 | F51: Canton
A52: Braintree | B52: 0040 | E52: 0051 | F52: Carlisle
A53: Brewster | B53: 0041 | E53: 0052 | F53: Carver
A54: Bridgewater | B54: 0042 | E54: 0053 | F54: Charlemont
A55: Bridgewater Raynham | B55: 0625 | E55: 0054 | F55: Charlton
A56: Brimfield | B56: 0043 | E56: 0055 | F56: Chatham
A57: Bristol County | B57: 0910 | E57: 0056 | F57: Chelmsford
A58: Bristol Plymouth | B58: 0810 | E58: 0057 | F58: Chelsea
A59: Brockton | B59: 0044 | E59: 0058 | F59: Cheshire
A60: Brookfield | B60: 0045 | E60: 0059 | F60: Chester
A61: Brookline | B61: 0046 | E61: 0060 | F61: Chesterfield
A62: Buckland | B62: 0047 | E62: 0061 | F62: Chicopee
A63: Burlington | B63: 0048 | E63: 0062 | F63: Chilmark
A64: Cambridge | B64: 0049 | E64: 0063 | F64: Clarksburg
A65: Canton | B65: 0050 | E65: 0064 | F65: Clinton
A66: Cape Cod | B66: 0815 | E66: 0065 | F66: Cohasset
A67: Carlisle | B67: 0051 | E67: 0066 | F67: Colrain
A68: Carver | B68: 0052 | E68: 0067 | F68: Concord
A69: Central Berkshire | B69: 0635 | E69: 0068 | F69: Conway
A70: Charlemont | B70: 0053 | E70: 0069 | F70: Cummington
A71: Charlton | B71: 0054 | E71: 0070 | F71: Dalton
A72: Chatham | B72: 0055 | E72: 0071 | F72: Danvers
A73: Chelmsford | B73: 0056 | E73: 0072 | F73: Dartmouth
A74: Chelsea | B74: 0057 | E74: 0073 | F74: Dedham
A75: Cheshire | B75: 0058 | E75: 0074 | F75: Deerfield
A76: Chester | B76: 0059 | E76: 0075 | F76: Dennis
A77: Chesterfield | B77: 0060 | E77: 0076 | F77: Dighton
A78: Chesterfield Goshen | B78: 0632 | E78: 0077 | F78: Douglas
A79: Chicopee | B79: 0061 | E79: 0078 | F79: Dover
A80: Chilmark | B80: 0062 | E80: 0079 | F80: Dracut
A81: Clarksburg | B81: 0063 | E81: 0080 | F81: Dudley
A82: Clinton | B82: 0064 | E82: 0081 | F82: Dunstable
A83: Cohasset | B83: 0065 | E83: 0082 | F83: Duxbury
A84: Colrain | B84: 0066 | E84: 0083 | F84: East Bridgewater
A85: Concord | B85: 0067 | E85: 0084 | F85: East Brookfield
A86: Concord Carlisle | B86: 0640 | E86: 0085 | F86: Eastham
A87: Conway | B87: 0068 | E87: 0086 | F87: Easthampton
A88: Cummington | B88: 0069 | E88: 0087 | F88: East Longmeadow
A89: Dalton | B89: 0070 | E89: 0088 | F89: Easton
A90: Danvers | B90: 0071 | E90: 0089 | F90: Edgartown
A91: Dartmouth | B91: 0072 | E91: 0090 | F91: Egremont
A92: Dedham | B92: 0073 | E92: 0091 | F92: Erving
A93: Deerfield | B93: 0074 | E93: 0092 | F93: Essex
A94: Dennis | B94: 0075 | E94: 0093 | F94: Everett
A95: Dennis Yarmouth | B95: 0645 | E95: 0094 | F95: Fairhaven
A96: Dighton | B96: 0076 | E96: 0095 | F96: Fall River
A97: Dighton Rehoboth | B97: 0650 | E97: 0096 | F97: Falmouth
A98: Douglas | B98: 0077 | E98: 0097 | F98: Fitchburg
A99: Dover | B99: 0078 | E99: 0098 | F99: Florida
A100: Dover Sherborn | B100: 0655 | E100: 0099 | F100: Foxborough
A101: Dracut | B101: 0079 | E101: 0100 | F101: Framingham
A102: Dudley | B102: 0080 | E102: 0101 | F102: Franklin
A103: Dudley Charlton | B103: 0658 | E103: 0102 | F103: Freetown
A104: Dunstable | B104: 0081 | E104: 0103 | F104: Gardner
A105: Duxbury | B105: 0082 | E105: 0104 | F105: Gay Head
A106: East Bridgewater | B106: 0083 | E106: 0105 | F106: Georgetown
A107: East Brookfield | B107: 0084 | E107: 0106 | F107: Gill
A108: East Longmeadow | B108: 0087 | E108: 0107 | F108: Gloucester
A109: Eastham | B109: 0085 | E109: 0108 | F109: Goshen
A110: Easthampton | B110: 0086 | E110: 0109 | F110: Gosnold
A111: Easton | B111: 0088 | E111: 0110 | F111: Grafton
A112: Edgartown | B112: 0089 | E112: 0111 | F112: Granby
A113: Egremont | B113: 0090 | E113: 0112 | F113: Granville
A114: Erving | B114: 0091 | E114: 0113 | F114: Great Barrington
A115: Essex | B115: 0092 | E115: 0114 | F115: Greenfield
A116: Essex North Shore | B116: 0817 | E116: 0115 | F116: Groton
A117: Everett | B117: 0093 | E117: 0116 | F117: Groveland
A118: Fairhaven | B118: 0094 | E118: 0117 | F118: Hadley
A119: Fall River | B119: 0095 | E119: 0118 | F119: Halifax
A120: Falmouth | B120: 0096 | E120: 0119 | F120: Hamilton
A121: Farmington River | B121: 0662 | E121: 0120 | F121: Hampden
A122: Fitchburg | B122: 0097 | E122: 0121 | F122: Hancock
A123: Florida | B123: 0098 | E123: 0122 | F123: Hanover
A124: Foxborough | B124: 0099 | E124: 0123 | F124: Hanson
A125: Framingham | B125: 0100 | E125: 0124 | F125: Hardwick
A126: Franklin | B126: 0101 | E126: 0125 | F126: Harvard
A127: Franklin County | B127: 0818 | E127: 0126 | F127: Harwich
A128: Freetown | B128: 0102 | E128: 0127 | F128: Hatfield
A129: Freetown Lakeville | B129: 0665 | E129: 0128 | F129: Haverhill
A130: Frontier | B130: 0670 | E130: 0129 | F130: Hawley
A131: Gardner | B131: 0103 | E131: 0130 | F131: Heath
A132: Gateway | B132: 0672 | E132: 0131 | F132: Hingham
A133: Gay Head | B133: 0104 | E133: 0132 | F133: Hinsdale
A134: Georgetown | B134: 0105 | E134: 0133 | F134: Holbrook
A135: Gill | B135: 0106 | E135: 0134 | F135: Holden
A136: Gill Montague | B136: 0674 | E136: 0135 | F136: Holland
A137: Gloucester | B137: 0107 | E137: 0136 | F137: Holliston
A138: Goshen | B138: 0108 | E138: 0137 | F138: Holyoke
A139: Gosnold | B139: 0109 | E139: 0138 | F139: Hopedale
A140: Grafton | B140: 0110 | E140: 0139 | F140: Hopkinton
A141: Granby | B141: 0111 | E141: 0140 | F141: Hubbardston
A142: Granville | B142: 0112 | E142: 0141 | F142: Hudson
A143: Great Barrington | B143: 0113 | E143: 0142 | F143: Hull
A144: Greater Fall River | B144: 0821 | E144: 0143 | F144: Huntington
A145: Greater Lawrence | B145: 0823 | E145: 0144 | F145: Ipswich
A146: Greater Lowell | B146: 0828 | E146: 0145 | F146: Kingston
A147: Greater New Bedford | B147: 0825 | E147: 0146 | F147: Lakeville
A148: Greenfield | B148: 0114 | E148: 0147 | F148: Lancaster
A149: Groton | B149: 0115 | E149: 0148 | F149: Lanesborough
A150: Groton Dunstable | B150: 0673 | E150: 0149 | F150: Lawrence
A151: Groveland | B151: 0116 | E151: 0150 | F151: Lee
A152: Hadley | B152: 0117 | E152: 0151 | F152: Leicester
A153: Halifax | B153: 0118 | E153: 0152 | F153: Lenox
A154: Hamilton | B154: 0119 | E154: 0153 | F154: Leominster
A155: Hamilton Wenham | B155: 0675 | E155: 0154 | F155: Leverett
A156: Hampden | B156: 0120 | E156: 0155 | F156: Lexington
A157: Hampden Wilbraham | B157: 0680 | E157: 0156 | F157: Leyden
A158: Hampshire | B158: 0683 | E158: 0157 | F158: Lincoln
A159: Hancock | B159: 0121 | E159: 0158 | F159: Littleton
A160: Hanover | B160: 0122 | E160: 0159 | F160: Longmeadow
A161: Hanson | B161: 0123 | E161: 0160 | F161: Lowell
A162: Hardwick | B162: 0124 | E162: 0161 | F162: Ludlow
A163: Harvard | B163: 0125 | E163: 0162 | F163: Lunenburg
A164: Harwich | B164: 0126 | E164: 0163 | F164: Lynn
A165: Hatfield | B165: 0127 | E165: 0164 | F165: Lynnfield
A166: Haverhill | B166: 0128 | E166: 0165 | F166: Malden
A167: Hawlemont | B167: 0685 | E167: 0166 | F167: Manchester
A168: Hawley | B168: 0129 | E168: 0167 | F168: Mansfield
A169: Heath | B169: 0130 | E169: 0168 | F169: Marblehead
A170: Hingham | B170: 0131 | E170: 0169 | F170: Marion
A171: Hinsdale | B171: 0132 | E171: 0170 | F171: Marlborough
A172: Holbrook | B172: 0133 | E172: 0171 | F172: Marshfield
A173: Holden | B173: 0134 | E173: 0172 | F173: Mashpee
A174: Holland | B174: 0135 | E174: 0173 | F174: Mattapoisett
A175: Holliston | B175: 0136 | E175: 0174 | F175: Maynard
A176: Holyoke | B176: 0137 | E176: 0175 | F176: Medfield
A177: Hoosac Valley | B177: 0603 | E177: 0176 | F177: Medford
A178: Hopedale | B178: 0138 | E178: 0177 | F178: Medway
A179: Hopkinton | B179: 0139 | E179: 0178 | F179: Melrose
A180: Hubbardston | B180: 0140 | E180: 0179 | F180: Mendon
A181: Hudson | B181: 0141 | E181: 0180 | F181: Merrimac
A182: Hull | B182: 0142 | E182: 0181 | F182: Methuen
A183: Huntington | B183: 0143 | E183: 0182 | F183: Middleborough
A184: Ipswich | B184: 0144 | E184: 0183 | F184: Middlefield
A185: King Philip | B185: 0690 | E185: 0184 | F185: Middleton
A186: Kingston | B186: 0145 | E186: 0185 | F186: Milford
A187: Lakeville | B187: 0146 | E187: 0186 | F187: Millbury
A188: Lancaster | B188: 0147 | E188: 0187 | F188: Millis
A189: Lanesborough | B189: 0148 | E189: 0188 | F189: Millville
A190: Lawrence | B190: 0149 | E190: 0189 | F190: Milton
A191: Lee | B191: 0150 | E191: 0190 | F191: Monroe
A192: Leicester | B192: 0151 | E192: 0191 | F192: Monson
A193: Lenox | B193: 0152 | E193: 0192 | F193: Montague
A194: Leominster | B194: 0153 | E194: 0193 | F194: Monterey
A195: Leverett | B195: 0154 | E195: 0194 | F195: Montgomery
A196: Lexington | B196: 0155 | E196: 0195 | F196: Mount Washington
A197: Leyden | B197: 0156 | E197: 0196 | F197: Nahant
A198: Lincoln | B198: 0157 | E198: 0197 | F198: Nantucket
A199: Lincoln Sudbury | B199: 0695 | E199: 0198 | F199: Natick
A200: Littleton | B200: 0158 | E200: 0199 | F200: Needham
... 239 more rows
